{"text_format":"1","workbook":"xlsx","n_sheets":7,"sheets":["Puntaje económico 65 Segemento","Puntaje Tecnico 25","Puntaje IN 10","Marcas","Hoja1","Consolidado","Titulos"],"not_rendered":{"charts":0,"images":0,"macros":1,"external_links":0,"defined_names":4,"comments":0,"pivot_tables":0},"unopened":[],"bounds":{"document_bytes":16777216,"sheet_cells":100000,"rows_first":2000,"rows_last":500,"rows_between":2000,"halvings":0,"cell_chars":16384,"cell_head_chars":4096},"cells_cut":0,"cells_raw":0,"read":"whole","date_system":"1900"}

{"sheet":"Puntaje económico 65 Segemento","index":0,"n_rows":41,"n_cols":108,"rows_kept":41,"cut":false,"hidden":true,"merged":[[0,0,1,1]]}
["SEGMENTO 1"]
[null,null,null,null,null,null,null,null,null,null,null,null,null,null,null,null,null,null,null,null,null,null,null,null,null,null,null,null,null,null,null,null,null,null,null,null,null,null,null,null,null,null,null,null,null,null,null,null,null,null,null,null,null,null,null,null,null,"Puntaje económico Servicios",{"$f":"SUM(#REF!)","v":{"$error":"#REF!"}},{"$f":"SUM(#REF!)","v":{"$error":"#REF!"}},{"$f":"SUM(#REF!)","v":{"$error":"#REF!"}},{"$f":"SUM(#REF!)","v":{"$error":"#REF!"}},{"$f":"SUM(#REF!)","v":{"$error":"#REF!"}},{"$f":"SUM(#REF!)","v":{"$error":"#REF!"}},{"$f":"SUM(#REF!)","v":{"$error":"#REF!"}},{"$f":"SUM(#REF!)","v":{"$error":"#REF!"}},{"$f":"SUM(#REF!)","v":{"$error":"#REF!"}},{"$f":"SUM(#REF!)","v":{"$error":"#REF!"}},{"$f":"SUM(#REF!)","v":{"$error":"#REF!"}},{"$f":"SUM(#REF!)","v":{"$error":"#REF!"}},{"$f":"SUM(#REF!)","v":{"$error":"#REF!"}},{"$f":"SUM(#REF!)","v":{"$error":"#REF!"}},{"$f":"SUM(#REF!)","v":{"$error":"#REF!"}},{"$f":"SUM(#REF!)","v":{"$error":"#REF!"}},{"$f":"SUM(#REF!)","v":{"$error":"#REF!"}},{"$f":"SUM(#REF!)","v":{"$error":"#REF!"}},{"$f":"SUM(#REF!)","v":{"$error":"#REF!"}},{"$f":"SUM(#REF!)","v":{"$error":"#REF!"}},{"$f":"SUM(#REF!)","v":{"$error":"#REF!"}},{"$f":"SUM(#REF!)","v":{"$error":"#REF!"}},{"$f":"SUM(#REF!)","v":{"$error":"#REF!"}},{"$f":"SUM(#REF!)","v":{"$error":"#REF!"}},{"$f":"SUM(#REF!)","v":{"$error":"#REF!"}},{"$f":"SUM(#REF!)","v":{"$error":"#REF!"}},{"$f":"SUM(#REF!)","v":{"$error":"#REF!"}},{"$f":"SUM(#REF!)","v":{"$error":"#REF!"}},{"$f":"SUM(#REF!)","v":{"$error":"#REF!"}},{"$f":"SUM(#REF!)","v":{"$error":"#REF!"}},{"$f":"SUM(#REF!)","v":{"$error":"#REF!"}},{"$f":"SUM(#REF!)","v":{"$error":"#REF!"}},{"$f":"SUM(#REF!)","v":{"$error":"#REF!"}},{"$f":"SUM(#REF!)","v":{"$error":"#REF!"}},{"$f":"SUM(#REF!)","v":{"$error":"#REF!"}},{"$f":"SUM(#REF!)","v":{"$error":"#REF!"}},{"$f":"SUM(#REF!)","v":{"$error":"#REF!"}},{"$f":"SUM(#REF!)","v":{"$error":"#REF!"}},{"$f":"SUM(#REF!)","v":{"$error":"#REF!"}},{"$f":"SUM(#REF!)","v":{"$error":"#REF!"}},{"$f":"SUM(#REF!)","v":{"$error":"#REF!"}},{"$f":"SUM(#REF!)","v":{"$error":"#REF!"}},{"$f":"SUM(#REF!)","v":{"$error":"#REF!"}},{"$f":"SUM(#REF!)","v":{"$error":"#REF!"}},{"$f":"SUM(#REF!)","v":{"$error":"#REF!"}},{"$f":"SUM(#REF!)","v":{"$error":"#REF!"}},{"$f":"SUM(#REF!)","v":{"$error":"#REF!"}},{"$f":"SUM(#REF!)","v":{"$error":"#REF!"}},{"$f":"SUM(#REF!)","v":{"$error":"#REF!"}},{"$f":"SUM(#REF!)","v":{"$error":"#REF!"}}]
[null,null,null,"Proponente Habilitado",1,1,1,1,1,1,1,1,1,1,1,1,1,1,1,1,1,1,1,1,1,1,1,1,1,1,1,1,1,1,1,1,1,1,1,1,1,1,1,1,1,1,1,0,0,0,0,0,0,0,null,null,null,"Puntaje económico etp",{"$f":"SUM(BG5:BG40)","v":{"$error":"#VALUE!"}},{"$error":"#VALUE!"},{"$error":"#VALUE!"},{"$error":"#VALUE!"},{"$error":"#VALUE!"},{"$error":"#VALUE!"},{"$error":"#VALUE!"},{"$error":"#VALUE!"},{"$error":"#VALUE!"},{"$error":"#VALUE!"},{"$error":"#VALUE!"},{"$error":"#VALUE!"},{"$error":"#VALUE!"},{"$error":"#VALUE!"},{"$error":"#VALUE!"},{"$error":"#VALUE!"},{"$error":"#VALUE!"},{"$error":"#VALUE!"},{"$error":"#VALUE!"},{"$error":"#VALUE!"},{"$error":"#VALUE!"},{"$error":"#VALUE!"},{"$error":"#VALUE!"},{"$error":"#VALUE!"},{"$error":"#VALUE!"},{"$error":"#VALUE!"},{"$error":"#VALUE!"},{"$error":"#VALUE!"},{"$error":"#VALUE!"},{"$error":"#VALUE!"},{"$error":"#VALUE!"},{"$error":"#VALUE!"},{"$f":"SUM(CM5:CM40)","v":{"$error":"#VALUE!"}},{"$error":"#VALUE!"},{"$error":"#VALUE!"},{"$error":"#VALUE!"},{"$error":"#VALUE!"},{"$error":"#VALUE!"},{"$error":"#VALUE!"},{"$error":"#VALUE!"},{"$error":"#VALUE!"},{"$error":"#VALUE!"},{"$error":"#DIV/0!"},0,0,0,0,0,0,0]
["Ref.  Artículo. ","Descripción","Unidad","Peso Economico","i3NET SAS","COMPUTEL SYSTEM S.A.S.","KEY MARKET SAS","Aconpiexpress","Pear Solutions","S.O.S.","18- PyP Systems","Corsa","UT CONIX - METALANDES","8-JPDP ","43-UT CCE","Nexcom","Selcomp Ingenieria S.A.S","Oficomco","SUMIMAS SAS","TECNOPHONE COLOMBIA SAS","NUEVA ERA SOLUCIONES SAS","Savera","Coinsi","COLOMBIANA DE SERVICIOS TECNOLOGICOS S.A.S. \"COLSISTEC\"","Micronet","PROINTECH COLOMBIA SAS","Compufacil","46-Import","Seven wireless","HAS","Soluciones Activas","41-Sistetronics","3-CYSNUS","UT Data","Controles empresariales","Computer center","Comware","Red computo","Carvajal Tecnología y Servicios SAS","OFIBOD LTDA ","MICROHARD S.A.S","Uniples","Colsof","Origin IT","Andivision","DISTRICOM DE COLOMBIA SAS","Proveedor 43","Proveedor 44","Proveedor 45","Proveedor 46","Proveedor 47","Proveedor 48","Proveedor 49","Proveedor 50","Mediana","Mínimo precio","Máximo precio ","Promedio precio ",{"$f":"E4","v":"i3NET SAS"},{"$f":"F4","v":"COMPUTEL SYSTEM S.A.S."},"KEY MARKET SAS","Aconpiexpress","Pear Solutions","S.O.S.","18- PyP Systems","Corsa","UT CONIX - METALANDES","8-JPDP ","43-UT CCE","Nexcom","Selcomp Ingenieria S.A.S","Oficomco","SUMIMAS SAS","TECNOPHONE COLOMBIA SAS","NUEVA ERA SOLUCIONES SAS","Savera","Coinsi","COLOMBIANA DE SERVICIOS TECNOLOGICOS S.A.S. \"COLSISTEC\"","Micronet","PROINTECH COLOMBIA SAS","Compufacil","46-Import","Seven wireless","HAS","Soluciones Activas","41-Sistetronics","3-CYSNUS","UT Data","Controles empresariales","Computer center","Comware","Red computo","Carvajal Tecnología y Servicios SAS","OFIBOD LTDA ","MICROHARD S.A.S","Uniples","Colsof","Origin IT","Andivision","DISTRICOM DE COLOMBIA SAS","Proveedor 43","Proveedor 44","Proveedor 45","Proveedor 46","Proveedor 47","Proveedor 48","Proveedor 49","Proveedor 50"]
[1,"ETP Liviana Computador de escritorio 1.1","Marca",1.7632241813602016E-2,"HEWLETT PACKARD","HP","HP ","Computador de escritorio 1.1","Pc Smart","HP","HP","Hewlett Packard","Hewlett Packard","HP","HEWLETT PACKARD","LENOVO","Compumax","HEWLETT PACKARD","HP ","Hewlett-Packard","LENOVO","DELL","Hewlett-Packard","DELL","HP","DELL","hewlett packard","DELL","ACER","HP ","PC SMART","COMPUMAX","LENOVO","ACER","HEWLETT PACKARD","LENOVO","Dell","DELL","HP","DELL","DELL","HP","DELL","DELL","Lenovo","hewlett packard",null,null,null,null,null,null,null,null,{"$f":"MEDIAN(IF($E$3:$BB$3<>0,$E5:$BB5))","v":0},{"$f":"MIN(IF($E$3:$BB$3<>0,$E5:$BB5))","v":0},{"$f":"MAX(IF($E$3:$BB$3<>0,$E5:$BB5))","v":0},{"$f":"AVERAGE(IF($E$3:$BB$3<>0,$E5:$BB5))","v":0},{"$f":"IF(E$3<>0,IF(E5<$BC5,(50*$D5)*(0.8+(0.2*(($BC5-E5)/($BC5-$BD5)))),(50*$D5)*(0.8*(($BE5-E5)/($BE5-$BC5)))),0)","v":{"$error":"#VALUE!"}},{"$f":"IF(F$3<>0,IF(F5<$BC5,(50*$D5)*(0.8+(0.2*(($BC5-F5)/($BC5-$BD5)))),(50*$D5)*(0.8*(($BE5-F5)/($BE5-$BC5)))),0)","v":{"$error":"#VALUE!"}},{"$error":"#VALUE!"},{"$error":"#VALUE!"},{"$error":"#VALUE!"},{"$error":"#VALUE!"},{"$error":"#VALUE!"},{"$error":"#VALUE!"},{"$error":"#VALUE!"},{"$error":"#VALUE!"},{"$error":"#VALUE!"},{"$error":"#VALUE!"},{"$error":"#VALUE!"},{"$error":"#VALUE!"},{"$error":"#VALUE!"},{"$error":"#VALUE!"},{"$error":"#VALUE!"},{"$error":"#VALUE!"},{"$error":"#VALUE!"},{"$error":"#VALUE!"},{"$error":"#VALUE!"},{"$error":"#VALUE!"},{"$error":"#VALUE!"},{"$error":"#VALUE!"},{"$error":"#VALUE!"},{"$error":"#VALUE!"},{"$error":"#VALUE!"},{"$error":"#VALUE!"},{"$error":"#VALUE!"},{"$error":"#VALUE!"},{"$error":"#VALUE!"},{"$error":"#VALUE!"},{"$error":"#VALUE!"},{"$error":"#VALUE!"},{"$error":"#VALUE!"},{"$error":"#VALUE!"},{"$error":"#VALUE!"},{"$error":"#VALUE!"},{"$error":"#VALUE!"},{"$error":"#VALUE!"},{"$error":"#VALUE!"},{"$error":"#VALUE!"},{"$error":"#DIV/0!"},0,0,0,0,0,0,0]
[2,"ETP Estándar Computador de escritorio 1.2","Marca",2.0151133501259445E-2,"HEWLETT PACKARD","HP","HP ","Computador de escritorio 1.2","Pc Smart","HP","HP","Hewlett Packard","Hewlett Packard","HP","HEWLETT PACKARD","LENOVO","Compumax","HEWLETT PACKARD","HP ","Hewlett-Packard","LENOVO","DELL","Hewlett-Packard","DELL","HP","DELL","hewlett packard","DELL","ACER","HP ","PC SMART","COMPUMAX","LENOVO","ACER","HEWLETT PACKARD","LENOVO","Dell","DELL","HP","DELL","DELL","HP","DELL","DELL","Lenovo","hewlett packard",null,null,null,null,null,null,null,null,{"$f":"MEDIAN(IF($E$3:$BB$3<>0,$E6:$BB6))","v":0},{"$f":"MIN(IF($E$3:$BB$3<>0,$E6:$BB6))","v":0},{"$f":"MAX(IF($E$3:$BB$3<>0,$E6:$BB6))","v":0},{"$f":"AVERAGE(IF($E$3:$BB$3<>0,$E6:$BB6))","v":0},{"$f":"IF(E$3<>0,IF(E6<$BC6,(50*$D6)*(0.8+(0.2*(($BC6-E6)/($BC6-$BD6)))),(50*$D6)*(0.8*(($BE6-E6)/($BE6-$BC6)))),0)","v":{"$error":"#VALUE!"}},{"$f":"IF(F$3<>0,IF(F6<$BC6,(50*$D6)*(0.8+(0.2*(($BC6-F6)/($BC6-$BD6)))),(50*$D6)*(0.8*(($BE6-F6)/($BE6-$BC6)))),0)","v":{"$error":"#VALUE!"}},{"$f":"IF(G$3<>0,IF(G6<$BC6,(50*$D6)*(0.8+(0.2*(($BC6-G6)/($BC6-$BD6)))),(50*$D6)*(0.8*(($BE6-G6)/($BE6-$BC6)))),0)","v":{"$error":"#VALUE!"}},{"$f":"IF(H$3<>0,IF(H6<$BC6,(50*$D6)*(0.8+(0.2*(($BC6-H6)/($BC6-$BD6)))),(50*$D6)*(0.8*(($BE6-H6)/($BE6-$BC6)))),0)","v":{"$error":"#VALUE!"}},{"$f":"IF(I$3<>0,IF(I6<$BC6,(50*$D6)*(0.8+(0.2*(($BC6-I6)/($BC6-$BD6)))),(50*$D6)*(0.8*(($BE6-I6)/($BE6-$BC6)))),0)","v":{"$error":"#VALUE!"}},{"$f":"IF(J$3<>0,IF(J6<$BC6,(50*$D6)*(0.8+(0.2*(($BC6-J6)/($BC6-$BD6)))),(50*$D6)*(0.8*(($BE6-J6)/($BE6-$BC6)))),0)","v":{"$error":"#VALUE!"}},{"$f":"IF(K$3<>0,IF(K6<$BC6,(50*$D6)*(0.8+(0.2*(($BC6-K6)/($BC6-$BD6)))),(50*$D6)*(0.8*(($BE6-K6)/($BE6-$BC6)))),0)","v":{"$error":"#VALUE!"}},{"$f":"IF(L$3<>0,IF(L6<$BC6,(50*$D6)*(0.8+(0.2*(($BC6-L6)/($BC6-$BD6)))),(50*$D6)*(0.8*(($BE6-L6)/($BE6-$BC6)))),0)","v":{"$error":"#VALUE!"}},{"$f":"IF(M$3<>0,IF(M6<$BC6,(50*$D6)*(0.8+(0.2*(($BC6-M6)/($BC6-$BD6)))),(50*$D6)*(0.8*(($BE6-M6)/($BE6-$BC6)))),0)","v":{"$error":"#VALUE!"}},{"$f":"IF(N$3<>0,IF(N6<$BC6,(50*$D6)*(0.8+(0.2*(($BC6-N6)/($BC6-$BD6)))),(50*$D6)*(0.8*(($BE6-N6)/($BE6-$BC6)))),0)","v":{"$error":"#VALUE!"}},{"$f":"IF(O$3<>0,IF(O6<$BC6,(50*$D6)*(0.8+(0.2*(($BC6-O6)/($BC6-$BD6)))),(50*$D6)*(0.8*(($BE6-O6)/($BE6-$BC6)))),0)","v":{"$error":"#VALUE!"}},{"$f":"IF(P$3<>0,IF(P6<$BC6,(50*$D6)*(0.8+(0.2*(($BC6-P6)/($BC6-$BD6)))),(50*$D6)*(0.8*(($BE6-P6)/($BE6-$BC6)))),0)","v":{"$error":"#VALUE!"}},{"$f":"IF(Q$3<>0,IF(Q6<$BC6,(50*$D6)*(0.8+(0.2*(($BC6-Q6)/($BC6-$BD6)))),(50*$D6)*(0.8*(($BE6-Q6)/($BE6-$BC6)))),0)","v":{"$error":"#VALUE!"}},{"$f":"IF(R$3<>0,IF(R6<$BC6,(50*$D6)*(0.8+(0.2*(($BC6-R6)/($BC6-$BD6)))),(50*$D6)*(0.8*(($BE6-R6)/($BE6-$BC6)))),0)","v":{"$error":"#VALUE!"}},{"$f":"IF(S$3<>0,IF(S6<$BC6,(50*$D6)*(0.8+(0.2*(($BC6-S6)/($BC6-$BD6)))),(50*$D6)*(0.8*(($BE6-S6)/($BE6-$BC6)))),0)","v":{"$error":"#VALUE!"}},{"$f":"IF(T$3<>0,IF(T6<$BC6,(50*$D6)*(0.8+(0.2*(($BC6-T6)/($BC6-$BD6)))),(50*$D6)*(0.8*(($BE6-T6)/($BE6-$BC6)))),0)","v":{"$error":"#VALUE!"}},{"$f":"IF(U$3<>0,IF(U6<$BC6,(50*$D6)*(0.8+(0.2*(($BC6-U6)/($BC6-$BD6)))),(50*$D6)*(0.8*(($BE6-U6)/($BE6-$BC6)))),0)","v":{"$error":"#VALUE!"}},{"$f":"IF(V$3<>0,IF(V6<$BC6,(50*$D6)*(0.8+(0.2*(($BC6-V6)/($BC6-$BD6)))),(50*$D6)*(0.8*(($BE6-V6)/($BE6-$BC6)))),0)","v":{"$error":"#VALUE!"}},{"$f":"IF(W$3<>0,IF(W6<$BC6,(50*$D6)*(0.8+(0.2*(($BC6-W6)/($BC6-$BD6)))),(50*$D6)*(0.8*(($BE6-W6)/($BE6-$BC6)))),0)","v":{"$error":"#VALUE!"}},{"$f":"IF(X$3<>0,IF(X6<$BC6,(50*$D6)*(0.8+(0.2*(($BC6-X6)/($BC6-$BD6)))),(50*$D6)*(0.8*(($BE6-X6)/($BE6-$BC6)))),0)","v":{"$error":"#VALUE!"}},{"$f":"IF(Y$3<>0,IF(Y6<$BC6,(50*$D6)*(0.8+(0.2*(($BC6-Y6)/($BC6-$BD6)))),(50*$D6)*(0.8*(($BE6-Y6)/($BE6-$BC6)))),0)","v":{"$error":"#VALUE!"}},{"$f":"IF(Z$3<>0,IF(Z6<$BC6,(50*$D6)*(0.8+(0.2*(($BC6-Z6)/($BC6-$BD6)))),(50*$D6)*(0.8*(($BE6-Z6)/($BE6-$BC6)))),0)","v":{"$error":"#VALUE!"}},{"$f":"IF(AA$3<>0,IF(AA6<$BC6,(50*$D6)*(0.8+(0.2*(($BC6-AA6)/($BC6-$BD6)))),(50*$D6)*(0.8*(($BE6-AA6)/($BE6-$BC6)))),0)","v":{"$error":"#VALUE!"}},{"$f":"IF(AB$3<>0,IF(AB6<$BC6,(50*$D6)*(0.8+(0.2*(($BC6-AB6)/($BC6-$BD6)))),(50*$D6)*(0.8*(($BE6-AB6)/($BE6-$BC6)))),0)","v":{"$error":"#VALUE!"}},{"$f":"IF(AC$3<>0,IF(AC6<$BC6,(50*$D6)*(0.8+(0.2*(($BC6-AC6)/($BC6-$BD6)))),(50*$D6)*(0.8*(($BE6-AC6)/($BE6-$BC6)))),0)","v":{"$error":"#VALUE!"}},{"$f":"IF(AD$3<>0,IF(AD6<$BC6,(50*$D6)*(0.8+(0.2*(($BC6-AD6)/($BC6-$BD6)))),(50*$D6)*(0.8*(($BE6-AD6)/($BE6-$BC6)))),0)","v":{"$error":"#VALUE!"}},{"$f":"IF(AE$3<>0,IF(AE6<$BC6,(50*$D6)*(0.8+(0.2*(($BC6-AE6)/($BC6-$BD6)))),(50*$D6)*(0.8*(($BE6-AE6)/($BE6-$BC6)))),0)","v":{"$error":"#VALUE!"}},{"$f":"IF(AF$3<>0,IF(AF6<$BC6,(50*$D6)*(0.8+(0.2*(($BC6-AF6)/($BC6-$BD6)))),(50*$D6)*(0.8*(($BE6-AF6)/($BE6-$BC6)))),0)","v":{"$error":"#VALUE!"}},{"$f":"IF(AG$3<>0,IF(AG6<$BC6,(50*$D6)*(0.8+(0.2*(($BC6-AG6)/($BC6-$BD6)))),(50*$D6)*(0.8*(($BE6-AG6)/($BE6-$BC6)))),0)","v":{"$error":"#VALUE!"}},{"$f":"IF(AH$3<>0,IF(AH6<$BC6,(50*$D6)*(0.8+(0.2*(($BC6-AH6)/($BC6-$BD6)))),(50*$D6)*(0.8*(($BE6-AH6)/($BE6-$BC6)))),0)","v":{"$error":"#VALUE!"}},{"$f":"IF(AI$3<>0,IF(AI6<$BC6,(50*$D6)*(0.8+(0.2*(($BC6-AI6)/($BC6-$BD6)))),(50*$D6)*(0.8*(($BE6-AI6)/($BE6-$BC6)))),0)","v":{"$error":"#VALUE!"}},{"$f":"IF(AJ$3<>0,IF(AJ6<$BC6,(50*$D6)*(0.8+(0.2*(($BC6-AJ6)/($BC6-$BD6)))),(50*$D6)*(0.8*(($BE6-AJ6)/($BE6-$BC6)))),0)","v":{"$error":"#VALUE!"}},{"$f":"IF(AK$3<>0,IF(AK6<$BC6,(50*$D6)*(0.8+(0.2*(($BC6-AK6)/($BC6-$BD6)))),(50*$D6)*(0.8*(($BE6-AK6)/($BE6-$BC6)))),0)","v":{"$error":"#VALUE!"}},{"$f":"IF(AL$3<>0,IF(AL6<$BC6,(50*$D6)*(0.8+(0.2*(($BC6-AL6)/($BC6-$BD6)))),(50*$D6)*(0.8*(($BE6-AL6)/($BE6-$BC6)))),0)","v":{"$error":"#VALUE!"}},{"$f":"IF(AM$3<>0,IF(AM6<$BC6,(50*$D6)*(0.8+(0.2*(($BC6-AM6)/($BC6-$BD6)))),(50*$D6)*(0.8*(($BE6-AM6)/($BE6-$BC6)))),0)","v":{"$error":"#VALUE!"}},{"$f":"IF(AN$3<>0,IF(AN6<$BC6,(50*$D6)*(0.8+(0.2*(($BC6-AN6)/($BC6-$BD6)))),(50*$D6)*(0.8*(($BE6-AN6)/($BE6-$BC6)))),0)","v":{"$error":"#VALUE!"}},{"$f":"IF(AO$3<>0,IF(AO6<$BC6,(50*$D6)*(0.8+(0.2*(($BC6-AO6)/($BC6-$BD6)))),(50*$D6)*(0.8*(($BE6-AO6)/($BE6-$BC6)))),0)","v":{"$error":"#VALUE!"}},{"$f":"IF(AP$3<>0,IF(AP6<$BC6,(50*$D6)*(0.8+(0.2*(($BC6-AP6)/($BC6-$BD6)))),(50*$D6)*(0.8*(($BE6-AP6)/($BE6-$BC6)))),0)","v":{"$error":"#VALUE!"}},{"$f":"IF(AQ$3<>0,IF(AQ6<$BC6,(50*$D6)*(0.8+(0.2*(($BC6-AQ6)/($BC6-$BD6)))),(50*$D6)*(0.8*(($BE6-AQ6)/($BE6-$BC6)))),0)","v":{"$error":"#VALUE!"}},{"$f":"IF(AR$3<>0,IF(AR6<$BC6,(50*$D6)*(0.8+(0.2*(($BC6-AR6)/($BC6-$BD6)))),(50*$D6)*(0.8*(($BE6-AR6)/($BE6-$BC6)))),0)","v":{"$error":"#VALUE!"}},{"$f":"IF(AS$3<>0,IF(AS6<$BC6,(50*$D6)*(0.8+(0.2*(($BC6-AS6)/($BC6-$BD6)))),(50*$D6)*(0.8*(($BE6-AS6)/($BE6-$BC6)))),0)","v":{"$error":"#VALUE!"}},{"$f":"IF(AT$3<>0,IF(AT6<$BC6,(50*$D6)*(0.8+(0.2*(($BC6-AT6)/($BC6-$BD6)))),(50*$D6)*(0.8*(($BE6-AT6)/($BE6-$BC6)))),0)","v":{"$error":"#VALUE!"}},{"$f":"IF(AU$3<>0,IF(AU6<$BC6,(50*$D6)*(0.8+(0.2*(($BC6-AU6)/($BC6-$BD6)))),(50*$D6)*(0.8*(($BE6-AU6)/($BE6-$BC6)))),0)","v":{"$error":"#DIV/0!"}},{"$f":"IF(AV$3<>0,IF(AV6<$BC6,(50*$D6)*(0.8+(0.2*(($BC6-AV6)/($BC6-$BD6)))),(50*$D6)*(0.8*(($BE6-AV6)/($BE6-$BC6)))),0)","v":0},{"$f":"IF(AW$3<>0,IF(AW6<$BC6,(50*$D6)*(0.8+(0.2*(($BC6-AW6)/($BC6-$BD6)))),(50*$D6)*(0.8*(($BE6-AW6)/($BE6-$BC6)))),0)","v":0},{"$f":"IF(AX$3<>0,IF(AX6<$BC6,(50*$D6)*(0.8+(0.2*(($BC6-AX6)/($BC6-$BD6)))),(50*$D6)*(0.8*(($BE6-AX6)/($BE6-$BC6)))),0)","v":0},{"$f":"IF(AY$3<>0,IF(AY6<$BC6,(50*$D6)*(0.8+(0.2*(($BC6-AY6)/($BC6-$BD6)))),(50*$D6)*(0.8*(($BE6-AY6)/($BE6-$BC6)))),0)","v":0},{"$f":"IF(AZ$3<>0,IF(AZ6<$BC6,(50*$D6)*(0.8+(0.2*(($BC6-AZ6)/($BC6-$BD6)))),(50*$D6)*(0.8*(($BE6-AZ6)/($BE6-$BC6)))),0)","v":0},{"$f":"IF(BA$3<>0,IF(BA6<$BC6,(50*$D6)*(0.8+(0.2*(($BC6-BA6)/($BC6-$BD6)))),(50*$D6)*(0.8*(($BE6-BA6)/($BE6-$BC6)))),0)","v":0},{"$f":"IF(BB$3<>0,IF(BB6<$BC6,(50*$D6)*(0.8+(0.2*(($BC6-BB6)/($BC6-$BD6)))),(50*$D6)*(0.8*(($BE6-BB6)/($BE6-$BC6)))),0)","v":0}]
[3,"ETP Estándar Computador de escritorio Linux 1.3","Marca",2.0151133501259445E-2,"HEWLETT PACKARD","HP","HP ","Computador de escritorio Linux 1.3","Pc Smart","HP","HP","Hewlett Packard","Hewlett Packard","HP","HEWLETT PACKARD","LENOVO","Compumax","HEWLETT PACKARD","HP ","Hewlett-Packard","LENOVO","DELL","Hewlett-Packard","DELL","HP","DELL","hewlett packard","DELL","ACER","HP ","PC SMART","COMPUMAX","LENOVO","ACER","HEWLETT PACKARD","LENOVO","Dell","DELL","HP","DELL","DELL","HP","DELL","DELL","Lenovo","hewlett packard",null,null,null,null,null,null,null,null,{"$f":"MEDIAN(IF($E$3:$BB$3<>0,$E7:$BB7))","v":0},{"$f":"MIN(IF($E$3:$BB$3<>0,$E7:$BB7))","v":0},{"$f":"MAX(IF($E$3:$BB$3<>0,$E7:$BB7))","v":0},{"$f":"AVERAGE(IF($E$3:$BB$3<>0,$E7:$BB7))","v":0},{"$error":"#VALUE!"},{"$error":"#VALUE!"},{"$error":"#VALUE!"},{"$error":"#VALUE!"},{"$error":"#VALUE!"},{"$error":"#VALUE!"},{"$error":"#VALUE!"},{"$error":"#VALUE!"},{"$error":"#VALUE!"},{"$error":"#VALUE!"},{"$error":"#VALUE!"},{"$error":"#VALUE!"},{"$error":"#VALUE!"},{"$error":"#VALUE!"},{"$error":"#VALUE!"},{"$error":"#VALUE!"},{"$error":"#VALUE!"},{"$error":"#VALUE!"},{"$error":"#VALUE!"},{"$error":"#VALUE!"},{"$error":"#VALUE!"},{"$error":"#VALUE!"},{"$error":"#VALUE!"},{"$error":"#VALUE!"},{"$error":"#VALUE!"},{"$error":"#VALUE!"},{"$error":"#VALUE!"},{"$error":"#VALUE!"},{"$error":"#VALUE!"},{"$error":"#VALUE!"},{"$error":"#VALUE!"},{"$error":"#VALUE!"},{"$error":"#VALUE!"},{"$error":"#VALUE!"},{"$error":"#VALUE!"},{"$error":"#VALUE!"},{"$error":"#VALUE!"},{"$error":"#VALUE!"},{"$error":"#VALUE!"},{"$error":"#VALUE!"},{"$error":"#VALUE!"},{"$error":"#VALUE!"},{"$error":"#DIV/0!"},0,0,0,0,0,0,0]
[4,"ETP Estándar Computador de escritorio 1.4","Marca",2.2670025188916875E-2,"HEWLETT PACKARD","HP","HP ","Computador de escritorio 1.4","Pc Smart","HP","HP","Hewlett Packard","Hewlett Packard","HP","HEWLETT PACKARD","LENOVO","Compumax","HEWLETT PACKARD","HP ","Hewlett-Packard","LENOVO","DELL","Hewlett-Packard","DELL","HP","DELL","hewlett packard","DELL","ACER","HP ","PC SMART","COMPUMAX","LENOVO","ACER","HEWLETT PACKARD","LENOVO","Dell","DELL","HP","DELL","DELL","HP","DELL","DELL","Lenovo","hewlett packard",null,null,null,null,null,null,null,null,{"$f":"MEDIAN(IF($E$3:$BB$3<>0,$E8:$BB8))","v":0},{"$f":"MIN(IF($E$3:$BB$3<>0,$E8:$BB8))","v":0},{"$f":"MAX(IF($E$3:$BB$3<>0,$E8:$BB8))","v":0},{"$f":"AVERAGE(IF($E$3:$BB$3<>0,$E8:$BB8))","v":0},{"$error":"#VALUE!"},{"$error":"#VALUE!"},{"$error":"#VALUE!"},{"$error":"#VALUE!"},{"$error":"#VALUE!"},{"$error":"#VALUE!"},{"$error":"#VALUE!"},{"$error":"#VALUE!"},{"$error":"#VALUE!"},{"$error":"#VALUE!"},{"$error":"#VALUE!"},{"$error":"#VALUE!"},{"$error":"#VALUE!"},{"$error":"#VALUE!"},{"$error":"#VALUE!"},{"$error":"#VALUE!"},{"$error":"#VALUE!"},{"$error":"#VALUE!"},{"$error":"#VALUE!"},{"$error":"#VALUE!"},{"$error":"#VALUE!"},{"$error":"#VALUE!"},{"$error":"#VALUE!"},{"$error":"#VALUE!"},{"$error":"#VALUE!"},{"$error":"#VALUE!"},{"$error":"#VALUE!"},{"$error":"#VALUE!"},{"$error":"#VALUE!"},{"$error":"#VALUE!"},{"$error":"#VALUE!"},{"$error":"#VALUE!"},{"$error":"#VALUE!"},{"$error":"#VALUE!"},{"$error":"#VALUE!"},{"$error":"#VALUE!"},{"$error":"#VALUE!"},{"$error":"#VALUE!"},{"$error":"#VALUE!"},{"$error":"#VALUE!"},{"$error":"#VALUE!"},{"$error":"#VALUE!"},{"$error":"#DIV/0!"},0,0,0,0,0,0,0]
[5,"ETP Avanzada All in one 1.5","Marca",2.2670025188916875E-2,"HEWLETT PACKARD","HP","HP ","All in one 1.5","Pc Smart","HP","HP","Hewlett Packard","Hewlett Packard","HP","HEWLETT PACKARD","LENOVO","Compumax","HEWLETT PACKARD","HP ","Hewlett-Packard","LENOVO","DELL","Hewlett-Packard","DELL","HP","DELL","hewlett packard","DELL","ACER","HP ","PC SMART","COMPUMAX","LENOVO","ACER","HEWLETT PACKARD","LENOVO","Dell","DELL","HP","DELL","DELL","HP","DELL","DELL","Lenovo","hewlett packard",null,null,null,null,null,null,null,null,{"$f":"MEDIAN(IF($E$3:$BB$3<>0,$E9:$BB9))","v":0},{"$f":"MIN(IF($E$3:$BB$3<>0,$E9:$BB9))","v":0},{"$f":"MAX(IF($E$3:$BB$3<>0,$E9:$BB9))","v":0},{"$f":"AVERAGE(IF($E$3:$BB$3<>0,$E9:$BB9))","v":0},{"$error":"#VALUE!"},{"$error":"#VALUE!"},{"$error":"#VALUE!"},{"$error":"#VALUE!"},{"$error":"#VALUE!"},{"$error":"#VALUE!"},{"$error":"#VALUE!"},{"$error":"#VALUE!"},{"$error":"#VALUE!"},{"$error":"#VALUE!"},{"$error":"#VALUE!"},{"$error":"#VALUE!"},{"$error":"#VALUE!"},{"$error":"#VALUE!"},{"$error":"#VALUE!"},{"$error":"#VALUE!"},{"$error":"#VALUE!"},{"$error":"#VALUE!"},{"$error":"#VALUE!"},{"$error":"#VALUE!"},{"$error":"#VALUE!"},{"$error":"#VALUE!"},{"$error":"#VALUE!"},{"$error":"#VALUE!"},{"$error":"#VALUE!"},{"$error":"#VALUE!"},{"$error":"#VALUE!"},{"$error":"#VALUE!"},{"$error":"#VALUE!"},{"$error":"#VALUE!"},{"$error":"#VALUE!"},{"$error":"#VALUE!"},{"$error":"#VALUE!"},{"$error":"#VALUE!"},{"$error":"#VALUE!"},{"$error":"#VALUE!"},{"$error":"#VALUE!"},{"$error":"#VALUE!"},{"$error":"#VALUE!"},{"$error":"#VALUE!"},{"$error":"#VALUE!"},{"$error":"#VALUE!"},{"$error":"#DIV/0!"},0,0,0,0,0,0,0]
[6,"ETP Avanzada Computador de escritorio 1.6","Marca",2.5188916876574308E-2,"HEWLETT PACKARD","HP","HP ","Computador de escritorio 1.6","Pc Smart","HP","HP","Hewlett Packard","Hewlett Packard","HP","HEWLETT PACKARD","LENOVO","Compumax","HEWLETT PACKARD","HP ","Hewlett-Packard","LENOVO","DELL","Hewlett-Packard","DELL","HP","DELL","hewlett packard","DELL","ACER","HP ","PC SMART","COMPUMAX","LENOVO","ACER","HEWLETT PACKARD","LENOVO","Dell","DELL","HP","DELL","DELL","HP","DELL","DELL","Lenovo","hewlett packard",null,null,null,null,null,null,null,null,{"$f":"MEDIAN(IF($E$3:$BB$3<>0,$E10:$BB10))","v":0},{"$f":"MIN(IF($E$3:$BB$3<>0,$E10:$BB10))","v":0},{"$f":"MAX(IF($E$3:$BB$3<>0,$E10:$BB10))","v":0},{"$f":"AVERAGE(IF($E$3:$BB$3<>0,$E10:$BB10))","v":0},{"$error":"#VALUE!"},{"$error":"#VALUE!"},{"$error":"#VALUE!"},{"$error":"#VALUE!"},{"$error":"#VALUE!"},{"$error":"#VALUE!"},{"$error":"#VALUE!"},{"$error":"#VALUE!"},{"$error":"#VALUE!"},{"$error":"#VALUE!"},{"$error":"#VALUE!"},{"$error":"#VALUE!"},{"$error":"#VALUE!"},{"$error":"#VALUE!"},{"$error":"#VALUE!"},{"$error":"#VALUE!"},{"$error":"#VALUE!"},{"$error":"#VALUE!"},{"$error":"#VALUE!"},{"$error":"#VALUE!"},{"$error":"#VALUE!"},{"$error":"#VALUE!"},{"$error":"#VALUE!"},{"$error":"#VALUE!"},{"$error":"#VALUE!"},{"$error":"#VALUE!"},{"$error":"#VALUE!"},{"$error":"#VALUE!"},{"$error":"#VALUE!"},{"$error":"#VALUE!"},{"$error":"#VALUE!"},{"$error":"#VALUE!"},{"$error":"#VALUE!"},{"$error":"#VALUE!"},{"$error":"#VALUE!"},{"$error":"#VALUE!"},{"$error":"#VALUE!"},{"$error":"#VALUE!"},{"$error":"#VALUE!"},{"$error":"#VALUE!"},{"$error":"#VALUE!"},{"$error":"#VALUE!"},{"$error":"#DIV/0!"},0,0,0,0,0,0,0]
[7,"ETP Liviana Computador de escritorio 1.1","Referencia",1.7632241813602016E-2,"705 G3 SFF","HP 705 SFF G3","EliteDesk 705 SFF","M700 SFF","PCSGOB150-C","HP 705 G3 SFF","HP 705 G3 SFF/ V203p","HP EliteDesk 705 G3 Base Model Small Form Factor PC (W4Q25AV)","HP 705 G3 SFF","HP 705 G3 SFF\nMONITOR HP V203p 19,5\"","HP 705 G3 SFF","THINKCENTRE M700","Nogal Series 1040-801-0000","HP 705 G3 Small Form Factor PC","HP 705 G3 SFF","HP EliteDesk 705 SFF","THINKCENTRE M700 SFF","Optiplex 3050 SFF",null,"OPTIPLEX 3050 S.F.F.","HP 705 SFF","Optiplex 3050 SFF","HP 705 G3 SFF","Optiplex 3050 SFF","VERITON","HP 705 G3 SFF","PCSGOB150-C","1040-801-0000","ThinkCentre M700 SFF\n","VERITON","PRODESK 705 G3 SFF BUSINESS PC","ThinkCentre M700 SFF ","Optiplex 3050 SFF","OPTIPLEX 3050 SFF","HP 705 G3 SFF","OPTIPLEX 3050 SFF","Optiplex 3050 SFF","705 G3 SFF","OPTIPLEX 3050","OPTIPLEX 3050SFF","ThinkCentre M700 SFF","HP 705 SFF",null,null,null,null,null,null,null,null,{"$f":"MEDIAN(IF($E$3:$BB$3<>0,$E11:$BB11))","v":0},{"$f":"MIN(IF($E$3:$BB$3<>0,$E11:$BB11))","v":0},{"$f":"MAX(IF($E$3:$BB$3<>0,$E11:$BB11))","v":0},{"$f":"AVERAGE(IF($E$3:$BB$3<>0,$E11:$BB11))","v":0},{"$error":"#VALUE!"},{"$error":"#VALUE!"},{"$error":"#VALUE!"},{"$error":"#VALUE!"},{"$error":"#VALUE!"},{"$error":"#VALUE!"},{"$error":"#VALUE!"},{"$error":"#VALUE!"},{"$error":"#VALUE!"},{"$error":"#VALUE!"},{"$error":"#VALUE!"},{"$error":"#VALUE!"},{"$error":"#VALUE!"},{"$error":"#VALUE!"},{"$error":"#VALUE!"},{"$error":"#VALUE!"},{"$error":"#VALUE!"},{"$error":"#VALUE!"},{"$error":"#DIV/0!"},{"$error":"#VALUE!"},{"$error":"#VALUE!"},{"$error":"#VALUE!"},{"$error":"#VALUE!"},{"$error":"#VALUE!"},{"$error":"#VALUE!"},{"$error":"#VALUE!"},{"$error":"#VALUE!"},{"$error":"#VALUE!"},{"$error":"#VALUE!"},{"$error":"#VALUE!"},{"$error":"#VALUE!"},{"$error":"#VALUE!"},{"$error":"#VALUE!"},{"$error":"#VALUE!"},{"$error":"#VALUE!"},{"$error":"#VALUE!"},{"$error":"#VALUE!"},{"$error":"#VALUE!"},{"$error":"#VALUE!"},{"$error":"#VALUE!"},{"$error":"#VALUE!"},{"$error":"#VALUE!"},{"$error":"#DIV/0!"},0,0,0,0,0,0,0]
[8,"ETP Estándar Computador de escritorio 1.2","Referencia",2.0151133501259445E-2,"705 DM G3","HP 705 SM G3","EliteDesk 705 Desktop Mini","M700 TINY","PCSGOB250-A","HP 705 G3 DM ","705 DM G3/ V203p","HP EliteDesk 705 G3 Base Model Desktop Mini PC (W4V44AV)","705 DM G3","HP 705 DM G3\nMONITOR HP V203p 19,5\"","HP 705 DM G3","THINKCENTRE M700 TINY","Olmos Series 1033-800-0000","HP EliteDesk 705 G3 Desktop Mini PC","705 DM G3","HP EliteDesk 705 Desktop Mini","THINKCENTRE M700 TINY ","Optiplex 3050 MFF","705 DM G3","OPTIPLEX 3050 M.F.F.","HP 705 DM G3","Optiplex 3050 MFF","HP 705 DM G3","Optiplex 3050 MFF","VERITON","HP 705 DM G3","PCSGOB250-A","1033-800-0000","ThinkCentre M700 Tiny\n","VERITON","PRODESK 705 G3 DM BUSINESS PC","Thinkcentre M700 Tiny","Optiplex 3050 MFF","OPTIPLEX 3050 MICRO","HP 705 DM G3","OPTIPPLEX 3050 MFF","Optiplex 3050 MFF","705 DM G3","OPTIPLEX 3050","OPTIPLEX 3050MFF","ThinkCentre M715 Tiny","HP 705 DM",null,null,null,null,null,null,null,null,{"$f":"MEDIAN(IF($E$3:$BB$3<>0,$E12:$BB12))","v":0},{"$f":"MIN(IF($E$3:$BB$3<>0,$E12:$BB12))","v":0},{"$f":"MAX(IF($E$3:$BB$3<>0,$E12:$BB12))","v":0},{"$f":"AVERAGE(IF($E$3:$BB$3<>0,$E12:$BB12))","v":0},{"$error":"#VALUE!"},{"$error":"#VALUE!"},{"$error":"#VALUE!"},{"$error":"#VALUE!"},{"$error":"#VALUE!"},{"$error":"#VALUE!"},{"$error":"#VALUE!"},{"$error":"#VALUE!"},{"$error":"#VALUE!"},{"$error":"#VALUE!"},{"$error":"#VALUE!"},{"$error":"#VALUE!"},{"$error":"#VALUE!"},{"$error":"#VALUE!"},{"$error":"#VALUE!"},{"$error":"#VALUE!"},{"$error":"#VALUE!"},{"$error":"#VALUE!"},{"$error":"#VALUE!"},{"$error":"#VALUE!"},{"$error":"#VALUE!"},{"$error":"#VALUE!"},{"$error":"#VALUE!"},{"$error":"#VALUE!"},{"$error":"#VALUE!"},{"$error":"#VALUE!"},{"$error":"#VALUE!"},{"$error":"#VALUE!"},{"$error":"#VALUE!"},{"$error":"#VALUE!"},{"$error":"#VALUE!"},{"$error":"#VALUE!"},{"$error":"#VALUE!"},{"$error":"#VALUE!"},{"$error":"#VALUE!"},{"$error":"#VALUE!"},{"$error":"#VALUE!"},{"$error":"#VALUE!"},{"$error":"#VALUE!"},{"$error":"#VALUE!"},{"$error":"#VALUE!"},{"$error":"#VALUE!"},{"$error":"#DIV/0!"},0,0,0,0,0,0,0]
[9,"ETP Estándar Computador de escritorio Linux 1.3","Referencia",2.0151133501259445E-2,"705 DM G3","HP 705 SM G3","EliteDesk 705 Desktop Mini ","M715 TINY","PCSGOB250-L","HP 705 G3 DM ","705 DM G3/ V203p","HP EliteDesk 705 G3 Base Model Desktop Mini PC (W4V44AV)","705 DM G3","HP 705 DM G3\nMONITOR HP V203p 19,5\"","HP 705 DM G3","THINKCENTRE M715 TINY","Olmos Series 1033-800-0000","HP EliteDesk 705 G3 Desktop Mini PC","705 DM G3","HP EliteDesk 705 Desktop Mini","THINKCENTRE M715 TINY","Optiplex 3050 MFF","705 DM G3","OPTIPLEX 3050 M.F.F.","HP 705 DM G3","Optiplex 3050 MFF","HP 705 DM G3","Optiplex 3050 MFF","VERITON"," HP 705 DM G3","PCSGOB250-","1033-800-0000","ThinkCentre M715 Tiny\n","VERITON","PRODESK 705 G3 DM BUSINESS PC","Thinkcentre M715 Tiny","Optiplex 3050 MFF","OPTIPLEX 3050 MICRO","HP 705 DM G3","OPTIPLEX 3050 MFF","Optiplex 3050 MFF","705 DM G3","OPTIPLEX 3050","OPTIPLEX 3050MFF","ThinkCentre M700 Tiny","HP 705 DM",null,null,null,null,null,null,null,null,{"$f":"MEDIAN(IF($E$3:$BB$3<>0,$E13:$BB13))","v":0},{"$f":"MIN(IF($E$3:$BB$3<>0,$E13:$BB13))","v":0},{"$f":"MAX(IF($E$3:$BB$3<>0,$E13:$BB13))","v":0},{"$f":"AVERAGE(IF($E$3:$BB$3<>0,$E13:$BB13))","v":0},{"$error":"#VALUE!"},{"$error":"#VALUE!"},{"$error":"#VALUE!"},{"$error":"#VALUE!"},{"$error":"#VALUE!"},{"$error":"#VALUE!"},{"$error":"#VALUE!"},{"$error":"#VALUE!"},{"$error":"#VALUE!"},{"$error":"#VALUE!"},{"$error":"#VALUE!"},{"$error":"#VALUE!"},{"$error":"#VALUE!"},{"$error":"#VALUE!"},{"$error":"#VALUE!"},{"$error":"#VALUE!"},{"$error":"#VALUE!"},{"$error":"#VALUE!"},{"$error":"#VALUE!"},{"$error":"#VALUE!"},{"$error":"#VALUE!"},{"$error":"#VALUE!"},{"$error":"#VALUE!"},{"$error":"#VALUE!"},{"$error":"#VALUE!"},{"$error":"#VALUE!"},{"$error":"#VALUE!"},{"$error":"#VALUE!"},{"$error":"#VALUE!"},{"$error":"#VALUE!"},{"$error":"#VALUE!"},{"$error":"#VALUE!"},{"$error":"#VALUE!"},{"$error":"#VALUE!"},{"$error":"#VALUE!"},{"$error":"#VALUE!"},{"$error":"#VALUE!"},{"$error":"#VALUE!"},{"$error":"#VALUE!"},{"$error":"#VALUE!"},{"$error":"#VALUE!"},{"$error":"#VALUE!"},{"$error":"#DIV/0!"},0,0,0,0,0,0,0]
[10,"ETP Estándar Computador de escritorio 1.4","Referencia",2.2670025188916875E-2,"ProOne 600 G2","HP PRO ONE 600 AIO G2"," ProOne 600 AiO NT","M800Z","AIOGOB2217-A","HP ProOne 600 G2","HP ProOne 600 G2","PC HP ProOne 600 G2 All-in-One no táctil de 21,5 pulgadas","HP ProOne 600 G2","HP PRO ONE 600 AIO G2","HP PRO ONE 600 G2","THINKCENTRE M800Z","Unno Max Series 3040-800-0000","HP ProOne 600 G2 21.5-in Non-Touch All-in-One PC","HP ProOne 600 G2","HP ProOne 600 AiO NT","THINKCENTRE M800z AIO ","Optiplex 5250","HP ProOne 600 G2","OPTIPLEX 5250 AIO","HP PRO ONE 600 G2","Optiplex 5250","HP ProOne 600 G2","Optiplex 5250","VERITON","HP ProOne 600 G2","AIOGOB2217-A","3040-800-0000","ThinkCentre M800Z AIO\n","VERITON","PROONE 600 G2 ALL-IN-ONE BUSINESS PC","Thinkcentre M800Z AIO","Optiplex 5250","OPTIPLEX AIO 5250","HP ProOne 600 AiO G2","OPTIPLEX 5250","Optiplex 5250 AIO","ProOne 600 G2","OPTIPLEX 5250","OPTIPLEX 5250","ThinkCentre M800Z AIO","HP PRO ONE 600 G2",null,null,null,null,null,null,null,null,{"$f":"MEDIAN(IF($E$3:$BB$3<>0,$E14:$BB14))","v":0},{"$f":"MIN(IF($E$3:$BB$3<>0,$E14:$BB14))","v":0},{"$f":"MAX(IF($E$3:$BB$3<>0,$E14:$BB14))","v":0},{"$f":"AVERAGE(IF($E$3:$BB$3<>0,$E14:$BB14))","v":0},{"$error":"#VALUE!"},{"$error":"#VALUE!"},{"$error":"#VALUE!"},{"$error":"#VALUE!"},{"$error":"#VALUE!"},{"$error":"#VALUE!"},{"$error":"#VALUE!"},{"$error":"#VALUE!"},{"$error":"#VALUE!"},{"$error":"#VALUE!"},{"$error":"#VALUE!"},{"$error":"#VALUE!"},{"$error":"#VALUE!"},{"$error":"#VALUE!"},{"$error":"#VALUE!"},{"$error":"#VALUE!"},{"$error":"#VALUE!"},{"$error":"#VALUE!"},{"$error":"#VALUE!"},{"$error":"#VALUE!"},{"$error":"#VALUE!"},{"$error":"#VALUE!"},{"$error":"#VALUE!"},{"$error":"#VALUE!"},{"$error":"#VALUE!"},{"$error":"#VALUE!"},{"$error":"#VALUE!"},{"$error":"#VALUE!"},{"$error":"#VALUE!"},{"$error":"#VALUE!"},{"$error":"#VALUE!"},{"$error":"#VALUE!"},{"$error":"#VALUE!"},{"$error":"#VALUE!"},{"$error":"#VALUE!"},{"$error":"#VALUE!"},{"$error":"#VALUE!"},{"$error":"#VALUE!"},{"$error":"#VALUE!"},{"$error":"#VALUE!"},{"$error":"#VALUE!"},{"$error":"#VALUE!"},{"$error":"#DIV/0!"},0,0,0,0,0,0,0]
[11,"ETP Avanzada All in one 1.5","Referencia",2.2670025188916875E-2,"800 AIO G3","HP 800AIO G3"," EliteOne 800 AIO NT","M900Z","AIOGOB2417-A","HP 800 Aio G3","HP 800 Aio G3","HP EliteOne 800 G3","HP 800 Aio G3","HP 800 Aio G3","HP 800 AIO G3","THINKCENTRE M900Z","Unno Max Series 3050-800-0000","HP EliteOne 800 G3 23.8 inch Non-Touch All-in-One Business PC","HP 800 Aio G3","HP EliteOne 800 AIO NT","THINKCENTRE M900z AIO","Optiplex 7450","HP 800 Aio G3","OPTIPLEX 7450 AIO","HP 800 AIO G3","Optiplex 7450","HP 800 Aio G3","Optiplex 7450","VERITON","HP 800 Aio G3","AIOGOB2417-A","3050-800-0000","ThinkCentre M900Z AIO\n","VERITON","ELITEONE 800 G3 ALL-IN-ONE BUSINESS PC","Thinkcentre M900Z AIO","Optiplex 7450","OPTIPLEX AIO7450","HP 800 AiO G3","OPTIPLEX 7450","Optiplex 7450 AIO","EliteOne 800 AIO G3","OPTIPLEX 7450","OPTIPLEX 7450","ThinkCentre M900Z AIO","HP PRO ONE 800 G3",null,null,null,null,null,null,null,null,{"$f":"MEDIAN(IF($E$3:$BB$3<>0,$E15:$BB15))","v":0},{"$f":"MIN(IF($E$3:$BB$3<>0,$E15:$BB15))","v":0},{"$f":"MAX(IF($E$3:$BB$3<>0,$E15:$BB15))","v":0},{"$f":"AVERAGE(IF($E$3:$BB$3<>0,$E15:$BB15))","v":0},{"$error":"#VALUE!"},{"$error":"#VALUE!"},{"$error":"#VALUE!"},{"$error":"#VALUE!"},{"$error":"#VALUE!"},{"$error":"#VALUE!"},{"$error":"#VALUE!"},{"$error":"#VALUE!"},{"$error":"#VALUE!"},{"$error":"#VALUE!"},{"$error":"#VALUE!"},{"$error":"#VALUE!"},{"$error":"#VALUE!"},{"$error":"#VALUE!"},{"$error":"#VALUE!"},{"$error":"#VALUE!"},{"$error":"#VALUE!"},{"$error":"#VALUE!"},{"$error":"#VALUE!"},{"$error":"#VALUE!"},{"$error":"#VALUE!"},{"$error":"#VALUE!"},{"$error":"#VALUE!"},{"$error":"#VALUE!"},{"$error":"#VALUE!"},{"$error":"#VALUE!"},{"$error":"#VALUE!"},{"$error":"#VALUE!"},{"$error":"#VALUE!"},{"$error":"#VALUE!"},{"$error":"#VALUE!"},{"$error":"#VALUE!"},{"$error":"#VALUE!"},{"$error":"#VALUE!"},{"$error":"#VALUE!"},{"$error":"#VALUE!"},{"$error":"#VALUE!"},{"$error":"#VALUE!"},{"$error":"#VALUE!"},{"$error":"#VALUE!"},{"$error":"#VALUE!"},{"$error":"#VALUE!"},{"$error":"#DIV/0!"},0,0,0,0,0,0,0]
[12,"ETP Avanzada Computador de escritorio 1.6","Referencia",2.5188916876574308E-2,"400 G4","HP 400 G4","ProDesk 400 SFF ","M710","PCSGOB270-A","HP 400 G4 SFF","HP 400 G4 /V223","HP ProDesk 400 G4 Small Form Factor ","HP 400 G4 ","HP 400 G4 \nMONITOR HP V223 21,5\"","HP 400 G4","THINKCENTRE M710 SFF","Nogal Series 1040-802-0000","HP ProDesk 400 G4 Small Form Factor PC","HP 400 G4 ","HP ProDesk 400 SFF","THINKCENTRE M710 SFF","Optiplex 3050 SFF","HP 400 G4 ","OPTIPLEX 3050 S.F.F.","HP 400 G4 SFF","Optiplex 3050 SFF","HP 400 G4 ","Optiplex 3050 SFF","VERITON","HP 400 G4 ","PCSGOB270-A","1040-802-0000","ThinkCentre M710 SFF\n","VERITON","PRODESK 400 G4 SFF BUSINESS PC","Thinkcentre M710 SFF","Optiplex 3050 SFF","OPTIPLEX 3050 SFF","HP 400 G4 ","OPTIPLEX 3050 SFF","Optiplex 3050 SFF"," ProDesk 400 G4 SFF","OPTIPLEX 3050","OPTIPLEX 3050SFF","ThinkCentre M710 SFF","HP  400 G4 SFF",null,null,null,null,null,null,null,null,{"$f":"MEDIAN(IF($E$3:$BB$3<>0,$E16:$BB16))","v":0},{"$f":"MIN(IF($E$3:$BB$3<>0,$E16:$BB16))","v":0},{"$f":"MAX(IF($E$3:$BB$3<>0,$E16:$BB16))","v":0},{"$f":"AVERAGE(IF($E$3:$BB$3<>0,$E16:$BB16))","v":0},{"$error":"#VALUE!"},{"$error":"#VALUE!"},{"$error":"#VALUE!"},{"$error":"#VALUE!"},{"$error":"#VALUE!"},{"$error":"#VALUE!"},{"$error":"#VALUE!"},{"$error":"#VALUE!"},{"$error":"#VALUE!"},{"$error":"#VALUE!"},{"$error":"#VALUE!"},{"$error":"#VALUE!"},{"$error":"#VALUE!"},{"$error":"#VALUE!"},{"$error":"#VALUE!"},{"$error":"#VALUE!"},{"$error":"#VALUE!"},{"$error":"#VALUE!"},{"$error":"#VALUE!"},{"$error":"#VALUE!"},{"$error":"#VALUE!"},{"$error":"#VALUE!"},{"$error":"#VALUE!"},{"$error":"#VALUE!"},{"$error":"#VALUE!"},{"$error":"#VALUE!"},{"$error":"#VALUE!"},{"$error":"#VALUE!"},{"$error":"#VALUE!"},{"$error":"#VALUE!"},{"$error":"#VALUE!"},{"$error":"#VALUE!"},{"$error":"#VALUE!"},{"$error":"#VALUE!"},{"$error":"#VALUE!"},{"$error":"#VALUE!"},{"$error":"#VALUE!"},{"$error":"#VALUE!"},{"$error":"#VALUE!"},{"$error":"#VALUE!"},{"$error":"#VALUE!"},{"$error":"#VALUE!"},{"$error":"#DIV/0!"},0,0,0,0,0,0,0]
[13,"ETP Liviana Computador de escritorio 1.1","Pagina WEB",1.7632241813602016E-2,"http://www.hp.com/latam/CCE/2017/HP%20EliteDesk%20705%20SFF%201-1.pdf","www.hp.com/latam/CCE/2017/HP%20EliteDesk%20705%20SFF%201-1.pdf ","http://www.hp.com/latam/CCE/2017/HP%20EliteDesk%20705%20SFF%201-1.pdf ","http://psref.lenovo.com/"," http://www.pcsmart.com.co/index/index.php?id_product=115&controller=product","http://www.hp.com/latam/CCE/2017/HP%20EliteDesk%20705%20SFF%201-1.pdf ","http://www.hp.com/latam/CCE/2017/HP%20EliteDesk%20705%20SFF%201-1.pdf - http://h20195.www2.hp.com/v2/GetPDF.aspx/4aa6-5179spl.pdf","www.hp.com.co","http://www.hp.com/latam/CCE/2017/HP%20EliteDesk%20705%20SFF%201-1.pdf ","http://www.hp.com/latam/CCE/2017/HP%20EliteDesk%20705%20SFF%201-1.pdf ","http://www.hp.com/latam/CCE/2017/HP%20EliteDesk%20705%20SFF%201-1.pdf ","http://psref.lenovo.com/Product/ThinkCentre_M700_SFF","https://www.compumax.com.co/inicio/gobierno/colombiacompra","http://www8.hp.com/co/es/products/desktops/product-detail.html?oid=10669599","http://www.hp.com/latam/CCE/2017/HP%20EliteDesk%20705%20SFF%201-1.pdf ","http://www.hp.com/latam/CCE/2017/HP%20EliteDesk%20705%20SFF%201-1.pdf","http://shop.lenovo.com/co/es/contacto/ http://psref.lenovo.com/Product/ThinkCentre_M700_SFF","http://www.dell.com/co/empresas/p/optiplex-3050-desktop/pd?ref=PD_Family","http://www.hp.com/latam/CCE/2017/HP%20ProBook%20440%20Pentium%203-1.pdf","http://www.dell.com/co/empresas/p/optiplex-3050-desktop/pd?ref=PD_Family","http://www.hp.com/latam/CCE/2017/HP%20EliteDesk%20705%20SFF%201-1.pdf ","http://www.dell.com/co/empresas/p/optiplex-3050-desktop/pd?ref=PD_Family","http://www.hp.com/latam/CCE/2017/HP%20EliteDesk%20705%20SFF%201-1.pdf","http://www.dell.com/co/empresas/p/optiplex-3050-desktop/pd?ref=PD_Family","www.acer.com","http://www.hp.com/latam/CCE/2017/HP%20EliteDesk%20705%20SFF%201-1.pdf ","http://www.pcsmart.com.co/index/index.php?id_product=115&controller=product","www.compumax.com.co/gobierno/colombiacompra","http://psref.lenovo.com/Product/ThinkCentre_M700_SFF ","www.acer.com","http://www.hp.com/latam/CCE/2017/HP%20EliteDesk%20705%20SFF%201-1.pdf","http://psref.lenovo.com/Product/ThinkCentre_M700_SFF","http://www.dell.com/co/empresas/p/optiplex-3050-desktop/pd?ref=PD_Family","www.dell.com.co","http://www.hp.com/latam/CCE/2017/HP%20EliteDesk%20705%20SFF%201-1.pdf ","http://www.dell.com/co/empresas/p/optiplex-3050-desktop/pd?ref=PD_Family","http://www.dell.com/co/empresas/p/optiplex-3050-desktop/pd?ref=PD_Family","http://www.hp.com/latam/CCE/2017/HP%20EliteDesk%20705%20SFF%201-1.pdf ","http://www.dell.com/co/empresas/p/optiplex-3050-desktop/pd?ref=PD_Family","http://www.dell.com/co/empresas/p/optiplex-3050-desktop/pd","http://www.lenovo.com/co/es/","http://www8.hp.com/mx/es/home.html",null,null,null,null,null,null,null,null,{"$f":"MEDIAN(IF($E$3:$BB$3<>0,$E17:$BB17))","v":0},{"$f":"MIN(IF($E$3:$BB$3<>0,$E17:$BB17))","v":0},{"$f":"MAX(IF($E$3:$BB$3<>0,$E17:$BB17))","v":0},{"$f":"AVERAGE(IF($E$3:$BB$3<>0,$E17:$BB17))","v":0},{"$error":"#VALUE!"},{"$error":"#VALUE!"},{"$error":"#VALUE!"},{"$error":"#VALUE!"},{"$error":"#VALUE!"},{"$error":"#VALUE!"},{"$error":"#VALUE!"},{"$error":"#VALUE!"},{"$error":"#VALUE!"},{"$error":"#VALUE!"},{"$error":"#VALUE!"},{"$error":"#VALUE!"},{"$error":"#VALUE!"},{"$error":"#VALUE!"},{"$error":"#VALUE!"},{"$error":"#VALUE!"},{"$error":"#VALUE!"},{"$error":"#VALUE!"},{"$error":"#VALUE!"},{"$error":"#VALUE!"},{"$error":"#VALUE!"},{"$error":"#VALUE!"},{"$error":"#VALUE!"},{"$error":"#VALUE!"},{"$error":"#VALUE!"},{"$error":"#VALUE!"},{"$error":"#VALUE!"},{"$error":"#VALUE!"},{"$error":"#VALUE!"},{"$error":"#VALUE!"},{"$error":"#VALUE!"},{"$error":"#VALUE!"},{"$error":"#VALUE!"},{"$error":"#VALUE!"},{"$error":"#VALUE!"},{"$error":"#VALUE!"},{"$error":"#VALUE!"},{"$error":"#VALUE!"},{"$error":"#VALUE!"},{"$error":"#VALUE!"},{"$error":"#VALUE!"},{"$error":"#VALUE!"},{"$error":"#DIV/0!"},0,0,0,0,0,0,0]
[14,"ETP Estándar Computador de escritorio 1.2","Pagina WEB",2.0151133501259445E-2,"http://www.hp.com/latam/CCE/2017/HP%20EliteDesk%20705%20DM%201-2.pdf ","www.hp.com/latam/CCE/2017/HP%20EliteDesk%20705%20DM%201-2.pdf ","http://www.hp.com/latam/CCE/2017/HP%20EliteDesk%20705%20DM%201-2.pdf ","http://psref.lenovo.com/","http://www.pcsmart.com.co/index/index.php?id_product=116&controller=product\n","http://www.hp.com/latam/CCE/2017/HP%20EliteDesk%20705%20DM%201-2.pdf ","http://www.hp.com/latam/CCE/2017/HP%20EliteDesk%20705%20SFF%201-1.pdf - http://h20195.www2.hp.com/v2/GetPDF.aspx/4aa6-5179spl.pdf","www.hp.com.co","http://www.hp.com/latam/CCE/2017/HP%20EliteDesk%20705%20DM%201-2.pdf ","http://www.hp.com/latam/CCE/2017/HP%20EliteDesk%20705%20DM%201-2.pdf ","http://www.hp.com/latam/CCE/2017/HP%20EliteDesk%20705%20DM%201-2.pdf ","http://psref.lenovo.com/Product/ThinkCentre_M700_SFF","https://www.compumax.com.co/inicio/gobierno/colombiacompra","http://www8.hp.com/co/es/products/desktops/product-detail.html?oid=10669600","http://www.hp.com/latam/CCE/2017/HP%20EliteDesk%20705%20DM%201-2.pdf ","http://www.hp.com/latam/CCE/2017/HP%20EliteDesk%20705%20DM%201-2.pdf","http://shop.lenovo.com/co/es/contacto/ http://psref.lenovo.com/Product/ThinkCentre_M700_Tiny","http://www.dell.com/co/empresas/p/optiplex-3050-micro/pd?ref=PD_Family","http://www.hp.com/latam/CCE/2017/HP%20EliteDesk%20705%20DM%201-2.pdf","http://www.dell.com/co/empresas/p/optiplex-3050-micro/pd?ref=PD_Family","http://www.hp.com/latam/CCE/2017/HP%20EliteDesk%20705%20DM%201-2.pdf ","http://www.dell.com/co/empresas/p/optiplex-3050-micro/pd?ref=PD_Family","http://www.hp.com/latam/CCE/2017/HP%20EliteDesk%20705%20SFF%201-1.pdf","http://www.dell.com/co/empresas/p/optiplex-3050-micro/pd?ref=PD_Family","www.acer.com","http://www.hp.com/latam/CCE/2017/HP%20EliteDesk%20705%20DM%201-2.pdf ","http://www.pcsmart.com.co/index/index.php?id_product=116&controller=product","www.compumax.com.co/gobierno/colombiacompra","http://psref.lenovo.com/Product/ThinkCentre_M700_Tiny","www.acer.com","http://www.hp.com/latam/CCE/2017/HP%20EliteDesk%20705%20DM%201-2.pdf","http://psref.lenovo.com/Product/ThinkCentre_M700_Tiny","http://www.dell.com/co/empresas/p/optiplex-3050-micro/pd?ref=PD_Family","www.dell.com.co","http://www.hp.com/latam/CCE/2017/HP%20EliteDesk%20705%20DM%201-2.pdf ","http://www.dell.com/co/empresas/p/optiplex-3050-micro/pd?ref=PD_Family","http://www.dell.com/co/empresas/p/optiplex-3050-micro/pd?ref=PD_Family","http://www.hp.com/latam/CCE/2017/HP%20EliteDesk%20705%20DM%201-2.pdf ","http://www.dell.com/co/empresas/p/optiplex-3050-micro/pd?ref=PD_Family","http://www.dell.com/co/empresas/p/optiplex-3050-micro/pd","http://www.lenovo.com/co/es/","http://www8.hp.com/mx/es/home.html",null,null,null,null,null,null,null,null,{"$f":"MEDIAN(IF($E$3:$BB$3<>0,$E18:$BB18))","v":0},{"$f":"MIN(IF($E$3:$BB$3<>0,$E18:$BB18))","v":0},{"$f":"MAX(IF($E$3:$BB$3<>0,$E18:$BB18))","v":0},{"$f":"AVERAGE(IF($E$3:$BB$3<>0,$E18:$BB18))","v":0},{"$error":"#VALUE!"},{"$error":"#VALUE!"},{"$error":"#VALUE!"},{"$error":"#VALUE!"},{"$error":"#VALUE!"},{"$error":"#VALUE!"},{"$error":"#VALUE!"},{"$error":"#VALUE!"},{"$error":"#VALUE!"},{"$error":"#VALUE!"},{"$error":"#VALUE!"},{"$error":"#VALUE!"},{"$error":"#VALUE!"},{"$error":"#VALUE!"},{"$error":"#VALUE!"},{"$error":"#VALUE!"},{"$error":"#VALUE!"},{"$error":"#VALUE!"},{"$error":"#VALUE!"},{"$error":"#VALUE!"},{"$error":"#VALUE!"},{"$error":"#VALUE!"},{"$error":"#VALUE!"},{"$error":"#VALUE!"},{"$error":"#VALUE!"},{"$error":"#VALUE!"},{"$error":"#VALUE!"},{"$error":"#VALUE!"},{"$error":"#VALUE!"},{"$error":"#VALUE!"},{"$error":"#VALUE!"},{"$error":"#VALUE!"},{"$error":"#VALUE!"},{"$error":"#VALUE!"},{"$error":"#VALUE!"},{"$error":"#VALUE!"},{"$error":"#VALUE!"},{"$error":"#VALUE!"},{"$error":"#VALUE!"},{"$error":"#VALUE!"},{"$error":"#VALUE!"},{"$error":"#VALUE!"},{"$error":"#DIV/0!"},0,0,0,0,0,0,0]
[15,"ETP Estándar Computador de escritorio Linux 1.3","Pagina WEB",2.0151133501259445E-2,"http://www.hp.com/latam/CCE/2017/HP%20EliteDesk%20705%20DM%201-3.pdf","www.hp.com/latam/CCE/2017/HP%20EliteDesk%20705%20DM%201-3.pdf","http://www.hp.com/latam/CCE/2017/HP%20EliteDesk%20705%20DM%201-3.pdf","http://psref.lenovo.com/","http://www.pcsmart.com.co/index/index.php?id_product=117&controller=product","http://www.hp.com/latam/CCE/2017/HP%20EliteDesk%20705%20DM%201-3.pdf","http://www.hp.com/latam/CCE/2017/HP%20EliteDesk%20705%20SFF%201-1.pdf - http://h20195.www2.hp.com/v2/GetPDF.aspx/4aa6-5179spl.pdf","www.hp.com.co","http://www.hp.com/latam/CCE/2017/HP%20EliteDesk%20705%20DM%201-3.pdf","http://www.hp.com/latam/CCE/2017/HP%20EliteDesk%20705%20DM%201-2.pdf ","http://www.hp.com/latam/CCE/2017/HP%20EliteDesk%20705%20DM%201-3.pdf","http://psref.lenovo.com/Product/ThinkCentre_M715_Tiny","https://www.compumax.com.co/inicio/gobierno/colombiacompra","http://www8.hp.com/co/es/products/desktops/product-detail.html?oid=10669600","http://www.hp.com/latam/CCE/2017/HP%20EliteDesk%20705%20DM%201-3.pdf","http://www.hp.com/latam/CCE/2017/HP%20EliteDesk%20705%20DM%201-3.pdf","http://shop.lenovo.com/co/es/contacto/ http://psref.lenovo.com/Product/ThinkCentre_M715_Tiny","http://www.dell.com/co/empresas/p/optiplex-3050-micro/pd?ref=PD_Family","http://www.hp.com/latam/CCE/2017/HP%20EliteDesk%20705%20DM%201-3.pdf","http://www.dell.com/co/empresas/p/optiplex-3050-micro/pd?ref=PD_Family","http://www.hp.com/latam/CCE/2017/HP%20EliteDesk%20705%20DM%201-3.pdf","http://www.dell.com/co/empresas/p/optiplex-3050-micro/pd?ref=PD_Family","http://www.hp.com/latam/CCE/2017/HP%20EliteDesk%20705%20DM%201-3.pdf","http://www.dell.com/co/empresas/p/optiplex-3050-micro/pd?ref=PD_Family","www.acer.com","http://www.hp.com/latam/CCE/2017/HP%20EliteDesk%20705%20DM%201-3.pdf","http://www.pcsmart.com.co/index/index.php?id_product=117&controller=product","www.compumax.com.co/gobierno/colombiacompra","http://psref.lenovo.com/Product/ThinkCentre_M715_Tiny","www.acer.com","http://www.hp.com/latam/CCE/2017/HP%20EliteDesk%20705%20DM%201-3.pdf","http://psref.lenovo.com/Product/ThinkCentre_M715_Tiny","http://www.dell.com/co/empresas/p/optiplex-3050-micro/pd?ref=PD_Family","www.dell.com.co","http://www.hp.com/latam/CCE/2017/HP%20EliteDesk%20705%20DM%201-3.pdf","http://www.dell.com/co/empresas/p/optiplex-3050-micro/pd?ref=PD_Family","http://www.dell.com/co/empresas/p/optiplex-3050-micro/pd?ref=PD_Family","http://www.hp.com/latam/CCE/2017/HP%20EliteDesk%20705%20DM%201-3.pdf","http://www.dell.com/co/empresas/p/optiplex-3050-micro/pd?ref=PD_Family","http://www.dell.com/co/empresas/p/optiplex-3050-desktop/pd","http://www.lenovo.com/co/es/","http://www8.hp.com/mx/es/home.html",null,null,null,null,null,null,null,null,{"$f":"MEDIAN(IF($E$3:$BB$3<>0,$E19:$BB19))","v":0},{"$f":"MIN(IF($E$3:$BB$3<>0,$E19:$BB19))","v":0},{"$f":"MAX(IF($E$3:$BB$3<>0,$E19:$BB19))","v":0},{"$f":"AVERAGE(IF($E$3:$BB$3<>0,$E19:$BB19))","v":0},{"$error":"#VALUE!"},{"$error":"#VALUE!"},{"$error":"#VALUE!"},{"$error":"#VALUE!"},{"$error":"#VALUE!"},{"$error":"#VALUE!"},{"$error":"#VALUE!"},{"$error":"#VALUE!"},{"$error":"#VALUE!"},{"$error":"#VALUE!"},{"$error":"#VALUE!"},{"$error":"#VALUE!"},{"$error":"#VALUE!"},{"$error":"#VALUE!"},{"$error":"#VALUE!"},{"$error":"#VALUE!"},{"$error":"#VALUE!"},{"$error":"#VALUE!"},{"$error":"#VALUE!"},{"$error":"#VALUE!"},{"$error":"#VALUE!"},{"$error":"#VALUE!"},{"$error":"#VALUE!"},{"$error":"#VALUE!"},{"$error":"#VALUE!"},{"$error":"#VALUE!"},{"$error":"#VALUE!"},{"$error":"#VALUE!"},{"$error":"#VALUE!"},{"$error":"#VALUE!"},{"$error":"#VALUE!"},{"$error":"#VALUE!"},{"$error":"#VALUE!"},{"$error":"#VALUE!"},{"$error":"#VALUE!"},{"$error":"#VALUE!"},{"$error":"#VALUE!"},{"$error":"#VALUE!"},{"$error":"#VALUE!"},{"$error":"#VALUE!"},{"$error":"#VALUE!"},{"$error":"#VALUE!"},{"$error":"#DIV/0!"},0,0,0,0,0,0,0]
[16,"ETP Estándar Computador de escritorio 1.4","Pagina WEB",2.2670025188916875E-2,"http://www.hp.com/latam/CCE/2017/HP%20ProOne%20600%20AiO%20NT%201-4.pdf","www.hp.com/latam/CCE/2017/HP%20ProOne%20600%20AiO%20NT%201-4.pdf","http://www.hp.com/latam/CCE/2017/HP%20ProOne%20600%20AiO%20NT%201-4.pdf","http://psref.lenovo.com/","http://www.pcsmart.com.co/index/index.php?id_product=118&controller=product","http://www.hp.com/latam/CCE/2017/HP%20ProOne%20600%20AiO%20NT%201-4.pdf","http://www.hp.com/latam/CCE/2017/HP%20ProOne%20600%20AiO%20NT%201-4.pdf","www.hp.com.co","http://www.hp.com/latam/CCE/2017/HP%20ProOne%20600%20AiO%20NT%201-4.pdf","http://www.hp.com/latam/CCE/2017/HP%20ProOne%20600%20AiO%20NT%201-4.pdf","http://www.hp.com/latam/CCE/2017/HP%20ProOne%20600%20AiO%20NT%201-4.pdf","http://psref.lenovo.com/Product/ThinkCentre_M800z_AIO","https://www.compumax.com.co/inicio/gobierno/colombiacompra","http://www8.hp.com/es/es/products/desktops/product-detail.html?oid=7633348","http://www.hp.com/latam/CCE/2017/HP%20ProOne%20600%20AiO%20NT%201-4.pdf","http://www.hp.com/latam/CCE/2017/HP%20ProOne%20600%20AiO%20NT%201-4.pdf","http://shop.lenovo.com/co/es/contacto/ http://psref.lenovo.com/Product/ThinkCentre_M800z_AIO","http://www.dell.com/co/empresas/p/optiplex-5250-aio/pd?ref=PD_OC","http://www.hp.com/latam/CCE/2017/HP%20ProOne%20600%20AiO%20NT%201-4.pdf","http://www.dell.com/co/empresas/p/optiplex-5250-aio/pd?ref=PD_OC","http://www.hp.com/latam/CCE/2017/HP%20ProOne%20600%20AiO%20NT%201-4.pdf","http://www.dell.com/co/empresas/p/optiplex-5250-aio/pd?ref=PD_OC","http://www.hp.com/latam/CCE/2017/HP%20ProOne%20600%20AiO%20NT%201-4.pdf","http://www.dell.com/co/empresas/p/optiplex-5250-aio/pd?ref=PD_OC","www.acer.com","http://www.hp.com/latam/CCE/2017/HP%20ProOne%20600%20AiO%20NT%201-4.pdf","http://www.pcsmart.com.co/index/index.php?id_product=118&controller=product","www.compumax.com.co/gobierno/colombiacompra","http://psref.lenovo.com/Product/ThinkCentre_M800z_AIO","www.acer.com","http://www.hp.com/latam/CCE/2017/HP%20ProOne%20600%20AiO%20NT%201-4.pdf","http://psref.lenovo.com/Product/ThinkCentre_M800z_AIO","http://www.dell.com/co/empresas/p/optiplex-5250-aio/pd?ref=PD_OC","www.dell.com.co","http://www.hp.com/latam/CCE/2017/HP%20ProOne%20600%20AiO%20NT%201-4.pdf","http://www.dell.com/co/empresas/p/optiplex-5250-aio/pd?ref=PD_OC","http://www.dell.com/co/empresas/p/optiplex-5250-aio/pd?ref=PD_OC","http://www.hp.com/latam/CCE/2017/HP%20ProOne%20600%20AiO%20NT%201-4.pdf","http://www.dell.com/co/empresas/p/optiplex-5250-aio/pd?ref=PD_OC","http://www.dell.com/co/empresas/p/optiplex-5250-aio/pd","http://www.lenovo.com/co/es/","http://www8.hp.com/mx/es/home.html",null,null,null,null,null,null,null,null,{"$f":"MEDIAN(IF($E$3:$BB$3<>0,$E20:$BB20))","v":0},{"$f":"MIN(IF($E$3:$BB$3<>0,$E20:$BB20))","v":0},{"$f":"MAX(IF($E$3:$BB$3<>0,$E20:$BB20))","v":0},{"$f":"AVERAGE(IF($E$3:$BB$3<>0,$E20:$BB20))","v":0},{"$error":"#VALUE!"},{"$error":"#VALUE!"},{"$error":"#VALUE!"},{"$error":"#VALUE!"},{"$error":"#VALUE!"},{"$error":"#VALUE!"},{"$error":"#VALUE!"},{"$error":"#VALUE!"},{"$error":"#VALUE!"},{"$error":"#VALUE!"},{"$error":"#VALUE!"},{"$error":"#VALUE!"},{"$error":"#VALUE!"},{"$error":"#VALUE!"},{"$error":"#VALUE!"},{"$error":"#VALUE!"},{"$error":"#VALUE!"},{"$error":"#VALUE!"},{"$error":"#VALUE!"},{"$error":"#VALUE!"},{"$error":"#VALUE!"},{"$error":"#VALUE!"},{"$error":"#VALUE!"},{"$error":"#VALUE!"},{"$error":"#VALUE!"},{"$error":"#VALUE!"},{"$error":"#VALUE!"},{"$error":"#VALUE!"},{"$error":"#VALUE!"},{"$error":"#VALUE!"},{"$error":"#VALUE!"},{"$error":"#VALUE!"},{"$error":"#VALUE!"},{"$error":"#VALUE!"},{"$error":"#VALUE!"},{"$error":"#VALUE!"},{"$error":"#VALUE!"},{"$error":"#VALUE!"},{"$error":"#VALUE!"},{"$error":"#VALUE!"},{"$error":"#VALUE!"},{"$error":"#VALUE!"},{"$error":"#DIV/0!"},0,0,0,0,0,0,0]
[17,"ETP Avanzada All in one 1.5","Pagina WEB",2.2670025188916875E-2,"http://www.hp.com/latam/CCE/2017/HP%20EliteOne%20800%20AIO%20NT%201-5.pdf","www.hp.com/latam/CCE/2017/HP%20EliteOne%20800%20AIO%20NT%201-5.pdf","http://www.hp.com/latam/CCE/2017/HP%20EliteOne%20800%20AIO%20NT%201-5.pdf","http://psref.lenovo.com/"," http://www.pcsmart.com.co/index/index.php?id_product=119&controller=product","http://www.hp.com/latam/CCE/2017/HP%20EliteOne%20800%20AIO%20NT%201-5.pdf","http://www.hp.com/latam/CCE/2017/HP%20EliteOne%20800%20AIO%20NT%201-5.pdf","www.hp.com.co","http://www.hp.com/latam/CCE/2017/HP%20EliteOne%20800%20AIO%20NT%201-5.pdf","http://www.hp.com/latam/CCE/2017/HP%20EliteOne%20800%20AIO%20NT%201-5.pdf","http://www.hp.com/latam/CCE/2017/HP%20EliteOne%20800%20AIO%20NT%201-5.pdf","http://psref.lenovo.com/Product/ThinkCentre_M900z_AIO","https://www.compumax.com.co/inicio/gobierno/colombiacompra","http://www8.hp.com/us/en/products/desktops/product-detail.html?oid=15292420","http://www.hp.com/latam/CCE/2017/HP%20EliteOne%20800%20AIO%20NT%201-5.pdf","http://www.hp.com/latam/CCE/2017/HP%20EliteOne%20800%20AIO%20NT%201-5.pdf","http://shop.lenovo.com/co/es/contacto/ http://psref.lenovo.com/Product/ThinkCentre_M900z_AIO","http://www.dell.com/co/empresas/p/optiplex-7450-aio/pd?ref=PD_Family","http://www.hp.com/latam/CCE/2017/HP%20EliteOne%20800%20AIO%20NT%201-5.pdf","http://www.dell.com/co/empresas/p/optiplex-7450-aio/pd?ref=PD_Family","http://www.hp.com/latam/CCE/2017/HP%20EliteOne%20800%20AIO%20NT%201-5.pdf","http://www.dell.com/co/empresas/p/optiplex-7450-aio/pd?ref=PD_Family","http://www.hp.com/latam/CCE/2017/HP%20EliteOne%20800%20AIO%20NT%201-5.pdf","http://www.dell.com/co/empresas/p/optiplex-7450-aio/pd?ref=PD_Family","www.acer.com","http://www.hp.com/latam/CCE/2017/HP%20EliteOne%20800%20AIO%20NT%201-5.pdf","http://www.pcsmart.com.co/index/index.php?id_product=118&controller=product","www.compumax.com.co/gobierno/colombiacompra","http://psref.lenovo.com/Product/ThinkCentre_M900z_AIO","www.acer.com","http://www.hp.com/latam/CCE/2017/HP%20EliteOne%20800%20AIO%20NT%201-5.pdf","http://psref.lenovo.com/Product/ThinkCentre_M900z_AIO","http://www.dell.com/co/empresas/p/optiplex-7450-aio/pd?ref=PD_Family","www.dell.com.co","http://www.hp.com/latam/CCE/2017/HP%20EliteOne%20800%20AIO%20NT%201-5.pdf","http://www.dell.com/co/empresas/p/optiplex-7450-aio/pd?ref=PD_Family","http://www.dell.com/co/empresas/p/optiplex-7450-aio/pd?ref=PD_Family","http://www.hp.com/latam/CCE/2017/HP%20EliteOne%20800%20AIO%20NT%201-5.pdf","http://www.dell.com/co/empresas/p/optiplex-7450-aio/pd?ref=PD_Family","http://www.dell.com/co/empresas/p/optiplex-7450-aio/pd","http://www.lenovo.com/co/es/","http://www8.hp.com/mx/es/home.html",null,null,null,null,null,null,null,null,{"$f":"MEDIAN(IF($E$3:$BB$3<>0,$E21:$BB21))","v":0},{"$f":"MIN(IF($E$3:$BB$3<>0,$E21:$BB21))","v":0},{"$f":"MAX(IF($E$3:$BB$3<>0,$E21:$BB21))","v":0},{"$f":"AVERAGE(IF($E$3:$BB$3<>0,$E21:$BB21))","v":0},{"$error":"#VALUE!"},{"$error":"#VALUE!"},{"$error":"#VALUE!"},{"$error":"#VALUE!"},{"$error":"#VALUE!"},{"$error":"#VALUE!"},{"$error":"#VALUE!"},{"$error":"#VALUE!"},{"$error":"#VALUE!"},{"$error":"#VALUE!"},{"$error":"#VALUE!"},{"$error":"#VALUE!"},{"$error":"#VALUE!"},{"$error":"#VALUE!"},{"$error":"#VALUE!"},{"$error":"#VALUE!"},{"$error":"#VALUE!"},{"$error":"#VALUE!"},{"$error":"#VALUE!"},{"$error":"#VALUE!"},{"$error":"#VALUE!"},{"$error":"#VALUE!"},{"$error":"#VALUE!"},{"$error":"#VALUE!"},{"$error":"#VALUE!"},{"$error":"#VALUE!"},{"$error":"#VALUE!"},{"$error":"#VALUE!"},{"$error":"#VALUE!"},{"$error":"#VALUE!"},{"$error":"#VALUE!"},{"$error":"#VALUE!"},{"$error":"#VALUE!"},{"$error":"#VALUE!"},{"$error":"#VALUE!"},{"$error":"#VALUE!"},{"$error":"#VALUE!"},{"$error":"#VALUE!"},{"$error":"#VALUE!"},{"$error":"#VALUE!"},{"$error":"#VALUE!"},{"$error":"#VALUE!"},{"$error":"#DIV/0!"},0,0,0,0,0,0,0]
[18,"ETP Avanzada Computador de escritorio 1.6","Pagina WEB",2.5188916876574308E-2,"http://www.hp.com/latam/CCE/2017/HP%20ProDesk%20400%20SFF%201-6.pdf","http://www.hp.com/latam/CCE/2017/HP%20ProDesk%20400%20SFF%201-6.pdf","http://www.hp.com/latam/CCE/2017/HP%20ProDesk%20400%20SFF%201-6.pdf ","http://psref.lenovo.com/"," http://www.pcsmart.com.co/index/index.php?id_product=120&controller=product","http://www.hp.com/latam/CCE/2017/HP%20ProDesk%20400%20SFF%201-6.pdf ","http://www.hp.com/latam/CCE/2017/HP%20ProDesk%20400%20SFF%201-6.pdf - http://h20195.www2.hp.com/v2/GetPDF.aspx/4aa6-3901spl.pdf","www.hp.com.co","http://www.hp.com/latam/CCE/2017/HP%20ProDesk%20400%20SFF%201-6.pdf ","http://www.hp.com/latam/CCE/2017/HP%20ProDesk%20400%20SFF%201-6.pdf ","http://www.hp.com/latam/CCE/2017/HP%20ProDesk%20400%20SFF%201-6.pdf ","http://psref.lenovo.com/Product/ThinkCentre_M710_SFF","https://www.compumax.com.co/inicio/gobierno/colombiacompra","http://h20195.www2.hp.com/v2/GetDocument.aspx?docname=4AA6-9226ENUC&doctype=data%20sheet&doclang=EN_US&searchquery=&cc=us&lc=en","http://www.hp.com/latam/CCE/2017/HP%20ProDesk%20400%20SFF%201-6.pdf ","http://www.hp.com/latam/CCE/2017/HP%20ProDesk%20400%20SFF%201-6.pdf","http://shop.lenovo.com/co/es/contacto/ http://psref.lenovo.com/Product/ThinkCentre_M710_SFF","http://www.dell.com/co/empresas/p/optiplex-3050-desktop/pd?ref=PD_Family","http://www.hp.com/latam/CCE/2017/HP%20ProDesk%20400%20SFF%201-6.pdf ","http://www.dell.com/co/empresas/p/optiplex-3050-desktop/pd?ref=PD_Family","http://www.hp.com/latam/CCE/2017/HP%20ProDesk%20400%20SFF%201-6.pdf ","http://www.dell.com/co/empresas/p/optiplex-3050-desktop/pd?ref=PD_Family","http://www.hp.com/latam/CCE/2017/HP%20ProDesk%20400%20SFF%201-6.pdf","http://www.dell.com/co/empresas/p/optiplex-3050-desktop/pd?ref=PD_Family","www.acer.com","http://www.hp.com/latam/CCE/2017/HP%20ProDesk%20400%20SFF%201-6.pdf ","http://www.pcsmart.com.co/index/index.php?id_product=120&controller=product","www.compumax.com.co/gobierno/colombiacompra","http://psref.lenovo.com/Product/ThinkCentre_M710_SFF","www.acer.com","http://www.hp.com/latam/CCE/2017/HP%20ProDesk%20400%20SFF%201-6.pdf ","http://psref.lenovo.com/Product/ThinkCentre_M710_SFF","http://www.dell.com/co/empresas/p/optiplex-3050-desktop/pd?ref=PD_Family","www.dell.com.co","http://www.hp.com/latam/CCE/2017/HP%20ProDesk%20400%20SFF%201-6.pdf ","http://www.dell.com/co/empresas/p/optiplex-3050-desktop/pd?ref=PD_Family","http://www.dell.com/co/empresas/p/optiplex-3050-desktop/pd?ref=PD_Family","http://www.hp.com/latam/CCE/2017/HP%20ProDesk%20400%20SFF%201-6.pdf ","http://www.dell.com/co/empresas/p/optiplex-3050-desktop/pd?ref=PD_Family","http://www.dell.com/co/empresas/p/optiplex-3050-desktop/pd","http://www.lenovo.com/co/es/","http://www8.hp.com/mx/es/home.html",null,null,null,null,null,null,null,null,{"$f":"MEDIAN(IF($E$3:$BB$3<>0,$E22:$BB22))","v":0},{"$f":"MIN(IF($E$3:$BB$3<>0,$E22:$BB22))","v":0},{"$f":"MAX(IF($E$3:$BB$3<>0,$E22:$BB22))","v":0},{"$f":"AVERAGE(IF($E$3:$BB$3<>0,$E22:$BB22))","v":0},{"$error":"#VALUE!"},{"$error":"#VALUE!"},{"$error":"#VALUE!"},{"$error":"#VALUE!"},{"$error":"#VALUE!"},{"$error":"#VALUE!"},{"$error":"#VALUE!"},{"$error":"#VALUE!"},{"$error":"#VALUE!"},{"$error":"#VALUE!"},{"$error":"#VALUE!"},{"$error":"#VALUE!"},{"$error":"#VALUE!"},{"$error":"#VALUE!"},{"$error":"#VALUE!"},{"$error":"#VALUE!"},{"$error":"#VALUE!"},{"$error":"#VALUE!"},{"$error":"#VALUE!"},{"$error":"#VALUE!"},{"$error":"#VALUE!"},{"$error":"#VALUE!"},{"$error":"#VALUE!"},{"$error":"#VALUE!"},{"$error":"#VALUE!"},{"$error":"#VALUE!"},{"$error":"#VALUE!"},{"$error":"#VALUE!"},{"$error":"#VALUE!"},{"$error":"#VALUE!"},{"$error":"#VALUE!"},{"$error":"#VALUE!"},{"$error":"#VALUE!"},{"$error":"#VALUE!"},{"$error":"#VALUE!"},{"$error":"#VALUE!"},{"$error":"#VALUE!"},{"$error":"#VALUE!"},{"$error":"#VALUE!"},{"$error":"#VALUE!"},{"$error":"#VALUE!"},{"$error":"#VALUE!"},{"$error":"#DIV/0!"},0,0,0,0,0,0,0]
[19,"ETP Liviana Computador de escritorio 1.1","Pais de Origen",1.7632241813602016E-2,"México","México","México","México","Colombia","México","Estados Unidos",null,"México","México","México","México","Estados Unidos","México","México","México","México","México",null,"México","México","México","México","México","Estados Unidos","México","Colombia",null,"México","Estados Unidos","Estados Unidos","México","México","México","México","México","México","México","México","México","México","México",null,null,null,null,null,null,null,null,{"$f":"MEDIAN(IF($E$3:$BB$3<>0,$E23:$BB23))","v":0},{"$f":"MIN(IF($E$3:$BB$3<>0,$E23:$BB23))","v":0},{"$f":"MAX(IF($E$3:$BB$3<>0,$E23:$BB23))","v":0},{"$f":"AVERAGE(IF($E$3:$BB$3<>0,$E23:$BB23))","v":0},{"$error":"#VALUE!"},{"$error":"#VALUE!"},{"$error":"#VALUE!"},{"$error":"#VALUE!"},{"$error":"#VALUE!"},{"$error":"#VALUE!"},{"$error":"#VALUE!"},{"$error":"#DIV/0!"},{"$error":"#VALUE!"},{"$error":"#VALUE!"},{"$error":"#VALUE!"},{"$error":"#VALUE!"},{"$error":"#VALUE!"},{"$error":"#VALUE!"},{"$error":"#VALUE!"},{"$error":"#VALUE!"},{"$error":"#VALUE!"},{"$error":"#VALUE!"},{"$error":"#DIV/0!"},{"$error":"#VALUE!"},{"$error":"#VALUE!"},{"$error":"#VALUE!"},{"$error":"#VALUE!"},{"$error":"#VALUE!"},{"$error":"#VALUE!"},{"$error":"#VALUE!"},{"$error":"#VALUE!"},{"$error":"#DIV/0!"},{"$error":"#VALUE!"},{"$error":"#VALUE!"},{"$error":"#VALUE!"},{"$error":"#VALUE!"},{"$error":"#VALUE!"},{"$error":"#VALUE!"},{"$error":"#VALUE!"},{"$error":"#VALUE!"},{"$error":"#VALUE!"},{"$error":"#VALUE!"},{"$error":"#VALUE!"},{"$error":"#VALUE!"},{"$error":"#VALUE!"},{"$error":"#VALUE!"},{"$error":"#DIV/0!"},0,0,0,0,0,0,0]
[20,"ETP Estándar Computador de escritorio 1.2","Pais de Origen",2.0151133501259445E-2,"México","México","México","México","Colombia","México","Estados Unidos",null,"México","México","México","México","Estados Unidos","México","México","México","México","México",null,"México","México","México","México","México","Estados Unidos","México","Colombia",null,"México","Estados Unidos","Estados Unidos","México","México","México","México","México","México","México","México","México","México","México",null,null,null,null,null,null,null,null,{"$f":"MEDIAN(IF($E$3:$BB$3<>0,$E24:$BB24))","v":0},{"$f":"MIN(IF($E$3:$BB$3<>0,$E24:$BB24))","v":0},{"$f":"MAX(IF($E$3:$BB$3<>0,$E24:$BB24))","v":0},{"$f":"AVERAGE(IF($E$3:$BB$3<>0,$E24:$BB24))","v":0},{"$error":"#VALUE!"},{"$error":"#VALUE!"},{"$error":"#VALUE!"},{"$error":"#VALUE!"},{"$error":"#VALUE!"},{"$error":"#VALUE!"},{"$error":"#VALUE!"},{"$error":"#DIV/0!"},{"$error":"#VALUE!"},{"$error":"#VALUE!"},{"$error":"#VALUE!"},{"$error":"#VALUE!"},{"$error":"#VALUE!"},{"$error":"#VALUE!"},{"$error":"#VALUE!"},{"$error":"#VALUE!"},{"$error":"#VALUE!"},{"$error":"#VALUE!"},{"$error":"#DIV/0!"},{"$error":"#VALUE!"},{"$error":"#VALUE!"},{"$error":"#VALUE!"},{"$error":"#VALUE!"},{"$error":"#VALUE!"},{"$error":"#VALUE!"},{"$error":"#VALUE!"},{"$error":"#VALUE!"},{"$error":"#DIV/0!"},{"$error":"#VALUE!"},{"$error":"#VALUE!"},{"$error":"#VALUE!"},{"$error":"#VALUE!"},{"$error":"#VALUE!"},{"$error":"#VALUE!"},{"$error":"#VALUE!"},{"$error":"#VALUE!"},{"$error":"#VALUE!"},{"$error":"#VALUE!"},{"$error":"#VALUE!"},{"$error":"#VALUE!"},{"$error":"#VALUE!"},{"$error":"#VALUE!"},{"$error":"#DIV/0!"},0,0,0,0,0,0,0]
[21,"ETP Estándar Computador de escritorio Linux 1.3","Pais de Origen",2.0151133501259445E-2,"México","México","México","México","Colombia","México","Estados Unidos",null,"México","México","México","México","Estados Unidos","México","México","México","México","México",null,"México","México","México","México","México","Estados Unidos","México","Colombia",null,"México","Estados Unidos","Estados Unidos","México","México","México","México","México","México","México","México","México","México","México",null,null,null,null,null,null,null,null,{"$f":"MEDIAN(IF($E$3:$BB$3<>0,$E25:$BB25))","v":0},{"$f":"MIN(IF($E$3:$BB$3<>0,$E25:$BB25))","v":0},{"$f":"MAX(IF($E$3:$BB$3<>0,$E25:$BB25))","v":0},{"$f":"AVERAGE(IF($E$3:$BB$3<>0,$E25:$BB25))","v":0},{"$error":"#VALUE!"},{"$error":"#VALUE!"},{"$error":"#VALUE!"},{"$error":"#VALUE!"},{"$error":"#VALUE!"},{"$error":"#VALUE!"},{"$error":"#VALUE!"},{"$error":"#DIV/0!"},{"$error":"#VALUE!"},{"$error":"#VALUE!"},{"$error":"#VALUE!"},{"$error":"#VALUE!"},{"$error":"#VALUE!"},{"$error":"#VALUE!"},{"$error":"#VALUE!"},{"$error":"#VALUE!"},{"$error":"#VALUE!"},{"$error":"#VALUE!"},{"$error":"#DIV/0!"},{"$error":"#VALUE!"},{"$error":"#VALUE!"},{"$error":"#VALUE!"},{"$error":"#VALUE!"},{"$error":"#VALUE!"},{"$error":"#VALUE!"},{"$error":"#VALUE!"},{"$error":"#VALUE!"},{"$error":"#DIV/0!"},{"$error":"#VALUE!"},{"$error":"#VALUE!"},{"$error":"#VALUE!"},{"$error":"#VALUE!"},{"$error":"#VALUE!"},{"$error":"#VALUE!"},{"$error":"#VALUE!"},{"$error":"#VALUE!"},{"$error":"#VALUE!"},{"$error":"#VALUE!"},{"$error":"#VALUE!"},{"$error":"#VALUE!"},{"$error":"#VALUE!"},{"$error":"#VALUE!"},{"$error":"#DIV/0!"},0,0,0,0,0,0,0]
[22,"ETP Estándar Computador de escritorio 1.4","Pais de Origen",2.2670025188916875E-2,"México","México","México","México","Colombia","México","Estados Unidos",null,"México","México","México","México","Estados Unidos","México","México","México","México","México",null,"México","México","México","México","México","Estados Unidos","México","Colombia",null,"México","Estados Unidos","Estados Unidos","México","México","México","México","México","México","México","México","México","México","México",null,null,null,null,null,null,null,null,{"$f":"MEDIAN(IF($E$3:$BB$3<>0,$E26:$BB26))","v":0},{"$f":"MIN(IF($E$3:$BB$3<>0,$E26:$BB26))","v":0},{"$f":"MAX(IF($E$3:$BB$3<>0,$E26:$BB26))","v":0},{"$f":"AVERAGE(IF($E$3:$BB$3<>0,$E26:$BB26))","v":0},{"$error":"#VALUE!"},{"$error":"#VALUE!"},{"$error":"#VALUE!"},{"$error":"#VALUE!"},{"$error":"#VALUE!"},{"$error":"#VALUE!"},{"$error":"#VALUE!"},{"$error":"#DIV/0!"},{"$error":"#VALUE!"},{"$error":"#VALUE!"},{"$error":"#VALUE!"},{"$error":"#VALUE!"},{"$error":"#VALUE!"},{"$error":"#VALUE!"},{"$error":"#VALUE!"},{"$error":"#VALUE!"},{"$error":"#VALUE!"},{"$error":"#VALUE!"},{"$error":"#DIV/0!"},{"$error":"#VALUE!"},{"$error":"#VALUE!"},{"$error":"#VALUE!"},{"$error":"#VALUE!"},{"$error":"#VALUE!"},{"$error":"#VALUE!"},{"$error":"#VALUE!"},{"$error":"#VALUE!"},{"$error":"#DIV/0!"},{"$error":"#VALUE!"},{"$error":"#VALUE!"},{"$error":"#VALUE!"},{"$error":"#VALUE!"},{"$error":"#VALUE!"},{"$error":"#VALUE!"},{"$error":"#VALUE!"},{"$error":"#VALUE!"},{"$error":"#VALUE!"},{"$error":"#VALUE!"},{"$error":"#VALUE!"},{"$error":"#VALUE!"},{"$error":"#VALUE!"},{"$error":"#VALUE!"},{"$error":"#DIV/0!"},0,0,0,0,0,0,0]
[23,"ETP Avanzada All in one 1.5","Pais de Origen",2.2670025188916875E-2,"México","México","México","México","Colombia","México","Estados Unidos",null,"México","México","México","México","Estados Unidos","México","México","México","México","México",null,"México","México","México","México","México","Estados Unidos","México","Colombia",null,"México","Estados Unidos","Estados Unidos","México","México","México","México","México","México","México","México","México","México","México",null,null,null,null,null,null,null,null,{"$f":"MEDIAN(IF($E$3:$BB$3<>0,$E27:$BB27))","v":0},{"$f":"MIN(IF($E$3:$BB$3<>0,$E27:$BB27))","v":0},{"$f":"MAX(IF($E$3:$BB$3<>0,$E27:$BB27))","v":0},{"$f":"AVERAGE(IF($E$3:$BB$3<>0,$E27:$BB27))","v":0},{"$error":"#VALUE!"},{"$error":"#VALUE!"},{"$error":"#VALUE!"},{"$error":"#VALUE!"},{"$error":"#VALUE!"},{"$error":"#VALUE!"},{"$error":"#VALUE!"},{"$error":"#DIV/0!"},{"$error":"#VALUE!"},{"$error":"#VALUE!"},{"$error":"#VALUE!"},{"$error":"#VALUE!"},{"$error":"#VALUE!"},{"$error":"#VALUE!"},{"$error":"#VALUE!"},{"$error":"#VALUE!"},{"$error":"#VALUE!"},{"$error":"#VALUE!"},{"$error":"#DIV/0!"},{"$error":"#VALUE!"},{"$error":"#VALUE!"},{"$error":"#VALUE!"},{"$error":"#VALUE!"},{"$error":"#VALUE!"},{"$error":"#VALUE!"},{"$error":"#VALUE!"},{"$error":"#VALUE!"},{"$error":"#DIV/0!"},{"$error":"#VALUE!"},{"$error":"#VALUE!"},{"$error":"#VALUE!"},{"$error":"#VALUE!"},{"$error":"#VALUE!"},{"$error":"#VALUE!"},{"$error":"#VALUE!"},{"$error":"#VALUE!"},{"$error":"#VALUE!"},{"$error":"#VALUE!"},{"$error":"#VALUE!"},{"$error":"#VALUE!"},{"$error":"#VALUE!"},{"$error":"#VALUE!"},{"$error":"#DIV/0!"},0,0,0,0,0,0,0]
[24,"ETP Avanzada Computador de escritorio 1.6","Pais de Origen",2.5188916876574308E-2,"México","México","México","México","Colombia","México","Estados Unidos",null,"México","México","México","México","Estados Unidos","México","México","México","México","México",null,"México","México","México","México","México","Estados Unidos","México","Colombia",null,"México","Estados Unidos","Estados Unidos","México","México","México","México","México","México","México","México","México","México","México",null,null,null,null,null,null,null,null,{"$f":"MEDIAN(IF($E$3:$BB$3<>0,$E28:$BB28))","v":0},{"$f":"MIN(IF($E$3:$BB$3<>0,$E28:$BB28))","v":0},{"$f":"MAX(IF($E$3:$BB$3<>0,$E28:$BB28))","v":0},{"$f":"AVERAGE(IF($E$3:$BB$3<>0,$E28:$BB28))","v":0},{"$error":"#VALUE!"},{"$error":"#VALUE!"},{"$error":"#VALUE!"},{"$error":"#VALUE!"},{"$error":"#VALUE!"},{"$error":"#VALUE!"},{"$error":"#VALUE!"},{"$error":"#DIV/0!"},{"$error":"#VALUE!"},{"$error":"#VALUE!"},{"$error":"#VALUE!"},{"$error":"#VALUE!"},{"$error":"#VALUE!"},{"$error":"#VALUE!"},{"$error":"#VALUE!"},{"$error":"#VALUE!"},{"$error":"#VALUE!"},{"$error":"#VALUE!"},{"$error":"#DIV/0!"},{"$error":"#VALUE!"},{"$error":"#VALUE!"},{"$error":"#VALUE!"},{"$error":"#VALUE!"},{"$error":"#VALUE!"},{"$error":"#VALUE!"},{"$error":"#VALUE!"},{"$error":"#VALUE!"},{"$error":"#DIV/0!"},{"$error":"#VALUE!"},{"$error":"#VALUE!"},{"$error":"#VALUE!"},{"$error":"#VALUE!"},{"$error":"#VALUE!"},{"$error":"#VALUE!"},{"$error":"#VALUE!"},{"$error":"#VALUE!"},{"$error":"#VALUE!"},{"$error":"#VALUE!"},{"$error":"#VALUE!"},{"$error":"#VALUE!"},{"$error":"#VALUE!"},{"$error":"#VALUE!"},{"$error":"#DIV/0!"},0,0,0,0,0,0,0]
[25,"ETP Liviana Computador de escritorio 1.1","SubPartida Arancelaria",1.7632241813602016E-2,"8471.49.00.00\r\n","8471.49.00.00\r\n","N/A","8471.49.00.00\r\n","8471.49.00.00 - 8471.41.00.00",null,"8471.49.00.00","N/A","N/A","8471.49.00.00","N/A","8471.49.00.00\r\n","N/A",null,"8471.49.00.00","8471.49.00.00\r\n","8471.49.00.00\r\n","8471.49.00.00\r\n",null,"8471.49.00.00\r\n","8471.49.00.00\r\n","8471.49.00.00\r\n","8471.49.00.00\r\n",null,"8471.49.00.00 - 8471.41.00.00","8471.49.00.00","8471.49.00.00","N/A","8471.49.00.00","8471.49.00.00 - 8471.41.00.00","8471.49.00.00\r\n8471.41.00.00\r\n","8471.49.00.00","8471.49.00.00\r\n","No hay elementos seleccionados","N/A","8471.49.00.00\r\n","N/A","8471.49.00.00",null,"8471.49.00.00","8471.49.00.00\r\n","N/A",null,null,null,null,null,null,null,null,{"$f":"MEDIAN(IF($E$3:$BB$3<>0,$E29:$BB29))","v":0},{"$f":"MIN(IF($E$3:$BB$3<>0,$E29:$BB29))","v":0},{"$f":"MAX(IF($E$3:$BB$3<>0,$E29:$BB29))","v":0},{"$f":"AVERAGE(IF($E$3:$BB$3<>0,$E29:$BB29))","v":0},{"$error":"#VALUE!"},{"$error":"#VALUE!"},{"$error":"#VALUE!"},{"$error":"#VALUE!"},{"$error":"#VALUE!"},{"$error":"#DIV/0!"},{"$error":"#VALUE!"},{"$error":"#VALUE!"},{"$error":"#VALUE!"},{"$error":"#VALUE!"},{"$error":"#VALUE!"},{"$error":"#VALUE!"},{"$error":"#VALUE!"},{"$error":"#DIV/0!"},{"$error":"#VALUE!"},{"$error":"#VALUE!"},{"$error":"#VALUE!"},{"$error":"#VALUE!"},{"$error":"#DIV/0!"},{"$error":"#VALUE!"},{"$error":"#VALUE!"},{"$error":"#VALUE!"},{"$error":"#VALUE!"},{"$error":"#DIV/0!"},{"$error":"#VALUE!"},{"$error":"#VALUE!"},{"$error":"#VALUE!"},{"$error":"#VALUE!"},{"$error":"#VALUE!"},{"$error":"#VALUE!"},{"$error":"#VALUE!"},{"$error":"#VALUE!"},{"$error":"#VALUE!"},{"$error":"#VALUE!"},{"$error":"#VALUE!"},{"$error":"#VALUE!"},{"$error":"#VALUE!"},{"$error":"#VALUE!"},{"$error":"#DIV/0!"},{"$error":"#VALUE!"},{"$error":"#VALUE!"},{"$error":"#VALUE!"},{"$error":"#DIV/0!"},0,0,0,0,0,0,0]
[26,"ETP Estándar Computador de escritorio 1.2","SubPartida Arancelaria",2.0151133501259445E-2,"8471.49.00.00\r\n","8471.49.00.00\r\n","N/A","8471.49.00.00\r\n","8471.49.00.00 - 8471.41.00.00",null,"8471.49.00.00","N/A","N/A","8471.49.00.00","N/A","8471.49.00.00\r\n","N/A",null,"8471.49.00.00","8471.49.00.00","8471.49.00.00\r\n","8471.49.00.00\r\n",null,"8471.49.00.00\r\n","8471.49.00.00","8471.49.00.00\r\n","8471.49.00.00\r\n",null,"8471.49.00.00 - 8471.41.00.00","8471.49.00.00\r\n","8471.49.00.00\r\n8471.41.00.00\r\n","N/A","8471.49.00.00","8471.49.00.00 - 8471.41.00.00","8471.49.00.00\r\n8471.41.00.00\r\n","8471.49.00.00","8471.49.00.00\r\n","No hay elementos seleccionados","N/A","8471.49.00.00","N/A","8471.49.00.00\r\n",null,"8471.49.00.00","8471.49.00.00\r\n","N/A",null,null,null,null,null,null,null,null,{"$f":"MEDIAN(IF($E$3:$BB$3<>0,$E30:$BB30))","v":0},{"$f":"MIN(IF($E$3:$BB$3<>0,$E30:$BB30))","v":0},{"$f":"MAX(IF($E$3:$BB$3<>0,$E30:$BB30))","v":0},{"$f":"AVERAGE(IF($E$3:$BB$3<>0,$E30:$BB30))","v":0},{"$error":"#VALUE!"},{"$error":"#VALUE!"},{"$error":"#VALUE!"},{"$error":"#VALUE!"},{"$error":"#VALUE!"},{"$error":"#DIV/0!"},{"$error":"#VALUE!"},{"$error":"#VALUE!"},{"$error":"#VALUE!"},{"$error":"#VALUE!"},{"$error":"#VALUE!"},{"$error":"#VALUE!"},{"$error":"#VALUE!"},{"$error":"#DIV/0!"},{"$error":"#VALUE!"},{"$error":"#VALUE!"},{"$error":"#VALUE!"},{"$error":"#VALUE!"},{"$error":"#DIV/0!"},{"$error":"#VALUE!"},{"$error":"#VALUE!"},{"$error":"#VALUE!"},{"$error":"#VALUE!"},{"$error":"#DIV/0!"},{"$error":"#VALUE!"},{"$error":"#VALUE!"},{"$error":"#VALUE!"},{"$error":"#VALUE!"},{"$error":"#VALUE!"},{"$error":"#VALUE!"},{"$error":"#VALUE!"},{"$error":"#VALUE!"},{"$error":"#VALUE!"},{"$error":"#VALUE!"},{"$error":"#VALUE!"},{"$error":"#VALUE!"},{"$error":"#VALUE!"},{"$error":"#VALUE!"},{"$error":"#DIV/0!"},{"$error":"#VALUE!"},{"$error":"#VALUE!"},{"$error":"#VALUE!"},{"$error":"#DIV/0!"},0,0,0,0,0,0,0]
[27,"ETP Estándar Computador de escritorio Linux 1.3","SubPartida Arancelaria",2.0151133501259445E-2,"8471.49.00.00\r\n","8471.49.00.00\r\n","N/A","8471.49.00.00\r\n","8471.49.00.00 - 8471.41.00.00",null,"8471.49.00.00","N/A","N/A","8471.49.00.00","N/A","8471.49.00.00\r\n","N/A",null,"8471.49.00.00\r\n","8471.49.00.00\r\n","8471.49.00.00\r\n","8471.49.00.00\r\n",null,"8471.49.00.00\r\n","8471.49.00.00\r\n","8471.49.00.00\r\n","8471.49.00.00\r\n",null,"8471.49.00.00 - 8471.41.00.00","8471.49.00.00\r\n","8471.49.00.00\r\n8471.41.00.00\r\n","N/A","8471.49.00.00","8471.49.00.00 - 8471.41.00.00","8471.49.00.00\r\n8471.41.00.00\r\n","8471.49.00.00","8471.49.00.00\r\n","No hay elementos seleccionados","N/A","8471.49.00.00\r\n","N/A","8471.49.00.00",null,"8471.49.00.00","8471.49.00.00\r\n","N/A",null,null,null,null,null,null,null,null,{"$f":"MEDIAN(IF($E$3:$BB$3<>0,$E31:$BB31))","v":0},{"$f":"MIN(IF($E$3:$BB$3<>0,$E31:$BB31))","v":0},{"$f":"MAX(IF($E$3:$BB$3<>0,$E31:$BB31))","v":0},{"$f":"AVERAGE(IF($E$3:$BB$3<>0,$E31:$BB31))","v":0},{"$error":"#VALUE!"},{"$error":"#VALUE!"},{"$error":"#VALUE!"},{"$error":"#VALUE!"},{"$error":"#VALUE!"},{"$error":"#DIV/0!"},{"$error":"#VALUE!"},{"$error":"#VALUE!"},{"$error":"#VALUE!"},{"$error":"#VALUE!"},{"$error":"#VALUE!"},{"$error":"#VALUE!"},{"$error":"#VALUE!"},{"$error":"#DIV/0!"},{"$error":"#VALUE!"},{"$error":"#VALUE!"},{"$error":"#VALUE!"},{"$error":"#VALUE!"},{"$error":"#DIV/0!"},{"$error":"#VALUE!"},{"$error":"#VALUE!"},{"$error":"#VALUE!"},{"$error":"#VALUE!"},{"$error":"#DIV/0!"},{"$error":"#VALUE!"},{"$error":"#VALUE!"},{"$error":"#VALUE!"},{"$error":"#VALUE!"},{"$error":"#VALUE!"},{"$error":"#VALUE!"},{"$error":"#VALUE!"},{"$error":"#VALUE!"},{"$error":"#VALUE!"},{"$error":"#VALUE!"},{"$error":"#VALUE!"},{"$error":"#VALUE!"},{"$error":"#VALUE!"},{"$error":"#VALUE!"},{"$error":"#DIV/0!"},{"$error":"#VALUE!"},{"$error":"#VALUE!"},{"$error":"#VALUE!"},{"$error":"#DIV/0!"},0,0,0,0,0,0,0]
[28,"ETP Estándar Computador de escritorio 1.4","SubPartida Arancelaria",2.2670025188916875E-2,"8471.41.00.00","8471.41.00.00","N/A","8471.49.00.00\r\n","8471.49.00.00 - 8471.41.00.00",null,"8471.49.00.00","N/A","N/A","8471.49.00.00","N/A","8471.49.00.00\r\n","N/A",null,"8471.41.00.00\r\n","8471.41.00.00\r\n","8471.49.00.00\r\n","8471.49.00.00\r\n",null,"8471.49.00.00\r\n","8471.41.00.00\r\n","8471.49.00.00\r\n","8471.41.00.00\r\n",null,"8471.49.00.00 - 8471.41.00.00","8471.49.00.00\r\n","8471.49.00.00\r\n8471.41.00.00\r\n","N/A","8471.49.00.00","8471.49.00.00 - 8471.41.00.00","8471.49.00.00\r\n8471.41.00.00\r\n","8471.49.00.00","8471.49.00.00\r\n","No hay elementos seleccionados","N/A","8471.49.00.00","N/A","8471.41.00.00\r\n",null,"8471.49.00.00","8471.49.00.00\r\n","N/A",null,null,null,null,null,null,null,null,{"$f":"MEDIAN(IF($E$3:$BB$3<>0,$E32:$BB32))","v":0},{"$f":"MIN(IF($E$3:$BB$3<>0,$E32:$BB32))","v":0},{"$f":"MAX(IF($E$3:$BB$3<>0,$E32:$BB32))","v":0},{"$f":"AVERAGE(IF($E$3:$BB$3<>0,$E32:$BB32))","v":0},{"$error":"#VALUE!"},{"$error":"#VALUE!"},{"$error":"#VALUE!"},{"$error":"#VALUE!"},{"$error":"#VALUE!"},{"$error":"#DIV/0!"},{"$error":"#VALUE!"},{"$error":"#VALUE!"},{"$error":"#VALUE!"},{"$error":"#VALUE!"},{"$error":"#VALUE!"},{"$error":"#VALUE!"},{"$error":"#VALUE!"},{"$error":"#DIV/0!"},{"$error":"#VALUE!"},{"$error":"#VALUE!"},{"$error":"#VALUE!"},{"$error":"#VALUE!"},{"$error":"#DIV/0!"},{"$error":"#VALUE!"},{"$error":"#VALUE!"},{"$error":"#VALUE!"},{"$error":"#VALUE!"},{"$error":"#DIV/0!"},{"$error":"#VALUE!"},{"$error":"#VALUE!"},{"$error":"#VALUE!"},{"$error":"#VALUE!"},{"$error":"#VALUE!"},{"$error":"#VALUE!"},{"$error":"#VALUE!"},{"$error":"#VALUE!"},{"$error":"#VALUE!"},{"$error":"#VALUE!"},{"$error":"#VALUE!"},{"$error":"#VALUE!"},{"$error":"#VALUE!"},{"$error":"#VALUE!"},{"$error":"#DIV/0!"},{"$error":"#VALUE!"},{"$error":"#VALUE!"},{"$error":"#VALUE!"},{"$error":"#DIV/0!"},0,0,0,0,0,0,0]
[29,"ETP Avanzada All in one 1.5","SubPartida Arancelaria",2.2670025188916875E-2,"8471.41.00.00","8471.41.00.00","N/A","8471.49.00.00\r\n","8471.49.00.00 - 8471.41.00.00",null,"8471.41.00.00","N/A","N/A","8471.49.00.00","N/A","8471.49.00.00\r\n","N/A",null,"8471.41.00.00\r\n","8471.49.00.00","8471.49.00.00\r\n","8471.49.00.00\r\n",null,"8471.49.00.00\r\n","8471.41.00.00\r\n","8471.49.00.00\r\n","8471.41.00.00\r\n",null,"8471.49.00.00 - 8471.41.00.00","8471.41.00.00","8471.49.00.00\r\n8471.41.00.00\r\n","N/A","8471.49.00.00","8471.49.00.00 - 8471.41.00.00","8471.49.00.00\r\n8471.41.00.00\r\n","8471.49.00.00","8471.49.00.00\r\n","No hay elementos seleccionados","N/A","8471.49.00.00","N/A","8471.41.00.00\r\n",null,"8471.49.00.00","8471.49.00.00\r\n","N/A",null,null,null,null,null,null,null,null,{"$f":"MEDIAN(IF($E$3:$BB$3<>0,$E33:$BB33))","v":0},{"$f":"MIN(IF($E$3:$BB$3<>0,$E33:$BB33))","v":0},{"$f":"MAX(IF($E$3:$BB$3<>0,$E33:$BB33))","v":0},{"$f":"AVERAGE(IF($E$3:$BB$3<>0,$E33:$BB33))","v":0},{"$error":"#VALUE!"},{"$error":"#VALUE!"},{"$error":"#VALUE!"},{"$error":"#VALUE!"},{"$error":"#VALUE!"},{"$error":"#DIV/0!"},{"$error":"#VALUE!"},{"$error":"#VALUE!"},{"$error":"#VALUE!"},{"$error":"#VALUE!"},{"$error":"#VALUE!"},{"$error":"#VALUE!"},{"$error":"#VALUE!"},{"$error":"#DIV/0!"},{"$error":"#VALUE!"},{"$error":"#VALUE!"},{"$error":"#VALUE!"},{"$error":"#VALUE!"},{"$error":"#DIV/0!"},{"$error":"#VALUE!"},{"$error":"#VALUE!"},{"$error":"#VALUE!"},{"$error":"#VALUE!"},{"$error":"#DIV/0!"},{"$error":"#VALUE!"},{"$error":"#VALUE!"},{"$error":"#VALUE!"},{"$error":"#VALUE!"},{"$error":"#VALUE!"},{"$error":"#VALUE!"},{"$error":"#VALUE!"},{"$error":"#VALUE!"},{"$error":"#VALUE!"},{"$error":"#VALUE!"},{"$error":"#VALUE!"},{"$error":"#VALUE!"},{"$error":"#VALUE!"},{"$error":"#VALUE!"},{"$error":"#DIV/0!"},{"$error":"#VALUE!"},{"$error":"#VALUE!"},{"$error":"#VALUE!"},{"$error":"#DIV/0!"},0,0,0,0,0,0,0]
[30,"ETP Avanzada Computador de escritorio 1.6","SubPartida Arancelaria",2.5188916876574308E-2,"8471.49.00.00\r\n","8471.49.00.00\r\n","N/A","8471.49.00.00\r\n","8471.49.00.00 - 8471.41.00.00",null,"8471.49.00.00","N/A","N/A","8471.49.00.00","N/A","8471.49.00.00\r\n","N/A",null,"8471.49.00.00\r\n","8471.49.00.00\r\n","8471.49.00.00\r\n","8471.49.00.00\r\n",null,"8471.49.00.00\r\n","8471.49.00.00\r\n","8471.49.00.00\r\n","8471.49.00.00\r\n",null,"8471.49.00.00 - 8471.41.00.00","8471.49.00.00","8471.49.00.00\r\n8471.41.00.00\r\n","N/A","8471.49.00.00","8471.49.00.00 - 8471.41.00.00","8471.49.00.00\r\n8471.41.00.00\r\n","8471.49.00.00","8471.49.00.00\r\n","No hay elementos seleccionados","N/A","8471.49.00.00\r\n","N/A","8471.49.00.00\r\n",null,"8471.49.00.00","8471.49.00.00\r\n","N/A",null,null,null,null,null,null,null,null,{"$f":"MEDIAN(IF($E$3:$BB$3<>0,$E34:$BB34))","v":0},{"$f":"MIN(IF($E$3:$BB$3<>0,$E34:$BB34))","v":0},{"$f":"MAX(IF($E$3:$BB$3<>0,$E34:$BB34))","v":0},{"$f":"AVERAGE(IF($E$3:$BB$3<>0,$E34:$BB34))","v":0},{"$error":"#VALUE!"},{"$error":"#VALUE!"},{"$error":"#VALUE!"},{"$error":"#VALUE!"},{"$error":"#VALUE!"},{"$error":"#DIV/0!"},{"$error":"#VALUE!"},{"$error":"#VALUE!"},{"$error":"#VALUE!"},{"$error":"#VALUE!"},{"$error":"#VALUE!"},{"$error":"#VALUE!"},{"$error":"#VALUE!"},{"$error":"#DIV/0!"},{"$error":"#VALUE!"},{"$error":"#VALUE!"},{"$error":"#VALUE!"},{"$error":"#VALUE!"},{"$error":"#DIV/0!"},{"$error":"#VALUE!"},{"$error":"#VALUE!"},{"$error":"#VALUE!"},{"$error":"#VALUE!"},{"$error":"#DIV/0!"},{"$error":"#VALUE!"},{"$error":"#VALUE!"},{"$error":"#VALUE!"},{"$error":"#VALUE!"},{"$error":"#VALUE!"},{"$error":"#VALUE!"},{"$error":"#VALUE!"},{"$error":"#VALUE!"},{"$error":"#VALUE!"},{"$error":"#VALUE!"},{"$error":"#VALUE!"},{"$error":"#VALUE!"},{"$error":"#VALUE!"},{"$error":"#VALUE!"},{"$error":"#DIV/0!"},{"$error":"#VALUE!"},{"$error":"#VALUE!"},{"$error":"#VALUE!"},{"$error":"#DIV/0!"},0,0,0,0,0,0,0]
[31,"ETP Liviana Computador de escritorio 1.1","IN",1.7632241813602016E-2,"No","Si","No","No","Si","No","Si","Si","Si","No","No","Si","Si",null,"No","Si","Si",null,null,"Si","Si","Si","Si",null,"Si","Si","Si","Si","No","Si","Si","Si","Si","No","No","Si","No","No",null,"Si","Si","No",null,null,null,null,null,null,null,null,{"$f":"MEDIAN(IF($E$3:$BB$3<>0,$E35:$BB35))","v":0},{"$f":"MIN(IF($E$3:$BB$3<>0,$E35:$BB35))","v":0},{"$f":"MAX(IF($E$3:$BB$3<>0,$E35:$BB35))","v":0},{"$f":"AVERAGE(IF($E$3:$BB$3<>0,$E35:$BB35))","v":0},{"$error":"#VALUE!"},{"$error":"#VALUE!"},{"$error":"#VALUE!"},{"$error":"#VALUE!"},{"$error":"#VALUE!"},{"$error":"#VALUE!"},{"$error":"#VALUE!"},{"$error":"#VALUE!"},{"$error":"#VALUE!"},{"$error":"#VALUE!"},{"$error":"#VALUE!"},{"$error":"#VALUE!"},{"$error":"#VALUE!"},{"$error":"#DIV/0!"},{"$error":"#VALUE!"},{"$error":"#VALUE!"},{"$error":"#VALUE!"},{"$error":"#DIV/0!"},{"$error":"#DIV/0!"},{"$error":"#VALUE!"},{"$error":"#VALUE!"},{"$error":"#VALUE!"},{"$error":"#VALUE!"},{"$error":"#DIV/0!"},{"$error":"#VALUE!"},{"$error":"#VALUE!"},{"$error":"#VALUE!"},{"$error":"#VALUE!"},{"$error":"#VALUE!"},{"$error":"#VALUE!"},{"$error":"#VALUE!"},{"$error":"#VALUE!"},{"$error":"#VALUE!"},{"$error":"#VALUE!"},{"$error":"#VALUE!"},{"$error":"#VALUE!"},{"$error":"#VALUE!"},{"$error":"#VALUE!"},{"$error":"#DIV/0!"},{"$error":"#VALUE!"},{"$error":"#VALUE!"},{"$error":"#VALUE!"},{"$error":"#DIV/0!"},0,0,0,0,0,0,0]
[32,"ETP Estándar Computador de escritorio 1.2","IN",2.0151133501259445E-2,"No","Si","No","No","Si","No","Si","Si","Si","No","No","Si","Si",null,"No","Si","Si",null,null,"Si","Si","Si","Si",null,"Si","Si","Si","Si","No","Si","Si","Si","Si","No","No","Si","No","No",null,"Si","Si","No",null,null,null,null,null,null,null,null,{"$f":"MEDIAN(IF($E$3:$BB$3<>0,$E36:$BB36))","v":0},{"$f":"MIN(IF($E$3:$BB$3<>0,$E36:$BB36))","v":0},{"$f":"MAX(IF($E$3:$BB$3<>0,$E36:$BB36))","v":0},{"$f":"AVERAGE(IF($E$3:$BB$3<>0,$E36:$BB36))","v":0},{"$error":"#VALUE!"},{"$error":"#VALUE!"},{"$error":"#VALUE!"},{"$error":"#VALUE!"},{"$error":"#VALUE!"},{"$error":"#VALUE!"},{"$error":"#VALUE!"},{"$error":"#VALUE!"},{"$error":"#VALUE!"},{"$error":"#VALUE!"},{"$error":"#VALUE!"},{"$error":"#VALUE!"},{"$error":"#VALUE!"},{"$error":"#DIV/0!"},{"$error":"#VALUE!"},{"$error":"#VALUE!"},{"$error":"#VALUE!"},{"$error":"#DIV/0!"},{"$error":"#DIV/0!"},{"$error":"#VALUE!"},{"$error":"#VALUE!"},{"$error":"#VALUE!"},{"$error":"#VALUE!"},{"$error":"#DIV/0!"},{"$error":"#VALUE!"},{"$error":"#VALUE!"},{"$error":"#VALUE!"},{"$error":"#VALUE!"},{"$error":"#VALUE!"},{"$error":"#VALUE!"},{"$error":"#VALUE!"},{"$error":"#VALUE!"},{"$error":"#VALUE!"},{"$error":"#VALUE!"},{"$error":"#VALUE!"},{"$error":"#VALUE!"},{"$error":"#VALUE!"},{"$error":"#VALUE!"},{"$error":"#DIV/0!"},{"$error":"#VALUE!"},{"$error":"#VALUE!"},{"$error":"#VALUE!"},{"$error":"#DIV/0!"},0,0,0,0,0,0,0]
[33,"ETP Estándar Computador de escritorio Linux 1.3","IN",2.0151133501259445E-2,"No","Si","No","No","Si","No","Si","Si","Si","No","No","Si","Si",null,"No","Si","Si",null,null,"Si","Si","Si","Si",null,"Si","Si","Si","Si","No","Si","Si","Si","Si","No","No","Si","No","No",null,"Si","Si","No",null,null,null,null,null,null,null,null,{"$f":"MEDIAN(IF($E$3:$BB$3<>0,$E37:$BB37))","v":0},{"$f":"MIN(IF($E$3:$BB$3<>0,$E37:$BB37))","v":0},{"$f":"MAX(IF($E$3:$BB$3<>0,$E37:$BB37))","v":0},{"$f":"AVERAGE(IF($E$3:$BB$3<>0,$E37:$BB37))","v":0},{"$error":"#VALUE!"},{"$error":"#VALUE!"},{"$error":"#VALUE!"},{"$error":"#VALUE!"},{"$error":"#VALUE!"},{"$error":"#VALUE!"},{"$error":"#VALUE!"},{"$error":"#VALUE!"},{"$error":"#VALUE!"},{"$error":"#VALUE!"},{"$error":"#VALUE!"},{"$error":"#VALUE!"},{"$error":"#VALUE!"},{"$error":"#DIV/0!"},{"$error":"#VALUE!"},{"$error":"#VALUE!"},{"$error":"#VALUE!"},{"$error":"#DIV/0!"},{"$error":"#DIV/0!"},{"$error":"#VALUE!"},{"$error":"#VALUE!"},{"$error":"#VALUE!"},{"$error":"#VALUE!"},{"$error":"#DIV/0!"},{"$error":"#VALUE!"},{"$error":"#VALUE!"},{"$error":"#VALUE!"},{"$error":"#VALUE!"},{"$error":"#VALUE!"},{"$error":"#VALUE!"},{"$error":"#VALUE!"},{"$error":"#VALUE!"},{"$error":"#VALUE!"},{"$error":"#VALUE!"},{"$error":"#VALUE!"},{"$error":"#VALUE!"},{"$error":"#VALUE!"},{"$error":"#VALUE!"},{"$error":"#DIV/0!"},{"$error":"#VALUE!"},{"$error":"#VALUE!"},{"$error":"#VALUE!"},{"$error":"#DIV/0!"},0,0,0,0,0,0,0]
[34,"ETP Estándar Computador de escritorio 1.4","IN",2.2670025188916875E-2,"No","Si","No","No","Si","No","Si","Si","Si","No","No","Si","Si",null,"No","Si","Si",null,null,"Si","Si","Si","Si",null,"Si","Si","Si","Si","No","Si","Si","Si","Si","No","No","Si","No","No",null,"Si","Si","No",null,null,null,null,null,null,null,null,{"$f":"MEDIAN(IF($E$3:$BB$3<>0,$E38:$BB38))","v":0},{"$f":"MIN(IF($E$3:$BB$3<>0,$E38:$BB38))","v":0},{"$f":"MAX(IF($E$3:$BB$3<>0,$E38:$BB38))","v":0},{"$f":"AVERAGE(IF($E$3:$BB$3<>0,$E38:$BB38))","v":0},{"$error":"#VALUE!"},{"$error":"#VALUE!"},{"$error":"#VALUE!"},{"$error":"#VALUE!"},{"$error":"#VALUE!"},{"$error":"#VALUE!"},{"$error":"#VALUE!"},{"$error":"#VALUE!"},{"$error":"#VALUE!"},{"$error":"#VALUE!"},{"$error":"#VALUE!"},{"$error":"#VALUE!"},{"$error":"#VALUE!"},{"$error":"#DIV/0!"},{"$error":"#VALUE!"},{"$error":"#VALUE!"},{"$error":"#VALUE!"},{"$error":"#DIV/0!"},{"$error":"#DIV/0!"},{"$error":"#VALUE!"},{"$error":"#VALUE!"},{"$error":"#VALUE!"},{"$error":"#VALUE!"},{"$error":"#DIV/0!"},{"$error":"#VALUE!"},{"$error":"#VALUE!"},{"$error":"#VALUE!"},{"$error":"#VALUE!"},{"$error":"#VALUE!"},{"$error":"#VALUE!"},{"$error":"#VALUE!"},{"$error":"#VALUE!"},{"$error":"#VALUE!"},{"$error":"#VALUE!"},{"$error":"#VALUE!"},{"$error":"#VALUE!"},{"$error":"#VALUE!"},{"$error":"#VALUE!"},{"$error":"#DIV/0!"},{"$error":"#VALUE!"},{"$error":"#VALUE!"},{"$error":"#VALUE!"},{"$error":"#DIV/0!"},0,0,0,0,0,0,0]
[35,"ETP Avanzada All in one 1.5","IN",2.2670025188916875E-2,"No","Si","No","No","Si","No","Si","Si","Si","No","No","Si","Si",null,"No","Si","Si",null,null,"Si","Si","Si","Si",null,"Si","Si","Si","Si","No","Si","Si","Si","Si","No","No","Si","No","No",null,"Si","Si","No",null,null,null,null,null,null,null,null,{"$f":"MEDIAN(IF($E$3:$BB$3<>0,$E39:$BB39))","v":0},{"$f":"MIN(IF($E$3:$BB$3<>0,$E39:$BB39))","v":0},{"$f":"MAX(IF($E$3:$BB$3<>0,$E39:$BB39))","v":0},{"$f":"AVERAGE(IF($E$3:$BB$3<>0,$E39:$BB39))","v":0},{"$error":"#VALUE!"},{"$error":"#VALUE!"},{"$error":"#VALUE!"},{"$error":"#VALUE!"},{"$error":"#VALUE!"},{"$error":"#VALUE!"},{"$error":"#VALUE!"},{"$error":"#VALUE!"},{"$error":"#VALUE!"},{"$error":"#VALUE!"},{"$error":"#VALUE!"},{"$error":"#VALUE!"},{"$error":"#VALUE!"},{"$error":"#DIV/0!"},{"$error":"#VALUE!"},{"$error":"#VALUE!"},{"$error":"#VALUE!"},{"$error":"#DIV/0!"},{"$error":"#DIV/0!"},{"$error":"#VALUE!"},{"$error":"#VALUE!"},{"$error":"#VALUE!"},{"$error":"#VALUE!"},{"$error":"#DIV/0!"},{"$error":"#VALUE!"},{"$error":"#VALUE!"},{"$error":"#VALUE!"},{"$error":"#VALUE!"},{"$error":"#VALUE!"},{"$error":"#VALUE!"},{"$error":"#VALUE!"},{"$error":"#VALUE!"},{"$error":"#VALUE!"},{"$error":"#VALUE!"},{"$error":"#VALUE!"},{"$error":"#VALUE!"},{"$error":"#VALUE!"},{"$error":"#VALUE!"},{"$error":"#DIV/0!"},{"$error":"#VALUE!"},{"$error":"#VALUE!"},{"$error":"#VALUE!"},{"$error":"#DIV/0!"},0,0,0,0,0,0,0]
[36,"ETP Avanzada Computador de escritorio 1.6","IN",2.5188916876574308E-2,"No","Si","No","No","Si","No","Si","Si","Si","No","No","Si","Si",null,"No","Si","Si",null,null,"Si","Si","Si","Si",null,"Si","Si","Si","Si","No","Si","Si","Si","Si","No","No","Si","No","No",null,"Si","Si","No",null,null,null,null,null,null,null,null,{"$f":"MEDIAN(IF($E$3:$BB$3<>0,$E40:$BB40))","v":0},{"$f":"MIN(IF($E$3:$BB$3<>0,$E40:$BB40))","v":0},{"$f":"MAX(IF($E$3:$BB$3<>0,$E40:$BB40))","v":0},{"$f":"AVERAGE(IF($E$3:$BB$3<>0,$E40:$BB40))","v":0},{"$error":"#VALUE!"},{"$error":"#VALUE!"},{"$error":"#VALUE!"},{"$error":"#VALUE!"},{"$error":"#VALUE!"},{"$error":"#VALUE!"},{"$error":"#VALUE!"},{"$error":"#VALUE!"},{"$error":"#VALUE!"},{"$error":"#VALUE!"},{"$error":"#VALUE!"},{"$error":"#VALUE!"},{"$error":"#VALUE!"},{"$error":"#DIV/0!"},{"$error":"#VALUE!"},{"$error":"#VALUE!"},{"$error":"#VALUE!"},{"$error":"#DIV/0!"},{"$error":"#DIV/0!"},{"$error":"#VALUE!"},{"$error":"#VALUE!"},{"$error":"#VALUE!"},{"$error":"#VALUE!"},{"$error":"#DIV/0!"},{"$error":"#VALUE!"},{"$error":"#VALUE!"},{"$error":"#VALUE!"},{"$error":"#VALUE!"},{"$error":"#VALUE!"},{"$error":"#VALUE!"},{"$error":"#VALUE!"},{"$error":"#VALUE!"},{"$error":"#VALUE!"},{"$error":"#VALUE!"},{"$error":"#VALUE!"},{"$error":"#VALUE!"},{"$error":"#VALUE!"},{"$error":"#VALUE!"},{"$error":"#DIV/0!"},{"$error":"#VALUE!"},{"$error":"#VALUE!"},{"$error":"#VALUE!"},{"$error":"#DIV/0!"},0,0,0,0,0,0,0]
[null,null,null,null,"\\\\192.168.10.101\\negocios\\Estructuración IAD\\AMP adquisición de Computadores y Periféricos\\03 Ofertas\\ConsolidadoOfertas\\Segmento1\\30-I3 Net Formato 5 incorpora Adenda 2.xlsm","\\\\192.168.10.101\\negocios\\Estructuración IAD\\AMP adquisición de Computadores y Periféricos\\03 Ofertas\\ConsolidadoOfertas\\Segmento1\\16-Computel Formato 5 incorpora Adenda 2.xlsm","\\\\192.168.10.101\\negocios\\Estructuración IAD\\AMP adquisición de Computadores y Periféricos\\03 Ofertas\\ConsolidadoOfertas\\Segmento1\\28-Key markt Formato 5 incorpora Adenda 2.xlsm","\\\\192.168.10.101\\negocios\\Estructuración IAD\\AMP adquisición de Computadores y Periféricos\\03 Ofertas\\ConsolidadoOfertas\\Segmento1\\4-Formato 5 incorpora Adenda 2 Aconpiexpress.xlsm","\\\\192.168.10.101\\negocios\\Estructuración IAD\\AMP adquisición de Computadores y Periféricos\\03 Ofertas\\ConsolidadoOfertas\\Segmento1\\42-Pear Formato 5 incorpora Adenda 2  final.xlsm","\\\\192.168.10.101\\negocios\\Estructuración IAD\\AMP adquisición de Computadores y Periféricos\\03 Ofertas\\ConsolidadoOfertas\\Segmento1\\39-SOS Formato 5 - Final.xlsm","\\\\192.168.10.101\\negocios\\Estructuración IAD\\AMP adquisición de Computadores y Periféricos\\03 Ofertas\\ConsolidadoOfertas\\Segmento1\\18-PROPUESTA ECONOMICA DEFINITIVA PYP SYSTEMS.xlsm","\\\\192.168.10.101\\negocios\\Estructuración IAD\\AMP adquisición de Computadores y Periféricos\\03 Ofertas\\ConsolidadoOfertas\\Segmento1\\32-Corsa Formato 5.xlsm","\\\\192.168.10.101\\negocios\\Estructuración IAD\\AMP adquisición de Computadores y Periféricos\\03 Ofertas\\ConsolidadoOfertas\\Segmento1\\24-Conix Metalandes Formato 5 incorpora Adenda 2.xlsm","\\\\192.168.10.101\\negocios\\Estructuración IAD\\AMP adquisición de Computadores y Periféricos\\03 Ofertas\\ConsolidadoOfertas\\Segmento1\\8-JPDP Formato 5 incorpora Adenda 2.xlsm","\\\\192.168.10.101\\negocios\\Estructuración IAD\\AMP adquisición de Computadores y Periféricos\\03 Ofertas\\ConsolidadoOfertas\\Segmento1\\43-UT CCE Formato 5 incorpora Adenda 2.xlsm","\\\\192.168.10.101\\negocios\\Estructuración IAD\\AMP adquisición de Computadores y Periféricos\\03 Ofertas\\ConsolidadoOfertas\\Segmento1\\25-oferta economica nexcom.xlsm","\\\\192.168.10.101\\negocios\\Estructuración IAD\\AMP adquisición de Computadores y Periféricos\\03 Ofertas\\ConsolidadoOfertas\\Segmento1\\10-Selcomp Formato 5 incorpora Adenda 2.xlsm","\\\\192.168.10.101\\negocios\\Estructuración IAD\\AMP adquisición de Computadores y Periféricos\\03 Ofertas\\ConsolidadoOfertas\\Segmento1\\5-OFicomco economica Formato 5.xlsm","\\\\192.168.10.101\\negocios\\Estructuración IAD\\AMP adquisición de Computadores y Periféricos\\03 Ofertas\\ConsolidadoOfertas\\Segmento1\\26-Sumimas Formato 5 incorpora Adenda 2.xlsm","\\\\192.168.10.101\\negocios\\Estructuración IAD\\AMP adquisición de Computadores y Periféricos\\03 Ofertas\\ConsolidadoOfertas\\Segmento1\\33-Tecnophone Formato 5 incorpora Adenda 2.xlsm","\\\\192.168.10.101\\negocios\\Estructuración IAD\\AMP adquisición de Computadores y Periféricos\\03 Ofertas\\ConsolidadoOfertas\\Segmento1\\6-NES Formato 5 incorpora Adenda 2 - Oferta económica referencias e industria nacional 06.xlsm","\\\\192.168.10.101\\negocios\\Estructuración IAD\\AMP adquisición de Computadores y Periféricos\\03 Ofertas\\ConsolidadoOfertas\\Segmento1\\14-SAVERA Formato 5 incorpora Adenda 2.xlsm","\\\\192.168.10.101\\negocios\\Estructuración IAD\\AMP adquisición de Computadores y Periféricos\\03 Ofertas\\ConsolidadoOfertas\\Segmento1\\2-Formato 5 incorpora Adenda 2 - coinci.xlsm","\\\\192.168.10.101\\negocios\\Estructuración IAD\\AMP adquisición de Computadores y Periféricos\\03 Ofertas\\ConsolidadoOfertas\\Segmento1\\38-Colsistec Formato 5 incorpora Adenda 2.xlsm","\\\\192.168.10.101\\negocios\\Estructuración IAD\\AMP adquisición de Computadores y Periféricos\\03 Ofertas\\ConsolidadoOfertas\\Segmento1\\12-Micronet Formato 5 incorpora Adenda 2.xlsm","\\\\192.168.10.101\\negocios\\Estructuración IAD\\AMP adquisición de Computadores y Periféricos\\03 Ofertas\\ConsolidadoOfertas\\Segmento1\\45-Formato 5 Oferta Economica - PROINTECH COLOMBIA SAS.xlsm","\\\\192.168.10.101\\negocios\\Estructuración IAD\\AMP adquisición de Computadores y Periféricos\\03 Ofertas\\ConsolidadoOfertas\\Segmento1\\20-Compufacil Formato 5 incorpora Adenda 2.xlsm","\\\\192.168.10.101\\negocios\\Estructuración IAD\\AMP adquisición de Computadores y Periféricos\\03 Ofertas\\ConsolidadoOfertas\\Segmento1\\46-import OFERTA DEFINITIVA.xlsm","\\\\192.168.10.101\\negocios\\Estructuración IAD\\AMP adquisición de Computadores y Periféricos\\03 Ofertas\\ConsolidadoOfertas\\Segmento1\\15-Seven wireless Formato 5 incorpora Adenda 2.xlsm","\\\\192.168.10.101\\negocios\\Estructuración IAD\\AMP adquisición de Computadores y Periféricos\\03 Ofertas\\ConsolidadoOfertas\\Segmento1\\1-Formato 5 incorpora Adenda 2 -HAS.xlsm","\\\\192.168.10.101\\negocios\\Estructuración IAD\\AMP adquisición de Computadores y Periféricos\\03 Ofertas\\ConsolidadoOfertas\\Segmento1\\22-Soluciones activas Formato 5 incorpora Adenda 2.xlsm","\\\\192.168.10.101\\negocios\\Estructuración IAD\\AMP adquisición de Computadores y Periféricos\\03 Ofertas\\ConsolidadoOfertas\\Segmento1\\41-SistetronicsFormato 5 incorpora Adenda 2.xlsm","\\\\192.168.10.101\\negocios\\Estructuración IAD\\AMP adquisición de Computadores y Periféricos\\03 Ofertas\\ConsolidadoOfertas\\Segmento1\\3-Formato 5 incorpora Adenda 2 - CYSNUS Oferta económica referencias e industria nacional.xlsm","\\\\192.168.10.101\\negocios\\Estructuración IAD\\AMP adquisición de Computadores y Periféricos\\03 Ofertas\\ConsolidadoOfertas\\Segmento1\\19-UT Data Formato 5 incorpora Adenda 2.xlsm","\\\\192.168.10.101\\negocios\\Estructuración IAD\\AMP adquisición de Computadores y Periféricos\\03 Ofertas\\ConsolidadoOfertas\\Segmento1\\29-CE Formato 5 incorpora Adenda 2  Oferta economica.xlsm","\\\\192.168.10.101\\negocios\\Estructuración IAD\\AMP adquisición de Computadores y Periféricos\\03 Ofertas\\ConsolidadoOfertas\\Segmento1\\11-Computer center Formato 5 incorpora Adenda 2.xlsm","\\\\192.168.10.101\\negocios\\Estructuración IAD\\AMP adquisición de Computadores y Periféricos\\03 Ofertas\\ConsolidadoOfertas\\Segmento1\\34-Comware Formato 5 incorpora Adenda 2.xlsm","\\\\192.168.10.101\\negocios\\Estructuración IAD\\AMP adquisición de Computadores y Periféricos\\03 Ofertas\\ConsolidadoOfertas\\Segmento1\\27-Red computo Formato 5 incorpora Adenda 2.xlsm","\\\\192.168.10.101\\negocios\\Estructuración IAD\\AMP adquisición de Computadores y Periféricos\\03 Ofertas\\ConsolidadoOfertas\\Segmento1\\31-Carvajal TyS - Formato 5 incorpora Adenda .xlsm","\\\\192.168.10.101\\negocios\\Estructuración IAD\\AMP adquisición de Computadores y Periféricos\\03 Ofertas\\ConsolidadoOfertas\\Segmento1\\36-Ofibod Formato 5 incorpora Adenda 2.xlsm","\\\\192.168.10.101\\negocios\\Estructuración IAD\\AMP adquisición de Computadores y Periféricos\\03 Ofertas\\ConsolidadoOfertas\\Segmento1\\23-Microhard Formato 5 incorpora Adenda 2.xlsm","\\\\192.168.10.101\\negocios\\Estructuración IAD\\AMP adquisición de Computadores y Periféricos\\03 Ofertas\\ConsolidadoOfertas\\Segmento1\\44-Uniples Formato 5 incorpora Adenda 2.xlsm","\\\\192.168.10.101\\negocios\\Estructuración IAD\\AMP adquisición de Computadores y Periféricos\\03 Ofertas\\ConsolidadoOfertas\\Segmento1\\17-Colsof Formato 5 incorpora Adenda 2.xlsm","\\\\192.168.10.101\\negocios\\Estructuración IAD\\AMP adquisición de Computadores y Periféricos\\03 Ofertas\\ConsolidadoOfertas\\Segmento1\\40-Origin IT Formato 5 incorpora Adenda 2.xlsm","\\\\192.168.10.101\\negocios\\Estructuración IAD\\AMP adquisición de Computadores y Periféricos\\03 Ofertas\\ConsolidadoOfertas\\Segmento1\\13-Andivision Formato 5 incorpora Adenda 2.xlsm","\\\\192.168.10.101\\negocios\\Estructuración IAD\\AMP adquisición de Computadores y Periféricos\\03 Ofertas\\ConsolidadoOfertas\\Segmento1\\7-Districom Formato 5.xlsm"]

{"sheet":"Puntaje Tecnico 25","index":1,"n_rows":26,"n_cols":108,"rows_kept":26,"cut":false,"hidden":true,"merged":[[0,0,1,1]]}
["SEGMENTO 1"]
[]
[null,null,null,"Proponente Habilitado",1,1,1,0,0,0,0,0,0,0,0,0,0,0,0,0,0,0,0,0,0,0,0,0,0,0,0,0,0,0,0,0,0,0,0,0,0,0,0,0,0,0,0,0,0,0,0,0,0,0,null,null,null,"Puntaje económico etp",{"$f":"SUM(BG5:BG6)","v":15},10.472727272727273,5.3999999999999995,0,0,0,0,0,0,0,0,0,0,0,0,0,0,0,0,0,0,0,0,0,0,0,0,0,0,0,0,0,{"$f":"SUM(CM5:CM6)","v":0},0,0,0,0,0,0,0,0,0,0,0,0,0,0,0,0,0]
["Ref.  Artículo. ","Descripción","Unidad","Peso Economico","Michel","Ingrit","Camilo","SISTEMAS Y DISTRIBUCIONES FORMACON LTDA","Uniples","Key Market","inversiones y suministros lm sas","Lilia Fanny Guevara Parrado","ADVANCED SUPPORT SAS","U.T. VISS 088 - 2016","OFICOMCO SAS","COMERCIALIZADORA FERLAG LTDA","Ready to copy Martha Gisela Salcedo de Moreno1","PAPELERIA LOS ANDES LTDA.","OFIBEST S.A.S.","panamericana","VENEPLAST","ALIANZA ESTRATEGICA OUTSOURCING","SUMIMAS S.A.S","COMERCIALIZADORA VINARTA S.A.S","COMERCIALIZADORA SERLE.COM","El Punto","redox","suministrosdeoficina","ARIOS COLOMBIA SAS","S.O.S. SOLUCIONES DE OFICINA & SUMINISTROS S.A.S.","Proveedor 27","Proveedor 28","Proveedor 29","Proveedor 30","Proveedor 31","Proveedor 32","Proveedor 33","Proveedor 34","Proveedor 35","Proveedor 36","Proveedor 37","Proveedor 38","Proveedor 39","Proveedor 40","Proveedor 41","Proveedor 42","Proveedor 43","Proveedor 44","Proveedor 45","Proveedor 46","Proveedor 47","Proveedor 48","Proveedor 49","Proveedor 50","Mediana","Mínimo precio","Máximo precio ","Promedio precio ",{"$f":"E4","v":"Michel"},{"$f":"F4","v":"Ingrit"},"Camilo","SISTEMAS Y DISTRIBUCIONES FORMACON LTDA","Uniples","Key Market","inversiones y suministros lm sas","Lilia Fanny Guevara Parrado","ADVANCED SUPPORT SAS","U.T. VISS 088 - 2016","OFICOMCO SAS","COMERCIALIZADORA FERLAG LTDA","Ready to copy Martha Gisela Salcedo de Moreno1","PAPELERIA LOS ANDES LTDA.","OFIBEST S.A.S.","panamericana","VENEPLAST","ALIANZA ESTRATEGICA OUTSOURCING","SUMIMAS S.A.S","COMERCIALIZADORA VINARTA S.A.S","COMERCIALIZADORA SERLE.COM","El Punto","redox","suministrosdeoficina","ARIOS COLOMBIA SAS","S.O.S. SOLUCIONES DE OFICINA & SUMINISTROS S.A.S.","Proveedor 27","Proveedor 28","Proveedor 29","Proveedor 30","Proveedor 31","Proveedor 32","Proveedor 33","Proveedor 34","Proveedor 35","Proveedor 36","Proveedor 37","Proveedor 38","Proveedor 39","Proveedor 40","Proveedor 41","Proveedor 42","Proveedor 43","Proveedor 44","Proveedor 45","Proveedor 46","Proveedor 47","Proveedor 48","Proveedor 49","Proveedor 50"]
[1,"EPEAT 1.1","unidad",15,15,12,9,null,null,null,null,null,null,null,null,null,null,null,null,null,null,null,null,null,null,null,null,null,null,null,null,null,null,null,null,null,null,null,null,null,null,null,null,null,null,null,null,null,null,null,null,null,null,null,null,null,null,null,{"$f":"15*(SUM(E$5:E$26)/((15*11)+(10*11)))","v":15},{"$f":"15*(SUM(F$5:F$26)/((15*11)+(10*11)))","v":10.472727272727273},5.3999999999999995,0,0,0,0,0,0,0,0,0,0,0,0,0,0,0,0,0,0,0,0,0,0,0,0,0,0,0,0,0,0,0,0,0,0,0,0,0,0,0,0,0,0,0,0,0,0,0]
[2,"EPEAT 1.2","unidad",15,15,12,9]
[3,"EPEAT 1.3","unidad",15,15,12,9]
[4,"EPEAT 1.4","unidad",15,15,12,9]
[5,"EPEAT 1.5","unidad",15,15,12,9]
[6,"EPEAT 1.6","unidad",15,15,12,9]
[7,"EPEAT 1.7","unidad",15,15,12,9]
[8,"EPEAT 1.8","unidad",15,15,12,9]
[9,"EPEAT 1.9","unidad",15,15,12,9]
[10,"EPEAT 1.10","unidad",15,15,12,9]
[11,"EPEAT 1.11","unidad",15,15,12,9]
[12,"Rohs 1.1","unidad",10,10,10,0]
[13,"Rohs 1.2","unidad",10,10,0,0]
[14,"Rohs 1.3","unidad",10,10,10,0]
[15,"Rohs 1.4","unidad",10,10,0,0]
[16,"Rohs 1.5","unidad",10,10,10,0]
[17,"Rohs 1.6","unidad",10,10,0,0]
[18,"Rohs 1.7","unidad",10,10,10,0]
[19,"Rohs 1.8","unidad",10,10,0,0]
[20,"Rohs 1.9","unidad",10,10,10,0]
[21,"Rohs 1.10","unidad",10,10,0,0]
[22,"Rohs 1.11","unidad",10,10,10,0]

{"sheet":"Puntaje IN 10","index":2,"n_rows":7,"n_cols":108,"rows_kept":7,"cut":false,"hidden":true,"merged":[[0,0,1,1]]}
["SEGMENTO 1"]
[]
[null,null,null,"Proponente Habilitado",1,1,1,0,0,0,0,0,0,0,0,0,0,0,0,0,0,0,0,0,0,0,0,0,0,0,0,0,0,0,0,0,0,0,0,0,0,0,0,0,0,0,0,0,0,0,0,0,0,0,null,null,null,"Puntaje económico etp",{"$f":"SUM(BG5:BG6)","v":0},0,0,0,0,0,0,0,0,0,0,0,0,0,0,0,0,0,0,0,0,0,0,0,0,0,0,0,0,0,0,0,{"$f":"SUM(CM5:CM6)","v":0},0,0,0,0,0,0,0,0,0,0,0,0,0,0,0,0,0]
["Ref.  Artículo. ","Descripción","Unidad","Peso Economico","Michel","Ingrit","Camilo","SISTEMAS Y DISTRIBUCIONES FORMACON LTDA","Uniples","Key Market","inversiones y suministros lm sas","Lilia Fanny Guevara Parrado","ADVANCED SUPPORT SAS","U.T. VISS 088 - 2016","OFICOMCO SAS","COMERCIALIZADORA FERLAG LTDA","Ready to copy Martha Gisela Salcedo de Moreno1","PAPELERIA LOS ANDES LTDA.","OFIBEST S.A.S.","panamericana","VENEPLAST","ALIANZA ESTRATEGICA OUTSOURCING","SUMIMAS S.A.S","COMERCIALIZADORA VINARTA S.A.S","COMERCIALIZADORA SERLE.COM","El Punto","redox","suministrosdeoficina","ARIOS COLOMBIA SAS","S.O.S. SOLUCIONES DE OFICINA & SUMINISTROS S.A.S.","Proveedor 27","Proveedor 28","Proveedor 29","Proveedor 30","Proveedor 31","Proveedor 32","Proveedor 33","Proveedor 34","Proveedor 35","Proveedor 36","Proveedor 37","Proveedor 38","Proveedor 39","Proveedor 40","Proveedor 41","Proveedor 42","Proveedor 43","Proveedor 44","Proveedor 45","Proveedor 46","Proveedor 47","Proveedor 48","Proveedor 49","Proveedor 50","Mediana","Mínimo precio","Máximo precio ","Promedio precio ",{"$f":"E4","v":"Michel"},{"$f":"F4","v":"Ingrit"},"Camilo","SISTEMAS Y DISTRIBUCIONES FORMACON LTDA","Uniples","Key Market","inversiones y suministros lm sas","Lilia Fanny Guevara Parrado","ADVANCED SUPPORT SAS","U.T. VISS 088 - 2016","OFICOMCO SAS","COMERCIALIZADORA FERLAG LTDA","Ready to copy Martha Gisela Salcedo de Moreno1","PAPELERIA LOS ANDES LTDA.","OFIBEST S.A.S.","panamericana","VENEPLAST","ALIANZA ESTRATEGICA OUTSOURCING","SUMIMAS S.A.S","COMERCIALIZADORA VINARTA S.A.S","COMERCIALIZADORA SERLE.COM","El Punto","redox","suministrosdeoficina","ARIOS COLOMBIA SAS","S.O.S. SOLUCIONES DE OFICINA & SUMINISTROS S.A.S.","Proveedor 27","Proveedor 28","Proveedor 29","Proveedor 30","Proveedor 31","Proveedor 32","Proveedor 33","Proveedor 34","Proveedor 35","Proveedor 36","Proveedor 37","Proveedor 38","Proveedor 39","Proveedor 40","Proveedor 41","Proveedor 42","Proveedor 43","Proveedor 44","Proveedor 45","Proveedor 46","Proveedor 47","Proveedor 48","Proveedor 49","Proveedor 50"]
[1,"País de Origen","unidad",10,"Si","Si","No",null,null,null,null,null,null,null,null,null,null,null,null,null,null,null,null,null,null,null,null,null,null,null,null,null,null,null,null,null,null,null,null,null,null,null,null,null,null,null,null,null,null,null,null,null,null,null,null,null,null,null,{"$f":"15*(SUM(E$5:E$7)/((15*11)+(10*11)))","v":0},0,0,0,0,0,0,0,0,0,0,0,0,0,0,0,0,0,0,0,0,0,0,0,0,0,0,0,0,0,0,0,{"$f":"15*(SUM(AK$5:AK$7)/((15*11)+(10*11)))","v":0},0,0,0,0,0,0,0,0,0,0,0,0,0,0,0,0,0]
[2,"Subpartida arancelaria","unidad",10,"Si","No","No"]
[3,"Incorporación de bienes y servicios colombianos","unidad",10,"Si","No","No"]

{"sheet":"Marcas","index":3,"n_rows":1038,"n_cols":6,"rows_kept":1038,"cut":false,"hidden":false,"merged":[]}
["Proveedor","Segmento","ETP/servicio","Marca","Referencia","Pagina Web del fabricante"]
["Aconpiexpress","Segmento 1","AIO/SFF 1.13 (EXCLUIDO)","LENOVO","ThinkCentre M725 SFF","https://psref.lenovo.com/syspool/Sys/PDF/ThinkCentre/ThinkCentre%20M725%20SFF/M725%20SFF.pdf"]
["Colsof","Segmento 1","AIO/SFF 1.13 (EXCLUIDO)","DELL","OPTIPLEX 5070","https://www.dell.com/ae/business/p/optiplex-5070-desktop/pd"]
["COMPUTEL SYSTEM S.A.S.","Segmento 1","AIO/SFF 1.13 (EXCLUIDO)","HEWLETT PACKARD","HP EliteDesk 705 G4 SFF","http://www8.hp.com/h20195/V2/GetDocument.aspx?docname=4AA7-6156SPL"]
["Controles empresariales","Segmento 1","AIO/SFF 1.13 (EXCLUIDO)","HEWLETT PACKARD","HP EliteDesk 705 G4 SFF","http://www8.hp.com/h20195/V2/GetDocument.aspx?docname=4AA7-6156SPL"]
["i3NET SAS","Segmento 1","AIO/SFF 1.13 (EXCLUIDO)","HEWLETT PACKARD","HP EliteDesk 705 G4 SFF","http://www8.hp.com/h20195/V2/GetDocument.aspx?docname=4AA7-6156SPL"]
["KEY MARKET SAS","Segmento 1","AIO/SFF 1.13 (EXCLUIDO)","HEWLETT PACKARD","HP EliteDesk 705 G4 SFF","http://www8.hp.com/h20195/V2/GetDocument.aspx?docname=4AA7-6156SPL"]
["MICROHARD S.A.S","Segmento 1","AIO/SFF 1.13 (EXCLUIDO)","DELL","OPTIPLEX 5070","https://www.dell.com/ae/business/p/optiplex-5070-desktop/pd"]
["Micronet","Segmento 1","AIO/SFF 1.13 (EXCLUIDO)","HEWLETT PACKARD","HP EliteDesk 705 G4 SFF","http://www8.hp.com/h20195/V2/GetDocument.aspx?docname=4AA7-6156SPL"]
["Nexcom","Segmento 1","AIO/SFF 1.13 (EXCLUIDO)","LENOVO","ThinkCentre M725 SFF","https://psref.lenovo.com/syspool/Sys/PDF/ThinkCentre/ThinkCentre%20M725%20SFF/M725%20SFF.pdf"]
["Oficomco","Segmento 1","AIO/SFF 1.13 (EXCLUIDO)","HEWLETT PACKARD","HP EliteDesk 705 G4 SFF","http://www8.hp.com/h20195/V2/GetDocument.aspx?docname=4AA7-6156SPL"]
["Origin IT","Segmento 1","AIO/SFF 1.13 (EXCLUIDO)","DELL","OPTIPLEX 5070","https://www.dell.com/ae/business/p/optiplex-5070-desktop/pd"]
["Pear Solutions","Segmento 1","AIO/SFF 1.13 (EXCLUIDO)","Pc Smart"]
["PROINTECH COLOMBIA SAS","Segmento 1","AIO/SFF 1.13 (EXCLUIDO)","DELL","OPTIPLEX 5070","https://www.dell.com/ae/business/p/optiplex-5070-desktop/pd"]
["PyP Systems","Segmento 1","AIO/SFF 1.13 (EXCLUIDO)","HEWLETT PACKARD","HP EliteDesk 705 G4 SFF","http://www8.hp.com/h20195/V2/GetDocument.aspx?docname=4AA7-6156SPL"]
["Red computo","Segmento 1","AIO/SFF 1.13 (EXCLUIDO)","DELL","OPTIPLEX 5070","https://www.dell.com/ae/business/p/optiplex-5070-desktop/pd"]
["Selcomp Ingenieria S.A.S","Segmento 1","AIO/SFF 1.13 (EXCLUIDO)","Compumax","SATURNO-RZ5-0010"," https://www.compumax.com.co/docs/amd/etp113/"]
["Sistetronics","Segmento 1","AIO/SFF 1.13 (EXCLUIDO)","Compumax","SATURNO-RZ5-0010"," https://www.compumax.com.co/docs/amd/etp113/"]
["SUMIMAS SAS","Segmento 1","AIO/SFF 1.13 (EXCLUIDO)","HEWLETT PACKARD","HP EliteDesk 705 G4 SFF","http://www8.hp.com/h20195/V2/GetDocument.aspx?docname=4AA7-6156SPL"]
["Uniples","Segmento 1","AIO/SFF 1.13 (EXCLUIDO)","HEWLETT PACKARD","HP EliteDesk 705 G4 SFF","http://www8.hp.com/h20195/V2/GetDocument.aspx?docname=4AA7-6156SPL"]
["UT CCE","Segmento 1","AIO/SFF 1.13 (EXCLUIDO)","HEWLETT PACKARD","HP EliteDesk 705 G4 SFF","http://www8.hp.com/h20195/V2/GetDocument.aspx?docname=4AA7-6156SPL"]
["Aconpiexpress","Segmento 1","All in One 1.12"]
["Colsof","Segmento 1","All in One 1.12","DELL","OptiPlex 7450","http://www.dell.com/ec/empresas/p/optiplex-7450-aio/pd"]
["COMPUTEL SYSTEM S.A.S.","Segmento 1","All in One 1.12","HEWLETT PACKARD","EliteOne 800 G3 23.8” AIO No Touch","http://www8.hp.com/h20195/V2/GetDocument.aspx?docname=c05999908"]
["Controles empresariales","Segmento 1","All in One 1.12"]
["i3NET SAS","Segmento 1","All in One 1.12","HEWLETT PACKARD","EliteOne 800 G3 23.8” AIO No Touch","http://www8.hp.com/h20195/V2/GetDocument.aspx?docname=c05999908"]
["KEY MARKET SAS","Segmento 1","All in One 1.12","HEWLETT PACKARD","EliteOne 800 G3 23.8” AIO No Touch","http://www8.hp.com/h20195/V2/GetDocument.aspx?docname=c05999908"]
["MICROHARD S.A.S","Segmento 1","All in One 1.12","DELL","OptiPlex 7451","http://www.dell.com/ec/empresas/p/optiplex-7450-aio/pd"]
["Micronet","Segmento 1","All in One 1.12"]
["Nexcom","Segmento 1","All in One 1.12","LENOVO","ThinkCentre M910z","http://psref.lenovo.com/syspool/Sys/PDF/datasheet/ThinkCentre_M910z_AIO_datasheet_EN.pdf"]
["Oficomco","Segmento 1","All in One 1.12","HEWLETT PACKARD","EliteOne 800 G3 23.8” AIO No Touch","http://www8.hp.com/h20195/V2/GetDocument.aspx?docname=c05999908"]
["Origin IT","Segmento 1","All in One 1.12","DELL","OptiPlex 7451","http://www.dell.com/ec/empresas/p/optiplex-7450-aio/pd"]
["Pear Solutions","Segmento 1","All in One 1.12","Pc Smart","AIOGOBAM2418-A","http://www.pcsmart.com.co/index/img/cms/GOBIERNO/AIOGOBAM2418-A.pdf"]
["PROINTECH COLOMBIA SAS","Segmento 1","All in One 1.12","DELL","OptiPlex 7452","http://www.dell.com/ec/empresas/p/optiplex-7450-aio/pd"]
["PyP Systems","Segmento 1","All in One 1.12","HEWLETT PACKARD","EliteOne 800 G3 23.8” AIO No Touch","http://www8.hp.com/h20195/V2/GetDocument.aspx?docname=c05999908"]
["Red computo","Segmento 1","All in One 1.12","DELL","OptiPlex 7453","http://www.dell.com/ec/empresas/p/optiplex-7450-aio/pd"]
["Selcomp Ingenieria S.A.S","Segmento 1","All in One 1.12","COMPUMAX","Unno Pro Series 3035-900-001","https://www.compumax.com.co/archivos/cce/AIO/etp112/fichaetp112.pdf"]
["Sistetronics","Segmento 1","All in One 1.12","COMPUMAX","Unno Pro Series 3035-900-001","https://www.compumax.com.co/archivos/cce/AIO/etp112/fichaetp112.pdf"]
["SUMIMAS SAS","Segmento 1","All in One 1.12","HEWLETT PACKARD","EliteOne 800 G3 23.8” AIO No Touch","http://www8.hp.com/h20195/V2/GetDocument.aspx?docname=c05999908"]
["Uniples","Segmento 1","All in One 1.12","HEWLETT PACKARD","EliteOne 800 G3 23.8” AIO No Touch","http://www8.hp.com/h20195/V2/GetDocument.aspx?docname=c05999908"]
["UT CCE","Segmento 1","All in One 1.12","HEWLETT PACKARD","EliteOne 800 G3 23.8” AIO No Touch","http://www8.hp.com/h20195/V2/GetDocument.aspx?docname=c05999908"]
["Aconpiexpress","Segmento 1","All in One 1.14"]
["Colsof","Segmento 1","All in One 1.14","DELL","Optiplex 5270 AIO ","https://www.dell.com/co/empresas/p/optiplex-5270-aio/pd"]
["COMPUTEL SYSTEM S.A.S.","Segmento 1","All in One 1.14","HEWLETT PACKARD","HP EliteOne 800 G5 23.8-inch All-inOne","https://www8.hp.com/h20195/v2/GetPDF.aspx/4AA7-4338EEAP.pdf"]
["Controles empresariales","Segmento 1","All in One 1.14"]
["i3NET SAS","Segmento 1","All in One 1.14","HEWLETT PACKARD","HP EliteOne 800 G5 23.8-inch All-inOne","https://www8.hp.com/h20195/v2/GetPDF.aspx/4AA7-4338EEAP.pdf"]
["KEY MARKET SAS","Segmento 1","All in One 1.14","HEWLETT PACKARD","HP EliteOne 800 G5 23.8-inch All-inOne","https://www8.hp.com/h20195/v2/GetPDF.aspx/4AA7-4338EEAP.pdf"]
["MICROHARD S.A.S","Segmento 1","All in One 1.14","DELL","Optiplex 5270 AIO ","http://www.dell.com/ec/empresas/p/optiplex-7450-aio/pd"]
["Micronet","Segmento 1","All in One 1.14"]
["Nexcom","Segmento 1","All in One 1.14","LENOVO","ThinkCentre M820z","https://psref.lenovo.com/syspool/Sys/PDF/ThinkCentre/ThinkCentre%20M820z%20AIO/ThinkCentre%20M820z%20AIO.pdf"]
["Oficomco","Segmento 1","All in One 1.14","HEWLETT PACKARD","HP EliteOne 800 G5 23.8-inch All-inOne","https://www8.hp.com/h20195/v2/GetPDF.aspx/4AA7-4338EEAP.pdf"]
["Origin IT","Segmento 1","All in One 1.14","DELL","Optiplex 5270 AIO ","http://www.dell.com/ec/empresas/p/optiplex-7450-aio/pd"]
["Pear Solutions","Segmento 1","All in One 1.14","Pc Smart","AIOGOBIN2119-K","https://www.pcsmart.com.co/index/index.php?id_product=173&controller=product"]
["PROINTECH COLOMBIA SAS","Segmento 1","All in One 1.14","DELL","Optiplex 5270 AIO ","http://www.dell.com/ec/empresas/p/optiplex-7450-aio/pd"]
["PyP Systems","Segmento 1","All in One 1.14","HEWLETT PACKARD","HP EliteOne 800 G5 23.8-inch All-inOne","https://www8.hp.com/h20195/v2/GetPDF.aspx/4AA7-4338EEAP.pdf"]
["Red computo","Segmento 1","All in One 1.14","DELL","Optiplex 5270 AIO ","http://www.dell.com/ec/empresas/p/optiplex-7450-aio/pd"]
["Selcomp Ingenieria S.A.S","Segmento 1","All in One 1.14","COMPUMAX"]
["Sistetronics","Segmento 1","All in One 1.14","COMPUMAX"]
["SUMIMAS SAS","Segmento 1","All in One 1.14","HEWLETT PACKARD","HP EliteOne 800 G5 23.8-inch All-inOne","https://www8.hp.com/h20195/v2/GetPDF.aspx/4AA7-4338EEAP.pdf"]
["Uniples","Segmento 1","All in One 1.14","HEWLETT PACKARD","HP EliteOne 800 G5 23.8-inch All-inOne","https://www8.hp.com/h20195/v2/GetPDF.aspx/4AA7-4338EEAP.pdf"]
["UT CCE","Segmento 1","All in One 1.14","HEWLETT PACKARD","HP EliteOne 800 G5 23.8-inch All-inOne","https://www8.hp.com/h20195/v2/GetPDF.aspx/4AA7-4338EEAP.pdf"]
["Aconpiexpress","Segmento 1","All in one 1.5","LENOVO","ThinkCentre M910z ","hthttp://psref.lenovo.com/syspool/Sys/PDF/ThinkCentre/ThinkCentre%20M910z%20AIO/ThinkCentre%20M910z%20AIO.pdf"]
["Colsof","Segmento 1","All in one 1.5","DELL","OPTIPLEX 7450","http://www.dell.com/co/empresas/p/optiplex-7450-aio/pd?ref=PD_Family"]
["COMPUTEL SYSTEM S.A.S.","Segmento 1","All in one 1.5","HEWLETT PACKARD","ELITEONE 800 G3 ALL-IN-ONE BUSINESS PC","http://www.hp.com/latam/CCE/2017/HP%20EliteOne%20800%20AIO%20NT%201-5.pdf"]
["Controles empresariales","Segmento 1","All in one 1.5","HEWLETT PACKARD","ELITEONE 800 G3 ALL-IN-ONE BUSINESS PC","http://www.hp.com/latam/CCE/2017/HP%20EliteOne%20800%20AIO%20NT%201-5.pdf"]
["i3NET SAS","Segmento 1","All in one 1.5","HEWLETT PACKARD","ELITEONE 800 G3 ALL-IN-ONE BUSINESS PC","http://www.hp.com/latam/CCE/2017/HP%20EliteOne%20800%20AIO%20NT%201-5.pdf"]
["KEY MARKET SAS","Segmento 1","All in one 1.5","HEWLETT PACKARD","ELITEONE 800 G3 ALL-IN-ONE BUSINESS PC","http://www.hp.com/latam/CCE/2017/HP%20EliteOne%20800%20AIO%20NT%201-5.pdf"]
["MICROHARD S.A.S","Segmento 1","All in one 1.5","DELL","OPTIPLEX 7450","http://www.dell.com/co/empresas/p/optiplex-7450-aio/pd?ref=PD_Family"]
["Micronet","Segmento 1","All in one 1.5","HEWLETT PACKARD","ELITEONE 800 G3 ALL-IN-ONE BUSINESS PC","http://www.hp.com/latam/CCE/2017/HP%20EliteOne%20800%20AIO%20NT%201-5.pdf"]
["Nexcom","Segmento 1","All in one 1.5","LENOVO","ThinkCentre M910z ","hthttp://psref.lenovo.com/syspool/Sys/PDF/ThinkCentre/ThinkCentre%20M910z%20AIO/ThinkCentre%20M910z%20AIO.pdf"]
["Oficomco","Segmento 1","All in one 1.5","HEWLETT PACKARD","ELITEONE 800 G3 ALL-IN-ONE BUSINESS PC","http://www.hp.com/latam/CCE/2017/HP%20EliteOne%20800%20AIO%20NT%201-5.pdf"]
["Origin IT","Segmento 1","All in one 1.5","DELL","OPTIPLEX 7450","http://www.dell.com/co/empresas/p/optiplex-7450-aio/pd?ref=PD_Family"]
["Pear Solutions","Segmento 1","All in one 1.5","Pc Smart","AIOGOB2417-A"," http://www.pcsmart.com.co/index/index.php?id_product=119&controller=product"]
["PROINTECH COLOMBIA SAS","Segmento 1","All in one 1.5","DELL","OPTIPLEX 7450","http://www.dell.com/co/empresas/p/optiplex-7450-aio/pd?ref=PD_Family"]
["PyP Systems","Segmento 1","All in one 1.5","HEWLETT PACKARD","ELITEONE 800 G3 ALL-IN-ONE BUSINESS PC","http://www.hp.com/latam/CCE/2017/HP%20EliteOne%20800%20AIO%20NT%201-5.pdf"]
["Red computo","Segmento 1","All in one 1.5","DELL","OPTIPLEX 7450","http://www.dell.com/co/empresas/p/optiplex-7450-aio/pd?ref=PD_Family"]
["Selcomp Ingenieria S.A.S","Segmento 1","All in one 1.5","Compumax","SATURNO-RZ5-0010","https://www.compumax.com.co/docs/amd/etp113/"]
["Sistetronics","Segmento 1","All in one 1.5","Compumax","SATURNO-RZ5-0010","https://www.compumax.com.co/docs/amd/etp113/"]
["SUMIMAS SAS","Segmento 1","All in one 1.5","HEWLETT PACKARD","ELITEONE 800 G3 ALL-IN-ONE BUSINESS PC","http://www.hp.com/latam/CCE/2017/HP%20EliteOne%20800%20AIO%20NT%201-5.pdf"]
["Uniples","Segmento 1","All in one 1.5","HEWLETT PACKARD","ELITEONE 800 G3 ALL-IN-ONE BUSINESS PC","http://www.hp.com/latam/CCE/2017/HP%20EliteOne%20800%20AIO%20NT%201-5.pdf"]
["UT CCE","Segmento 1","All in one 1.5","HEWLETT PACKARD","ELITEONE 800 G3 ALL-IN-ONE BUSINESS PC","http://www.hp.com/latam/CCE/2017/HP%20EliteOne%20800%20AIO%20NT%201-5.pdf"]
["PROINTECH COLOMBIA SAS","Segmento 1","Auricular - diadema de comunicaciones 1.8","JABRA","UC Voice 150","https://www.jabra.com/supportpages/jabra-uc-voice-150"]
["Aconpiexpress","Segmento 1","Auricular – diadema de comunicaciones 1.8","MICROSOFT","LifeChat LX-3000","https://www.microsoft.com/accessories/es-es/products/headsets/lifechat-lx-3000/jug-00003"]
["Colsof","Segmento 1","Auricular – diadema de comunicaciones 1.8","Microsoft","LifeChat LX-3000","https://www.microsoft.com/accessories/es-es/products/headsets/lifechat-lx-3000/jug-00003  "]
["COMPUTEL SYSTEM S.A.S.","Segmento 1","Auricular – diadema de comunicaciones 1.8","HEWLETT PACKARD","T1A67AA","http://www.hp.com/latam/CCE/2017/Accesorios%20HP.pdf"]
["Controles empresariales","Segmento 1","Auricular – diadema de comunicaciones 1.8","MICROSOFT"," LIFECHAT LX3000","https://www.microsoft.com/accessories/es-es/products/headsets/lifechat-lx-3000/jug-00003#specsColumns-testCarousel"]
["i3NET SAS","Segmento 1","Auricular – diadema de comunicaciones 1.8","HEWLETT PACKARD","T1A67AA","http://www.hp.com/latam/CCE/2017/Accesorios%20HP.pdf"]
["KEY MARKET SAS","Segmento 1","Auricular – diadema de comunicaciones 1.8","HEWLETT PACKARD","\"HP Stereo USB Headset  \nT1A67AA\"","http://www.hp.com/latam/CCE/2017/Accesorios%20HP.pdf\n"]
["MICROHARD S.A.S","Segmento 1","Auricular – diadema de comunicaciones 1.8","LOGITECH","H570e","http://www.logitech.com/es-es/product/h570e-headset "]
["Micronet","Segmento 1","Auricular – diadema de comunicaciones 1.8","HEWLETT PACKARD","HP Stereo USB Headset","http://www.hp.com/latam/CCE/2017/Accesorios%20HP.pdf"]
["Nexcom","Segmento 1","Auricular – diadema de comunicaciones 1.8","PLANTRONICS","BLACKWIRE 310","http://www.plantronics.com/lat/media/media-resources/literature/office_callcenter/blackwire-310-320-ps-es.pdf"]
["Oficomco","Segmento 1","Auricular – diadema de comunicaciones 1.8","JABRA","JABRA UC VOICE 150 MS MONO","http://www.jabra.com/products/wired_headsets/jabra_uc_voice__150_series/jabra_uc_voice_150_ms_mono"]
["Origin IT","Segmento 1","Auricular – diadema de comunicaciones 1.8","MICROSOFT"," 7YF-00001"," https://www.microsoft.com/accessories/es-es/business/lifechat-lx-4000-for-business/7yf-00001"]
["Pear Solutions","Segmento 1","Auricular – diadema de comunicaciones 1.8","JABRA","UC VOICE 150 Mono, USB MS","\nhttp://www.jabra.com.mx/Products/Wired_Headsets/Jabra_UC_VOICE__150_Series/Jabra_UC_VOICE_150_MS_mono \n"]
["PyP Systems","Segmento 1","Auricular – diadema de comunicaciones 1.8","JABRA","UC VOICE 150 Mono, USB MS","http://www.jabra.com.mx/Products/Wired_Headsets/Jabra_UC_VOICE__150_Series/Jabra_UC_VOICE_150_MS_mono"]
["Red computo","Segmento 1","Auricular – diadema de comunicaciones 1.8","MICROSOFT","LX3000","https://www.microsoft.com/accessories/es-es/products/headsets/lifechat-lx-3000/jug-00003\nhttps://www.microsoft.com/accessories/en-us/products/keyboards/natural-ergonomic-keyboard-4000/b2m-00012"]
["Selcomp Ingenieria S.A.S","Segmento 1","Auricular – diadema de comunicaciones 1.8","MICROSOFT","LifeChat LX-4000","https://www.microsoft.com/accessories/es-es/business/lifechat-lx-4000-for-business/7yf-00001 "]
["Sistetronics","Segmento 1","Auricular – diadema de comunicaciones 1.8","MICROSOFT","LIFE CHAT LX-4000","www.compumax.com.co/gobierno/colombiacompra"]
["SUMIMAS SAS","Segmento 1","Auricular – diadema de comunicaciones 1.8","HEWLETT PACKARD","HP Stereo USB Headset\nT1A67AA","http://www.hp.com/latam/CCE/2017/Accesorios%20HP.pdf"]
["Uniples","Segmento 1","Auricular – diadema de comunicaciones 1.8","HEWLETT PACKARD","HP Stereo USB Headset\nT1A67AA","http://www.hp.com/latam/CCE/2017/Accesorios%20HP.pdf "]
["UT CCE","Segmento 1","Auricular – diadema de comunicaciones 1.8","HEWLETT PACKARD","HP Stereo USB Headset  T1A67AA","http://www.hp.com/latam/CCE/2017/Accesorios%20HP.pdf"]
["Aconpiexpress","Segmento 1","Computador de escritorio 1.1","LENOVO","ThinkCentre M700 SFF\n","http://psref.lenovo.com/"]
["Colsof","Segmento 1","Computador de escritorio 1.1","DELL","Optiplex 3050 SFF","http://www.dell.com/co/empresas/p/optiplex-3050-desktop/pd?ref=PD_Family"]
["COMPUTEL SYSTEM S.A.S.","Segmento 1","Computador de escritorio 1.1","HEWLETT PACKARD","HP 705 SFF G3","http://www.hp.com/latam/CCE/2017/HP%20EliteDesk%20705%20SFF%201-1.pdf"]
["Controles empresariales","Segmento 1","Computador de escritorio 1.1","HEWLETT PACKARD","HP 705 SFF G3","http://www.hp.com/latam/CCE/2017/HP%20EliteDesk%20705%20SFF%201-1.pdf"]
["i3NET SAS","Segmento 1","Computador de escritorio 1.1","HEWLETT PACKARD","HP 705 SFF G3","http://www.hp.com/latam/CCE/2017/HP%20EliteDesk%20705%20SFF%201-1.pdf"]
["KEY MARKET SAS","Segmento 1","Computador de escritorio 1.1","HEWLETT PACKARD","HP 705 SFF G3","http://www.hp.com/latam/CCE/2017/HP%20EliteDesk%20705%20SFF%201-1.pdf "]
["MICROHARD S.A.S","Segmento 1","Computador de escritorio 1.1","DELL","Optiplex 3050 SFF","http://www.dell.com/co/empresas/p/optiplex-3050-desktop/pd?ref=PD_Family"]
["Micronet","Segmento 1","Computador de escritorio 1.1","HEWLETT PACKARD","HP 705 SFF G3","http://www.hp.com/latam/CCE/2017/HP%20EliteDesk%20705%20SFF%201-1.pdf "]
["Nexcom","Segmento 1","Computador de escritorio 1.1","LENOVO","ThinkCentre M700 SFF\n","http://psref.lenovo.com/Product/ThinkCentre_M700_SFF"]
["Oficomco","Segmento 1","Computador de escritorio 1.1","HEWLETT PACKARD","HP 705 SFF G3","http://www8.hp.com/co/es/products/desktops/product-detail.html?oid=10669599"]
["Origin IT","Segmento 1","Computador de escritorio 1.1","DELL","Optiplex 3050 SFF","http://www.dell.com/co/empresas/p/optiplex-3050-desktop/pd"]
["Pear Solutions","Segmento 1","Computador de escritorio 1.1","Pc Smart","PCSGOB150-C","http://www.pcsmart.com.co/index/index.php?id_product=115&controller=product"]
["PROINTECH COLOMBIA SAS","Segmento 1","Computador de escritorio 1.1","DELL","Optiplex 3050 SFF","http://www.dell.com/co/empresas/p/optiplex-3050-desktop/pd?ref=PD_Family"]
["PyP Systems","Segmento 1","Computador de escritorio 1.1","HEWLETT PACKARD","HP 705 SFF G3","http://www.hp.com/latam/CCE/2017/HP%20EliteDesk%20705%20SFF%201-1.pdf - http://h20195.www2.hp.com/v2/GetPDF.aspx/4aa6-5179spl.pdf"]
["Red computo","Segmento 1","Computador de escritorio 1.1","DELL","Optiplex 3050 SFF","www.dell.com.co"]
["Selcomp Ingenieria S.A.S","Segmento 1","Computador de escritorio 1.1","Compumax","Nogal Series 1040-801-0000","https://www.compumax.com.co/inicio/gobierno/colombiacompra"]
["Sistetronics","Segmento 1","Computador de escritorio 1.1","Compumax","Nogal Series 1040-801-0000","https://www.compumax.com.co/inicio/gobierno/colombiacompra"]
["SUMIMAS SAS","Segmento 1","Computador de escritorio 1.1","HEWLETT PACKARD","HP 705 SFF G3","http://www.hp.com/latam/CCE/2017/HP%20EliteDesk%20705%20SFF%201-1.pdf "]
["Uniples","Segmento 1","Computador de escritorio 1.1","HEWLETT PACKARD","HP 705 SFF G3","http://www.hp.com/latam/CCE/2017/HP%20EliteDesk%20705%20SFF%201-1.pdf "]
["UT CCE","Segmento 1","Computador de escritorio 1.1","HEWLETT PACKARD","HP 705 SFF G3","http://www.hp.com/latam/CCE/2017/HP%20EliteDesk%20705%20SFF%201-1.pdf "]
["Aconpiexpress","Segmento 1","Computador de escritorio 1.2","LENOVO","ThinkCentre M700 Tiny\n","http://psref.lenovo.com/"]
["Colsof","Segmento 1","Computador de escritorio 1.2","DELL","Optiplex 3050 MFF","http://www.dell.com/co/empresas/p/optiplex-3050-micro/pd?ref=PD_Family"]
["COMPUTEL SYSTEM S.A.S.","Segmento 1","Computador de escritorio 1.2","HEWLETT PACKARD","HP 705 DM G3","www.hp.com/latam/CCE/2017/HP%20EliteDesk%20705%20DM%201-2.pdf "]
["Controles empresariales","Segmento 1","Computador de escritorio 1.2","HEWLETT PACKARD","HP 705 DM G3","http://www.hp.com/latam/CCE/2017/HP%20EliteDesk%20705%20DM%201-2.pdf"]
["i3NET SAS","Segmento 1","Computador de escritorio 1.2","HEWLETT PACKARD","HP 705 DM G3","http://www.hp.com/latam/CCE/2017/HP%20EliteDesk%20705%20DM%201-2.pdf "]
["KEY MARKET SAS","Segmento 1","Computador de escritorio 1.2","HEWLETT PACKARD","HP 705 DM G3","http://www.hp.com/latam/CCE/2017/HP%20EliteDesk%20705%20DM%201-2.pdf "]
["MICROHARD S.A.S","Segmento 1","Computador de escritorio 1.2","DELL","Optiplex 3050 MFF","http://www.dell.com/co/empresas/p/optiplex-3050-micro/pd?ref=PD_Family"]
["Micronet","Segmento 1","Computador de escritorio 1.2","HEWLETT PACKARD","HP 705 DM G3","http://www.hp.com/latam/CCE/2017/HP%20EliteDesk%20705%20DM%201-2.pdf "]
["Nexcom","Segmento 1","Computador de escritorio 1.2","LENOVO","ThinkCentre M700 Tiny\n","http://psref.lenovo.com/Product/ThinkCentre_M700_Tiny"]
["Oficomco","Segmento 1","Computador de escritorio 1.2","HEWLETT PACKARD","HP 705 DM G3","http://www8.hp.com/co/es/products/desktops/product-detail.html?oid=10669600"]
["Origin IT","Segmento 1","Computador de escritorio 1.2","DELL","Optiplex 3050 MFF","http://www.dell.com/co/empresas/p/optiplex-3050-micro/pd"]
["Pear Solutions","Segmento 1","Computador de escritorio 1.2","Pc Smart","PCSGOB250-A","http://www.pcsmart.com.co/index/index.php?id_product=116&controller=product\n"]
["PROINTECH COLOMBIA SAS","Segmento 1","Computador de escritorio 1.2","DELL","Optiplex 3050 MFF","http://www.dell.com/co/empresas/p/optiplex-3050-micro/pd?ref=PD_Family"]
["PyP Systems","Segmento 1","Computador de escritorio 1.2","HEWLETT PACKARD","HP 705 DM G3","http://www.hp.com/latam/CCE/2017/HP%20EliteDesk%20705%20SFF%201-1.pdf - http://h20195.www2.hp.com/v2/GetPDF.aspx/4aa6-5179spl.pdf"]
["Red computo","Segmento 1","Computador de escritorio 1.2","DELL","Optiplex 3050 MFF","www.dell.com.co"]
["Selcomp Ingenieria S.A.S","Segmento 1","Computador de escritorio 1.2","Compumax","Olmos Series 1033-800-0000","https://www.compumax.com.co/inicio/gobierno/colombiacompra"]
["Sistetronics","Segmento 1","Computador de escritorio 1.2","Compumax"," DRACO-RZ3-0010","https://www.compumax.com.co/archivos/cce/escritorio/etp12/etp12AMD.pdf"]
["SUMIMAS SAS","Segmento 1","Computador de escritorio 1.2","HEWLETT PACKARD","HP 705 DM G3","http://www.hp.com/latam/CCE/2017/HP%20EliteDesk%20705%20DM%201-2.pdf "]
["Uniples","Segmento 1","Computador de escritorio 1.2","HEWLETT PACKARD","HP 705 DM G3","http://www.hp.com/latam/CCE/2017/HP%20EliteDesk%20705%20DM%201-2.pdf "]
["UT CCE","Segmento 1","Computador de escritorio 1.2","HEWLETT PACKARD","HP 705 DM G3","http://www.hp.com/latam/CCE/2017/HP%20EliteDesk%20705%20DM%201-2.pdf "]
["Aconpiexpress","Segmento 1","Computador de escritorio 1.4","LENOVO","ThinkCentre M800Z AIO\n","http://psref.lenovo.com/"]
["Colsof","Segmento 1","Computador de escritorio 1.4","DELL","Optiplex 5250 AIO","http://www.dell.com/co/empresas/p/optiplex-5250-aio/pd?ref=PD_OC"]
["COMPUTEL SYSTEM S.A.S.","Segmento 1","Computador de escritorio 1.4","HEWLETT PACKARD","HP ProOne 600 G2","www.hp.com/latam/CCE/2017/HP%20ProOne%20600%20AiO%20NT%201-4.pdf"]
["Controles empresariales","Segmento 1","Computador de escritorio 1.4","HEWLETT PACKARD","HP ProOne 600 G2","http://www.hp.com/latam/CCE/2017/HP%20ProOne%20600%20AiO%20NT%201-4.pdf"]
["i3NET SAS","Segmento 1","Computador de escritorio 1.4","HEWLETT PACKARD","HP ProOne 600 G2","http://www.hp.com/latam/CCE/2017/HP%20ProOne%20600%20AiO%20NT%201-4.pdf"]
["KEY MARKET SAS","Segmento 1","Computador de escritorio 1.4","HEWLETT PACKARD","HP ProOne 600 G2","http://www.hp.com/latam/CCE/2017/HP%20ProOne%20600%20AiO%20NT%201-4.pdf"]
["MICROHARD S.A.S","Segmento 1","Computador de escritorio 1.4","DELL","Optiplex 5250 AIO","http://www.dell.com/co/empresas/p/optiplex-5250-aio/pd?ref=PD_OC"]
["Micronet","Segmento 1","Computador de escritorio 1.4","HEWLETT PACKARD","HP ProOne 600 G2","http://www.hp.com/latam/CCE/2017/HP%20ProOne%20600%20AiO%20NT%201-4.pdf"]
["Nexcom","Segmento 1","Computador de escritorio 1.4","LENOVO","ThinkCentre M810z AIO\n","http://psref.lenovo.com/Product/ThinkCentre/ThinkCentre_M810z_AIO"]
["Oficomco","Segmento 1","Computador de escritorio 1.4","HEWLETT PACKARD","HP ProOne 600 G2","http://www8.hp.com/es/es/products/desktops/product-detail.html?oid=7633348"]
["Origin IT","Segmento 1","Computador de escritorio 1.4","DELL","Optiplex 5250 AIO","http://www.dell.com/co/empresas/p/optiplex-5250-aio/pd"]
["Pear Solutions","Segmento 1","Computador de escritorio 1.4","Pc Smart","AIOGOB2217-A","http://www.pcsmart.com.co/index/index.php?id_product=118&controller=product"]
["PROINTECH COLOMBIA SAS","Segmento 1","Computador de escritorio 1.4","DELL","Optiplex 5250 AIO","http://www.dell.com/co/empresas/p/optiplex-5250-aio/pd?ref=PD_OC"]
["PyP Systems","Segmento 1","Computador de escritorio 1.4","HEWLETT PACKARD","HP ProOne 600 G2","http://www.hp.com/latam/CCE/2017/HP%20ProOne%20600%20AiO%20NT%201-4.pdf"]
["Red computo","Segmento 1","Computador de escritorio 1.4","DELL","Optiplex 5250 AIO","www.dell.com.co"]
["Selcomp Ingenieria S.A.S","Segmento 1","Computador de escritorio 1.4","Compumax","Unno Max Series 3040-800-0000","https://www.compumax.com.co/inicio/gobierno/colombiacompra"]
["Sistetronics","Segmento 1","Computador de escritorio 1.4","Compumax","SATURNO-RZ3-0002 ","https://www.compumax.com.co/archivos/cce/AIO/f_etp1.4.pdf"]
["SUMIMAS SAS","Segmento 1","Computador de escritorio 1.4","HEWLETT PACKARD","HP ProOne 600 G2","http://www.hp.com/latam/CCE/2017/HP%20ProOne%20600%20AiO%20NT%201-4.pdf"]
["Uniples","Segmento 1","Computador de escritorio 1.4","HEWLETT PACKARD","HP ProOne 600 G2","http://www.hp.com/latam/CCE/2017/HP%20ProOne%20600%20AiO%20NT%201-4.pdf"]
["UT CCE","Segmento 1","Computador de escritorio 1.4","HEWLETT PACKARD","HP ProOne 600 G2","http://www.hp.com/latam/CCE/2017/HP%20ProOne%20600%20AiO%20NT%201-4.pdf"]
["Aconpiexpress","Segmento 1","Computador de escritorio 1.6","LENOVO","ThinkCentre M710 SFF\n","http://psref.lenovo.com/"]
["Colsof","Segmento 1","Computador de escritorio 1.6","DELL","Optiplex 3050 SFF","http://www.dell.com/co/empresas/p/optiplex-3050-desktop/pd?ref=PD_Family"]
["COMPUTEL SYSTEM S.A.S.","Segmento 1","Computador de escritorio 1.6","HEWLETT PACKARD","HP ProDesk 400 SFF","http://www.hp.com/latam/CCE/2017/HP%20ProDesk%20400%20SFF%201-6.pdf"]
["Controles empresariales","Segmento 1","Computador de escritorio 1.6","HEWLETT PACKARD","HP ProDesk 400 SFF","http://www.hp.com/latam/CCE/2017/HP%20ProDesk%20400%20SFF%201-6.pdf "]
["i3NET SAS","Segmento 1","Computador de escritorio 1.6","HEWLETT PACKARD","HP ProDesk 400 SFF","http://www.hp.com/latam/CCE/2017/HP%20ProDesk%20400%20SFF%201-6.pdf"]
["KEY MARKET SAS","Segmento 1","Computador de escritorio 1.6","HEWLETT PACKARD","HP ProDesk 400 SFF","http://www.hp.com/latam/CCE/2017/HP%20ProDesk%20400%20SFF%201-6.pdf "]
["MICROHARD S.A.S","Segmento 1","Computador de escritorio 1.6","DELL","Optiplex 3050 SFF","http://www.dell.com/co/empresas/p/optiplex-3050-desktop/pd?ref=PD_Family"]
["Micronet","Segmento 1","Computador de escritorio 1.6","HEWLETT PACKARD","HP ProDesk 400 SFF","http://www.hp.com/latam/CCE/2017/HP%20ProDesk%20400%20SFF%201-6.pdf "]
["Nexcom","Segmento 1","Computador de escritorio 1.6","LENOVO","ThinkCentre M710 SFF\n","http://psref.lenovo.com/Product/ThinkCentre_M710_SFF"]
["Oficomco","Segmento 1","Computador de escritorio 1.6","HEWLETT PACKARD","HP ProDesk 400 SFF","http://h20195.www2.hp.com/v2/GetDocument.aspx?docname=4AA6-9226ENUC&doctype=data%20sheet&doclang=EN_US&searchquery=&cc=us&lc=en"]
["Origin IT","Segmento 1","Computador de escritorio 1.6","DELL","Optiplex 3050 SFF","http://www.dell.com/co/empresas/p/optiplex-3050-desktop/pd"]
["Pear Solutions","Segmento 1","Computador de escritorio 1.6","Pc Smart","PCSGOB270-A"," http://www.pcsmart.com.co/index/index.php?id_product=120&controller=product"]
["PROINTECH COLOMBIA SAS","Segmento 1","Computador de escritorio 1.6","DELL","Optiplex 3050 SFF","http://www.dell.com/co/empresas/p/optiplex-3050-desktop/pd?ref=PD_Family"]
["PyP Systems","Segmento 1","Computador de escritorio 1.6","HEWLETT PACKARD","HP ProDesk 400 SFF","http://www.hp.com/latam/CCE/2017/HP%20ProDesk%20400%20SFF%201-6.pdf - http://h20195.www2.hp.com/v2/GetPDF.aspx/4aa6-3901spl.pdf"]
["Red computo","Segmento 1","Computador de escritorio 1.6","DELL","Optiplex 3050 SFF","www.dell.com.co"]
["Selcomp Ingenieria S.A.S","Segmento 1","Computador de escritorio 1.6","Compumax","Nogal Series 1040-802-0000","https://www.compumax.com.co/inicio/gobierno/colombiacompra"]
["Sistetronics","Segmento 1","Computador de escritorio 1.6","Compumax","DRACO-RZ5-0001","https://www.compumax.com.co/archivos/cce/escritorio/f_etp1.6.pdf"]
["SUMIMAS SAS","Segmento 1","Computador de escritorio 1.6","HEWLETT PACKARD","HP ProDesk 400 SFF","http://www.hp.com/latam/CCE/2017/HP%20ProDesk%20400%20SFF%201-6.pdf "]
["Uniples","Segmento 1","Computador de escritorio 1.6","HEWLETT PACKARD","HP ProDesk 400 SFF","http://www.hp.com/latam/CCE/2017/HP%20ProDesk%20400%20SFF%201-6.pdf "]
["UT CCE","Segmento 1","Computador de escritorio 1.6","HEWLETT PACKARD","HP ProDesk 400 SFF","http://www.hp.com/latam/CCE/2017/HP%20ProDesk%20400%20SFF%201-6.pdf "]
["Aconpiexpress","Segmento 1","Computador de escritorio Linux 1.3","LENOVO","ThinkCentre M715 Tiny\n","http://psref.lenovo.com/"]
["Colsof","Segmento 1","Computador de escritorio Linux 1.3","DELL","Optiplex 3050 MFF","http://www.dell.com/co/empresas/p/optiplex-3050-micro/pd?ref=PD_Family"]
["COMPUTEL SYSTEM S.A.S.","Segmento 1","Computador de escritorio Linux 1.3","HEWLETT PACKARD","EliteDesk 705 Desktop Mini ","www.hp.com/latam/CCE/2017/HP%20EliteDesk%20705%20DM%201-3.pdf"]
["Controles empresariales","Segmento 1","Computador de escritorio Linux 1.3","HEWLETT PACKARD","EliteDesk 705 Desktop Mini ","http://www.hp.com/latam/CCE/2017/HP%20EliteDesk%20705%20DM%201-3.pdf"]
["i3NET SAS","Segmento 1","Computador de escritorio Linux 1.3","HEWLETT PACKARD","EliteDesk 705 Desktop Mini ","http://www.hp.com/latam/CCE/2017/HP%20EliteDesk%20705%20DM%201-3.pdf"]
["KEY MARKET SAS","Segmento 1","Computador de escritorio Linux 1.3","HEWLETT PACKARD","EliteDesk 705 Desktop Mini ","http://www.hp.com/latam/CCE/2017/HP%20EliteDesk%20705%20DM%201-3.pdf"]
["MICROHARD S.A.S","Segmento 1","Computador de escritorio Linux 1.3","DELL","Optiplex 3050 MFF","http://www.dell.com/co/empresas/p/optiplex-3050-micro/pd?ref=PD_Family"]
["Micronet","Segmento 1","Computador de escritorio Linux 1.3","HEWLETT PACKARD","EliteDesk 705 Desktop Mini ","http://www.hp.com/latam/CCE/2017/HP%20EliteDesk%20705%20DM%201-3.pdf"]
["Nexcom","Segmento 1","Computador de escritorio Linux 1.3","LENOVO","ThinkCentre M715 Tiny\n","http://psref.lenovo.com/Product/ThinkCentre_M715_Tiny"]
["Oficomco","Segmento 1","Computador de escritorio Linux 1.3","HEWLETT PACKARD","EliteDesk 705 Desktop Mini ","http://www8.hp.com/co/es/products/desktops/product-detail.html?oid=10669600"]
["Origin IT","Segmento 1","Computador de escritorio Linux 1.3","DELL","Optiplex 3050 MFF","http://www.dell.com/co/empresas/p/optiplex-3050-desktop/pd"]
["Pear Solutions","Segmento 1","Computador de escritorio Linux 1.3","Pc Smart","PCSGOB250-L","http://www.pcsmart.com.co/index/index.php?id_product=117&controller=product"]
["PROINTECH COLOMBIA SAS","Segmento 1","Computador de escritorio Linux 1.3","DELL","Optiplex 3050 MFF","http://www.dell.com/co/empresas/p/optiplex-3050-micro/pd?ref=PD_Family"]
["PyP Systems","Segmento 1","Computador de escritorio Linux 1.3","HEWLETT PACKARD","EliteDesk 705 Desktop Mini ","http://www.hp.com/latam/CCE/2017/HP%20EliteDesk%20705%20SFF%201-1.pdf - http://h20195.www2.hp.com/v2/GetPDF.aspx/4aa6-5179spl.pdf"]
["Red computo","Segmento 1","Computador de escritorio Linux 1.3","DELL","Optiplex 3050 MFF","www.dell.com.co"]
["Selcomp Ingenieria S.A.S","Segmento 1","Computador de escritorio Linux 1.3","Compumax","Olmos Series 1033-800-0000","https://www.compumax.com.co/inicio/gobierno/colombiacompra"]
["Sistetronics","Segmento 1","Computador de escritorio Linux 1.3","Compumax","Olmos Series 1033-800-0000","www.compumax.com.co/gobierno/colombiacompra"]
["SUMIMAS SAS","Segmento 1","Computador de escritorio Linux 1.3","HEWLETT PACKARD","EliteDesk 705 Desktop Mini ","http://www.hp.com/latam/CCE/2017/HP%20EliteDesk%20705%20DM%201-3.pdf"]
["Uniples","Segmento 1","Computador de escritorio Linux 1.3","HEWLETT PACKARD","EliteDesk 705 Desktop Mini ","http://www.hp.com/latam/CCE/2017/HP%20EliteDesk%20705%20DM%201-3.pdf"]
["UT CCE","Segmento 1","Computador de escritorio Linux 1.3","HEWLETT PACKARD","EliteDesk 705 Desktop Mini ","http://www.hp.com/latam/CCE/2017/HP%20EliteDesk%20705%20DM%201-3.pdf"]
["Aconpiexpress","Segmento 1","Dispositivo de almacenamiento externo 1.10","SEAGATE","STEB3000100","http://www.seagate.com/www-content/product-content/expansion-fam/expansion-external/en-us/docs/expansion-desktop-hard-drive-ds1843-2-1502es.pdf"]
["Colsof","Segmento 1","Dispositivo de almacenamiento externo 1.10","Seagate","Backup Plus 3TB","http://www.seagate.com/la/es/consumer/backup/backup-plus-desk/  "]
["COMPUTEL SYSTEM S.A.S.","Segmento 1","Dispositivo de almacenamiento externo 1.10","ADATA","HM900","www.adata.com/es/feature/362"]
["Controles empresariales","Segmento 1","Dispositivo de almacenamiento externo 1.10","Seagate","Expansion desktop drive STEB3000100","http://www.seagate.com/www-content/product-content/expansion-fam/expansion-external/en-us/docs/expansion-desktop-hard-drive-ds1843-2-1502us.pdf"]
["i3NET SAS","Segmento 1","Dispositivo de almacenamiento externo 1.10","TOSHIBA","CANVIO CONECT II","http://www.toshiba.es/hard-drives/portable/canvio-connect-II/"]
["KEY MARKET SAS","Segmento 1","Dispositivo de almacenamiento externo 1.10","SEAGATE","STDR4000100","http://www.seagate.com/www-content/datasheets/pdfs/bup-portable-ds1853-2-1512DS1853-2-1512-AMER-es_LA.pdf "]
["MICROHARD S.A.S","Segmento 1","Dispositivo de almacenamiento externo 1.10","WD","MY PASSPORT","https://www.wdc.com/en-um/products/portable-storage/my-passport.html#WDBYFT0030BWT "]
["Micronet","Segmento 1","Dispositivo de almacenamiento externo 1.10","ADATA","M900","http://www.adata-group.com/es/feature/362"]
["Nexcom","Segmento 1","Dispositivo de almacenamiento externo 1.10","SEAGATE"," Backup Plus Slim Portable STDR4000100","http://www.seagate.com/www-content/datasheets/pdfs/bup-portable-ds1853-2-1512DS1853-3-1608LA-es_LA.pdf"]
["Oficomco","Segmento 1","Dispositivo de almacenamiento externo 1.10","TRANSCEND","StoreJet® 25H3","https://es.transcend-info.com/Products/No-324"]
["Origin IT","Segmento 1","Dispositivo de almacenamiento externo 1.10","TOSHIBA","HDTB330XK3CA"," http://support.toshiba.com/support/modelHome?freeText=1200009826"]
["Pear Solutions","Segmento 1","Dispositivo de almacenamiento externo 1.10","Transcend","StoreJet® 25H3","https://es.transcend-info.com/Products/No-324"]
["PROINTECH COLOMBIA SAS","Segmento 1","Dispositivo de Almacenamiento externo 1.10","TOSHIBA","Canvio Connect II 3TB Negro","http://www.toshiba.es/hard-drives/portable/canvio-connect-II/hdtc830ek3ca/"]
["PyP Systems","Segmento 1","Dispositivo de almacenamiento externo 1.10","TRANCEND","StoreJet® 25H3/3TB","https://es.transcend-info.com/Products/No-324"]
["Red computo","Segmento 1","Dispositivo de almacenamiento externo 1.10","SEAGATE","STFM3000100","http://www.seagate.com/la/es/consumer/backup/backup-plus-desk/"]
["Selcomp Ingenieria S.A.S","Segmento 1","Dispositivo de almacenamiento externo 1.10","WD","MY PASSPORT","https://www.wdc.com/en-um/products/portable-storage/my-passport.html#WDBYFT0030BWT "]
["Sistetronics","Segmento 1","Dispositivo de almacenamiento externo 1.10","WESTER DIGITAL"," MY PASSPORT \nALMACENAMIENTO PORTÁTIL","www.compumax.com.co/gobierno/colombiacompra"]
["SUMIMAS SAS","Segmento 1","Dispositivo de almacenamiento externo 1.10","TRANSCEND","StoreJet® 25H3 3TB","https://es.transcend-info.com/Products/No-324"]
["Uniples","Segmento 1","Dispositivo de almacenamiento externo 1.10","SEAGATE ","Seagate Backup Plus 4TB USB 3.0","http://www.seagate.com/www-content/datasheets/pdfs/bup-portable-ds1853-2-1512DS1853-3-1608LA-es_LA.pdf "]
["UT CCE","Segmento 1","Dispositivo de almacenamiento externo 1.10","SEAGATE","BACKUP PLUS 3TB","http://www.seagate.com/www-content/datasheets/pdfs/bup-dt-no-hub-amerDS1757-7-1605LA-es_LA.pdf"]
["Aconpiexpress","Segmento 1","Parlantes 1.9","GENIUS","SP-U115"]
["Colsof","Segmento 1","Parlantes 1.9","Genius","SP-U120 ","http://www.genius-europe.com/en/produktdetail.php?ID2=99&ID=29&ID3=1026"]
["COMPUTEL SYSTEM S.A.S.","Segmento 1","Parlantes 1.9","GENIUS","SP-U115","http://mx.geniusnet.com/product/sp-u115"]
["Controles empresariales","Segmento 1","Parlantes 1.9","HEWLETT PACKARD","USB Business Speakers","http://h20195.www2.hp.com/v2/GetDocument.aspx?docname=c04952023&doctype=quickspecs&doclang=EN_US&searchquery=&cc=lamerica_nsc_cnt_amer&lc=es"]
["i3NET SAS","Segmento 1","Parlantes 1.9","HEWLETT PACKARD","N3R89AA","http://www.hp.com/latam/CCE/2017/Accesorios%20HP.pdf"]
["KEY MARKET SAS","Segmento 1","Parlantes 1.9","HEWLETT PACKARD","N3R89AA HP USB Thin Speakers V2","http://www.hp.com/latam/CCE/2017/Accesorios%20HP.pdf"]
["MICROHARD S.A.S","Segmento 1","Parlantes 1.9","GENIUS","SP-L160","http://co.geniusnet.com/product/sp-l160 "]
["Micronet","Segmento 1","Parlantes 1.9","HEWLETT PACKARD","HP USB Thin Speakers V2","http://www.hp.com/latam/CCE/2017/Accesorios%20HP.pdf"]
["Nexcom","Segmento 1","Parlantes 1.9","XTECH","XTS-120","http://www.xtechamericas.com/co/xtech-xts120-usb-speakers"]
["Oficomco","Segmento 1","Parlantes 1.9","GENIUS","SPEAKER SP-U 115 ","http://mx.geniusnet.com/product/sp-u115"]
["Origin IT","Segmento 1","Parlantes 1.9","GENIUS","SP-U120"," http://us.geniusnet.com/product/sp-u120"]
["Pear Solutions","Segmento 1","Parlantes 1.9","PC Smart","ACSPCSPLT17-Series","http://www.pcsmart.com.co/index/index.php?id_product=122&controller=product"]
["PROINTECH COLOMBIA SAS","Segmento 1","Parlantes 1.9","GENIUS","SP-U120","http://co.geniusnet.com/product/sp-u120"]
["PyP Systems","Segmento 1","Parlantes 1.9","STARTEC","ST-SP-27U","https://www.mystartec.com/accesorios-pc"]
["Red computo","Segmento 1","Parlantes 1.9","GENIUS","SP-U115","http://mx.geniusnet.com/product/sp-u115"]
["Selcomp Ingenieria S.A.S","Segmento 1","Parlantes 1.9","COMPUMAX","SPK","https://www.compumax.com.co/inicio/gobierno/colombiacompra"]
["Sistetronics","Segmento 1","Parlantes 1.9","COMPUMAX","SPK","www.compumax.com.co/gobierno/colombiacompra"]
["SUMIMAS SAS","Segmento 1","Parlantes 1.9","HEWLETT PACKARD","HP USB Thin Speakers V2\nN3R89AA","http://www.hp.com/latam/CCE/2017/Accesorios%20HP.pdf"]
["Uniples","Segmento 1","Parlantes 1.9","HEWLETT PACKARD","HP USB Thin Speakers V2\nN3R89AA","http://www.hp.com/latam/CCE/2017/Accesorios%20HP.pdf "]
["UT CCE","Segmento 1","Parlantes 1.9","HEWLETT PACKARD","N3R89AA HP USB Thin Speakers V2","http://www.hp.com/latam/CCE/2017/Accesorios%20HP.pdf"]
["Aconpiexpress","Segmento 1","Replicador de puertos 1.11","TARGUS","DOCK120USZ-50","http://www.targus.com/es/"]
["Colsof","Segmento 1","Replicador de puertos 1.11","Targus","Docking ST Universal USB","http://www.targus.com/us/2k-universal-docking-station "]
["COMPUTEL SYSTEM S.A.S.","Segmento 1","Replicador de puertos 1.11","HEWLETT PACKARD","Y4H06AA","http://www.hp.com/latam/CCE/2017/Accesorios%20HP.pdf"]
["Controles empresariales","Segmento 1","Replicador de puertos 1.11","HEWLETT PACKARD","3005pr USB3 Port \nReplicator","http://h20195.www2.hp.com/v2/GetDocument.aspx?docname=4AA6-7571ENW&doctype=data%20sheet&doclang=EN_US&searchquery=&cc=lamerica_nsc_cnt_amer&lc=es"]
["i3NET SAS","Segmento 1","Replicador de puertos 1.11","HEWLETT PACKARD","3005PR","http://www.hp.com/latam/CCE/2017/Accesorios%20HP.pdf"]
["KEY MARKET SAS","Segmento 1","Replicador de puertos 1.11","HEWLETT PACKARD","HP 3005pr USB 3.0 Port Replicator (Y4H06AA)","http://www.hp.com/latam/CCE/2017/Accesorios%20HP.pdf"]
["MICROHARD S.A.S","Segmento 1","Replicador de puertos 1.11","KENSINGTON","SD3500v","https://www.kensington.com/es/es/4491/k33972eu/replicador-de-puertos-universal-usb-30-sd3500v"]
["Micronet","Segmento 1","Replicador de puertos 1.11","HEWLETT PACKARD","HP 3005pr USB 3.0 Port Replicator","http://www.hp.com/latam/CCE/2017/Accesorios%20HP.pdf"]
["Nexcom","Segmento 1","Replicador de puertos 1.11","WINSTAR","WINSTAR DOCKING 3.0","http://www.win-star.com/eshop/index.php"]
["Oficomco","Segmento 1","Replicador de puertos 1.11","HEWLETT PACKARD","HP 3005pr USB3 Port Replicator","http://h20195.www2.hp.com/v2/default.aspx?cc=za&lc=en&oid=13316214"]
["Origin IT","Segmento 1","Replicador de puertos 1.11","DELL","D3100"," http://accessories.la.dell.com/sna/productdetail.aspx?c=co&l=es&s=dhs&cs=codhs1&sku=452-bbpg"]
["Pear Solutions","Segmento 1","Replicador de puertos 1.11","Targus","ACP71USZ","http://www.targus.com/mx/product_details.asp?sku=ACP71USZ"]
["PROINTECH COLOMBIA SAS","Segmento 1","Replicador de puertos 1.11","TARGUS","ACP71USZ","http://www.targus.com/mx/product_details.asp?sku=ACP71USZ"]
["PyP Systems","Segmento 1","Replicador de puertos 1.11","HEWLETT PACKARD","HP 3005pr USB3 Port Replicator","http://www.hp.com/latam/CCE/2017/Accesorios%20HP.pdf"]
["Red computo","Segmento 1","Replicador de puertos 1.11","TARGUS","DOCK120USZ","http://www.targus.com/us/2k-universal-docking-station"]
["Selcomp Ingenieria S.A.S","Segmento 1","Replicador de puertos 1.11","COMPUMAX","Replicador de Puertos","https://www.compumax.com.co/inicio/gobierno/colombiacompra"]
["Sistetronics","Segmento 1","Replicador de puertos 1.11","COMPUMAX","Replicador de Puertos","www.compumax.com.co/gobierno/colombiacompra"]
["SUMIMAS SAS","Segmento 1","Replicador de puertos 1.11","HEWLETT PACKARD","HP 3005pr USB 3.0 Port Replicator\nY4H06AA","http://www.hp.com/latam/CCE/2017/Accesorios%20HP.pdf"]
["Uniples","Segmento 1","Replicador de puertos 1.11","HEWLETT PACKARD","HP 3005pr USB 3.0 Port Replicator\n(Y4H06AA)","http://www.hp.com/latam/CCE/2017/Accesorios%20HP.pdf "]
["UT CCE","Segmento 1","Replicador de puertos 1.11","HEWLETT PACKARD","HP 3005pr USB 3.0 Port Replicator (Y4H06AA)","http://www.hp.com/latam/CCE/2017/Accesorios%20HP.pdf"]
["Aconpiexpress","Segmento 1","Teclado y mouse alámbrico 1.7","GENIUS\nMICROSOFT","KM-130\nKeyboard 4000","https://www.microsoft.com/accessories/en-us/products/keyboards/natural-ergonomic-keyboard-4000/b2m-00012"]
["Colsof","Segmento 1","Teclado y mouse alámbrico 1.7","Microsoft\nClip Xtreme","* Natural Ergonomic Keyboard 4000 \n* KMO-104\n","https://www.microsoft.com/accessories/en-us/products/keyboards/natural-ergonomic-keyboard-4000/b2m-00012\nhttp://klipxtreme.com/optical-mouse-usb-connection-1266 "]
["COMPUTEL SYSTEM S.A.S.","Segmento 1","Teclado y mouse alámbrico 1.7","HEWLETT PACKARD"," T4E63AA","http://www.hp.com/latam/CCE/2017/Accesorios%20HP.pdf"]
["Controles empresariales","Segmento 1","Teclado y mouse alámbrico 1.7","HEWLETT PACKARD","Slim USB Keyboard and Mouse","https://www02.cp-static.com/objects/pdf/c/c2d/1349660179_1_toetsenborden-hp-slim-usb-keyboard-mouse-t6t83aab13.pdf"]
["i3NET SAS","Segmento 1","Teclado y mouse alámbrico 1.7","HEWLETT PACKARD","T4E63AA#ABM","http://www.hp.com/latam/CCE/2017/Accesorios%20HP.pdf"]
["KEY MARKET SAS","Segmento 1","Teclado y mouse alámbrico 1.7","HEWLETT PACKARD","\"HP USB Slim Business KBD, Mouse and Mousepad\nT4E63AA#ABM\"\n","http://www.hp.com/latam/CCE/2017/Accesorios%20HP.pdf "]
["MICROHARD S.A.S","Segmento 1","Teclado y mouse alámbrico 1.7","LOGITECH","MK-120","http://www.logitech.com/es-roam/product/desktop-mk120 "]
["Micronet","Segmento 1","Teclado y mouse alámbrico 1.7","HEWLETT PACKARD","HP USB Slim Business KBD, Mouse and Mousepad","http://www.hp.com/latam/CCE/2017/Accesorios%20HP.pdf"]
["Nexcom","Segmento 1","Teclado y mouse alámbrico 1.7","LENOVO","4X30L79915","http://shop.lenovo.com/SEUILibrary/controller/e/pyweb/LenovoPortal/es_PY/catalog.workflow:item.detail?hide_menu_area=true&GroupID=460&Code=4X30L79915"]
["Oficomco","Segmento 1","Teclado y mouse alámbrico 1.7","STAR TEC","COMBO TECLADO MM STAR TEC EK2818 USB MULTIMEDIA NEGRO MOUSE STAR TEC OPTICO USB STMO550 NEGRO BLISTER","https://www.mystartec.com/teclados-y-mouse"]
["Origin IT","Segmento 1","Teclado y mouse alámbrico 1.7","DELL"," KB522/MS116"," http://accessories.euro.dell.com/sna/PopupProductDetail.aspx?c=es&l=es&cs=esbsdt1&sku=580-17663&price=0"]
["Pear Solutions","Segmento 1","Teclado y mouse alámbrico 1.7","PC Smart","Pcsmart ACSPCSK&M17-Series","http://www.pcsmart.com.co/index/index.php?id_product=121&controller=product"]
["PROINTECH COLOMBIA SAS","Segmento 1","Teclado y mouse alámbrico 1.7","MICROSOFT","L5V-00004","https://www.microsoft.com/accessories/es-xl/products/keyboards/sculpt-ergonomic-desktop/l5v-00004"]
["PyP Systems","Segmento 1","Teclado y mouse alámbrico 1.7","STAR TEC","STMO618 y TEC EK-2818","https://www.mystartec.com/accesorios-pc"]
["Red computo","Segmento 1","Teclado y mouse alámbrico 1.7","MOUSE: GENIUS TECLADO: MICROSOFT","MOUSE: DX-150X TECLADO: NATURAL 4000","http://aes.geniusnet.com/product/dx-150x"]
["Selcomp Ingenieria S.A.S","Segmento 1","Teclado y mouse alámbrico 1.7","COMPUMAX","KeyBoard CMAX\nMouse CMAX","https://www.compumax.com.co/inicio/gobierno/colombiacompra"]
["Sistetronics","Segmento 1","Teclado y mouse alámbrico 1.7","COMPUMAX","Key board Cmax / Mouse Cmax","www.compumax.com.co/gobierno/colombiacompra"]
["SUMIMAS SAS","Segmento 1","Teclado y mouse alámbrico 1.7","HEWLETT PACKARD","HP USB Slim Business KBD, Mouse and\nMousepad (T4E63AA#ABM)","http://www.hp.com/latam/CCE/2017/Accesorios%20HP.pdf"]
["Uniples","Segmento 1","Teclado y mouse alámbrico 1.7","HEWLETT PACKARD","HP USB Slim Business KBD, Mouse and\nMousepad (T4E63AA#ABM)\n","http://www.hp.com/latam/CCE/2017/Accesorios%20HP.pdf "]
["UT CCE","Segmento 1","Teclado y mouse alámbrico 1.7","HEWLETT PACKARD","HP USB Slim Business KBD, Mouse and Mousepad y T4E63AA#ABM","http://www.hp.com/latam/CCE/2017/Accesorios%20HP.pdf"]
["Aconpiexpress","Segmento 2","Estación de trabajo 2.1","Lenovo","P410","http://psref.lenovo.com/"]
["Colsof","Segmento 2","Estación de trabajo 2.1","DELL","T5810","http://www.dell.com/co/empresas/p/precision-t5810-workstation/pd?oc=cup5810w7p&ref=PD_OC"]
["COMPUTEL SYSTEM S.A.S.","Segmento 2","Estación de trabajo 2.1","HEWLETT PACKARD","Z440","http://www.hp.com/latam/CCE/2017/HP%20Z440%20WORKSTATION%202-1.pdf"]
["Comware","Segmento 2","Estación de trabajo 2.1","DELL","T5810","http://www.dell.com/co/empresas/p/precision-t5810-workstation/pd?oc=cup5810w7p&ref=PD_OC"]
["i3NET SAS","Segmento 2","Estación de trabajo 2.1","HEWLETT PACKARD","Z440","http://www.hp.com/latam/CCE/2017/HP%20Z440%20WORKSTATION%202-1.pdf"]
["KEY MARKET SAS","Segmento 2","Estación de trabajo 2.1","HEWLETT PACKARD","Z440","http://www.hp.com/latam/CCE/2017/HP%20Z440%20WORKSTATION%202-1.pdf"]
["MICROHARD S.A.S","Segmento 2","Estación de trabajo 2.1","DELL","Precision T5810","http://www.dell.com/co/empresas/p/precision-t5810-workstation/pd?oc=cup5810w7p&ref=PD_OC"]
["Micronet","Segmento 2","Estación de trabajo 2.1","HEWLETT PACKARD","HP Z440","http://www.hp.com/latam/CCE/2017/HP%20Z440%20WORKSTATION%202-1.pdf"]
["Nexcom","Segmento 2","Estación de trabajo 2.1","Lenovo","THINKSTATION P410","http://psref.lenovo.com/Product/ThinkStation_P410"]
["OFIBOD LTDA ","Segmento 2","Estación de trabajo 2.1","DELL","T5810","http://www.dell.com/co/empresas/p/precision-t5810-workstation/pd?oc=cup5810w7p&ref=PD_OC"]
["Origin IT","Segmento 2","Estación de trabajo 2.1","DELL","T5810","http://www.dell.com/co/empresas/p/precision-t5810-workstation/pd?oc=cup5810w7p"]
["Pear Solutions","Segmento 2","Estación de trabajo 2.1","Lenovo","Thinkstation  P410","http://www.lenovo.com/shop/emea/content/pdf/ThinkStation/P410/P410_DS_ES.pdf"]
["PROINTECH COLOMBIA SAS","Segmento 2","Estación de trabajo 2.1","DELL","Precision T5810","http://www.dell.com/co/empresas/p/precision-t5810-workstation/pd?oc=cup5810w7p&ref=PD_OC"]
["Red computo","Segmento 2","Estación de trabajo 2.1","dell","PRECISION T5810","www.dell.com.co"]
["Sistetronics","Segmento 2","Estación de trabajo 2.1","DELL","T5810","http://www.dell.com.co/"]
["SUMIMAS SAS","Segmento 2","Estación de trabajo 2.1","HEWLETT PACKARD","HP Z440","http://www.hp.com/latam/CCE/2017/HP%20Z440%20WORKSTATION%202-1.pdf"]
["TECNOPHONE COLOMBIA SAS","Segmento 2","Estación de trabajo 2.1","HEWLETT PACKARD","HP Z440 Workstation","http://www.hp.com/latam/CCE/2017/HP%20Z440%20WORKSTATION%202-1.pdf"]
["Uniples","Segmento 2","Estación de trabajo 2.1","HEWLETT PACKARD","Z440","http://www.hp.com/latam/CCE/2017/HP%20Z440%20WORKSTATION%202-1.pdf"]
["Aconpiexpress","Segmento 2","Estación de trabajo 2.2","Lenovo","Thinkstation P520 ","https://psref.lenovo.com/Product/ThinkStation/ThinkStation_P520"]
["Colsof","Segmento 2","Estación de trabajo 2.2","DELL","Precision 5820","https://www.dell.com/en-us/work/shop/pdr/precision-5820-workstation/xctopt5820us?selectionState=eyJPQyI6InhjdG9wdDU4MjB1cyIsIk1vZHMiOlt7IklkIjozLCJPcHRzIjpbeyJJZCI6IjMyRzIxNiJ9XX0seyJJZCI6NiwiT3B0cyI6W3siSWQiOiJQMjAwMCJ9XX0seyJJZCI6NywiT3B0cyI6W3siSWQiOiJHUzZKOTJFIn1dfSx7IklkIjo4LCJPcHRzIjpbeyJJZCI6IjFUQjI1NzIifV19LHsiSWQiOjExLCJPcHRzIjpbeyJJZCI6IjEwUDZUMk0ifV19LHsiSWQiOjE2LCJPcHRzIjpbeyJJZCI6IjE2RFZEUlcifV19LHsiSWQiOjE5LCJPcHRzIjpbeyJJZCI6IkdLVjVKVDgifV19LHsiSWQiOjEyMiwiT3B0cyI6W3siSWQiOiJFU1RBUiJ9XX0seyJJZCI6MTQ2LCJPcHRzIjpbeyJJZCI6IlcyMTQ1In1dfSx7IklkIjo1OTcsIk9wdHMiOlt7IklkIjoiQ1c4RE0ifV19XSwiVGkiOiIiLCJEaSI6IiJ9&cartItemId"]
["COMPUTEL SYSTEM S.A.S.","Segmento 2","Estación de trabajo 2.2","HEWLETT PACKARD","HP Z4 G4","http://h20195.www2.hp.com/v2/GetDocument.aspx?docname=4AA7-0828SPL&doctype=data%20sheet&doclang=ES_MX&searchquery=&cc=mx&lc=es"]
["Comware","Segmento 2","Estación de trabajo 2.2","DELL","Precision 5820","https://www.dell.com/en-us/work/shop/pdr/precision-5820-workstation/xctopt5820us?selectionState=eyJPQyI6InhjdG9wdDU4MjB1cyIsIk1vZHMiOlt7IklkIjozLCJPcHRzIjpbeyJJZCI6IjMyRzIxNiJ9XX0seyJJZCI6NiwiT3B0cyI6W3siSWQiOiJQMjAwMCJ9XX0seyJJZCI6NywiT3B0cyI6W3siSWQiOiJHUzZKOTJFIn1dfSx7IklkIjo4LCJPcHRzIjpbeyJJZCI6IjFUQjI1NzIifV19LHsiSWQiOjExLCJPcHRzIjpbeyJJZCI6IjEwUDZUMk0ifV19LHsiSWQiOjE2LCJPcHRzIjpbeyJJZCI6IjE2RFZEUlcifV19LHsiSWQiOjE5LCJPcHRzIjpbeyJJZCI6IkdLVjVKVDgifV19LHsiSWQiOjEyMiwiT3B0cyI6W3siSWQiOiJFU1RBUiJ9XX0seyJJZCI6MTQ2LCJPcHRzIjpbeyJJZCI6IlcyMTQ1In1dfSx7IklkIjo1OTcsIk9wdHMiOlt7IklkIjoiQ1c4RE0ifV19XSwiVGkiOiIiLCJEaSI6IiJ9&cartItemId"]
["i3NET SAS","Segmento 2","Estación de trabajo 2.2","HEWLETT PACKARD","HP Z4 G4","http://h20195.www2.hp.com/v2/GetDocument.aspx?docname=4AA7-0828SPL&doctype=data%20sheet&doclang=ES_MX&searchquery=&cc=mx&lc=es"]
["KEY MARKET SAS","Segmento 2","Estación de trabajo 2.2","HEWLETT PACKARD","HP Z4 G4","http://h20195.www2.hp.com/v2/GetDocument.aspx?docname=4AA7-0828SPL&doctype=data%20sheet&doclang=ES_MX&searchquery=&cc=mx&lc=es"]
["MICROHARD S.A.S","Segmento 2","Estación de trabajo 2.2","DELL","Precision 5820","https://www.dell.com/en-us/work/shop/pdr/precision-5820-workstation/xctopt5820us?selectionState=eyJPQyI6InhjdG9wdDU4MjB1cyIsIk1vZHMiOlt7IklkIjozLCJPcHRzIjpbeyJJZCI6IjMyRzIxNiJ9XX0seyJJZCI6NiwiT3B0cyI6W3siSWQiOiJQMjAwMCJ9XX0seyJJZCI6NywiT3B0cyI6W3siSWQiOiJHUzZKOTJFIn1dfSx7IklkIjo4LCJPcHRzIjpbeyJJZCI6IjFUQjI1NzIifV19LHsiSWQiOjExLCJPcHRzIjpbeyJJZCI6IjEwUDZUMk0ifV19LHsiSWQiOjE2LCJPcHRzIjpbeyJJZCI6IjE2RFZEUlcifV19LHsiSWQiOjE5LCJPcHRzIjpbeyJJZCI6IkdLVjVKVDgifV19LHsiSWQiOjEyMiwiT3B0cyI6W3siSWQiOiJFU1RBUiJ9XX0seyJJZCI6MTQ2LCJPcHRzIjpbeyJJZCI6IlcyMTQ1In1dfSx7IklkIjo1OTcsIk9wdHMiOlt7IklkIjoiQ1c4RE0ifV19XSwiVGkiOiIiLCJEaSI6IiJ9&cartItemId"]
["Micronet","Segmento 2","Estación de trabajo 2.2","HEWLETT PACKARD","HP Z4 G4","http://h20195.www2.hp.com/v2/GetDocument.aspx?docname=4AA7-0828SPL&doctype=data%20sheet&doclang=ES_MX&searchquery=&cc=mx&lc=es"]
["Nexcom","Segmento 2","Estación de trabajo 2.2","Lenovo","Thinkstation P520 ","https://psref.lenovo.com/Product/ThinkStation/ThinkStation_P520"]
["OFIBOD LTDA ","Segmento 2","Estación de trabajo 2.2","DELL","Precision 5820","https://www.dell.com/en-us/work/shop/pdr/precision-5820-workstation/xctopt5820us?selectionState=eyJPQyI6InhjdG9wdDU4MjB1cyIsIk1vZHMiOlt7IklkIjozLCJPcHRzIjpbeyJJZCI6IjMyRzIxNiJ9XX0seyJJZCI6NiwiT3B0cyI6W3siSWQiOiJQMjAwMCJ9XX0seyJJZCI6NywiT3B0cyI6W3siSWQiOiJHUzZKOTJFIn1dfSx7IklkIjo4LCJPcHRzIjpbeyJJZCI6IjFUQjI1NzIifV19LHsiSWQiOjExLCJPcHRzIjpbeyJJZCI6IjEwUDZUMk0ifV19LHsiSWQiOjE2LCJPcHRzIjpbeyJJZCI6IjE2RFZEUlcifV19LHsiSWQiOjE5LCJPcHRzIjpbeyJJZCI6IkdLVjVKVDgifV19LHsiSWQiOjEyMiwiT3B0cyI6W3siSWQiOiJFU1RBUiJ9XX0seyJJZCI6MTQ2LCJPcHRzIjpbeyJJZCI6IlcyMTQ1In1dfSx7IklkIjo1OTcsIk9wdHMiOlt7IklkIjoiQ1c4RE0ifV19XSwiVGkiOiIiLCJEaSI6IiJ9&cartItemId"]
["Origin IT","Segmento 2","Estación de trabajo 2.2","DELL","Precision 5820","https://www.dell.com/en-us/work/shop/pdr/precision-5820-workstation/xctopt5820us?selectionState=eyJPQyI6InhjdG9wdDU4MjB1cyIsIk1vZHMiOlt7IklkIjozLCJPcHRzIjpbeyJJZCI6IjMyRzIxNiJ9XX0seyJJZCI6NiwiT3B0cyI6W3siSWQiOiJQMjAwMCJ9XX0seyJJZCI6NywiT3B0cyI6W3siSWQiOiJHUzZKOTJFIn1dfSx7IklkIjo4LCJPcHRzIjpbeyJJZCI6IjFUQjI1NzIifV19LHsiSWQiOjExLCJPcHRzIjpbeyJJZCI6IjEwUDZUMk0ifV19LHsiSWQiOjE2LCJPcHRzIjpbeyJJZCI6IjE2RFZEUlcifV19LHsiSWQiOjE5LCJPcHRzIjpbeyJJZCI6IkdLVjVKVDgifV19LHsiSWQiOjEyMiwiT3B0cyI6W3siSWQiOiJFU1RBUiJ9XX0seyJJZCI6MTQ2LCJPcHRzIjpbeyJJZCI6IlcyMTQ1In1dfSx7IklkIjo1OTcsIk9wdHMiOlt7IklkIjoiQ1c4RE0ifV19XSwiVGkiOiIiLCJEaSI6IiJ9&cartItemId"]
["Pear Solutions","Segmento 2","Estación de trabajo 2.2","Lenovo","Thinkstation P520 ","https://psref.lenovo.com/Product/ThinkStation/ThinkStation_P520"]
["PROINTECH COLOMBIA SAS","Segmento 2","Estación de trabajo 2.2","DELL","Precision 5820","https://www.dell.com/en-us/work/shop/pdr/precision-5820-workstation/xctopt5820us?selectionState=eyJPQyI6InhjdG9wdDU4MjB1cyIsIk1vZHMiOlt7IklkIjozLCJPcHRzIjpbeyJJZCI6IjMyRzIxNiJ9XX0seyJJZCI6NiwiT3B0cyI6W3siSWQiOiJQMjAwMCJ9XX0seyJJZCI6NywiT3B0cyI6W3siSWQiOiJHUzZKOTJFIn1dfSx7IklkIjo4LCJPcHRzIjpbeyJJZCI6IjFUQjI1NzIifV19LHsiSWQiOjExLCJPcHRzIjpbeyJJZCI6IjEwUDZUMk0ifV19LHsiSWQiOjE2LCJPcHRzIjpbeyJJZCI6IjE2RFZEUlcifV19LHsiSWQiOjE5LCJPcHRzIjpbeyJJZCI6IkdLVjVKVDgifV19LHsiSWQiOjEyMiwiT3B0cyI6W3siSWQiOiJFU1RBUiJ9XX0seyJJZCI6MTQ2LCJPcHRzIjpbeyJJZCI6IlcyMTQ1In1dfSx7IklkIjo1OTcsIk9wdHMiOlt7IklkIjoiQ1c4RE0ifV19XSwiVGkiOiIiLCJEaSI6IiJ9&cartItemId"]
["Red computo","Segmento 2","Estación de trabajo 2.2","DELL","Precision 5820","https://www.dell.com/en-us/work/shop/pdr/precision-5820-workstation/xctopt5820us?selectionState=eyJPQyI6InhjdG9wdDU4MjB1cyIsIk1vZHMiOlt7IklkIjozLCJPcHRzIjpbeyJJZCI6IjMyRzIxNiJ9XX0seyJJZCI6NiwiT3B0cyI6W3siSWQiOiJQMjAwMCJ9XX0seyJJZCI6NywiT3B0cyI6W3siSWQiOiJHUzZKOTJFIn1dfSx7IklkIjo4LCJPcHRzIjpbeyJJZCI6IjFUQjI1NzIifV19LHsiSWQiOjExLCJPcHRzIjpbeyJJZCI6IjEwUDZUMk0ifV19LHsiSWQiOjE2LCJPcHRzIjpbeyJJZCI6IjE2RFZEUlcifV19LHsiSWQiOjE5LCJPcHRzIjpbeyJJZCI6IkdLVjVKVDgifV19LHsiSWQiOjEyMiwiT3B0cyI6W3siSWQiOiJFU1RBUiJ9XX0seyJJZCI6MTQ2LCJPcHRzIjpbeyJJZCI6IlcyMTQ1In1dfSx7IklkIjo1OTcsIk9wdHMiOlt7IklkIjoiQ1c4RE0ifV19XSwiVGkiOiIiLCJEaSI6IiJ9&cartItemId"]
["Sistetronics","Segmento 2","Estación de trabajo 2.2","DELL","Precision 5820","https://www.dell.com/en-us/work/shop/pdr/precision-5820-workstation/xctopt5820us?selectionState=eyJPQyI6InhjdG9wdDU4MjB1cyIsIk1vZHMiOlt7IklkIjozLCJPcHRzIjpbeyJJZCI6IjMyRzIxNiJ9XX0seyJJZCI6NiwiT3B0cyI6W3siSWQiOiJQMjAwMCJ9XX0seyJJZCI6NywiT3B0cyI6W3siSWQiOiJHUzZKOTJFIn1dfSx7IklkIjo4LCJPcHRzIjpbeyJJZCI6IjFUQjI1NzIifV19LHsiSWQiOjExLCJPcHRzIjpbeyJJZCI6IjEwUDZUMk0ifV19LHsiSWQiOjE2LCJPcHRzIjpbeyJJZCI6IjE2RFZEUlcifV19LHsiSWQiOjE5LCJPcHRzIjpbeyJJZCI6IkdLVjVKVDgifV19LHsiSWQiOjEyMiwiT3B0cyI6W3siSWQiOiJFU1RBUiJ9XX0seyJJZCI6MTQ2LCJPcHRzIjpbeyJJZCI6IlcyMTQ1In1dfSx7IklkIjo1OTcsIk9wdHMiOlt7IklkIjoiQ1c4RE0ifV19XSwiVGkiOiIiLCJEaSI6IiJ9&cartItemId"]
["SUMIMAS SAS","Segmento 2","Estación de trabajo 2.2","HEWLETT PACKARD","HP Z4 G4","http://h20195.www2.hp.com/v2/GetDocument.aspx?docname=4AA7-0828SPL&doctype=data%20sheet&doclang=ES_MX&searchquery=&cc=mx&lc=es"]
["TECNOPHONE COLOMBIA SAS","Segmento 2","Estación de trabajo 2.2","HEWLETT PACKARD","HP Z4 G4","http://h20195.www2.hp.com/v2/GetDocument.aspx?docname=4AA7-0828SPL&doctype=data%20sheet&doclang=ES_MX&searchquery=&cc=mx&lc=es"]
["Uniples","Segmento 2","Estación de trabajo 2.2","HEWLETT PACKARD","HP Z4 G4","http://h20195.www2.hp.com/v2/GetDocument.aspx?docname=4AA7-0828SPL&doctype=data%20sheet&doclang=ES_MX&searchquery=&cc=mx&lc=es"]
["Aconpiexpress","Segmento 2","Estación de trabajo 2.5","Lenovo","ThinkStation P330","https://psref.lenovo.com/Product/ThinkStation/ThinkStation_P330_SFF_Gen_2"]
["Colsof","Segmento 2","Estación de trabajo 2.5","DELL","Precision 5820","https://www.dell.com/co/empresas/p/precision-5820-workstation/pd"]
["COMPUTEL SYSTEM S.A.S.","Segmento 2","Estación de trabajo 2.5","HEWLETT PACKARD","HP Z2 G4 SFF Workstation","http://www8.hp.com/h20195/V2/GetDocument.aspx?docname=c06435230"]
["Comware","Segmento 2","Estación de trabajo 2.5","DELL","Precision 5820","https://www.dell.com/co/empresas/p/precision-5820-workstation/pd"]
["i3NET SAS","Segmento 2","Estación de trabajo 2.5","HEWLETT PACKARD","HP Z2 G4 SFF Workstation","http://www8.hp.com/h20195/V2/GetDocument.aspx?docname=c06435230"]
["KEY MARKET SAS","Segmento 2","Estación de trabajo 2.5","HEWLETT PACKARD","HP Z2 G4 SFF Workstation","http://www8.hp.com/h20195/V2/GetDocument.aspx?docname=c06435230"]
["MICROHARD S.A.S","Segmento 2","Estación de trabajo 2.5","DELL","Precision 5820","https://www.dell.com/co/empresas/p/precision-5820-workstation/pd"]
["Micronet","Segmento 2","Estación de trabajo 2.5","HEWLETT PACKARD","HP Z2 G4 SFF Workstation","http://www8.hp.com/h20195/V2/GetDocument.aspx?docname=c06435230"]
["Nexcom","Segmento 2","Estación de trabajo 2.5","Lenovo","ThinkStation P330","https://psref.lenovo.com/Product/ThinkStation/ThinkStation_P330_SFF_Gen_2"]
["OFIBOD LTDA ","Segmento 2","Estación de trabajo 2.5","DELL","Precision 5820","https://www.dell.com/co/empresas/p/precision-5820-workstation/pd"]
["Origin IT","Segmento 2","Estación de trabajo 2.5","DELL","Precision 5820","https://www.dell.com/co/empresas/p/precision-5820-workstation/pd"]
["Pear Solutions","Segmento 2","Estación de trabajo 2.5","Lenovo","ThinkStation P330","https://psref.lenovo.com/Product/ThinkStation/ThinkStation_P330_SFF_Gen_2"]
["PROINTECH COLOMBIA SAS","Segmento 2","Estación de trabajo 2.5","DELL","Precision 5820","https://www.dell.com/co/empresas/p/precision-5820-workstation/pd"]
["Red computo","Segmento 2","Estación de trabajo 2.5","DELL","Precision 5820","https://www.dell.com/co/empresas/p/precision-5820-workstation/pd"]
["Sistetronics","Segmento 2","Estación de trabajo 2.5","DELL","Precision 5820","https://www.dell.com/co/empresas/p/precision-5820-workstation/pd"]
["SUMIMAS SAS","Segmento 2","Estación de trabajo 2.5","HEWLETT PACKARD","HP Z2 G4 SFF Workstation","http://www8.hp.com/h20195/V2/GetDocument.aspx?docname=c06435230"]
["TECNOPHONE COLOMBIA SAS","Segmento 2","Estación de trabajo 2.5","HEWLETT PACKARD","HP Z2 G4 SFF Workstation","http://www8.hp.com/h20195/V2/GetDocument.aspx?docname=c06435230"]
["Uniples","Segmento 2","Estación de trabajo 2.5","HEWLETT PACKARD","HP Z2 G4 SFF Workstation","http://www8.hp.com/h20195/V2/GetDocument.aspx?docname=c06435230"]
["Aconpiexpress","Segmento 2","Estación de trabajo Linux 2.3","Lenovo","P510","http://psref.lenovo.com/"]
["Colsof","Segmento 2","Estación de trabajo Linux 2.3","DELL","T5810","http://www.dell.com/co/empresas/p/precision-t5810-workstation/pd?oc=cup5810w7p&ref=PD_OC"]
["COMPUTEL SYSTEM S.A.S.","Segmento 2","Estación de trabajo Linux 2.3","HEWLETT PACKARD","Z440","http://www.hp.com/latam/CCE/2017/HP%20Z440%20WORKSTATION%202-3.pdf"]
["Comware","Segmento 2","Estación de trabajo Linux 2.3","DELL","T5810","http://www.dell.com/co/empresas/p/precision-t5810-workstation/pd?oc=cup5810w7p&ref=PD_OC"]
["i3NET SAS","Segmento 2","Estación de trabajo Linux 2.3","HEWLETT PACKARD","Z440","http://www.hp.com/latam/CCE/2017/HP%20Z440%20WORKSTATION%202-1.pdf"]
["KEY MARKET SAS","Segmento 2","Estación de trabajo Linux 2.3","HEWLETT PACKARD","Z440","http://www.hp.com/latam/CCE/2017/HP%20Z440%20WORKSTATION%202-3.pdf"]
["MICROHARD S.A.S","Segmento 2","Estación de trabajo Linux 2.3","DELL","Precision T5810","http://www.dell.com/co/empresas/p/precision-t5810-workstation/pd?oc=cup5810w7p&ref=PD_OC"]
["Micronet","Segmento 2","Estación de trabajo Linux 2.3","HEWLETT PACKARD","HP Z440","http://www.hp.com/latam/CCE/2017/HP%20Z440%20WORKSTATION%202-1.pdf"]
["Nexcom","Segmento 2","Estación de trabajo Linux 2.3","Lenovo","THINKSTATION P510","http://psref.lenovo.com/Product/ThinkStation_P510"]
["OFIBOD LTDA ","Segmento 2","Estación de trabajo Linux 2.3","DELL","T5810","http://www.dell.com/co/empresas/p/precision-t5810-workstation/pd?oc=cup5810w7p&ref=PD_OC"]
["Origin IT","Segmento 2","Estación de trabajo Linux 2.3","DELL","T5810","http://www.dell.com/co/empresas/p/precision-t5810-workstation/pd?oc=cup5810w7p"]
["Pear Solutions","Segmento 2","Estación de trabajo Linux 2.3","Lenovo","Thinkstation  P510","http://www.lenovo.com/shop/emea/content/pdf/ThinkStation/P510/P510_DS_ES.pdf"]
["PROINTECH COLOMBIA SAS","Segmento 2","Estación de trabajo Linux 2.3","DELL","Precision T5810","http://www.dell.com/co/empresas/p/precision-t5810-workstation/pd?oc=cup5810w7p&ref=PD_OC"]
["Red computo","Segmento 2","Estación de trabajo Linux 2.3","dell","PRECISION T5810","www.dell.com.co"]
["Sistetronics","Segmento 2","Estación de trabajo Linux 2.3","DELL","T5810","http://www.dell.com.co/"]
["SUMIMAS SAS","Segmento 2","Estación de trabajo Linux 2.3","HEWLETT PACKARD","HPZ440","http://www.hp.com/latam/CCE/2017/HP%20Z440%20WORKSTATION%202-3.pdf"]
["TECNOPHONE COLOMBIA SAS","Segmento 2","Estación de trabajo Linux 2.3","HEWLETT PACKARD","HP Z440 Workstation","http://www.hp.com/latam/CCE/2017/HP%20Z440%20WORKSTATION%202-3.pdf"]
["Uniples","Segmento 2","Estación de trabajo Linux 2.3","HEWLETT PACKARD","Z440","http://www.hp.com/latam/CCE/2017/HP%20Z440%20WORKSTATION%202-3.pdf"]
["Aconpiexpress","Segmento 2","Thin client 2.4","Lenovo","M600","http://psref.lenovo.com/"]
["Colsof","Segmento 2","Thin client 2.4","DELL","WYSE 5060","http://www.dell.com/co/business/p/wyse-d-class/pd?oc=xctow5060tcla&model_id=wyse-d-class&l=es&s=bsd"]
["COMPUTEL SYSTEM S.A.S.","Segmento 2","Thin client 2.4","HEWLETT PACKARD","T630","http://www.hp.com/latam/CCE/2017/HP%20t630%20Thin%20Client%202-4.pdf"]
["Comware","Segmento 2","Thin client 2.4","DELL","Wyse 5060","http://www.dell.com/co/business/p/wyse-d-class/pd?oc=xctow5060tcla&model_id=wyse-d-class&l=es&s=bsd"]
["i3NET SAS","Segmento 2","Thin client 2.4","HEWLETT PACKARD","T630","http://www.hp.com/latam/CCE/2017/HP%20t630%20Thin%20Client%202-4.pdf"]
["KEY MARKET SAS","Segmento 2","Thin client 2.4","HEWLETT PACKARD","T630","http://www.hp.com/latam/CCE/2017/HP%20t630%20Thin%20Client%202-4"]
["MICROHARD S.A.S","Segmento 2","Thin client 2.4","DELL","Wyse 5060","http://www.dell.com/co/business/p/wyse-d-class/pd?oc=xctow5060tcla&model_id=wyse-d-class&l=es&s=bsd"]
["Micronet","Segmento 2","Thin client 2.4","HEWLETT PACKARD","THIN CLIENT T630","http://www.hp.com/latam/CCE/2017/HP%20t630%20Thin%20Client%202-4.pdf"]
["Nexcom","Segmento 2","Thin client 2.4","Lenovo","THIN CENTRE M600","http://psref.lenovo.com/Product/ThinkCentre_M600_Tiny"]
["OFIBOD LTDA ","Segmento 2","Thin client 2.4","DELL","WYSE 5060","http://www.dell.com/co/business/p/wyse-d-class/pd?oc=xctow5060tcla&model_id=wyse-d-class&l=es&s=bsd"]
["Origin IT","Segmento 2","Thin client 2.4","DELL","Wyse 5060 ","http://www.dell.com/en-us/work/shop/productdetails/wyse-d-class/ss5060thinos8f4r_wowifi"]
["Pear Solutions","Segmento 2","Thin client 2.4","Lenovo","ThinkCenter M600 Tiny","http://www.lenovo.com/shop/emea/content/pdf/ThinkCentre/MSeries/2015/M900_M700_M600_DS_ES.pdf"]
["PROINTECH COLOMBIA SAS","Segmento 2","Thin client 2.4","DELL","Wyse 5060","http://www.dell.com/co/business/p/wyse-d-class/pd?oc=xctow5060tcla&model_id=wyse-d-class&l=es&s=bsd"]
["Red computo","Segmento 2","Thin client 2.4","dell","WYSE 5060","www.dell.com.co"]
["Sistetronics","Segmento 2","Thin client 2.4","DELL","WYSE 5060","http://www.dell.com.co/"]
["SUMIMAS SAS","Segmento 2","Thin client 2.4","HEWLETT PACKARD","T630 Thin Client Quad Core VGA","http://www.hp.com/latam/CCE/2017/HP%20t630%20Thin%20Client%202-4.pdf"]
["TECNOPHONE COLOMBIA SAS","Segmento 2","Thin client 2.4","HEWLETT PACKARD","HP t630 Thin Client","http://www.hp.com/latam/CCE/2017/HP%20t630%20Thin%20Client%202-4.pdf"]
["Uniples","Segmento 2","Thin client 2.4","HEWLETT PACKARD","HT630","http://www.hp.com/latam/CCE/2017/HP%20t630%20Thin%20Client%202-4.pdf"]
["Colsof","Segmento 3","Auricular – diadema inalámbrica 3.7","Jabra","Evolve 65 Mono MS","https://www.jabra.com/supportpages/jabra-evolve-65#/#6593-823-309 "]
["COMPUTEL SYSTEM S.A.S.","Segmento 3","Auricular – diadema inalámbrica 3.7","HEWLETT PACKARD","W3K09AA#ABA","http://www.hp.com/latam/CCE/2017/Accesorios%20HP.pdf"]
["i3NET SAS","Segmento 3","Auricular – diadema inalámbrica 3.7","HEWLETT PACKARD","W3K09AA#ABA","http://www.hp.com/latam/CCE/2017/Accesorios%20HP.pdf"]
["KEY MARKET SAS","Segmento 3","Auricular – diadema inalámbrica 3.7","HEWLETT PACKARD","W3K09AA#ABA - HP UC Wireless Duo Headset US","http://www.hp.com/latam/CCE/2017/Accesorios%20HP.pdf"]
["Micronet","Segmento 3","Auricular – diadema inalámbrica 3.7","HEWLETT PACKARD","HP UC Wireless Duo Headset US","http://www.hp.com/latam/CCE/2017/Accesorios%20HP.pdf"]
["Nexcom","Segmento 3","Auricular – diadema inalámbrica 3.7","HEWLETT PACKARD","W3K09AA#ABA - HP UC Wireless Duo Headset US","http://www.hp.com/latam/CCE/2017/Accesorios%20HP.pdf"]
["Nexcom","Segmento 3","Auricular – diadema inalámbrica 3.7","JABRA","EVOLVE 65","http://www.jabra.com.mx/business/office-headsets/jabra-evolve/jabra-evolve-65"]
["OFIBOD LTDA ","Segmento 3","Auricular – diadema inalámbrica 3.7","PLANTRONICS","VOYAGER-235M","http://www.plantronics.com/us/product/voyager-legend-uc"]
["Oficomco","Segmento 3","Auricular – diadema inalámbrica 3.7","JABRA","Evolve 65 Mono MS","http://www.jabra.com.mx/business/office-headsets/jabra-evolve/jabra-evolve-65"]
["Origin IT","Segmento 3","Auricular – diadema inalámbrica 3.7","JABRA"," 6593-823-309"," https://www.jabra.com/supportpages/jabra-evolve-65#/#6593-823-309"]
["Pear Solutions","Segmento 3","Auricular – diadema inalámbrica 3.7","JABRA ","Evolve 65 Mono MS","http://www.jabra.com.mx/business/office-headsets/jabra-evolve/jabra-evolve-65 "]
["PyP Systems","Segmento 3","Auricular – diadema inalámbrica 3.7","JABRA","Evolve 65 Mono MS","http://www.jabra.com.mx/business/office-headsets/jabra-evolve/jabra-evolve-65 "]
["Red computo","Segmento 3","Auricular – diadema inalámbrica 3.7","JABRA","ENVOLVE 65","http://www.jabra.com/business/office-headsets/jabra-evolve/jabra-evolve-65"]
["Selcomp Ingenieria S.A.S","Segmento 3","Auricular – diadema inalámbrica 3.7","JABRA","EVOLVE 65","http://www.jabra.com.mx/business/office-headsets/jabra-evolve/jabra-evolve-65"]
["Sistetronics","Segmento 3","Auricular – diadema inalámbrica 3.7","JABRA "," Evolve 65 Mono MS","http://www.jabra.com.mx/business/office-headsets/jabra-evolve/jabra-evolve-65  \n"]
["SUMIMAS SAS","Segmento 3","Auricular – diadema inalámbrica 3.7","HEWLETT PACKARD","HP UC Wireless Duo Headset US W3K09AA#ABA","http://www.hp.com/latam/CCE/2017/Accesorios%20HP.pdf"]
["Uniples","Segmento 3","Auricular – diadema inalámbrica 3.7","HEWLETT PACKARD","HP UC Wireless Duo Headset","http://www.hp.com/latam/CCE/2017/Accesorios%20HP.pdf "]
["OFIBOD LTDA ","Segmento 3","Base refrigerante para portatil 3.6","X-KIM","BSDN-PRO","http://www.x-kim.com/portfolio/base-refrigerante-bsdn-pro/"]
["Colsof","Segmento 3","Base refrigerante para portátil 3.6","STAR TEC","ST-CP-010","https://www.mystartec.com/product-page/base-portatil-st-cp-010 "]
["COMPUTEL SYSTEM S.A.S.","Segmento 3","Base refrigerante para portátil 3.6","X-KIM","BSDN-PRO","http://www.x-kim.com/portfolio/base-refrigerante-bsdn-pro/"]
["i3NET SAS","Segmento 3","Base refrigerante para portátil 3.6","TARGUS","AWE81US","http://www.targus.com/us/chill-mat-with-4port-hub-awe81us"]
["KEY MARKET SAS","Segmento 3","Base refrigerante para portátil 3.6","STARTEC","ST-CP-010","https://www.mystartec.com/product-page/base-portatil-st-cp-010"]
["Micronet","Segmento 3","Base refrigerante para portátil 3.6","TARGUS","Chill Mat","http://www.targus.com/es/chill-mat-con-4-puertos-2_0-hub-awe81eu"]
["Nexcom","Segmento 3","Base refrigerante para portátil 3.6","NEXT"," COOL BASE AJUSTABLE","https://prueba12345678901.myshopify.com/products/base-refrigerante-next-cool"]
["Oficomco","Segmento 3","Base refrigerante para portátil 3.6","STAR TEC","ST-CP-010","https://www.mystartec.com/product-page/base-portatil-st-cp-010"]
["Origin IT","Segmento 3","Base refrigerante para portátil 3.6","STARTEC","ST-CP-010"," https://www.mystartec.com/product-page/base-portatil-st-cp-010"]
["Pear Solutions","Segmento 3","Base refrigerante para portátil 3.6","Targus ","AWE81US-51","http://www.targus.com/us/chill-mat-with-4port-hub-awe81us"]
["PyP Systems","Segmento 3","Base refrigerante para portátil 3.6","STAR TEC","ST-CP-010 4HUB NEGRO","https://www.mystartec.com/accesorios-pc"]
["Red computo","Segmento 3","Base refrigerante para portátil 3.6","TARGUS","N/P: AWE81US51","51\nhttps://www.targus.com/mx/product_details.asp?sku=AWE81US"]
["Selcomp Ingenieria S.A.S","Segmento 3","Base refrigerante para portátil 3.6","NEXT"," COOL BASE AJUSTABLE","https://prueba12345678901.myshopify.com/products/base-refrigerante-next-cool"]
["Sistetronics","Segmento 3","Base refrigerante para portátil 3.6","COOLERPAD","STAN PC","www.compumax.com.co/gobierno/colombiacompra"]
["SUMIMAS SAS","Segmento 3","Base refrigerante para portátil 3.6","STARTEC","BASE PARA PORTATIL STAR ST-CP16 NEGRO","https://www.mystartec.com/product-page/base-para-portatil-st-cp-16-negro"]
["Uniples","Segmento 3","Base refrigerante para portátil 3.6","JAWAN ","JW-NC2FA2","http://www.jawan.co/accesorios-portatil-computador/base-refrigerante-reclinable-dos-ventiladores"]
["UT CCE","Segmento 3","Base refrigerante para portátil 3.6","X-KIM","BSDN-PRO","http://www.x-kim.com/portfolio/base-refrigerante-bsdn-pro/"]
["Colsof","Segmento 3","Portátil 3.1","DELL","Latitude 3480","http://www.dell.com/co/empresas/p/latitude-14-3480-laptop/pd?ref=PD_Family"]
["COMPUTEL SYSTEM S.A.S.","Segmento 3","Portátil 3.1","HEWLETT PACKARD","PROBOOK 440 G4","www.hp.com/latam/CCE/2017/HP%20ProBook%20440%20Pentium%203-1.pdf"]
["i3NET SAS","Segmento 3","Portátil 3.1","HEWLETT PACKARD","Probook 440 G4","http://www.hp.com/latam/CCE/2017/HP%20ProBook%20440%20Pentium%203-1.pdf"]
["KEY MARKET SAS","Segmento 3","Portátil 3.1","HEWLETT PACKARD","ProBook 440","http://www.hp.com/latam/CCE/2017/HP%20ProBook%20440%20Pentium%203-1.pdf"]
["Micronet","Segmento 3","Portátil 3.1","HEWLETT PACKARD","440 G4","http://www.hp.com/latam/CCE/2017/HP%20ProBook%20440%20Pentium%203-1.pdf"]
["Nexcom","Segmento 3","Portátil 3.1","LENOVO","L460","http://psref.lenovo.com/Product/ThinkPad_L460"]
["OFIBOD LTDA ","Segmento 3","Portátil 3.1","DELL","Latitude 3480","http://www.dell.com/co/empresas/p/latitude-14-3480-laptop/pd?ref=PD_Family"]
["Oficomco","Segmento 3","Portátil 3.1","HEWLETT PACKARD","HP 440 G4 Base NB PC","http://www8.hp.com/mx/es/products/laptops/product-detail.html?oid=10477248"]
["Origin IT","Segmento 3","Portátil 3.1","DELL","Latutide 3480","http://www.dell.com/co/empresas/p/latitude-14-3480-laptop/pd?ref=PD_Family"]
["Pear Solutions","Segmento 3","Portátil 3.1","Pc Smart"," \nPCSGOBNT1417-B","http://www.pcsmart.com.co/index/index.php?id_product=123&controller=product"]
["PyP Systems","Segmento 3","Portátil 3.1","HEWLETT PACKARD","Probook 440 G4 ","http://www.hp.com/latam/CCE/2017/HP%20ProBook%20440%20Pentium%203-1.pdf"]
["Red computo","Segmento 3","Portátil 3.1","DELL","LATITUDE E3480","www.dell.com.co"]
["Selcomp Ingenieria S.A.S","Segmento 3","Portátil 3.1","Compumax","Nogal Series 2040-805-0000","https://www.compumax.com.co/inicio/gobierno/colombiacompra"]
["Sistetronics","Segmento 3","Portátil 3.1","Compumax","Nogal Series 2040-805-0000","https://www.compumax.com.co/inicio/gobierno/colombiacompra"]
["SUMIMAS SAS","Segmento 3","Portátil 3.1","HEWLETT PACKARD","Probook 440 G4 ","http://www.hp.com/latam/CCE/2017/HP%20ProBook%20440%20Pentium%203-1.pdf"]
["Uniples","Segmento 3","Portátil 3.1","HEWLETT PACKARD","Probook 440  G4","http://www.hp.com/latam/CCE/2017/HP%20ProBook%20440%20Pentium%203-1.pdf"]
["UT CCE","Segmento 3","Portátil 3.1","HEWLETT PACKARD","Probook 440  G4","http://www.hp.com/latam/CCE/2017/HP%20ProBook%20440%20Pentium%203-1.pdf"]
["Colsof","Segmento 3","Portatil 3.10"]
["COMPUTEL SYSTEM S.A.S.","Segmento 3","Portatil 3.10","HEWLETT PACKARD","ZBook 15 G4","http://www8.hp.com/h20195/V2/GetDocument.aspx?docname=c05999906"]
["i3NET SAS","Segmento 3","Portatil 3.10","HEWLETT PACKARD","ZBook 15 G4","http://www8.hp.com/h20195/V2/GetDocument.aspx?docname=c05999906"]
["KEY MARKET SAS","Segmento 3","Portatil 3.10","HEWLETT PACKARD","ZBook 15 G4","http://www8.hp.com/h20195/V2/GetDocument.aspx?docname=c05999906"]
["Micronet","Segmento 3","Portatil 3.10","HEWLETT PACKARD","ZBook 15 G4","http://www8.hp.com/h20195/V2/GetDocument.aspx?docname=c05999906"]
["Nexcom","Segmento 3","Portatil 3.10","LENOVO","ThinkPad P51","http://psref.lenovo.com/Product/ThinkPad/ThinkPad_P51"]
["OFIBOD LTDA ","Segmento 3","Portatil 3.10"]
["Oficomco","Segmento 3","Portatil 3.10"]
["Origin IT","Segmento 3","Portatil 3.10"]
["Pear Solutions","Segmento 3","Portatil 3.10"]
["PyP Systems","Segmento 3","Portatil 3.10","HEWLETT PACKARD","ZBook 15 G4","http://www8.hp.com/h20195/V2/GetDocument.aspx?docname=c05999906"]
["Red computo","Segmento 3","Portatil 3.10"]
["Selcomp Ingenieria S.A.S","Segmento 3","Portatil 3.10","COMPUMAX","Nogal Series 2040-835-0000","https://www.compumax.com.co/archivos/cce/portatiles/etp310/fichaetp310.pdf"]
["Sistetronics","Segmento 3","Portatil 3.10","COMPUMAX","Nogal Series 2040-835-0001","https://www.compumax.com.co/archivos/cce/portatiles/etp310/fichaetp310.pdf"]
["SUMIMAS SAS","Segmento 3","Portatil 3.10","HEWLETT PACKARD","ZBook 15 G4","http://www8.hp.com/h20195/V2/GetDocument.aspx?docname=c05999906"]
["Uniples","Segmento 3","Portatil 3.10","HEWLETT PACKARD","ZBook 15 G4","http://www8.hp.com/h20195/V2/GetDocument.aspx?docname=c05999906"]
["UT CCE","Segmento 3","Portatil 3.10","HEWLETT PACKARD","ZBook 15 G4","http://www8.hp.com/h20195/V2/GetDocument.aspx?docname=c05999906"]
["UT CCE","Segmento 3","Portatil 3.10","HEWLETT PACKARD","Stream 11 Pro G4 EE","http://www8.hp.com/h20195/V2/GetDocument.aspx?docname=c05999915"]
["COMPUTEL SYSTEM S.A.S.","Segmento 3","Portatil 3.11","HEWLETT PACKARD","HP 245 G7","http://www8.hp.com/h20195/V2/GetDocument.aspx?docname=c06434465"]
["KEY MARKET SAS","Segmento 3","Portatil 3.11","HEWLETT PACKARD","HP 245 G7","http://www8.hp.com/h20195/V2/GetDocument.aspx?docname=c06434465"]
["Micronet","Segmento 3","Portatil 3.11","HEWLETT PACKARD","HP 245 G7","http://www8.hp.com/h20195/V2/GetDocument.aspx?docname=c06434465"]
["Nexcom","Segmento 3","Portatil 3.11","LENOVO","Lenovo V330-14ARR","https://psref.lenovo.com/Product/Lenovo_Laptops/Lenovo_V33014ARR"]
["Oficomco","Segmento 3","Portatil 3.11","HEWLETT PACKARD","HP 245 G7","http://www8.hp.com/h20195/V2/GetDocument.aspx?docname=c06434465"]
["Pear Solutions","Segmento 3","Portatil 3.11","PC SMART","PNTGOBAM1419-C","https://www.pcsmart.com.co/index/index.php?id_product=171&controller=product"]
["PyP Systems","Segmento 3","Portatil 3.11","HEWLETT PACKARD","HP 245 G7","http://www8.hp.com/h20195/V2/GetDocument.aspx?docname=c06434465"]
["Selcomp Ingenieria S.A.S","Segmento 3","Portatil 3.11","COMPUMAX","APU-0001","https://www.compumax.com.co/docs/etp311pdf/"]
["Sistetronics","Segmento 3","Portatil 3.11","COMPUMAX","APU-0001","https://www.compumax.com.co/docs/etp311pdf/"]
["SUMIMAS SAS","Segmento 3","Portatil 3.11","HEWLETT PACKARD","HP 245 G7","http://www8.hp.com/h20195/V2/GetDocument.aspx?docname=c06434465"]
["Uniples","Segmento 3","Portatil 3.11","HEWLETT PACKARD","HP 245 G7","http://www8.hp.com/h20195/V2/GetDocument.aspx?docname=c06434465"]
["Colsof","Segmento 3","Portátil 3.12","DELL","Vostro Notebooks 5490","https://www.dell.com/es-es/work/shop/pdr/vostro-14-5490-laptop/n4108vn5490emea01_2005?selectionState=&cartItemId="]
["COMPUTEL SYSTEM S.A.S.","Segmento 3","Portátil 3.12","HEWLETT PACKARD","HP ProBook 445R G6","http://www8.hp.com/h20195/V2/GetDocument.aspx?docname=c06435228"]
["i3NET SAS","Segmento 3","Portátil 3.12","HEWLETT PACKARD","HP ProBook 445R G6","http://www8.hp.com/h20195/V2/GetDocument.aspx?docname=c06435228"]
["KEY MARKET SAS","Segmento 3","Portátil 3.12","HEWLETT PACKARD","HP ProBook 445R G6","http://www8.hp.com/h20195/V2/GetDocument.aspx?docname=c06435228"]
["Micronet","Segmento 3","Portátil 3.12","HEWLETT PACKARD","HP ProBook 445R G6","http://www8.hp.com/h20195/V2/GetDocument.aspx?docname=c06435228"]
["Nexcom","Segmento 3","Portátil 3.12","LENOVO","ThinkPad T495","https://psref.lenovo.com/syspool/Sys/PDF/ThinkPad/ThinkPad%20T495/ThinkPad_T495_Platform_Specifications.pdf"]
["OFIBOD LTDA ","Segmento 3","Portátil 3.12","DELL","Vostro Notebooks 5490","https://www.dell.com/es-es/work/shop/pdr/vostro-14-5490-laptop/n4108vn5490emea01_2005?selectionState=&cartItemId="]
["Oficomco","Segmento 3","Portátil 3.12","HEWLETT PACKARD","HP ProBook 445R G6","http://www8.hp.com/h20195/V2/GetDocument.aspx?docname=c06435228"]
["Origin IT","Segmento 3","Portátil 3.12","DELL","Vostro Notebooks 5490","https://www.dell.com/es-es/work/shop/pdr/vostro-14-5490-laptop/n4108vn5490emea01_2005?selectionState=&cartItemId="]
["Pear Solutions","Segmento 3","Portátil 3.12","Pc Smart","PNTGOBAM1419-Series","https://www.pcsmart.com.co/index/img/cms/GOBIERNO/PNTGOBAM1419-Series.pdf"]
["PyP Systems","Segmento 3","Portátil 3.12","HEWLETT PACKARD","HP ProBook 445R G6","http://www8.hp.com/h20195/V2/GetDocument.aspx?docname=c06435228"]
["Red computo","Segmento 3","Portátil 3.12","DELL","Vostro Notebooks 5490","https://www.dell.com/es-es/work/shop/pdr/vostro-14-5490-laptop/n4108vn5490emea01_2005?selectionState=&cartItemId="]
["Selcomp Ingenieria S.A.S","Segmento 3","Portátil 3.12","Compumax","RZ5-0007"," https://www.compumax.com.co/docs/amd/etp312/"]
["Sistetronics","Segmento 3","Portátil 3.12","Compumax","RZ5-0007"," https://www.compumax.com.co/docs/amd/etp312/"]
["SUMIMAS SAS","Segmento 3","Portátil 3.12","HEWLETT PACKARD","HP ProBook 445R G6","http://www8.hp.com/h20195/V2/GetDocument.aspx?docname=c06435228"]
["Uniples","Segmento 3","Portátil 3.12","HEWLETT PACKARD","HP ProBook 445R G6","http://www8.hp.com/h20195/V2/GetDocument.aspx?docname=c06435228"]
["UT CCE","Segmento 3","Portátil 3.12","HEWLETT PACKARD","HP ProBook 445R G6","http://www8.hp.com/h20195/V2/GetDocument.aspx?docname=c06435228"]
["Colsof","Segmento 3","Portátil 3.2","DELL","Latitude 3480","http://www.dell.com/co/empresas/p/latitude-14-3480-laptop/pd?ref=PD_Family"]
["COMPUTEL SYSTEM S.A.S.","Segmento 3","Portátil 3.2","HEWLETT PACKARD","PROBOOK 455 G4","http://www.hp.com/latam/CCE/2017/HP%20ProBook%20455%203-2.pdf"]
["i3NET SAS","Segmento 3","Portátil 3.2","HEWLETT PACKARD","ProBook 455 G4","http://www.hp.com/latam/CCE/2017/HP%20ProBook%20455%203-2.pdf"]
["KEY MARKET SAS","Segmento 3","Portátil 3.2","HEWLETT PACKARD","ProBook 455","http://www.hp.com/latam/CCE/2017/HP%20ProBook%20455%203-2.pdf"]
["Micronet","Segmento 3","Portátil 3.2","HEWLETT PACKARD","455 G4","http://www.hp.com/latam/CCE/2017/HP%20ProBook%20455%203-2.pdf"]
["Nexcom","Segmento 3","Portátil 3.2","LENOVO","L460","http://psref.lenovo.com/Product/ThinkPad_L461"]
["OFIBOD LTDA ","Segmento 3","Portátil 3.2","DELL","Latitude 3480","http://www.dell.com/co/empresas/p/latitude-14-3480-laptop/pd?ref=PD_Family"]
["Oficomco","Segmento 3","Portátil 3.2","HEWLETT PACKARD","HP PB 455 G4 CCE A10","http://www8.hp.com/co/es/products/laptops/product-detail.html?oid=10477363"]
["Origin IT","Segmento 3","Portátil 3.2","DELL","Latutide 3480","http://www.dell.com/co/empresas/p/latitude-14-3480-laptop/pd?ref=PD_Family"]
["Pear Solutions","Segmento 3","Portátil 3.2","Pc Smart"," \nPCSGOBNT1417-A","http://www.pcsmart.com.co/index/index.php?id_product=124&controller=product"]
["PyP Systems","Segmento 3","Portátil 3.2","HEWLETT PACKARD","HP 455 G4","http://www.hp.com/latam/CCE/2017/HP%20ProBook%20455%203-2.pdf"]
["Red computo","Segmento 3","Portátil 3.2","DELL","LATITUDE E3480","www.dell.com.co"]
["Selcomp Ingenieria S.A.S","Segmento 3","Portátil 3.2","Compumax","Nogal Series 2040-806-0000","https://www.compumax.com.co/inicio/gobierno/colombiacompra"]
["Sistetronics","Segmento 3","Portátil 3.2","Compumax","2040-806-0000","www.compumax.com.co/gobierno/colombiacompra"]
["SUMIMAS SAS","Segmento 3","Portátil 3.2","HEWLETT PACKARD","Probook 455G4","http://www.hp.com/latam/CCE/2017/HP%20ProBook%20455%203-2.pdf"]
["Uniples","Segmento 3","Portátil 3.2","HEWLETT PACKARD","Probook 455  G4","http://www.hp.com/latam/CCE/2017/HP%20ProBook%20455%203-2.pdf"]
["UT CCE","Segmento 3","Portátil 3.2","HEWLETT PACKARD","Probook 455  G4","http://www.hp.com/latam/CCE/2017/HP%20ProBook%20455%203-2.pdf"]
["Colsof","Segmento 3","Portatil 3.9"]
["COMPUTEL SYSTEM S.A.S.","Segmento 3","Portatil 3.9","HEWLETT PACKARD","Stream 11 Pro G4 EE","http://www8.hp.com/h20195/V2/GetDocument.aspx?docname=c05999915"]
["i3NET SAS","Segmento 3","Portatil 3.9","HEWLETT PACKARD","Stream 11 Pro G4 EE","http://www8.hp.com/h20195/V2/GetDocument.aspx?docname=c05999915"]
["KEY MARKET SAS","Segmento 3","Portatil 3.9","HEWLETT PACKARD","Stream 11 Pro G4 EE","http://www8.hp.com/h20195/V2/GetDocument.aspx?docname=c05999915"]
["Micronet","Segmento 3","Portatil 3.9"]
["Nexcom","Segmento 3","Portatil 3.9","LENOVO","100e Notebook","http://psref.lenovo.com/syspool/Sys/PDF/datasheet/Lenovo_100e_Datasheet_EN.pdf"]
["OFIBOD LTDA ","Segmento 3","Portatil 3.9"]
["Oficomco","Segmento 3","Portatil 3.9"]
["Origin IT","Segmento 3","Portatil 3.9"]
["Pear Solutions","Segmento 3","Portatil 3.9","PC SMART","PCSGOBNT1118-A","http://www.pcsmart.com.co/index/img/cms/GOBIERNO/PCSGOBNT1118-A.pdf"]
["PyP Systems","Segmento 3","Portatil 3.9","HEWLETT PACKARD","Stream 11 Pro G4 EE","http://www8.hp.com/h20195/V2/GetDocument.aspx?docname=c05999915"]
["Red computo","Segmento 3","Portatil 3.9"]
["Selcomp Ingenieria S.A.S","Segmento 3","Portatil 3.9","COMPUMAX","Max Silver Series 2031-805-0000","https://www.compumax.com.co/archivos/cce/portatiles/etp39/fichaetp39.pdf"]
["Sistetronics","Segmento 3","Portatil 3.9","COMPUMAX","Max Silver Series 2031-805-0000","https://www.compumax.com.co/archivos/cce/portatiles/etp39/fichaetp39.pdf"]
["SUMIMAS SAS","Segmento 3","Portatil 3.9","HEWLETT PACKARD","Stream 11 Pro G4 EE","http://www8.hp.com/h20195/V2/GetDocument.aspx?docname=c05999915"]
["Uniples","Segmento 3","Portatil 3.9","HEWLETT PACKARD","Stream 11 Pro G4 EE","http://www8.hp.com/h20195/V2/GetDocument.aspx?docname=c05999915"]
["Colsof","Segmento 3","Portátil ultraliviano 3.3","DELL","Latitude 5280","http://www.dell.com/co/empresas/p/latitude-12-5280-laptop/pd?oc=xctol528012mmcla&ref=PD_Family"]
["COMPUTEL SYSTEM S.A.S.","Segmento 3","Portátil ultraliviano 3.3","HEWLETT PACKARD","ELITEBOOK 745 G4","www.hp.com/latam/CCE/2017/HP%20EliteBook%20745%203-3.pdf"]
["i3NET SAS","Segmento 3","Portátil ultraliviano 3.3","HEWLETT PACKARD","Elitebook 745 G4","http://www.hp.com/latam/CCE/2017/HP%20EliteBook%20745%203-3.pdf"]
["KEY MARKET SAS","Segmento 3","Portátil ultraliviano 3.3","HEWLETT PACKARD","EliteBook 745","http://www.hp.com/latam/CCE/2017/HP%20EliteBook%20745%203-3.pdf"]
["Micronet","Segmento 3","Portátil ultraliviano 3.3","HEWLETT PACKARD","745 G4","http://www.hp.com/latam/CCE/2017/HP%20EliteBook%20745%203-3.pdf"]
["Nexcom","Segmento 3","Portátil ultraliviano 3.3","LENOVO","X260","http://psref.lenovo.com/Product/ThinkPad_X260"]
["OFIBOD LTDA ","Segmento 3","Portátil ultraliviano 3.3","DELL","Latitude 5280","http://www.dell.com/co/empresas/p/latitude-12-5280-laptop/pd?oc=xctol528012mmcla&ref=PD_Family"]
["Oficomco","Segmento 3","Portátil ultraliviano 3.3","HEWLETT PACKARD","HP 745 G4 NB PC","http://www8.hp.com/mx/es/products/laptops/product-detail.html?oid=11084775#!tab=specs"]
["Origin IT","Segmento 3","Portátil ultraliviano 3.3","DELL","Latitude 5280","http://www.dell.com/co/empresas/p/latitude-12-5280-laptop/pd?oc=xctol528012mmcla&ref=PD_Family"]
["Pear Solutions","Segmento 3","Portátil ultraliviano 3.3","Pc Smart","PCSGOBNT1217-A\n","http://www.pcsmart.com.co/index/index.php?id_product=125&controller=product"]
["PyP Systems","Segmento 3","Portátil ultraliviano 3.3","HEWLETT PACKARD","Elitebook 745 G4","http://www.hp.com/latam/CCE/2017/HP%20EliteBook%20745%203-3.pdf"]
["Red computo","Segmento 3","Portátil ultraliviano 3.3","DELL","LATITUDE E5280","www.dell.com.co"]
["Selcomp Ingenieria S.A.S","Segmento 3","Portátil ultraliviano 3.3","Compumax","Nogal Series 2040-807-0000","https://www.compumax.com.co/inicio/gobierno/colombiacompra"]
["Sistetronics","Segmento 3","Portátil ultraliviano 3.3","Compumax","2040-807-0000","https://www.compumax.com.co/inicio/gobierno/colombiacompra"]
["SUMIMAS SAS","Segmento 3","Portátil ultraliviano 3.3","HEWLETT PACKARD","Elitebook 745 G4","http://www.hp.com/latam/CCE/2017/HP%20EliteBook%20745%203-3.pdf"]
["Uniples","Segmento 3","Portátil ultraliviano 3.3","HEWLETT PACKARD","Elitebook 745 G4","http://www.hp.com/latam/CCE/2017/HP%20EliteBook%20745%203-3.pdf"]
["UT CCE","Segmento 3","Portátil ultraliviano 3.3","HEWLETT PACKARD","Elitebook 745 G4","http://www.hp.com/latam/CCE/2017/HP%20EliteBook%20745%203-3.pdf"]
["Colsof","Segmento 3","Teclado y mouse externo inalámbrico 3.5","Microsoft","Wireless Comfort Desktop 5050","https://www.microsoft.com/accessories/en-us/products/keyboards/wireless-comfort-desktop-5050/pp4-00001#techspecs-connect "]
["COMPUTEL SYSTEM S.A.S.","Segmento 3","Teclado y mouse externo inalámbrico 3.5","HEWLETT PACKARD","HP wireless Slim Business N3R88AA#ABM","http://www.hp.com/latam/CCE/2017/Accesorios%20HP.pdf"]
["i3NET SAS","Segmento 3","Teclado y mouse externo inalámbrico 3.5","HEWLETT PACKARD","HP wireless Slim Business N3R88AA#ABM","http://www.hp.com/latam/CCE/2017/Accesorios%20HP.pdf"]
["KEY MARKET SAS","Segmento 3","Teclado y mouse externo inalámbrico 3.5","HEWLETT PACKARD","HP wireless Slim Business N3R88AA#ABM","http://www.hp.com/latam/CCE/2017/Accesorios%20HP.pdf"]
["Micronet","Segmento 3","Teclado y mouse externo inalámbrico 3.5","HEWLETT PACKARD","HP wireless Slim Business N3R88AA#ABM","http://www.hp.com/latam/CCE/2017/Accesorios%20HP.pdf"]
["Nexcom","Segmento 3","Teclado y mouse externo inalámbrico 3.5","MICROSOFT","WIRELESS DESKTOP 3000","https://www.microsoft.com/accessories/es-xl/products/keyboards/wireless-desktop-3000/mfc-00013#specsColumns-testCarousel"]
["OFIBOD LTDA ","Segmento 3","Teclado y mouse externo inalámbrico 3.5","MICROSOFT","Microsoft Wireless Desktop 900","https://www.microsoft.com/en-us/store/d/microsoft-wireless-desktop-900/8q659c4k8q7g/"]
["Oficomco","Segmento 3","Teclado y mouse externo inalámbrico 3.5","HEWLETT PACKARD","HP wireless Slim Business N3R88AA#ABM","http://h20195.www2.hp.com/v2/default.aspx?cc=lamerica_nsc_cnt_amer&lc=es&oid=8409988"]
["Origin IT","Segmento 3","Teclado y mouse externo inalámbrico 3.5","GENIUS","KB-8000X"," http://co.geniusnet.com/product/slimstar-8005"]
["Pear Solutions","Segmento 3","Teclado y mouse externo inalámbrico 3.5","Microsoft ","PN9-00004 COMBO TECLADO MOUSE WRLS 850 F","https://www.microsoft.com/accessories/es-es/products/keyboards/wireless-desktop-850/py9-00008#specsColumns-testCarousel"]
["PyP Systems","Segmento 3","Teclado y mouse externo inalámbrico 3.5","HEWLETT PACKARD","HP wireless Slim Business N3R88AA#ABM","http://www.hp.com/latam/CCE/2017/Accesorios%20HP.pdf"]
["Red computo","Segmento 3","Teclado y mouse externo inalámbrico 3.5","GENIUS","KB-8000X","http://www.genius-europe.com/en/produktdetail.php?ID2=30&ID=25&ID3=969"]
["Selcomp Ingenieria S.A.S","Segmento 3","Teclado y mouse externo inalámbrico 3.5","MICROSOFT","WIRELESS DESKTOP 3000","https://www.microsoft.com/accessories/es-xl/products/keyboards/wireless-desktop-3000/mfc-00013#specsColumns-testCarousel"]
["Sistetronics","Segmento 3","Teclado y mouse externo inalámbrico 3.5","COMPUMAX","MTCWIFI","www.compumax.com.co/gobierno/colombiacompra"]
["SUMIMAS SAS","Segmento 3","Teclado y mouse externo inalámbrico 3.5","HEWLETT PACKARD","HP wireless Slim Business N3R88AA#ABM","http://www.hp.com/latam/CCE/2017/Accesorios%20HP.pdf"]
["Uniples","Segmento 3","Teclado y mouse externo inalámbrico 3.5","HEWLETT PACKARD","HP wireless Slim Business N3R88AA#ABM","http://www.hp.com/latam/CCE/2017/Accesorios%20HP.pdf "]
["UT CCE","Segmento 3","Teclado y mouse externo inalámbrico 3.5","HEWLETT PACKARD","HP wireless Slim Business N3R88AA#ABM","http://www.hp.com/latam/CCE/2017/Accesorios%20HP.pdf"]
["UT CCE","Segmento 3",null,null,"N3R88AA#ABM"]
["Carvajal Tecnología y Servicios SAS","Segmento 4","Tableta 4.1","Pc Smart","PTSGOB8W","http://www.pcsmart.com.co/index/index.php?id_product=112&controller=product"]
["COMPUTEL SYSTEM S.A.S.","Segmento 4","Tableta 4.1","APRIX","PHAT6","http://aprix.com/inicio/tabletas/phat6.jsp"]
["Comware","Segmento 4","Tableta 4.1","Aprix","PHAT6","http://www.aprix.com"]
["CYSNUS","Segmento 4","Tableta 4.1","Pc Smart","PTSGOV8W","http://www.pcsmart.com.co/index/index.php?id_product=112&controller=product"]
["MICROHARD S.A.S","Segmento 4","Tableta 4.1","Compumax","Blue Series","https://www.compumax.com.co/inicio/gobierno/colombiacompra"]
["Oficomco","Segmento 4","Tableta 4.1","APRIX","Tableta Phat 6 liviana ETP 4.1","http://www.aprix.com/"]
["Pear Solutions","Segmento 4","Tableta 4.1","Pc Smart","PTSGOB8W","http://www.pcsmart.com.co/index/index.php?id_product=112&controller=product"]
["PyP Systems","Segmento 4","Tableta 4.1","APRIX ","Phat6","   http://aprix.com/inicio/tabletas/phat6.jsp  "]
["Selcomp Ingenieria S.A.S","Segmento 4","Tableta 4.1","Compumax","Blue Series","https://www.compumax.com.co/inicio/gobierno/colombiacompra"]
["Sistetronics","Segmento 4","Tableta 4.1","COMPUMAX","Blue Series","www.compumax.com.co/gobierno/colombiacompra"]
["SUMIMAS SAS","Segmento 4","Tableta 4.1","APRIX ","PHAT6 ","http://aprix.com/inicio/tabletas/phat6.jsp"]
["Uniples","Segmento 4","Tableta 4.1","Pc Smart","PTSGOB8W","http://www.pcsmart.com.co/index/img/cms/GOBIERNO/PTSGOB8W%20(2).pdf"]
["UT CCE","Segmento 4","Tableta 4.1","Pc Smart","PTSGOB8W","http://WWW.pcsmart.com.co/index/index.php?id_product=112&controller=product"]
["UT Data","Segmento 4","Tableta 4.1","APRIX","PHAT6","www.aprix.com"]
["Carvajal Tecnología y Servicios SAS","Segmento 4","Tableta 4.3","PCSmart","PCSGOB10INW-Series","http://www.pcsmart.com.co/index/index.php?id_product=114&controller=product"]
["COMPUTEL SYSTEM S.A.S.","Segmento 4","Tableta 4.3","APRIX","TAB64","http://aprix.com/inicio/tabletas/tab64.jsp"]
["Comware","Segmento 4","Tableta 4.3","Aprix","Tab 64","http://www.aprix.com"]
["CYSNUS","Segmento 4","Tableta 4.3","PC SMART","PCSGOB10INW-SERIES","http://www.pcsmart.com.co/index/index.php?id_product=114&controller=product"]
["MICROHARD S.A.S","Segmento 4","Tableta 4.3","Compumax","Blue TW10 Series","https://www.compumax.com.co/inicio/gobierno/colombiacompra"]
["Oficomco","Segmento 4","Tableta 4.3","APRIX","Tableta Tab 64 Avanzada  ","http://www.aprix.com/"]
["Pear Solutions","Segmento 4","Tableta 4.3","Pc Smart","PCSGOB10MVA-A\n","http://www.pcsmart.com.co/index/img/cms/GOBIERNO/PCSGOB10MVA-A.pdf"]
["PyP Systems","Segmento 4","Tableta 4.3","APRIX ","TAB64","http://aprix.com/inicio/tabletas/tab64C.jsp"]
["Selcomp Ingenieria S.A.S","Segmento 4","Tableta 4.3","Compumax","Blue TW10","https://www.compumax.com.co/inicio/gobierno/colombiacompra"]
["Sistetronics","Segmento 4","Tableta 4.3","COMPUMAX","Blue Series","www.compumax.com.co/fichatecnicablue"]
["SUMIMAS SAS","Segmento 4","Tableta 4.3","APRIX ","TAB64 ","http://aprix.com/inicio/tabletas/tab64.jsp"]
["Uniples","Segmento 4","Tableta 4.3","PC SMART","PCSGOB10MVA-A","http://www.pcsmart.com.co/index/img/cms/GOBIERNO/PCSGOB10MVA-A.pdf"]
["UT CCE","Segmento 4","Tableta 4.3","PC SMART","PCSGOB10INW-SERIES","http://WWW.pcsmart.com.co/index/index.php?id_product=114&controller=product"]
["UT Data","Segmento 4","Tableta 4.3","APRIX","TAB64","www.aprix.com"]
["Carvajal Tecnología y Servicios SAS","Segmento 4","Tableta grande 4.4"]
["COMPUTEL SYSTEM S.A.S.","Segmento 4","Tableta grande 4.4","APRIX","Tab64C","https://cceficiente.sharepoint.com/:b:/g/GestionDocumental/EZP0NaTyPRxKmXc1qIMJzN8B14POKNFXdJKYoOLKtnAZ1Q?e=ANQwMn"]
["Comware","Segmento 4","Tableta grande 4.4","APRIX","Tab64C","https://cceficiente.sharepoint.com/:b:/g/GestionDocumental/EZP0NaTyPRxKmXc1qIMJzN8B14POKNFXdJKYoOLKtnAZ1Q?e=ANQwMn"]
["CYSNUS","Segmento 4","Tableta grande 4.4"]
["MICROHARD S.A.S","Segmento 4","Tableta grande 4.4","COMPUMAX","Tableta Blue 6030-805-0001","https://www.compumax.com.co/archivos/cce/tabletas/etp44/fichaetp44.pdf"]
["Oficomco","Segmento 4","Tableta grande 4.4","APRIX","Tab64C","https://cceficiente.sharepoint.com/:b:/g/GestionDocumental/EZP0NaTyPRxKmXc1qIMJzN8B14POKNFXdJKYoOLKtnAZ1Q?e=ANQwMn"]
["Pear Solutions","Segmento 4","Tableta grande 4.4"]
["PyP Systems","Segmento 4","Tableta grande 4.4","APRIX","Tab64C","https://cceficiente.sharepoint.com/:b:/g/GestionDocumental/EZP0NaTyPRxKmXc1qIMJzN8B14POKNFXdJKYoOLKtnAZ1Q?e=ANQwMn"]
["Selcomp Ingenieria S.A.S","Segmento 4","Tableta grande 4.4","COMPUMAX","Tableta Blue 6030-805-0002","https://www.compumax.com.co/archivos/cce/tabletas/etp44/fichaetp44.pdf"]
["Sistetronics","Segmento 4","Tableta grande 4.4","COMPUMAX","Tableta Blue 6030-805-0002","https://www.compumax.com.co/archivos/cce/tabletas/etp44/fichaetp44.pdf"]
["SUMIMAS SAS","Segmento 4","Tableta grande 4.4","APRIX","Tab64C","https://cceficiente.sharepoint.com/:b:/g/GestionDocumental/EZP0NaTyPRxKmXc1qIMJzN8B14POKNFXdJKYoOLKtnAZ1Q?e=ANQwMn"]
["Uniples","Segmento 4","Tableta grande 4.4"]
["UT CCE","Segmento 4","Tableta grande 4.4"]
["UT Data","Segmento 4","Tableta grande 4.4","APRIX","Tab64C","https://cceficiente.sharepoint.com/:b:/g/GestionDocumental/EZP0NaTyPRxKmXc1qIMJzN8B14POKNFXdJKYoOLKtnAZ1Q?e=ANQwMn"]
["Carvajal Tecnología y Servicios SAS","Segmento 5","Escáner 5.13","HEWLETT PACKARD","HP Scanjet Pro 3000 s3 con alimentación de hojas(L2753A)","http://www.hp.com/latam/CCE/2017/Printing/ETP%205-13%20HP%20Scanjet%20Pro%203000%20s3.pdf"]
["Colsof","Segmento 5","Escáner 5.13","Epson","DS-530","https://epson.com.co/Soporte/Esc%C3%A1neres/Epson-DS/Epson-DS-530/s/SPT_B11B236201"]
["COMPUTEL SYSTEM S.A.S.","Segmento 5","Escáner 5.13","HEWLETT PACKARD","HP Scanjet Pro 3000 s3 con alimentación de hojas(L2753A)","http://www.hp.com/latam/CCE/2017/Printing/ETP%205-13%20HP%20Scanjet%20Pro%203000%20s3.pdf"]
["Comware","Segmento 5","Escáner 5.13","HEWLETT PACKARD","HP Scanjet Pro 3000 s3 con alimentación de hojas(L2753A)","http://www.hp.com/latam/CCE/2017/Printing/ETP%205-13%20HP%20Scanjet%20Pro%203000%20s3.pdf"]
["Crear de Colombia","Segmento 5","Escáner 5.13","Avision","AD240U","https://www.avision.com/download/Brochure/Document/AD200series/AD240U/AD240U%20SPAN_20180326.pdf"]
["CYSNUS","Segmento 5","Escáner 5.13","EPSON","DS-530","https://epson.com.co/Soporte/Esc%C3%A1neres/Epson-DS/Epson-DS-530/s/SPT_B11B236201#manuals"]
["i3NET SAS","Segmento 5","Escáner 5.13","HEWLETT PACKARD","Pro 3000 s3 ","http://www.hp.com/latam/CCE/2017/Printing/ETP%205-13%20HP%20Scanjet%20Pro%203000%20s3.pdf"]
["KEY MARKET SAS","Segmento 5","Escáner 5.13","HEWLETT PACKARD","HP Scanjet Pro 3000 s3 con alimentación de hojas","http://www.hp.com/latam/CCE/2017/Printing/ETP%205-13%20HP%20Scanjet%20Pro%203000%20s3.pdf"]
["MICROHARD S.A.S","Segmento 5","Escáner 5.13","Kodak","i1150","https://www.kodakalaris.com/es-mx/b2b/solutions/document-scanners/workgroup/scanmate-i1150-scanner"]
["Nexcom","Segmento 5","Escáner 5.13","KODAK","KODAK I1150","https://www.kodakalaris.com/es-es/b2b/solutions/document-scanners/workgroup/scanmate-i1150-scanner/specifications"]
["OFIBOD LTDA ","Segmento 5","Escáner 5.13","Epson ","DS-530","https://epson.com.co/Soporte/Esc%C3%A1neres/Epson-DS/Epson-DS-530/s/SPT_B11B236201"]
["Oficomco","Segmento 5","Escáner 5.13","Epson ","DS-530","https://epson.com.co/Soporte/Esc%C3%A1neres/Epson-DS/Epson-DS-530/s/SPT_B11B236201"]
["PyP Systems","Segmento 5","Escáner 5.13","EPSON ","DS-530","https://epson.com.co/Soporte/Esc%C3%A1neres/Epson-DS/Epson-DS-530/s/SPT_B11B236201"]
["Red computo","Segmento 5","Escáner 5.13","EPSON","DS-530","www.epson.com.co"]
["Sistetronics","Segmento 5","Escáner 5.13","KODAK","i1150","https://www.kodakalaris.com/es-mx/b2b/solutions/document-scanners/workgroup/scanmate-i1150-scanner/specifications"]
["SUMIMAS SAS","Segmento 5","Escáner 5.13","KODAK "," i1150","https://www.kodakalaris.com/-/media/files/im/products/i1150_i1180/i1150brochurelares.pdf"]
["TECNOPHONE COLOMBIA SAS","Segmento 5","Escáner 5.13","HEWLETT PACKARD","HP Scanjet Pro 3000 s3 con alimentación de hojas(L2753A)","http://www.hp.com/latam/CCE/2017/Printing/ETP%205-13%20HP%20Scanjet%20Pro%203000%20s3.pdf"]
["Uniples","Segmento 5","Escáner 5.13","HEWLETT PACKARD","HP Scanjet Pro 3000 s3 con alimentación de hojas(L2753A)","http://h20195.www2.hp.com/v2/GetDocument.aspx?docname=4AA6-7471SPL&doctype=data%20sheet&doclang=ES_MX&searchquery=&cc=mx&lc=es"]
["UT CCE","Segmento 5","Escáner 5.13","HEWLETT PACKARD","HP Scanjet Pro 3000 s3 con alimentación de hojas(L2753A)","http://www.hp.com/latam/CCE/2017/Printing/ETP%205-13%20HP%20Scanjet%20Pro%203000%20s3.pdf"]
["Carvajal Tecnología y Servicios SAS","Segmento 5","Escáner 5.15","HEWLETT PACKARD","HP ScanJet Enterprise Flow 7000 s3\n(L2757A)","http://www.hp.com/latam/CCE/2017/Printing/ETP%205-15%20HP%20ScanJet%20Enterprise%20Flow%207000%20S3.pdf"]
["Colsof","Segmento 5","Escáner 5.15","Epson","DS-860","https://epson.com.co/Para-el-trabajo/Esc%C3%A1neres/Grupos-de-Trabajo/Esc%C3%A1ner-de-documentos-a-color-Epson-WorkForce-DS-860/p/B11B222201"]
["COMPUTEL SYSTEM S.A.S.","Segmento 5","Escáner 5.15","HEWLETT PACKARD","HP ScanJet Enterprise Flow 7000 s3 (L2757A)","http://www.hp.com/latam/CCE/2017/Printing/ETP%205-15%20HP%20ScanJet%20Enterprise%20Flow%207000%20S3.pdf"]
["Comware","Segmento 5","Escáner 5.15","HEWLETT PACKARD","HP ScanJet Enterprise Flow 7000 s3 (L2757A)","http://www.hp.com/latam/CCE/2017/Printing/ETP%205-15%20HP%20ScanJet%20Enterprise%20Flow%207000%20S3.pdf"]
["Crear de Colombia","Segmento 5","Escáner 5.15","Avision","AD240","https://www.avision.com/download/Brochure/Document/AD200series/AD240/AD240%20Span%2020161107.pdf"]
["CYSNUS","Segmento 5","Escáner 5.15","EPSON","DS-860","https://epson.com.co/Para-el-trabajo/Esc%C3%A1neres/Esc%C3%A1neres-de-documentos/c/w241"]
["i3NET SAS","Segmento 5","Escáner 5.15","HEWLETT PACKARD","Enterprise Flow 7000 s3","http://www.hp.com/latam/CCE/2017/Printing/ETP%205-15%20HP%20ScanJet%20Enterprise%20Flow%207000%20S3.pdf"]
["KEY MARKET SAS","Segmento 5","Escáner 5.15","HEWLETT PACKARD","HP ScanJet Enterprise Flow 7000 s3","http://www.hp.com/latam/CCE/2017/Printing/ETP%205-15%20HP%20ScanJet%20Enterprise%20Flow%207000%20S3.pdf"]
["MICROHARD S.A.S","Segmento 5","Escáner 5.15","Kodak","i2620","https://www.kodakalaris.com/es-mx/b2b/solutions/document-scanners/workgroup/i2620-scanner"]
["Nexcom","Segmento 5","Escáner 5.15","KODAK","KODAK I2820","https://www.kodakalaris.com/es-es/b2b/solutions/document-scanners/workgroup/i2820-scanner/specifications"]
["OFIBOD LTDA ","Segmento 5","Escáner 5.15","Epson ","DS-860","https://epson.com.co/Para-el-trabajo/Esc%C3%A1neres/Grupos-de-Trabajo/Esc%C3%A1ner-de-documentos-a-color-Epson-WorkForce-DS-860/p/B11B222201"]
["Oficomco","Segmento 5","Escáner 5.15","Epson ","DS-860","https://epson.com.co/Para-el-trabajo/Esc%C3%A1neres/Grupos-de-Trabajo/Esc%C3%A1ner-de-documentos-a-color-Epson-WorkForce-DS-860/p/B11B222201"]
["PyP Systems","Segmento 5","Escáner 5.15","EPSON ","DS-860","https://epson.com.co/Para-el-trabajo/Esc%C3%A1neres/Grupos-de-Trabajo/Esc%C3%A1ner-de-documentos-a-color-Epson-WorkForce-DS-860/p/B11B222201"]
["Red computo","Segmento 5","Escáner 5.15","EPSON","DS-860","www.epson.com.co"]
["Sistetronics","Segmento 5","Escáner 5.15","KODAK","i2620","https://www.kodakalaris.com/es-mx/b2b/solutions/document-scanners/workgroup/i2620-scanner/specifications"]
["SUMIMAS SAS","Segmento 5","Escáner 5.15","HEWLETT PACKARD","HP ScanJet Enterprise Flow 7000s3","http://www.hp.com/latam/CCE/2017/Printing/ETP%205-15%20HP%20ScanJet%20Enterprise%20Flow%207000%20S3.pdf"]
["TECNOPHONE COLOMBIA SAS","Segmento 5","Escáner 5.15","HEWLETT PACKARD","HP ScanJet Enterprise Flow 7000 s3 (L2757A)","http://www.hp.com/latam/CCE/2017/Printing/ETP%205-15%20HP%20ScanJet%20Enterprise%20Flow%207000%20S3.pdf"]
["Uniples","Segmento 5","Escáner 5.15","HEWLETT PACKARD","HP ScanJet Enterprise Flow 7000 s3  (L2757A)\n","http://www8.hp.com/h20195/V2/GetPDF.aspx/4aa6-7440ese"]
["UT CCE","Segmento 5","Escáner 5.15","HEWLETT PACKARD","HP ScanJet Enterprise Flow 7000 s3 (L2757A)","http://www.hp.com/latam/CCE/2017/Printing/ETP%205-15%20HP%20ScanJet%20Enterprise%20Flow%207000%20S3.pdf"]
["Carvajal Tecnología y Servicios SAS","Segmento 5","Escáner 5.16","KODAK","KODAK ALARIS i2820 + cama plana legal/oficio","https://www.kodakalaris.com/-/media/files/im/products/i2x20series/i2x20brochureeameres.pdf"]
["Colsof","Segmento 5","Escáner 5.16","Epson","DS-70000","https://www.epson.es/products/scanners/business-scanners/epson-workforce-ds-70000"]
["COMPUTEL SYSTEM S.A.S.","Segmento 5","Escáner 5.16","EPSON","DS-70000 - (B11B204321)","https://valdes.com.sv/wp-content/uploads/2013/02/DS-70000.pdf"]
["Comware","Segmento 5","Escáner 5.16","KODAK","I2820","https://www.kodakalaris.com/es/b2b/solutions/document-scanners/workgroup/i2820-scanner"]
["Crear de Colombia","Segmento 5","Escáner 5.16","Fujitsu","fi-7280","http://www.fujitsu.com/es/products/computing/peripheral/scanners/fi/departmental/fi7280/index.html"]
["CYSNUS","Segmento 5","Escáner 5.16","EPSON","DS-70000","https://epson.com.co/Soporte/Esc%C3%A1neres/Epson-WorkForce/Epson-WorkForce-DS-70000/s/SPT_B11B204321?review-filter=macOS+10.12.x#manuals"]
["i3NET SAS","Segmento 5","Escáner 5.16","EPSON","DS-70000","https://mediaserver.goepson.com/ImConvServlet/imconv/cb0a6295d779ecdc707bfd937593c8b01f4d6b37/original"]
["KEY MARKET SAS","Segmento 5","Escáner 5.16","FUJITSO","FI7280","http://www.fujitsu.com/es/products/computing/peripheral/scanners/fi/departmental/fi7280/index.html"]
["MICROHARD S.A.S","Segmento 5","Escáner 5.16","Kodak","i2820","https://www.kodakalaris.com/es-es/b2b/solutions/document-scanners/workgroup/i2820-scanner"]
["Nexcom","Segmento 5","Escáner 5.16","KODAK","KODAK i2820","https://www.kodakalaris.com/es-es/b2b/solutions/document-scanners/workgroup/i2820-scanner/specifications"]
["OFIBOD LTDA ","Segmento 5","Escáner 5.16","Epson ","DS-70000","https://www.epson.es/products/scanners/business-scanners/epson-workforce-ds-70000"]
["Oficomco","Segmento 5","Escáner 5.16","Epson ","DS-70000","https://www.epson.es/products/scanners/business-scanners/epson-workforce-ds-70000"]
["PyP Systems","Segmento 5","Escáner 5.16","EPSON ","DS-70000","https://www.epson.es/products/scanners/business-scanners/epson-workforce-ds-70000"]
["Red computo","Segmento 5","Escáner 5.16","EPSON","DS-70000","www.epson.com.co"]
["Sistetronics","Segmento 5","Escáner 5.16","KODAK","i2820 + CAMA PLANA","https://www.kodakalaris.com/es-mx/b2b/solutions/document-scanners/workgroup/i2820-scanner"]
["SUMIMAS SAS","Segmento 5","Escáner 5.16","KODAK ","i2820","https://www.kodakalaris.com/-/media/files/im/products/i2x20series/i2x20brochureeameres.pdf"]
["TECNOPHONE COLOMBIA SAS","Segmento 5","Escáner 5.16","EPSON","DS-70000","https://www.epson.es/products/scanners/business-scanners/epson-workforce-ds-70000"]
["Uniples","Segmento 5","Escáner 5.16","Epson ","DS-70000","https://www.epson.es/products/scanners/business-scanners/epson-workforce-ds-70000"]
["UT CCE","Segmento 5","Escáner 5.16","EPSON","DS-70000","https://www.epson.es/products/scanners/business-scanners/epson-workforce-ds-70000"]
["Carvajal Tecnología y Servicios SAS","Segmento 5","Escáner portátil 5.14","KODAK","KODAK ALARIS i940","https://www.kodakalaris.com/-/media/files/im/products/i940/i940_brochure_es-lar.pdf"]
["Colsof","Segmento 5","Escáner portátil 5.14","Epson","DS-320","https://mediaserver.goepson.com/ImConvServlet/imconv/3e261ff38ade60ef17b7790bc0eeeebd9d4bb26e/original"]
["COMPUTEL SYSTEM S.A.S.","Segmento 5","Escáner portátil 5.14","EPSON","ES-300W - (B11B242201)","https://mediaserver.goepson.com/ImConvServlet/imconv/46f34ccde4868c437a07355a8103453f598486f3/original"]
["Comware","Segmento 5","Escáner portátil 5.14","KODAK","I940","https://www.kodakalaris.com/es-es/b2b/solutions/document-scanners/workgroup/scanmate-i940-scanner/specifications"]
["Crear de Colombia","Segmento 5","Escáner portátil 5.14","Brother","ADS-1000W","http://latinamerica.brother.com/es-US/Scanners/99/ProductDetail/ADS1000W/Specifications-es-US"]
["CYSNUS","Segmento 5","Escáner portátil 5.14","EPSON","DS-320","https://mediaserver.goepson.com/ImConvServlet/imconv/3e261ff38ade60ef17b7790bc0eeeebd9d4bb26e/original"]
["i3NET SAS","Segmento 5","Escáner portátil 5.14","EPSON","ES-300W","https://mediaserver.goepson.com/ImConvServlet/imconv/46f34ccde4868c437a07355a8103453f598486f3/original"]
["KEY MARKET SAS","Segmento 5","Escáner portátil 5.14","EPSON","ES-300W","https://mediaserver.goepson.com/ImConvServlet/imconv/46f34ccde4868c437a07355a8103453f598486f3/original"]
["MICROHARD S.A.S","Segmento 5","Escáner portátil 5.14","Kodak","i940","https://www.kodakalaris.com/es-mx/b2b/solutions/document-scanners/workgroup/scanmate-i940-scanner"]
["Nexcom","Segmento 5","Escáner portátil 5.14","KODAK","KODAK I940","https://www.kodakalaris.com/es-es/b2b/solutions/document-scanners/workgroup/scanmate-i940-scanner/specifications"]
["OFIBOD LTDA ","Segmento 5","Escáner portátil 5.14","Epson ","ES-300W","https://epson.com.co/Para-el-trabajo/Esc%C3%A1neres/Grupos-de-Trabajo/Esc%C3%A1ner-de-documentos-a-color-Epson-WorkForce-DS-860/p/B11B222201"]
["Oficomco","Segmento 5","Escáner portátil 5.14","Epson ","DS-320","https://mediaserver.goepson.com/ImConvServlet/imconv/3e261ff38ade60ef17b7790bc0eeeebd9d4bb26e/original"]
["PyP Systems","Segmento 5","Escáner portátil 5.14","EPSON ","DS-320","https://mediaserver.goepson.com/ImConvServlet/imconv/3e261ff38ade60ef17b7790bc0eeeebd9d4bb26e/original"]
["Red computo","Segmento 5","Escáner portátil 5.14","EPSON","ES-300W","www.epson.com.co"]
["Sistetronics","Segmento 5","Escáner portátil 5.14","KODAK","i940","https://www.kodakalaris.com/es-mx/b2b/solutions/document-scanners/workgroup/scanmate-i940-scanner/specifications"]
["SUMIMAS SAS","Segmento 5","Escáner portátil 5.14","KODAK ","i940","https://www.kodakalaris.com/-/media/files/im/products/i940/i940_brochure_es-lar.pdf"]
["TECNOPHONE COLOMBIA SAS","Segmento 5","Escáner portátil 5.14","EPSON","ES-300W","https://epson.com/For-Work/Scanners/Mobile-Document/WorkForce-ES-300W-Wireless-Portable-Duplex-Document-Scanner-with-ADF/p/B11B242201"]
["Uniples","Segmento 5","Escáner portátil 5.14","Epson ","DS-320","https://mediaserver.goepson.com/ImConvServlet/imconv/3e261ff38ade60ef17b7790bc0eeeebd9d4bb26e/original"]
["UT CCE","Segmento 5","Escáner portátil 5.14","EPSON","ES-300W","https://epson.com/For-Work/Scanners/Mobile-Document/WorkForce-ES-300W-Wireless-Portable-Duplex-Document-Scanner-with-ADF/p/B11B242201"]
["Carvajal Tecnología y Servicios SAS","Segmento 5","Impresora B/N 5.6","HEWLETT PACKARD","Impresora HP LaserJet Pro M402dw (C5F95A)","http://www.hp.com/latam/CCE/2017/Printing/ETP%205-6%20HP%20LaserJet%20Pro%20M402dw.pdf"]
["Colsof","Segmento 5","Impresora B/N 5.6","Lexmark","MS 610","http://www.lexmark.com/es_XL/products/laser-mono/35S0500.shtml"]
["COMPUTEL SYSTEM S.A.S.","Segmento 5","Impresora B/N 5.6","HEWLETT PACKARD","LaserJet Pro M402dw (C5F95A)","http://www.hp.com/latam/CCE/2017/Printing/ETP%205-6%20HP%20LaserJet%20Pro%20M402dw.pdf"]
["Comware","Segmento 5","Impresora B/N 5.6","HEWLETT PACKARD","HP LaserJet Pro M402dw (C5F95A)","http://www.hp.com/latam/CCE/2017/Printing/ETP%205-6%20HP%20LaserJet%20Pro%20M402dw.pdf"]
["Crear de Colombia","Segmento 5","Impresora B/N 5.6","Brother","HL-L5200DW","http://latinamerica.brother.com/es-US/Impresoras/30/ProductDetail/HLL5200dw"]
["CYSNUS","Segmento 5","Impresora B/N 5.6","LEXMARK","MS610DE","https://www.lexmark.com/es_XL/products/laser-mono/35S0500.shtml"]
["i3NET SAS","Segmento 5","Impresora B/N 5.6","HEWLETT PACKARD","M402dw","http://www.hp.com/latam/CCE/2017/Printing/ETP%205-6%20HP%20LaserJet%20Pro%20M402dw.pdf"]
["KEY MARKET SAS","Segmento 5","Impresora B/N 5.6","HEWLETT PACKARD","Impresora HP LaserJet Pro M402dw ","http://www.hp.com/latam/CCE/2017/Printing/ETP%205-6%20HP%20LaserJet%20Pro%20M402dw.pdf"]
["MICROHARD S.A.S","Segmento 5","Impresora B/N 5.6","Lexmark","MS610DE","http://www.lexmark.com/es_XL/products/laser-mono/35S0500.shtml"]
["Nexcom","Segmento 5","Impresora B/N 5.6","RICOH","SP 4510DN ","www.ricoh-latinamerica.com"]
["OFIBOD LTDA ","Segmento 5","Impresora B/N 5.6","HEWLETT PACKARD","LaserJet Pro M402dw (C5F95A)","http://www.hp.com/latam/CCE/2017/Printing/ETP%205-6%20HP%20LaserJet%20Pro%20M402dw.pdf"]
["Oficomco","Segmento 5","Impresora B/N 5.6","SAMSUNG","M4530ND","http://www8.hp.com/co/es/products/printers/product-detail.html?oid=17310110&jumpid=reg_r1002_coes_c-001_title_r0001#!tab=specs"]
["PyP Systems","Segmento 5","Impresora B/N 5.6","HEWLETT PACKARD","Impresora HP LaserJet Pro M402dw (C5F95A)","http://www.hp.com/latam/CCE/2017/Printing/ETP%205-6%20HP%20LaserJet%20Pro%20M402dw.pdf"]
["Red computo","Segmento 5","Impresora B/N 5.6","RICOH","SP4510DN","www.ricoh.com.co"]
["Sistetronics","Segmento 5","Impresora B/N 5.6","SAMSUNG","M4530NX","http://www.samsung.com/co/business/business-products/printers-multifunction/mono-multi-function-printers/SL-M4530NX/XAA"]
["SUMIMAS SAS","Segmento 5","Impresora B/N 5.6","HEWLETT PACKARD","LaserJet Pro M402dw","http://www.hp.com/latam/CCE/2017/Printing/ETP%205-6%20HP%20LaserJet%20Pro%20M402dw.pdf"]
["TECNOPHONE COLOMBIA SAS","Segmento 5","Impresora B/N 5.6","HEWLETT PACKARD","Impresora HP LaserJet Pro M402dw (C5F95A)","http://www.hp.com/latam/CCE/2017/Printing/ETP%205-6%20HP%20LaserJet%20Pro%20M402dw.pdf"]
["Uniples","Segmento 5","Impresora B/N 5.6","HEWLETT PACKARD","Impresora HP LaserJet Pro M402dw\n(C5F95A)\n","http://h20195.www2.hp.com/v2/GetDocument.aspx?docname=4AA6-1385SPL&doctype=data sheet&doclang=ES_MX&searchquery=&cc=co&lc=es"]
["UT CCE","Segmento 5","Impresora B/N 5.6","HEWLETT PACKARD","Impresora HP LaserJet Pro M402dw (C5F95A)","http://www.hp.com/latam/CCE/2017/Printing/ETP%205-6%20HP%20LaserJet%20Pro%20M402dw.pdf"]
["Carvajal Tecnología y Servicios SAS","Segmento 5","Impresora B/N 5.7","HEWLETT PACKARD","HP LaserJet Enterprise M608dn (K0Q18A)","http://www.hp.com/latam/CCE/2017/Printing/ETP%205-7%20HP%20LaserJet%20Enterprise%20M608dn.pdf"]
["Colsof","Segmento 5","Impresora B/N 5.7","Lexmark","MS810DN","http://www.lexmark.com/es_XL/products/laser-mono/40G0110.shtml"]
["COMPUTEL SYSTEM S.A.S.","Segmento 5","Impresora B/N 5.7","HEWLETT PACKARD","LaserJet Enterprise M608dn(K0Q18A)","http://www.hp.com/latam/CCE/2017/Printing/ETP%205-7%20HP%20LaserJet%20Enterprise%20M608dn.pdf"]
["Comware","Segmento 5","Impresora B/N 5.7","HEWLETT PACKARD","HP LaserJet Enterprise M608dn(K0Q18A)","http://www.hp.com/latam/CCE/2017/Printing/ETP%205-7%20HP%20LaserJet%20Enterprise%20M608dn.pdf"]
["Crear de Colombia","Segmento 5","Impresora B/N 5.7","Kyocera","FS-4200dn","http://www.kyoceradocumentsolutions.com.mx/americas/jsp/Kyocera/productdetails.jsp?pid=24605&cid=10556"]
["CYSNUS","Segmento 5","Impresora B/N 5.7","LEXMARK","MS810DN","https://www.lexmark.com/es_XL/products/laser-mono/40G0110.shtml"]
["i3NET SAS","Segmento 5","Impresora B/N 5.7","HEWLETT PACKARD","M608dn","http://www.hp.com/latam/CCE/2017/Printing/ETP%205-7%20HP%20LaserJet%20Enterprise%20M608dn.pdf"]
["KEY MARKET SAS","Segmento 5","Impresora B/N 5.7","HEWLETT PACKARD","HP LaserJet Enterprise M608dn","http://www.hp.com/latam/CCE/2017/Printing/ETP%205-7%20HP%20LaserJet%20Enterprise%20M608dn.pdf"]
["MICROHARD S.A.S","Segmento 5","Impresora B/N 5.7","Lexmark","MS810DN","http://www.lexmark.com/es_XL/products/laser-mono/40G0110.shtml"]
["Nexcom","Segmento 5","Impresora B/N 5.7","RICOH","SP 5300DN","www.ricoh-latinamerica.com"]
["OFIBOD LTDA ","Segmento 5","Impresora B/N 5.7","HEWLETT PACKARD","LaserJet Enterprise M608dn(K0Q18A)","http://www.hp.com/latam/CCE/2017/Printing/ETP%205-7%20HP%20LaserJet%20Enterprise%20M608dn.pdf"]
["Oficomco","Segmento 5","Impresora B/N 5.7","SAMSUNG","M4530ND","http://www8.hp.com/co/es/products/printers/product-detail.html?oid=17310110&jumpid=reg_r1002_coes_c-001_title_r0001#!tab=specs"]
["PyP Systems","Segmento 5","Impresora B/N 5.7","HEWLETT PACKARD","HP LaserJet Enterprise M608dn(K0Q18A)","http://www.hp.com/latam/CCE/2017/Printing/ETP%205-7%20HP%20LaserJet%20Enterprise%20M608dn.pdf"]
["Red computo","Segmento 5","Impresora B/N 5.7","RICOH","SP5300DN","www.ricoh.com.co"]
["Sistetronics","Segmento 5","Impresora B/N 5.7","SAMSUNG","M4530NX","http://www.samsung.com/co/business/business-products/printers-multifunction/mono-multi-function-printers/SL-M4530NX/XAA"]
["SUMIMAS SAS","Segmento 5","Impresora B/N 5.7","OKIDATA ","MPS 5501b","http://www.okidata.com/resources/products/brochure/rola/mps5501b.pdf"]
["TECNOPHONE COLOMBIA SAS","Segmento 5","Impresora B/N 5.7","HEWLETT PACKARD","HP LaserJet Enterprise M608dn(K0Q18A)","http://www.hp.com/latam/CCE/2017/Printing/ETP%205-7%20HP%20LaserJet%20Enterprise%20M608dn.pdf"]
["Uniples","Segmento 5","Impresora B/N 5.7","HEWLETT PACKARD","HP LaserJet Enterprise M608dn(K0Q18A)","http://www.hp.com/latam/CCE/2017/Printing/ETP%205-7%20HP%20LaserJet%20Enterprise%20M608dn.pdf"]
["UT CCE","Segmento 5","Impresora B/N 5.7","HEWLETT PACKARD","HP LaserJet Enterprise M608dn(K0Q18A)","http://www.hp.com/latam/CCE/2017/Printing/ETP%205-7%20HP%20LaserJet%20Enterprise%20M608dn.pdf"]
["Carvajal Tecnología y Servicios SAS","Segmento 5","Impresora color 5.8","HEWLETT PACKARD","HP LaserJet Pro M452dw (CF394A)","http://www.hp.com/latam/CCE/2017/Printing/ETP%205-8%20HP%20Color%20LaserJet%20Pro%20M452dw.pdf"]
["Colsof","Segmento 5","Impresora color 5.8","Lexmark","CS310DN","http://www.lexmark.com/es_XL/products/laser-color/28C0050.shtml"]
["COMPUTEL SYSTEM S.A.S.","Segmento 5","Impresora color 5.8","HEWLETT PACKARD","LaserJet Pro M452dw (CF394A)","http://www.hp.com/latam/CCE/2017/Printing/ETP%205-8%20HP%20Color%20LaserJet%20Pro%20M452dw.pdf"]
["Comware","Segmento 5","Impresora color 5.8","HEWLETT PACKARD","HP LaserJet Pro M452dw (CF394A)","http://www.hp.com/latam/CCE/2017/Printing/ETP%205-8%20HP%20Color%20LaserJet%20Pro%20M452dw.pdf"]
["Crear de Colombia","Segmento 5","Impresora color 5.8","Brother","HL-8360CDWT","http://www.brother-usa.com/Printer/ModelDetail/1/HLL8360CDW/spec"]
["CYSNUS","Segmento 5","Impresora color 5.8","LEXMARK","CS310DN","https://www.lexmark.com/es_XL/products/laser-color/28C0050.shtml"]
["i3NET SAS","Segmento 5","Impresora color 5.8","HEWLETT PACKARD","M452dw","http://www.hp.com/latam/CCE/2017/Printing/ETP%205-8%20HP%20Color%20LaserJet%20Pro%20M452dw.pdf"]
["KEY MARKET SAS","Segmento 5","Impresora color 5.8","HEWLETT PACKARD","HP LaserJet Pro M452dw","http://www.hp.com/latam/CCE/2017/Printing/ETP%205-8%20HP%20Color%20LaserJet%20Pro%20M452dw.pdf"]
["MICROHARD S.A.S","Segmento 5","Impresora color 5.8","Lexmark","CS310DN","http://www.lexmark.com/es_XL/products/laser-color/28C0050.shtml"]
["Nexcom","Segmento 5","Impresora color 5.8","HEWLETT PACKARD","HP LASERJET PRO M452DW","http://www8.hp.com/lamerica_nsc_cnt_amer/es/products/printers/product-detail.html?oid=7257149"]
["OFIBOD LTDA ","Segmento 5","Impresora color 5.8","HEWLETT PACKARD","LaserJet Pro M452dw (CF394A)","http://www.hp.com/latam/CCE/2017/Printing/ETP%205-8%20HP%20Color%20LaserJet%20Pro%20M452dw.pdf"]
["Oficomco","Segmento 5","Impresora color 5.8","SAMSUNG","CLP-680DW","http://www.samsung.com/ar/consumer/it/printer-multifunction/color-laser-printer/CLP-680DW/XBG/"]
["PyP Systems","Segmento 5","Impresora color 5.8","EPSON ","WF-6090","https://epson.com.co/Para-el-trabajo/Impresoras/Inyecci%C3%B3n-de-Tinta/Impresora-Epson-WorkForce-Pro-WF-6090/p/C11CD47201"]
["Red computo","Segmento 5","Impresora color 5.8","EPSON","W6090","www.epson.com.co"]
["Sistetronics","Segmento 5","Impresora color 5.8","EPSON","EF-6090","https://www.epson.es/products/printers/inkjet-printers/business-inkjet/workforce-pro-wf-6090dw"]
["SUMIMAS SAS","Segmento 5","Impresora color 5.8","HEWLETT PACKARD","HP laserJet M452DW","http://www.hp.com/latam/CCE/2017/Printing/ETP%205-8%20HP%20Color%20LaserJet%20Pro%20M452dw.pdf"]
["TECNOPHONE COLOMBIA SAS","Segmento 5","Impresora color 5.8","HEWLETT PACKARD","HP LaserJet Pro M452dw (CF394A)","http://www.hp.com/latam/CCE/2017/Printing/ETP%205-8%20HP%20Color%20LaserJet%20Pro%20M452dw.pdf"]
["Uniples","Segmento 5","Impresora color 5.8","HEWLETT PACKARD","HP LaserJet Pro M452dw (CF394A)","http://www.hp.com/latam/CCE/2017/Printing/ETP%205-8%20HP%20Color%20LaserJet%20Pro%20M452dw.pdf"]
["UT CCE","Segmento 5","Impresora color 5.8","HEWLETT PACKARD","HP LaserJet Pro M452dw (CF394A)","http://www.hp.com/latam/CCE/2017/Printing/ETP%205-8%20HP%20Color%20LaserJet%20Pro%20M452dw.pdf"]
["Carvajal Tecnología y Servicios SAS","Segmento 5","Impresora matriz de punto B/N 5.1","Epson ","LX-350","https://mediaserver.goepson.com/ImConvServlet/imconv/94d6b2aab11260c2eb0c633f20d27f4bd2c0a5c2/original"]
["Colsof","Segmento 5","Impresora matriz de punto B/N 5.1","Epson","LX-350","https://mediaserver.goepson.com/ImConvServlet/imconv/94d6b2aab11260c2eb0c633f20d27f4bd2c0a5c2/original"]
["COMPUTEL SYSTEM S.A.S.","Segmento 5","Impresora matriz de punto B/N 5.1","EPSON","LX-350 - (C11CC24001)","https://mediaserver.goepson.com/ImConvServlet/imconv/94d6b2aab11260c2eb0c633f20d27f4bd2c0a5c2/original"]
["Comware","Segmento 5","Impresora matriz de punto B/N 5.1","OKIDATA","ML 620","http://www.okidata.com/colombia/impresoras/matriciales/ml600"]
["Crear de Colombia","Segmento 5","Impresora matriz de punto B/N 5.1","Oki Data","ML620","http://www.okidata.com/colombia/impresoras/matriciales/ml600"]
["CYSNUS","Segmento 5","Impresora matriz de punto B/N 5.1","EPSON","LX-350","https://epson.com.co/Para-el-trabajo/Impresoras/Matriciales/c/w160"]
["i3NET SAS","Segmento 5","Impresora matriz de punto B/N 5.1","EPSON","LX-350","https://epson.com.co/Para-el-trabajo/Impresoras/Matriciales/Epson-LX-350/p/C11CC24001"]
["KEY MARKET SAS","Segmento 5","Impresora matriz de punto B/N 5.1","EPSON","LX-350","https://mediaserver.goepson.com/ImConvServlet/imconv/94d6b2aab11260c2eb0c633f20d27f4bd2c0a5c2/original"]
["MICROHARD S.A.S","Segmento 5","Impresora matriz de punto B/N 5.1","Epson","LX-350","https://mediaserver.goepson.com/ImConvServlet/imconv/94d6b2aab11260c2eb0c633f20d27f4bd2c0a5c2/original"]
["Nexcom","Segmento 5","Impresora matriz de punto B/N 5.1","EPSON","LX-350 / C11CC24001","https://epson.com.co/Para-el-trabajo/Impresoras/Matriciales/c/w160"]
["OFIBOD LTDA ","Segmento 5","Impresora matriz de punto B/N 5.1","Epson ","LX-350","https://mediaserver.goepson.com/ImConvServlet/imconv/94d6b2aab11260c2eb0c633f20d27f4bd2c0a5c2/original"]
["Oficomco","Segmento 5","Impresora matriz de punto B/N 5.1","Epson ","LX-350","https://mediaserver.goepson.com/ImConvServlet/imconv/94d6b2aab11260c2eb0c633f20d27f4bd2c0a5c2/original"]
["PyP Systems","Segmento 5","Impresora matriz de punto B/N 5.1","EPSON ","LX-350","https://mediaserver.goepson.com/ImConvServlet/imconv/94d6b2aab11260c2eb0c633f20d27f4bd2c0a5c2/original"]
["Red computo","Segmento 5","Impresora matriz de punto B/N 5.1","EPSON","LX-350","www.epson.com.co"]
["Sistetronics","Segmento 5","Impresora matriz de punto B/N 5.1","EPSON","LX-350","https://epson.com.co/Para-el-trabajo/Impresoras/Matriciales/Epson-LX-350/p/C11CC24001"]
["SUMIMAS SAS","Segmento 5","Impresora matriz de punto B/N 5.1","EPSON","LX-350","https://mediaserver.goepson.com/ImConvServlet/imconv/94d6b2aab11260c2eb0c633f20d27f4bd2c0a5c2/original"]
["TECNOPHONE COLOMBIA SAS","Segmento 5","Impresora matriz de punto B/N 5.1","EPSON","LX-350","https://mediaserver.goepson.com/ImConvServlet/imconv/94d6b2aab11260c2eb0c633f20d27f4bd2c0a5c2/original"]
["Uniples","Segmento 5","Impresora matriz de punto B/N 5.1","Epson ","LX-350","https://mediaserver.goepson.com/ImConvServlet/imconv/94d6b2aab11260c2eb0c633f20d27f4bd2c0a5c2/original"]
["UT CCE","Segmento 5","Impresora matriz de punto B/N 5.1","EPSON","LX-350","https://mediaserver.goepson.com/ImConvServlet/imconv/94d6b2aab11260c2eb0c633f20d27f4bd2c0a5c2/original"]
["Carvajal Tecnología y Servicios SAS","Segmento 5","Impresora matriz de punto carro ancho B/N 5.2","Epson ","FX-2190","https://mediaserver.goepson.com/ImConvServlet/imconv/f5f9b030b4ddfab04c3cf112e0d2746e8e54f818/original"]
["Colsof","Segmento 5","Impresora matriz de punto carro ancho B/N 5.2","Epson","FX2190","https://mediaserver.goepson.com/ImConvServlet/imconv/f5f9b030b4ddfab04c3cf112e0d2746e8e54f818/original"]
["COMPUTEL SYSTEM S.A.S.","Segmento 5","Impresora matriz de punto carro ancho B/N 5.2","EPSON","FX2190 - (C11C526001)","https://mediaserver.goepson.com/ImConvServlet/imconv/f5f9b030b4ddfab04c3cf112e0d2746e8e54f818/original"]
["Comware","Segmento 5","Impresora matriz de punto carro ancho B/N 5.2","OKIDATA","ML 621","http://www.okidata.com/colombia/impresoras/matriciales/ml600"]
["Crear de Colombia","Segmento 5","Impresora matriz de punto carro ancho B/N 5.2","Oki Data","ML621","http://www.okidata.com/colombia/impresoras/matriciales/ml600"]
["CYSNUS","Segmento 5","Impresora matriz de punto carro ancho B/N 5.2","EPSON","FX-2190","https://epson.com.co/Para-el-trabajo/Impresoras/Matriciales/c/w160"]
["i3NET SAS","Segmento 5","Impresora matriz de punto carro ancho B/N 5.2","EPSON","FX-2190","https://epson.com.co/Para-el-trabajo/Impresoras/Matriciales/Epson-FX-2190-Impresora-matriz-de-punto/p/C11C526001"]
["KEY MARKET SAS","Segmento 5","Impresora matriz de punto carro ancho B/N 5.2","EPSON","FX-2190","https://mediaserver.goepson.com/ImConvServlet/imconv/f5f9b030b4ddfab04c3cf112e0d2746e8e54f818/original"]
["MICROHARD S.A.S","Segmento 5","Impresora matriz de punto carro ancho B/N 5.2","Epson","FX-2190","https://mediaserver.goepson.com/ImConvServlet/imconv/f5f9b030b4ddfab04c3cf112e0d2746e8e54f818/original"]
["Nexcom","Segmento 5","Impresora matriz de punto carro ancho B/N 5.2","EPSON","FX-2190","https://epson.com.co/Para-el-trabajo/Impresoras/Matriciales/c/w161"]
["OFIBOD LTDA ","Segmento 5","Impresora matriz de punto carro ancho B/N 5.2","Epson ","FX2190","https://mediaserver.goepson.com/ImConvServlet/imconv/f5f9b030b4ddfab04c3cf112e0d2746e8e54f818/original"]
["Oficomco","Segmento 5","Impresora matriz de punto carro ancho B/N 5.2","Epson ","FX2190","https://mediaserver.goepson.com/ImConvServlet/imconv/f5f9b030b4ddfab04c3cf112e0d2746e8e54f818/original"]
["PyP Systems","Segmento 5","Impresora matriz de punto carro ancho B/N 5.2","EPSON ","FX2190","https://mediaserver.goepson.com/ImConvServlet/imconv/f5f9b030b4ddfab04c3cf112e0d2746e8e54f818/original"]
["Red computo","Segmento 5","Impresora matriz de punto carro ancho B/N 5.2","EPSON","FX-2190","www.epson.com.co"]
["Sistetronics","Segmento 5","Impresora matriz de punto carro ancho B/N 5.2","EPSON","FX-2190","https://epson.com.co/Para-el-trabajo/Impresoras/Matriciales/Epson-FX-2190-Impresora-matriz-de-punto/p/C11C526001"]
["SUMIMAS SAS","Segmento 5","Impresora matriz de punto carro ancho B/N 5.2","EPSON","FX-2190","https://mediaserver.goepson.com/ImConvServlet/imconv/f5f9b030b4ddfab04c3cf112e0d2746e8e54f818/original"]
["TECNOPHONE COLOMBIA SAS","Segmento 5","Impresora matriz de punto carro ancho B/N 5.2","EPSON","FX2190","https://mediaserver.goepson.com/ImConvServlet/imconv/f5f9b030b4ddfab04c3cf112e0d2746e8e54f818/original"]
["Uniples","Segmento 5","Impresora matriz de punto carro ancho B/N 5.2","Epson ","FX2190","https://mediaserver.goepson.com/ImConvServlet/imconv/f5f9b030b4ddfab04c3cf112e0d2746e8e54f818/original"]
["UT CCE","Segmento 5","Impresora matriz de punto carro ancho B/N 5.2","EPSON","FX-2190","https://mediaserver.goepson.com/ImConvServlet/imconv/f5f9b030b4ddfab04c3cf112e0d2746e8e54f818/original"]
["Carvajal Tecnología y Servicios SAS","Segmento 5","Impresora matriz de punto carro ancho B/N 5.3","Epson ","LQ-590","https://mediaserver.goepson.com/ImConvServlet/imconv/81e5811e8c17dc9f58fd80f98855d9a397fb433b/original"]
["Colsof","Segmento 5","Impresora matriz de punto carro ancho B/N 5.3","Epson","LQ-590","https://mediaserver.goepson.com/ImConvServlet/imconv/81e5811e8c17dc9f58fd80f98855d9a397fb433b/original"]
["COMPUTEL SYSTEM S.A.S.","Segmento 5","Impresora matriz de punto carro ancho B/N 5.3","EPSON","LQ-590 - (C11C558001)","https://mediaserver.goepson.com/ImConvServlet/imconv/e517ca393d9afc83bdfb07e179c53fede4629683/original"]
["Comware","Segmento 5","Impresora matriz de punto carro ancho B/N 5.3","Oki Data","ML 691","http://www.okidata.com/colombia/impresoras/matriciales/ml600"]
["Crear de Colombia","Segmento 5","Impresora matriz de punto carro ancho B/N 5.3","Oki Data","ML690","http://www.okidata.com/colombia/impresoras/matriciales/ml600"]
["CYSNUS","Segmento 5","Impresora matriz de punto carro ancho B/N 5.3","EPSON","LQ-590","https://epson.com.co/Para-el-trabajo/Impresoras/Matriciales/c/w160"]
["i3NET SAS","Segmento 5","Impresora matriz de punto carro ancho B/N 5.3","EPSON","LQ-590","https://epson.com/For-Work/Printers/Impact/LQ-590-Impact-Printer/p/C11C558001"]
["KEY MARKET SAS","Segmento 5","Impresora matriz de punto carro ancho B/N 5.3","EPSON","LQ-590","https://mediaserver.goepson.com/ImConvServlet/imconv/81e5811e8c17dc9f58fd80f98855d9a397fb433b/original"]
["MICROHARD S.A.S","Segmento 5","Impresora matriz de punto carro ancho B/N 5.3","Epson","LQ-590","https://mediaserver.goepson.com/ImConvServlet/imconv/81e5811e8c17dc9f58fd80f98855d9a397fb433b/original"]
["Nexcom","Segmento 5","Impresora matriz de punto carro ancho B/N 5.3","EPSON","LQ-590","https://epson.com.co/Para-el-trabajo/Impresoras/Matriciales/c/w162"]
["OFIBOD LTDA ","Segmento 5","Impresora matriz de punto carro ancho B/N 5.3","Epson ","LQ-590","https://mediaserver.goepson.com/ImConvServlet/imconv/81e5811e8c17dc9f58fd80f98855d9a397fb433b/original"]
["Oficomco","Segmento 5","Impresora matriz de punto carro ancho B/N 5.3","Epson ","LQ-590","https://mediaserver.goepson.com/ImConvServlet/imconv/81e5811e8c17dc9f58fd80f98855d9a397fb433b/original"]
["PyP Systems","Segmento 5","Impresora matriz de punto carro ancho B/N 5.3","EPSON ","LQ-590","https://mediaserver.goepson.com/ImConvServlet/imconv/81e5811e8c17dc9f58fd80f98855d9a397fb433b/original"]
["Red computo","Segmento 5","Impresora matriz de punto carro ancho B/N 5.3","EPSON","LQ-590","www.epson.com.co"]
["Sistetronics","Segmento 5","Impresora matriz de punto carro ancho B/N 5.3","EPSON","LQ-590","https://www.epson.es/products/printers/dot-matrix-printers/epson-lq-590"]
["SUMIMAS SAS","Segmento 5","Impresora matriz de punto carro ancho B/N 5.3","EPSON","LQ-590","https://mediaserver.goepson.com/ImConvServlet/imconv/81e5811e8c17dc9f58fd80f98855d9a397fb433b/original"]
["TECNOPHONE COLOMBIA SAS","Segmento 5","Impresora matriz de punto carro ancho B/N 5.3","EPSON","LQ-590","https://mediaserver.goepson.com/ImConvServlet/imconv/81e5811e8c17dc9f58fd80f98855d9a397fb433b/original"]
["Uniples","Segmento 5","Impresora matriz de punto carro ancho B/N 5.3","Epson ","LQ-590","https://mediaserver.goepson.com/ImConvServlet/imconv/81e5811e8c17dc9f58fd80f98855d9a397fb433b/original"]
["UT CCE","Segmento 5","Impresora matriz de punto carro ancho B/N 5.3","EPSON","LQ-590","https://mediaserver.goepson.com/ImConvServlet/imconv/81e5811e8c17dc9f58fd80f98855d9a397fb433b/original"]
["Carvajal Tecnología y Servicios SAS","Segmento 5","Impresora multifuncional 5.10","HEWLETT PACKARD","HP LaserJet Enterprise M527dn (F2A76A)","http://www.hp.com/latam/CCE/2017/Printing/ETP%205-10%20HP%20LaserJet%20Enterprise%20MFP%20M527%20Series.pdf"]
["Colsof","Segmento 5","Impresora multifuncional 5.10","Lexmark","MX611","http://www.lexmark.com/es_XL/products/mfp-mono/35S6702.shtml"]
["COMPUTEL SYSTEM S.A.S.","Segmento 5","Impresora multifuncional 5.10","HEWLETT PACKARD","HP LaserJet Enterprise M527dn (F2A76A)","http://www.hp.com/latam/CCE/2017/Printing/ETP%205-10%20HP%20LaserJet%20Enterprise%20MFP%20M527%20Series.pdf"]
["Comware","Segmento 5","Impresora multifuncional 5.10","HEWLETT PACKARD","HP LaserJet Enterprise M527dn (F2A76A)","http://www.hp.com/latam/CCE/2017/Printing/ETP%205-10%20HP%20LaserJet%20Enterprise%20MFP%20M527%20Series.pdf"]
["Crear de Colombia","Segmento 5","Impresora multifuncional 5.10","Kyocera","FS-M3040idn","http://www.kyoceradocumentsolutions.com.mx/americas/jsp/Kyocera/productdetails.jsp?pid=26495&cid=10569"]
["CYSNUS","Segmento 5","Impresora multifuncional 5.10","LEXMARK","MX611DHE","https://www.lexmark.com/es_CO/products/mfp-mono/35S6702.shtml"]
["i3NET SAS","Segmento 5","Impresora multifuncional 5.10","HEWLETT PACKARD","M527dn","http://www.hp.com/latam/CCE/2017/Printing/ETP%205-10%20HP%20LaserJet%20Enterprise%20MFP%20M527%20Series.pdf"]
["KEY MARKET SAS","Segmento 5","Impresora multifuncional 5.10","HEWLETT PACKARD","HP LaserJet Enterprise M527dn","http://www.hp.com/latam/CCE/2017/Printing/ETP%205-10%20HP%20LaserJet%20Enterprise%20MFP%20M527%20Series.pdf"]
["MICROHARD S.A.S","Segmento 5","Impresora multifuncional 5.10","Lexmark","MX611DHE","http://www.lexmark.com/es_XL/products/mfp-mono/35S6702.shtml"]
["Nexcom","Segmento 5","Impresora multifuncional 5.10","RICOH","MP 501SPF","www.ricoh-latinamerica.com"]
["OFIBOD LTDA ","Segmento 5","Impresora multifuncional 5.10","HEWLETT PACKARD","LaserJet Enterprise M527dn (F2A76A)","http://www.hp.com/latam/CCE/2017/Printing/ETP%205-10%20HP%20LaserJet%20Enterprise%20MFP%20M527%20Series.pdf"]
["Oficomco","Segmento 5","Impresora multifuncional 5.10","SAMSUNG","M4080FX ","http://www.samsung.com/es/business/business-products/printers-multifunction/mono-multi-function-printers/SL-M4080FX/SEE"]
["PyP Systems","Segmento 5","Impresora multifuncional 5.10","HEWLETT PACKARD","HP LaserJet Enterprise M527dn (F2A76A)","http://www.hp.com/latam/CCE/2017/Printing/ETP%205-10%20HP%20LaserJet%20Enterprise%20MFP%20M527%20Series.pdf"]
["Red computo","Segmento 5","Impresora multifuncional 5.10","RICOH","MP501SPF","www.ricoh.com.co"]
["Sistetronics","Segmento 5","Impresora multifuncional 5.10","SAMSUNG","M4080FX","http://www.samsung.com/co/business/business-products/printers-multifunction/mono-multi-function-printers/SL-M4080FX/XAA"]
["SUMIMAS SAS","Segmento 5","Impresora multifuncional 5.10","LEXMARK ","MX611dhe","http://media.lexmark.com/www/doc/es_CO/Lexmark-MX611dfe.pdf"]
["TECNOPHONE COLOMBIA SAS","Segmento 5","Impresora multifuncional 5.10","HEWLETT PACKARD","HP LaserJet Enterprise M527dn (F2A76A)","http://www.hp.com/latam/CCE/2017/Printing/ETP%205-10%20HP%20LaserJet%20Enterprise%20MFP%20M527%20Series.pdf"]
["Uniples","Segmento 5","Impresora multifuncional 5.10","HEWLETT PACKARD","HP LaserJet Enterprise M527dn (F2A76A)","http://www.hp.com/latam/CCE/2017/Printing/ETP%205-10%20HP%20LaserJet%20Enterprise%20MFP%20M527%20Series.pdf"]
["UT CCE","Segmento 5","Impresora multifuncional 5.10","HEWLETT PACKARD","HP LaserJet Enterprise M527dn (F2A76A)","http://www.hp.com/latam/CCE/2017/Printing/ETP%205-10%20HP%20LaserJet%20Enterprise%20MFP%20M527%20Series.pdf"]
["Carvajal Tecnología y Servicios SAS","Segmento 5","Impresora multifuncional 5.11","HEWLETT PACKARD","HP LaserJet MFP Managed E62555dn","http://www8.hp.com/h20195/v2/GetPDF.aspx/4AA7-3949SPL.pdf"]
["Colsof","Segmento 5","Impresora multifuncional 5.11","Lexmark","MX710DHE","http://www.lexmark.com/es_XL/products/mfp-mono/24T7310.shtml"]
["COMPUTEL SYSTEM S.A.S.","Segmento 5","Impresora multifuncional 5.11","HEWLETT PACKARD","HP LaserJet MFP Managed E62555dn","http://www8.hp.com/h20195/v2/GetPDF.aspx/4AA7-3949SPL.pdf"]
["Comware","Segmento 5","Impresora multifuncional 5.11","HEWLETT PACKARD","HP LaserJet MFP Managed E62555dn","http://www8.hp.com/h20195/v2/GetPDF.aspx/4AA7-3949SPL.pdf"]
["Crear de Colombia","Segmento 5","Impresora multifuncional 5.11","Oki Data","MPS5502mb","http://www.okidata.com/colombia/impresoras/multifuncionales/mps5502mbplus"]
["CYSNUS","Segmento 5","Impresora multifuncional 5.11","LEXMARK","MX710DHE","https://www.lexmark.com/es_CO/products/mfp-mono/24T7310.shtml"]
["i3NET SAS","Segmento 5","Impresora multifuncional 5.11","HEWLETT PACKARD","HP LaserJet MFP Managed E62555dn","http://www8.hp.com/h20195/v2/GetPDF.aspx/4AA7-3949SPL.pdf"]
["KEY MARKET SAS","Segmento 5","Impresora multifuncional 5.11","HEWLETT PACKARD","HP LaserJet MFP Managed E62555dn","http://www8.hp.com/h20195/v2/GetPDF.aspx/4AA7-3949SPL.pdf"]
["MICROHARD S.A.S","Segmento 5","Impresora multifuncional 5.11","Lexmark","MX710DHE","http://www.lexmark.com/es_XL/products/mfp-mono/24T7310.shtml"]
["Nexcom","Segmento 5","Impresora multifuncional 5.11","RICOH","MP 601SPF","www.ricoh-latinamerica.com"]
["OFIBOD LTDA ","Segmento 5","Impresora multifuncional 5.11","HEWLETT PACKARD","HP LaserJet MFP Managed E62555dn","http://www8.hp.com/h20195/v2/GetPDF.aspx/4AA7-3949SPL.pdf"]
["Oficomco","Segmento 5","Impresora multifuncional 5.11","SAMSUNG","M5370LX ","http://www.samsung.com/co/business/business-products/printers-multifunction/mono-multi-function-printers/SL-M5370LX/XAA"]
["PyP Systems","Segmento 5","Impresora multifuncional 5.11","HEWLETT PACKARD","HP LaserJet MFP Managed E62555dn","http://www8.hp.com/h20195/v2/GetPDF.aspx/4AA7-3949SPL.pdf"]
["Red computo","Segmento 5","Impresora multifuncional 5.11","RICOH","MP 601SPF ","www.ricoh.com.co"]
["Sistetronics","Segmento 5","Impresora multifuncional 5.11","SAMSUNG","M5370LX","http://www.samsung.com/co/business/business-products/printers-multifunction/mono-multi-function-printers/SL-M5370LX/XAA"]
["SUMIMAS SAS","Segmento 5","Impresora multifuncional 5.11","HEWLETT PACKARD","HP LaserJet MFP Managed E62555dn","http://www8.hp.com/h20195/v2/GetPDF.aspx/4AA7-3949SPL.pdf"]
["TECNOPHONE COLOMBIA SAS","Segmento 5","Impresora multifuncional 5.11","HEWLETT PACKARD","HP LaserJet MFP Managed E62555dn","http://www8.hp.com/h20195/v2/GetPDF.aspx/4AA7-3949SPL.pdf"]
["Uniples","Segmento 5","Impresora multifuncional 5.11","HEWLETT PACKARD","HP LaserJet MFP Managed E62555dn","http://www8.hp.com/h20195/v2/GetPDF.aspx/4AA7-3949SPL.pdf"]
["UT CCE","Segmento 5","Impresora multifuncional 5.11","HEWLETT PACKARD","HP LaserJet MFP Managed E62555dn","http://www8.hp.com/h20195/v2/GetPDF.aspx/4AA7-3949SPL.pdf"]
["Carvajal Tecnología y Servicios SAS","Segmento 5","Impresora multifuncional 5.9","HEWLETT PACKARD","HP LaserJet Pro M426fdw (F6W15A)","http://www.hp.com/latam/CCE/2017/Printing/ETP%205-9%20HP%20LaserJet%20Pro%20MFP%20M426fdw.pdf"]
["Colsof","Segmento 5","Impresora multifuncional 5.9","Lexmark","MX410","http://www.lexmark.com/es_XL/products/mfp-mono/35S5701.shtml"]
["COMPUTEL SYSTEM S.A.S.","Segmento 5","Impresora multifuncional 5.9","HEWLETT PACKARD","HP LaserJet Pro M426fdw (F6W15A)","http://www.hp.com/latam/CCE/2017/Printing/ETP%205-9%20HP%20LaserJet%20Pro%20MFP%20M426fdw.pdf"]
["Comware","Segmento 5","Impresora multifuncional 5.9","HEWLETT PACKARD","HP LaserJet Pro M426fdw (F6W15A)","http://www.hp.com/latam/CCE/2017/Printing/ETP%205-9%20HP%20LaserJet%20Pro%20MFP%20M426fdw.pdf"]
["Crear de Colombia","Segmento 5","Impresora multifuncional 5.9","Brother","MFC-L5900DW","https://latinamerica.brother.com/es-US/MFC/33/ProductDetail/MFCL5900DW"]
["CYSNUS","Segmento 5","Impresora multifuncional 5.9","LEXMARK","MX410DE","https://www.lexmark.com/es_XL/products/mfp-mono/35S5701.shtml"]
["i3NET SAS","Segmento 5","Impresora multifuncional 5.9","HEWLETT PACKARD","M426fdw","http://www.hp.com/latam/CCE/2017/Printing/ETP%205-9%20HP%20LaserJet%20Pro%20MFP%20M426fdw.pdf"]
["KEY MARKET SAS","Segmento 5","Impresora multifuncional 5.9","HEWLETT PACKARD","HP LaserJet Pro M426fdw","http://www.hp.com/latam/CCE/2017/Printing/ETP%205-9%20HP%20LaserJet%20Pro%20MFP%20M426fdw.pdf"]
["MICROHARD S.A.S","Segmento 5","Impresora multifuncional 5.9","Lexmark","MX410DE","http://www.lexmark.com/es_XL/products/mfp-mono/35S5701.shtml"]
["Nexcom","Segmento 5","Impresora multifuncional 5.9","RICOH","SP 4510SF","www.ricoh-latinamerica.com"]
["OFIBOD LTDA ","Segmento 5","Impresora multifuncional 5.9","HEWLETT PACKARD","LaserJet Pro M426fdw (F6W15A)","http://www.hp.com/latam/CCE/2017/Printing/ETP%205-9%20HP%20LaserJet%20Pro%20MFP%20M426fdw.pdf"]
["Oficomco","Segmento 5","Impresora multifuncional 5.9","SAMSUNG","M4080FX ","http://www.samsung.com/es/business/business-products/printers-multifunction/mono-multi-function-printers/SL-M4080FX/SEE"]
["PyP Systems","Segmento 5","Impresora multifuncional 5.9","HEWLETT PACKARD","HP LaserJet Pro M426fdw (F6W15A)","http://www.hp.com/latam/CCE/2017/Printing/ETP%205-9%20HP%20LaserJet%20Pro%20MFP%20M426fdw.pdf"]
["Red computo","Segmento 5","Impresora multifuncional 5.9","RICOH","SP4510SF","www.ricoh.com.co"]
["Sistetronics","Segmento 5","Impresora multifuncional 5.9","SAMSUNG","M4080FX","http://www.samsung.com/co/business/business-products/printers-multifunction/mono-multi-function-printers/SL-M4080FX/XAA"]
["SUMIMAS SAS","Segmento 5","Impresora multifuncional 5.9","HEWLETT PACKARD","LaserJet Pro M426fdw","http://www.hp.com/latam/CCE/2017/Printing/ETP%205-9%20HP%20LaserJet%20Pro%20MFP%20M426fdw.pdf"]
["TECNOPHONE COLOMBIA SAS","Segmento 5","Impresora multifuncional 5.9","HEWLETT PACKARD","HP LaserJet Pro M426fdw (F6W15A)","http://www.hp.com/latam/CCE/2017/Printing/ETP%205-9%20HP%20LaserJet%20Pro%20MFP%20M426fdw.pdf"]
["Uniples","Segmento 5","Impresora multifuncional 5.9","HEWLETT PACKARD","HP LaserJet Pro M426fdw (F6W15A)","http://www.hp.com/latam/CCE/2017/Printing/ETP%205-9%20HP%20LaserJet%20Pro%20MFP%20M426fdw.pdf"]
["UT CCE","Segmento 5","Impresora multifuncional 5.9","HEWLETT PACKARD","HP LaserJet Pro M426fdw (F6W15A)","http://www.hp.com/latam/CCE/2017/Printing/ETP%205-9%20HP%20LaserJet%20Pro%20MFP%20M426fdw.pdf"]
["Carvajal Tecnología y Servicios SAS","Segmento 5","Impresora multifuncional B/N y color 5.12","HEWLETT PACKARD","HP Color LaserJet Enterprise MFP M681dh (J8A10A)","http://www.hp.com/latam/CCE/2017/Printing/ETP%205-12%20HP%20LaserJet%20Enterprise%20MFP%20M681dh.pdf"]
["Colsof","Segmento 5","Impresora multifuncional B/N y color 5.12","Lexmark","CX725DHE","http://www.lexmark.com/es_XL/products/mfp-color/40C9501.shtml"]
["COMPUTEL SYSTEM S.A.S.","Segmento 5","Impresora multifuncional B/N y color 5.12","HEWLETT PACKARD","HP Color LaserJet Enterprise MFP M681dh (J8A10A)","http://www.hp.com/latam/CCE/2017/Printing/ETP%205-12%20HP%20LaserJet%20Enterprise%20MFP%20M681dh.pdf"]
["Comware","Segmento 5","Impresora multifuncional B/N y color 5.12","HEWLETT PACKARD","HP Color LaserJet Enterprise MFP M681dh (J8A10A)","http://www.hp.com/latam/CCE/2017/Printing/ETP%205-12%20HP%20LaserJet%20Enterprise%20MFP%20M681dh.pdf"]
["Crear de Colombia","Segmento 5","Impresora multifuncional B/N y color 5.12","Oki Data","MC780mfp ","http://www.okidata.com/colombia/impresoras/multifuncionales/mc770-780"]
["CYSNUS","Segmento 5","Impresora multifuncional B/N y color 5.12","LEXMARK","CX725DHE","https://www.lexmark.com/es_XL/products/mfp-color/40C9501.shtml"]
["i3NET SAS","Segmento 5","Impresora multifuncional B/N y color 5.12","HEWLETT PACKARD","M681dh","http://www.hp.com/latam/CCE/2017/Printing/ETP%205-12%20HP%20LaserJet%20Enterprise%20MFP%20M681dh.pdf"]
["KEY MARKET SAS","Segmento 5","Impresora multifuncional B/N y color 5.12","HEWLETT PACKARD","HP Color LaserJet Enterprise MFP M681dh","http://www.hp.com/latam/CCE/2017/Printing/ETP%205-12%20HP%20LaserJet%20Enterprise%20MFP%20M681dh.pdf"]
["MICROHARD S.A.S","Segmento 5","Impresora multifuncional B/N y color 5.12","Lexmark","CX725DHE","http://www.lexmark.com/es_XL/products/mfp-color/40C9501.shtml"]
["Nexcom","Segmento 5","Impresora multifuncional B/N y color 5.12","HEWLETT PACKARD","HP COLOR LASERJET ENTERPRISE MFP M681DH","http://www8.hp.com/co/es/products/printers/product-detail.html?oid=5391197"]
["OFIBOD LTDA ","Segmento 5","Impresora multifuncional B/N y color 5.12","HEWLETT PACKARD","Color LaserJet Enterprise MFP M681dh (J8A10A)","http://www.hp.com/latam/CCE/2017/Printing/ETP%205-12%20HP%20LaserJet%20Enterprise%20MFP%20M681dh.pdf"]
["Oficomco","Segmento 5","Impresora multifuncional B/N y color 5.12","SAMSUNG","CLX-8640ND ","http://www.samsung.com/latin/business/business-products/printers-multifunction/colour-multi-function-printers/CLX-8640ND/XAA"]
["PyP Systems","Segmento 5","Impresora multifuncional B/N y color 5.12","HEWLETT PACKARD","HP Color LaserJet Enterprise MFP M681dh (J8A10A)","http://www.hp.com/latam/CCE/2017/Printing/ETP%205-12%20HP%20LaserJet%20Enterprise%20MFP%20M681dh.pdf"]
["Red computo","Segmento 5","Impresora multifuncional B/N y color 5.12","RICOH","MP C4504","www.ricoh.com.co"]
["Sistetronics","Segmento 5","Impresora multifuncional B/N y color 5.12","Oki Data","MC780mfp","http://www.okidata.com/colombia/impresoras/multifuncionales/mc770-780"]
["SUMIMAS SAS","Segmento 5","Impresora multifuncional B/N y color 5.12","LEXMARK ","CX725dhe","http://media.lexmark.com/www/idml/assets/asset_4465/media/es_XL/pdfs/high.pdf"]
["TECNOPHONE COLOMBIA SAS","Segmento 5","Impresora multifuncional B/N y color 5.12","HEWLETT PACKARD","HP Color LaserJet Enterprise MFP M681dh (J8A10A)","http://www.hp.com/latam/CCE/2017/Printing/ETP%205-12%20HP%20LaserJet%20Enterprise%20MFP%20M681dh.pdf"]
["Uniples","Segmento 5","Impresora multifuncional B/N y color 5.12","HEWLETT PACKARD","HP Color LaserJet Enterprise MFP M681dh (J8A10A)","http://www.hp.com/latam/CCE/2017/Printing/ETP%205-12%20HP%20LaserJet%20Enterprise%20MFP%20M681dh.pdf"]
["UT CCE","Segmento 5","Impresora multifuncional B/N y color 5.12","HEWLETT PACKARD","HP Color LaserJet Enterprise MFP M681dh (J8A10A)","http://www.hp.com/latam/CCE/2017/Printing/ETP%205-12%20HP%20LaserJet%20Enterprise%20MFP%20M681dh.pdf"]
["Carvajal Tecnología y Servicios SAS","Segmento 5","Impresora portátil color 5.5","HEWLETT PACKARD","HP OfficeJet 200 (CZ993A)","http://www.hp.com/latam/CCE/2017/Printing/ETP%205-5%20HP%20OfficeJet%20200%20Mobile%20Printer.pdf"]
["Colsof","Segmento 5","Impresora portátil color 5.5","Epson","WF- 100","https://www.epson.es/products/printers/inkjet-printers/microbusiness/workforce-wf-100w"]
["COMPUTEL SYSTEM S.A.S.","Segmento 5","Impresora portátil color 5.5","HEWLETT PACKARD","OfficeJet 200 (CZ993A)","http://www.hp.com/latam/CCE/2017/Printing/ETP%205-5%20HP%20OfficeJet%20200%20Mobile%20Printer.pdf"]
["Comware","Segmento 5","Impresora portátil color 5.5","HEWLETT PACKARD","HP OfficeJet 200 (CZ993A)","http://www.hp.com/latam/CCE/2017/Printing/ETP%205-5%20HP%20OfficeJet%20200%20Mobile%20Printer.pdf"]
["Crear de Colombia","Segmento 5","Impresora portátil color 5.5","HEWLETT PACKARD","HP OfficeJet 200 ","http://www.hp.com/latam/CCE/2017/Printing/ETP%205-5%20HP%20OfficeJet%20200%20Mobile%20Printer.pdf"]
["CYSNUS","Segmento 5","Impresora portátil color 5.5","EPSON","WF-100","https://epson.com.co/Soporte/Impresoras/Impresoras-de-funci%C3%B3n-%C3%BAnica/Epson-WorkForce/Epson-WorkForce-WF-100/s/SPT_C11CE05201?review-filter=Windows+Server+2008+64-bit#manuals"]
["i3NET SAS","Segmento 5","Impresora portátil color 5.5","HEWLETT PACKARD","OfficeJet 200","http://www.hp.com/latam/CCE/2017/Printing/ETP%205-5%20HP%20OfficeJet%20200%20Mobile%20Printer.pdf"]
["KEY MARKET SAS","Segmento 5","Impresora portátil color 5.5","HEWLETT PACKARD","HP OfficeJet 200","http://www.hp.com/latam/CCE/2017/Printing/ETP%205-5%20HP%20OfficeJet%20200%20Mobile%20Printer.pdf"]
["MICROHARD S.A.S","Segmento 5","Impresora portátil color 5.5","Epson","WF-100","https://www.epson.es/products/printers/inkjet-printers/microbusiness/workforce-wf-100w"]
["Nexcom","Segmento 5","Impresora portátil color 5.5","EPSON","WF -100","www.latin.epson.com"]
["OFIBOD LTDA ","Segmento 5","Impresora portátil color 5.5","Epson ","WF- 100","https://www.epson.es/products/printers/inkjet-printers/microbusiness/workforce-wf-100w"]
["Oficomco","Segmento 5","Impresora portátil color 5.5","Epson ","WF- 100","https://www.epson.es/products/printers/inkjet-printers/microbusiness/workforce-wf-100w"]
["PyP Systems","Segmento 5","Impresora portátil color 5.5","EPSON ","Workforce 100","https://www.epson.es/products/printers/inkjet-printers/microbusiness/workforce-wf-100w"]
["Red computo","Segmento 5","Impresora portátil color 5.5","EPSON","WF-100","www.epson.com.co"]
["Sistetronics","Segmento 5","Impresora portátil color 5.5","EPSON","WF-100W","https://www.epson.es/products/printers/inkjet-printers/microbusiness/workforce-wf-100w"]
["SUMIMAS SAS","Segmento 5","Impresora portátil color 5.5","HEWLETT PACKARD","OfficeJet 200","http://www.hp.com/latam/CCE/2017/Printing/ETP%205-5%20HP%20OfficeJet%20200%20Mobile%20Printer.pdf"]
["TECNOPHONE COLOMBIA SAS","Segmento 5","Impresora portátil color 5.5","HEWLETT PACKARD","HP OfficeJet 200 (CZ993A)","http://www.hp.com/latam/CCE/2017/Printing/ETP%205-5%20HP%20OfficeJet%20200%20Mobile%20Printer.pdf"]
["Uniples","Segmento 5","Impresora portátil color 5.5","HEWLETT PACKARD","HP OfficeJet 200 (CZ993A) ","http://h20195.www2.hp.com/v2/GetDocument.aspx?docname=4AA6-4627SPL&doctype=data sheet&doclang=ES_MX&searchquery=&cc=co&lc=es"]
["UT CCE","Segmento 5","Impresora portátil color 5.5","HEWLETT PACKARD","HP OfficeJet 200 (CZ993A)","http://www.hp.com/latam/CCE/2017/Printing/ETP%205-5%20HP%20OfficeJet%20200%20Mobile%20Printer.pdf"]
["Carvajal Tecnología y Servicios SAS","Segmento 5","Impresora transferencia térmica B/N 5.4","Epson ","TM-T20II","https://mediaserver.goepson.com/ImConvServlet/imconv/eafba53336792c148c7d1e2a9966e290d4ac6541/original"]
["Colsof","Segmento 5","Impresora transferencia térmica B/N 5.4","Epson","TM-T20II","https://mediaserver.goepson.com/ImConvServlet/imconv/eafba53336792c148c7d1e2a9966e290d4ac6541/original"]
["COMPUTEL SYSTEM S.A.S.","Segmento 5","Impresora transferencia térmica B/N 5.4","EPSON","TM-T20II - (C31CD52062)","https://mediaserver.goepson.com/ImConvServlet/imconv/eafba53336792c148c7d1e2a9966e290d4ac6541/original"]
["Comware","Segmento 5","Impresora transferencia térmica B/N 5.4","BIXOLON","SRP-330II","http://www.bixolon.com/html/en/product/product_detail.xhtml?pgNum=&prod_id=122&large_cd=0001&small_cd=0001"]
["Crear de Colombia","Segmento 5","Impresora transferencia térmica B/N 5.4","Bixolon","SRP-350III","http://www.bixolon.com/html/es/product/product_detail.xhtml?pgNum=&prod_id=79&large_cd=0001&small_cd="]
["CYSNUS","Segmento 5","Impresora transferencia térmica B/N 5.4","EPSON","TM-T20II","https://epson.com.co/Para-el-trabajo/Impresoras/Punto-de-Venta/c/w150"]
["i3NET SAS","Segmento 5","Impresora transferencia térmica B/N 5.4","EPSON","TM-T20II","https://epson.com.co/Para-el-trabajo/Impresoras/Punto-de-Venta/Impresora-Epson-TM-T20II-para-recibos-de-puntos-de-venta/p/C31CD52062"]
["KEY MARKET SAS","Segmento 5","Impresora transferencia térmica B/N 5.4","EPSON","TM-T20II","https://mediaserver.goepson.com/ImConvServlet/imconv/eafba53336792c148c7d1e2a9966e290d4ac6541/original"]
["MICROHARD S.A.S","Segmento 5","Impresora transferencia térmica B/N 5.4","Epson","TM-T20II","https://mediaserver.goepson.com/ImConvServlet/imconv/eafba53336792c148c7d1e2a9966e290d4ac6541/original"]
["Nexcom","Segmento 5","Impresora transferencia térmica B/N 5.4","EPSON","TMT-T20 II","https://epson.com.co/search/?text=TMT-20+II"]
["OFIBOD LTDA ","Segmento 5","Impresora transferencia térmica B/N 5.4","Epson ","TM-T20II","https://mediaserver.goepson.com/ImConvServlet/imconv/eafba53336792c148c7d1e2a9966e290d4ac6541/original"]
["Oficomco","Segmento 5","Impresora transferencia térmica B/N 5.4","Epson ","TM-T20II","https://mediaserver.goepson.com/ImConvServlet/imconv/eafba53336792c148c7d1e2a9966e290d4ac6541/original"]
["PyP Systems","Segmento 5","Impresora transferencia térmica B/N 5.4","EPSON ","TM-T20II","https://mediaserver.goepson.com/ImConvServlet/imconv/eafba53336792c148c7d1e2a9966e290d4ac6541/original"]
["Red computo","Segmento 5","Impresora transferencia térmica B/N 5.4","EPSON","TM-72II","www.epson.com.co"]
["Sistetronics","Segmento 5","Impresora transferencia térmica B/N 5.4","SAT","16T","https://www.satpcs.com.co/producto/10998/impresora-termica-sat-16t"]
["SUMIMAS SAS","Segmento 5","Impresora transferencia térmica B/N 5.4","EPSON","TM-T20II","https://mediaserver.goepson.com/ImConvServlet/imconv/eafba53336792c148c7d1e2a9966e290d4ac6541/original"]
["TECNOPHONE COLOMBIA SAS","Segmento 5","Impresora transferencia térmica B/N 5.4","EPSON","TM-T20II","https://mediaserver.goepson.com/ImConvServlet/imconv/eafba53336792c148c7d1e2a9966e290d4ac6541/original"]
["Uniples","Segmento 5","Impresora transferencia térmica B/N 5.4","Epson ","TM-T20II","https://mediaserver.goepson.com/ImConvServlet/imconv/eafba53336792c148c7d1e2a9966e290d4ac6541/original"]
["UT CCE","Segmento 5","Impresora transferencia térmica B/N 5.4","EPSON","TM-T20II","https://mediaserver.goepson.com/ImConvServlet/imconv/eafba53336792c148c7d1e2a9966e290d4ac6541/original"]
["Carvajal Tecnología y Servicios SAS","Segmento 5","Lector de código de barras 1D 5.17","HEWLETT PACKARD","HP Linear Barcode Scanner QY405AA","http://www.hp.com/latam/CCE/HP%20Linear%20Barcode%20Scanner%20QY405AA.pdf"]
["Colsof","Segmento 5","Lector de código de barras 1D 5.17","Zebra","Ls2208","https://www.zebra.com/la/es/products/scanners/general-purpose-scanners/handheld/ls2208.html\n"]
["COMPUTEL SYSTEM S.A.S.","Segmento 5","Lector de código de barras 1D 5.17","HEWLETT PACKARD","HP Linear Barcode Scanner","http://sistemas.hiller.com.bo/files/Intermec/Xenon1900_DS_RevD_1211_ESPANOL.pdf"]
["Comware","Segmento 5","Lector de código de barras 1D 5.17","HEWLETT PACKARD","HP linear BarCode Scanner QY405AA","http://www.hp.com/latam/CCE/HP%20Linear%20Barcode%20Scanner%20QY405AA.pdf"]
["Crear de Colombia","Segmento 5","Lector de código de barras 1D 5.17","Zebra","SYMBOL LI2208","https://www.zebra.com/us/en/products/spec-sheets-latest/li2208-spec-sheet-es.html"]
["CYSNUS","Segmento 5","Lector de código de barras 1D 5.17","HONEYWELL","Xenon 1900g","https://country.honeywellaidc.com/CatalogDocuments/Xenon1900_DS_RevA_0510_LS.pdf"]
["i3NET SAS","Segmento 5","Lector de código de barras 1D 5.17","HEWLETT PACKARD","QY405AA","http://www.hp.com/latam/CCE/HP%20Linear%20Barcode%20Scanner%20QY405AA.pdf"]
["KEY MARKET SAS","Segmento 5","Lector de código de barras 1D 5.17","HEWLETT PACKARD","HP Linear Barcode Scanner\nQY405AA","http://www.hp.com/latam/CCE/HP%20Linear%20Barcode%20Scanner%20QY405AA.pdf"]
["MICROHARD S.A.S","Segmento 5","Lector de código de barras 1D 5.17","Zebra","LI2208","http://www.nexsyson.com/Zebra/2017/q1/html-Zebra-a-la-vanguardia-de-la-tecnologia-gc420-gt800/index-colombia.html"]
["Nexcom","Segmento 5","Lector de código de barras 1D 5.17","ZEBRA","SYMBOL LI2208","SYMBOL Lhttps://www.zebra.com/us/en/support-downloads/scanners/general-purpose-scanners/li2208.htmlS2208"]
["OFIBOD LTDA ","Segmento 5","Lector de código de barras 1D 5.17","HEWLETT PACKARD"," Linear Barcode Scanner\nQY405AA","http://www.hp.com/latam/CCE/HP%20Linear%20Barcode%20Scanner%20QY405AA.pdf"]
["Oficomco","Segmento 5","Lector de código de barras 1D 5.17","ZEBRA","SYMBOL LI2208","https://www.zebra.com/content/dam/zebra_new_ia/en-us/solutions-verticals/product/barcode-scanners/Handheld%20Scanners/LI2208/spec-sheets/li2208-sell-sheet-es-es.pdf"]
["PyP Systems","Segmento 5","Lector de código de barras 1D 5.17","ZEBRA","SYMBOL LI2208","file:///C:/Users/user/AppData/Local/Microsoft/Windows/INetCache/Content.Outlook/QLDOG0SK/li2208-spec-sheet-es1%20(2).pdf"]
["Red computo","Segmento 5","Lector de código de barras 1D 5.17","HONEYWELL","1900gSR","www.honeywell.com/worldwide/south.../colombia-es"]
["Sistetronics","Segmento 5","Lector de código de barras 1D 5.17","SAT","LD101","https://www.satpcs.com.co/producto/11019/lector-de-codigos-de-barras-sat-ld101"]
["SUMIMAS SAS","Segmento 5","Lector de código de barras 1D 5.17","HEWLETT PACKARD","HP Linear Barcode Scanner\nQY405AA","http://www.hp.com/latam/CCE/HP%20Linear%20Barcode%20Scanner%20QY405AA.pdf"]
["TECNOPHONE COLOMBIA SAS","Segmento 5","Lector de código de barras 1D 5.17","HEWLETT PACKARD","HP Linear Barcode Scanner QY405AA","http://www.hp.com/latam/CCE/HP%20Linear%20Barcode%20Scanner%20QY405AA.pdf"]
["Uniples","Segmento 5","Lector de código de barras 1D 5.17","DATALOGIC","QD2131-BKK1S","http://www.datalogic.com/esp/productos/transporte-log%C3%ADstica-retail-otras-soluciones/dispositivos-manuales-de-uso-general/quickscan-i-qd2131-pd-697.html"]
["UT CCE","Segmento 5","Lector de código de barras 1D 5.17","HEWLETT PACKARD","QY405AA","http://www.hp.com/latam/CCE/HP%20Linear%20Barcode%20Scanner%20QY405AA.pdf"]
["Carvajal Tecnología y Servicios SAS","Segmento 5","Lector de código de barras 2D 5.18","HEWLETT PACKARD","HP Imaging Barcode Scanner BW868AA","http://www.hp.com/latam/CCE/HP%20Imaging%20Barcode%20Scanner%20%20BW868AA.pdf"]
["Colsof","Segmento 5","Lector de código de barras 2D 5.18","Zebra","Ds4308","https://www.zebra.com/la/es/products/scanners/general-purpose-scanners/handheld/ds4308.html"]
["COMPUTEL SYSTEM S.A.S.","Segmento 5","Lector de código de barras 2D 5.18","HONEYWELL","Xenon 1900","http://sistemas.hiller.com.bo/files/Intermec/Xenon1900_DS_RevD_1211_ESPANOL.pdf"]
["Comware","Segmento 5","Lector de código de barras 2D 5.18","HEWLETT PACKARD","HP Imaging BarCode Scanner BW868AA","http://www.hp.com/latam/CCE/HP%20Imaging%20Barcode%20Scanner%20%20BW868AA.pdf"]
["Crear de Colombia","Segmento 5","Lector de código de barras 2D 5.18","Zebra","DS2200","https://www.zebra.com/la/es/products/scanners/general-purpose-scanners/handheld/ds2200-series.html"]
["CYSNUS","Segmento 5","Lector de código de barras 2D 5.18","HONEYWELL","Xenon 1900g","https://country.honeywellaidc.com/CatalogDocuments/Xenon1900_DS_RevA_0510_LS.pdf"]
["i3NET SAS","Segmento 5","Lector de código de barras 2D 5.18","HEWLETT PACKARD","BW868AA","http://www.hp.com/latam/CCE/HP%20Imaging%20Barcode%20Scanner%20%20BW868AA.pdf"]
["KEY MARKET SAS","Segmento 5","Lector de código de barras 2D 5.18","HEWLETT PACKARD","HP Imaging Barcode Scanner \nBW868AA","http://www.hp.com/latam/CCE/HP%20Imaging%20Barcode%20Scanner%20%20BW868AA.pdf"]
["MICROHARD S.A.S","Segmento 5","Lector de código de barras 2D 5.18","Zebra","DS2208","http://www.nexsyson.com/Zebra/2017/q1/html-Zebra-a-la-vanguardia-de-la-tecnologia-ZXP-Serie-1/index-colombia.html"]
["Nexcom","Segmento 5","Lector de código de barras 2D 5.18","HONEYWELL","XENON 1900g","https://www.honeywellaidc.com/products/barcode-scanners/general-duty/xenon-1900g-1902g"]
["OFIBOD LTDA ","Segmento 5","Lector de código de barras 2D 5.18","HEWLETT PACKARD","Imaging Barcode Scanner \nBW868AA","http://www.hp.com/latam/CCE/HP%20Imaging%20Barcode%20Scanner%20%20BW868AA.pdf"]
["Oficomco","Segmento 5","Lector de código de barras 2D 5.18","ZEBRA","DS2200","https://www.zebra.com/la/es/products/scanners/general-purpose-scanners/handheld/ds2200-series.html"]
["PyP Systems","Segmento 5","Lector de código de barras 2D 5.18","ZEBRA"," DS2200 Series ","file:///C:/Users/user/AppData/Local/Microsoft/Windows/INetCache/Content.Outlook/QLDOG0SK/DS2200_SS_A4_1116_ES%20(2).pdf"]
["Red computo","Segmento 5","Lector de código de barras 2D 5.18","HONEYWELL","1900gSR","www.honeywell.com/worldwide/south.../colombia-es"]
["Sistetronics","Segmento 5","Lector de código de barras 2D 5.18","HONEYWELL","Xenon 1900","https://country.honeywellaidc.com/es-LA/Pages/Product.aspx?category=hand-held-barcode-scanner&cat=HSM&pid=1900"]
["SUMIMAS SAS","Segmento 5","Lector de código de barras 2D 5.18","HEWLETT PACKARD","HP Imaging Barcode Scanner \nBW868AA","http://www.hp.com/latam/CCE/HP%20Imaging%20Barcode%20Scanner%20%20BW868AA.pdf"]
["TECNOPHONE COLOMBIA SAS","Segmento 5","Lector de código de barras 2D 5.18","HEWLETT PACKARD","HP Imaging Barcode Scanner BW868AA","http://www.hp.com/latam/CCE/HP%20Imaging%20Barcode%20Scanner%20%20BW868AA.pdf"]
["Uniples","Segmento 5","Lector de código de barras 2D 5.18","DATALOGIC","GD4400-(GD4430-BKK1S)","http://www.datalogic.com/esp/productos/retail-otras-soluciones/dispositivos-manuales-de-uso-general/gryphon-i-gd4400-2d-pd-174.html#download\npie firma "]
["UT CCE","Segmento 5","Lector de código de barras 2D 5.18","HEWLETT PACKARD","HP Imaging Barcode Scanner \nBW868AA","http://www.hp.com/latam/CCE/HP%20Imaging%20Barcode%20Scanner%20%20BW868AA.pdf"]
["Carvajal Tecnología y Servicios SAS","Segmento 5","Plotter 5.20","HEWLETT PACKARD","DesignJet SD Pro (L3S81B)","http://www8.hp.com/co/es/large-format-printers/designjet-printers/sdpromfp.html"]
["Colsof","Segmento 5","Plotter 5.20","EPSON","SureColor T7270","https://mediaserver.goepson.com/ImConvServlet/imconv/370fb76cc6ca6af0740f3209d63df29f28cbb648/original"]
["COMPUTEL SYSTEM S.A.S.","Segmento 5","Plotter 5.20","HEWLETT PACKARD","DesignJet SD Pro (L3S81B)","http://www8.hp.com/co/es/large-format-printers/designjet-printers/sdpromfp.html"]
["Comware","Segmento 5","Plotter 5.20"]
["Crear de Colombia","Segmento 5","Plotter 5.20","HEWLETT PACKARD","DesignJet SD Pro (L3S81B)","http://www8.hp.com/co/es/large-format-printers/designjet-printers/sdpromfp.html"]
["CYSNUS","Segmento 5","Plotter 5.20","EPSON","SureColor T7270","https://mediaserver.goepson.com/ImConvServlet/imconv/370fb76cc6ca6af0740f3209d63df29f28cbb648/original"]
["i3NET SAS","Segmento 5","Plotter 5.20"]
["KEY MARKET SAS","Segmento 5","Plotter 5.20","HEWLETT PACKARD","DesignJet SD Pro (L3S81B)","http://www8.hp.com/co/es/large-format-printers/designjet-printers/sdpromfp.html"]
["MICROHARD S.A.S","Segmento 5","Plotter 5.20"]
["Nexcom","Segmento 5","Plotter 5.20"]
["OFIBOD LTDA ","Segmento 5","Plotter 5.20"]
["Oficomco","Segmento 5","Plotter 5.20","EPSON","SureColor T7270","https://mediaserver.goepson.com/ImConvServlet/imconv/370fb76cc6ca6af0740f3209d63df29f28cbb648/original"]
["PyP Systems","Segmento 5","Plotter 5.20","EPSON","SureColor T7270","https://mediaserver.goepson.com/ImConvServlet/imconv/370fb76cc6ca6af0740f3209d63df29f28cbb648/original"]
["Red computo","Segmento 5","Plotter 5.20","EPSON","SureColor T7270","https://mediaserver.goepson.com/ImConvServlet/imconv/370fb76cc6ca6af0740f3209d63df29f28cbb648/original"]
["Sistetronics","Segmento 5","Plotter 5.20","EPSON","SureColor T7270","https://mediaserver.goepson.com/ImConvServlet/imconv/370fb76cc6ca6af0740f3209d63df29f28cbb648/original"]
["SUMIMAS SAS","Segmento 5","Plotter 5.20","EPSON","SureColor T7270","https://mediaserver.goepson.com/ImConvServlet/imconv/370fb76cc6ca6af0740f3209d63df29f28cbb648/original"]
["TECNOPHONE COLOMBIA SAS","Segmento 5","Plotter 5.20"]
["Uniples","Segmento 5","Plotter 5.20","HEWLETT PACKARD","DesignJet SD Pro (1GY94A)","http://www8.hp.com/h20195/v2/GetPDF.aspx/4AA5-6359SPL.pdf"]
["UT CCE","Segmento 5","Plotter 5.20","HEWLETT PACKARD","DesignJet SD Pro (L3S81B)","http://www8.hp.com/co/es/large-format-printers/designjet-printers/sdpromfp.html"]
["Carvajal Tecnología y Servicios SAS","Segmento 5","Plotter Multifuncional Color 5.19","HEWLETT PACKARD","Impresora multifunción de 36 pulgadas HP DesignJet T2530 (L2Y25A)","http://www.hp.com/latam/CCE/2017/Printing/ETP%205-19%20HP%20Plotter%20MFP%20T2530.PDF"]
["Colsof","Segmento 5","Plotter Multifuncional Color 5.19","Epson","T5270","https://mediaserver.goepson.com/ImConvServlet/imconv/370fb76cc6ca6af0740f3209d63df29f28cbb648/original"]
["COMPUTEL SYSTEM S.A.S.","Segmento 5","Plotter Multifuncional Color 5.19","HEWLETT PACKARD"," Impresora multifunción de 36 pulgadas HP DesignJet T2530 (L2Y25A)","http://www.hp.com/latam/CCE/2017/Printing/ETP%205-19%20HP%20Plotter%20MFP%20T2530.PDF"]
["Comware","Segmento 5","Plotter Multifuncional Color 5.19","HEWLETT PACKARD","Impresora multifunción de 36 pulgadas HP DesignJet T2530 (L2Y25A)","http://www.hp.com/latam/CCE/2017/Printing/ETP%205-19%20HP%20Plotter%20MFP%20T2530.PDF"]
["Crear de Colombia","Segmento 5","Plotter Multifuncional Color 5.19","HEWLETT PACKARD","T2530","http://www.hp.com/latam/CCE/2017/Printing/ETP%205-19%20HP%20Plotter%20MFP%20T2530.PDF"]
["CYSNUS","Segmento 5","Plotter Multifuncional Color 5.19","EPSON","T5270","https://epson.com.co/Para-el-trabajo/Impresoras/Gran-Formato/c/w140"]
["i3NET SAS","Segmento 5","Plotter Multifuncional Color 5.19","HEWLETT PACKARD","T2530","http://www.hp.com/latam/CCE/2017/Printing/ETP%205-19%20HP%20Plotter%20MFP%20T2530.PDF"]
["KEY MARKET SAS","Segmento 5","Plotter Multifuncional Color 5.19","HEWLETT PACKARD","DesignJet T2530 L2Y25A","http://www.hp.com/latam/CCE/2017/Printing/ETP%205-19%20HP%20Plotter%20MFP%20T2530.PDF"]
["MICROHARD S.A.S","Segmento 5","Plotter Multifuncional Color 5.19","Epson","T5270SR","https://mediaserver.goepson.com/ImConvServlet/imconv/370fb76cc6ca6af0740f3209d63df29f28cbb648/original"]
["Nexcom","Segmento 5","Plotter Multifuncional Color 5.19","HEWLETT PACKARD","HP DESIGNJET T2530","http://www8.hp.com/co/es/large-format-printers/designjet-printers/t2530.html"]
["OFIBOD LTDA ","Segmento 5","Plotter Multifuncional Color 5.19","Epson ","T5270","https://mediaserver.goepson.com/ImConvServlet/imconv/370fb76cc6ca6af0740f3209d63df29f28cbb648/original"]
["Oficomco","Segmento 5","Plotter Multifuncional Color 5.19","Epson ","T5270","https://mediaserver.goepson.com/ImConvServlet/imconv/370fb76cc6ca6af0740f3209d63df29f28cbb648/original"]
["PyP Systems","Segmento 5","Plotter Multifuncional Color 5.19","EPSON ","T5270","https://mediaserver.goepson.com/ImConvServlet/imconv/370fb76cc6ca6af0740f3209d63df29f28cbb648/original"]
["Red computo","Segmento 5","Plotter Multifuncional Color 5.19","EPSON","T5270","www.epson.com.co"]
["Sistetronics","Segmento 5","Plotter Multifuncional Color 5.19","EPSON","5270SR","https://epson.com.co/Para-el-trabajo/Impresoras/Gran-Formato/Impresora-Epson-SureColor-T5270SR/p/SCT5270SR"]
["SUMIMAS SAS","Segmento 5","Plotter Multifuncional Color 5.19","HEWLETT PACKARD"," Impresora multifunción de 36 pulgadas HP DesignJet T2530 L2Y25A","http://www.hp.com/latam/CCE/2017/Printing/ETP%205-19%20HP%20Plotter%20MFP%20T2530.PDF"]
["TECNOPHONE COLOMBIA SAS","Segmento 5","Plotter Multifuncional Color 5.19","EPSON","Epson SureColor T5270 Single Roll Edition Printer","https://epson.com/For-Work/Printers/Large-Format/Epson-SureColor-T5270-Single-Roll-Edition-Printer/p/SCT5270SR"]
["Uniples","Segmento 5","Plotter Multifuncional Color 5.19","HEWLETT PACKARD","T2530","http://www.hp.com/latam/CCE/2017/Printing/ETP%205-19%20HP%20Plotter%20MFP%20T2530.PDF"]
["UT CCE","Segmento 5","Plotter Multifuncional Color 5.19","HEWLETT PACKARD"," Impresora multifunción de 36 pulgadas HP DesignJet T2530 L2Y25A","http://www.hp.com/latam/CCE/2017/Printing/ETP%205-19%20HP%20Plotter%20MFP%20T2530.PDF"]
["COMPUTEL SYSTEM S.A.S.","Segmento 6","Monitor Industrial 6.1","SAMSUNG","DM32E","www.samsung.com.co"]
["Crear de Colombia","Segmento 6","Monitor Industrial 6.1","SAMSUNG","DM32E","http://www.samsung.com/latin/business/business-products/smart-signage/professional-display/LH32DMEPLGA/GO"]
["CYSNUS","Segmento 6","Monitor Industrial 6.1","SAMSUNG","DM32E","http://www.samsung.com/latin/business/business-products/smart-signage/professional-display/LH32DMEPLGA/GO"]
["i3NET SAS","Segmento 6","Monitor Industrial 6.1","SAMSUNG","DM32E","http://www.samsung.com/latin/business/business-products/smart-signage/professional-display/LH32DMEPLGA/GO"]
["Nexcom","Segmento 6","Monitor Industrial 6.1","LG","32SM5KC","http://www.lg.com/co/digital-signage/lg-32SM5KC"]
["Oficomco","Segmento 6","Monitor Industrial 6.1","SAMSUNG","DM32E","http://www.samsung.com/latin/business/business-products/smart-signage/professional-display/LH32DMEPLGA/GO"]
["Red computo","Segmento 6","Monitor Industrial 6.1","LG","32SM5KC","www.lg.com/co"]
["Sistetronics","Segmento 6","Monitor Industrial 6.1","Samsung","DM32E","http://www.samsung.com/es/business/business-products/smart-signage/professional-display/LH32DMEPLGC/EN"]
["SUMIMAS SAS","Segmento 6","Monitor Industrial 6.1","SAMSUNG ","DM32E ","http://www.samsung.com/us/business/displays/digital-signage/LH32DMEPLGA/GO"]
["UT CCE","Segmento 6","Monitor Industrial 6.1","LG","32SM5KC","http://www.lg.com/global/business/information-display/digital-signage/lg-32SM5KC"]
["COMPUTEL SYSTEM S.A.S.","Segmento 6","Monitor Industrial 6.2","SAMSUNG","DM40E","www.samsung.com.co"]
["Crear de Colombia","Segmento 6","Monitor Industrial 6.2","SAMSUNG","DM40E","http://www.samsung.com/co/business/business-products/smart-signage/general-display/LH40DMEPLGA/GO"]
["CYSNUS","Segmento 6","Monitor Industrial 6.2","SAMSUNG","DM40E","http://www.samsung.com/co/business/business-products/smart-signage/general-display/LH40DMEPLGA/GO"]
["i3NET SAS","Segmento 6","Monitor Industrial 6.2","SAMSUNG","DM40E","http://www.samsung.com/co/business/business-products/smart-signage/general-display/LH40DMEPLGA/GO"]
["Nexcom","Segmento 6","Monitor Industrial 6.2","LG","43SM5KC","http://www.lg.com/co/digital-signage/lg-43SM5KC"]
["Oficomco","Segmento 6","Monitor Industrial 6.2","SAMSUNG","DM40E","http://www.samsung.com/co/business/business-products/smart-signage/general-display/LH40DMEPLGA/GO"]
["Red computo","Segmento 6","Monitor Industrial 6.2","LG","43SM5KC","www.lg.com/co"]
["Sistetronics","Segmento 6","Monitor Industrial 6.2","Samsung","DM40E","http://www.samsung.com/es/business/business-products/smart-signage/professional-display/LH40DMEPLGC/EN"]
["SUMIMAS SAS","Segmento 6","Monitor Industrial 6.2","SAMSUNG ","DM40E ","http://www.samsung.com/us/business/displays/digital-signage/LH40DMEPLGA/GO\n\n"]
["UT CCE","Segmento 6","Monitor Industrial 6.2","LG","43SM5KC","http://www.lg.com/global/business/information-display/digital-signage/lg-43SM5KC"]
["COMPUTEL SYSTEM S.A.S.","Segmento 6","Monitor Industrial 6.3","SAMSUNG","DH55E","www.samsung.com.co"]
["Crear de Colombia","Segmento 6","Monitor Industrial 6.3","SAMSUNG","DH55E","http://displaysolutions.samsung.com/digital-signage/detail/429/DH55E"]
["CYSNUS","Segmento 6","Monitor Industrial 6.3","SAMSUNG","DH55E","http://www.samsung.com/co/business/business-products/smart-signage/general-display/LH55DHEPLGA/GO"]
["i3NET SAS","Segmento 6","Monitor Industrial 6.3","SAMSUNG","PH55F","http://displaysolutions.samsung.com/digital-signage/detail/992/PH55F"]
["Nexcom","Segmento 6","Monitor Industrial 6.3","LG","55LV77A","http://www.lg.com/global/lgcomb2b/search/search.lg?search=55LV77A&tabType="]
["Oficomco","Segmento 6","Monitor Industrial 6.3","LG","55LV77A","http://www.samsung.com/latin/business/business-products/smart-signage/professional-display/LH55DHEPLGA/GO"]
["Red computo","Segmento 6","Monitor Industrial 6.3","LG","55LV77A","www.lg.com/co"]
["Sistetronics","Segmento 6","Monitor Industrial 6.3","Samsung","PH55F","http://displaysolutions.samsung.com/digital-signage/detail/992/PH55F"]
["SUMIMAS SAS","Segmento 6","Monitor Industrial 6.3","SAMSUNG ","DH55E ","http://www.samsung.com/us/business/displays/digital-signage/LH55DHEPLGA/GO"]
["UT CCE","Segmento 6","Monitor Industrial 6.3","LG","55LV77A","http://www.lg.com/uk/business/information-display/digital-signage/lg-55LV77A"]
["COMPUTEL SYSTEM S.A.S.","Segmento 6","Monitor Touchscreen 6.4","SAMSUNG","DB22D-P","www.samsung.com.co"]
["Crear de Colombia","Segmento 6","Monitor Touchscreen 6.4","SAMSUNG","DB22D-T","http://www.samsung.com/co/business/business-products/smart-signage/specialized-display/LH22DBDPTGC/GO"]
["CYSNUS","Segmento 6","Monitor Touchscreen 6.4","VIEWSONIC","TD2230","http://www.viewsonic.com/la/monitores/monitores-tactiles/td2230.html"]
["i3NET SAS","Segmento 6","Monitor Touchscreen 6.4","VIEWSONIC","TD2230","http://www.viewsonic.com/la/td2230.html"]
["Nexcom","Segmento 6","Monitor Touchscreen 6.4","LG","22MP58VQ","http://www.lg.com/cl/monitores/lg-22MP58VQ"]
["Oficomco","Segmento 6","Monitor Touchscreen 6.4","VIEWSONIC","TD2230","http://www.viewsonic.com/us/td2230.html"]
["Red computo","Segmento 6","Monitor Touchscreen 6.4","LG","22MP58VQ","www.lg.com/co"]
["Sistetronics","Segmento 6","Monitor Touchscreen 6.4","ViewSonic","TD2230","http://www.viewsonic.com/us/td2230.html"]
["SUMIMAS SAS","Segmento 6","Monitor Touchscreen 6.4","ELO ","2201L","https://www.elotouch.com/touchscreen-monitors/2201l.html"]
["UT CCE","Segmento 6","Monitor Touchscreen 6.4","VIEWSONIC","TD2230","http://www.viewsonic.com/us/td2230.html"]
["COMPUTEL SYSTEM S.A.S.","Segmento 6","Tablero interactivo y video proyector 6.8","AVA ","AVC-TB088","www.avacom.com.co"]
["Crear de Colombia","Segmento 6","Tablero interactivo y video proyector 6.8","IQ BOARD","IQ3400+","http://iqboard.co/descargas/FichasTecnicas/IQ3400+.pdf"]
["CYSNUS","Segmento 6","Tablero interactivo y video proyector 6.8","EPSON\nAVACOM","POWERLITE 530\nAVC-TB 088 ","https://epson.com.co/Soporte/Proyectores/Epson-PowerLite/Epson-PowerLite-530/s/SPT_V11H673020?review-filter=macOS+10.12.x#manuals\nhttp://avacom.com.co/wp-content/uploads/2017/05/Brochure-Comercial-Tablero-Interactivo-88.pdf"]
["i3NET SAS","Segmento 6","Tablero interactivo y video proyector 6.8","OPTOMA","X316ST","http://www.optoma.es/projectorproduct/w320usti - http://www.hanshingroup.com/Products_specificationss.asp?ClassTwoID=1&mid=2"]
["Nexcom","Segmento 6","Tablero interactivo y video proyector 6.8","IQ BOARD","IQ 3400+","www.iqboard.co/descargas/FichasTecnicas/IQ3400+.pdf"]
["Oficomco","Segmento 6","Tablero interactivo y video proyector 6.8","AVACOM/EPSON","AVACOM 88\"","WWW.AVACOM.COM"]
["Red computo","Segmento 6","Tablero interactivo y video proyector 6.8","IQBOARD","IQ 3400+","www.iqboard.com/co"]
["Sistetronics","Segmento 6","Tablero interactivo y video proyector 6.8","IQ BOARD / BenQ","IQ 3400+ (incluye MX631ST)","http://www.iqboard.co/"]
["SUMIMAS SAS","Segmento 6","Tablero interactivo y video proyector 6.8","IQ BOARD ","IQ3400+","iqboard.co/descargas/FichasTecnicas/IQ3400+.pdf"]
["UT CCE","Segmento 6","Tablero interactivo y video proyector 6.8","EPSON + IQ BOARD ","PowerLite 530  IQ BOARD 80\"","https://mediaserver.goepson.com/ImConvServlet/imconv/3c60b30a1a58e16e4de6964223d27b0a79dd9c1a/original + http://www.iqboard.co/tableros-digitales/tablero-84.html"]
["COMPUTEL SYSTEM S.A.S.","Segmento 6","Videoproyector 6.5","EPSON","X29","www.epson.com"]
["Crear de Colombia","Segmento 6","Videoproyector 6.5","BENQ","MX532","http://www.benq.com.co/product/projector/MX532/downloads/"]
["CYSNUS","Segmento 6","Videoproyector 6.5","EPSON","POWERLITE X29","https://epson.com.co/Soporte/Proyectores/Epson-PowerLite/Epson-PowerLite-X29/s/SPT_V11H691020#manuals"]
["i3NET SAS","Segmento 6","Videoproyector 6.5","OPTOMA","X345","http://www.optoma.es/projectorproduct/x345"]
["Nexcom","Segmento 6","Videoproyector 6.5","BENQ","MX532","http://www.benq.com.co/product/projector/MX532/downloads/"]
["Oficomco","Segmento 6","Videoproyector 6.5","EPSON","PowerLite X29","https://mediaserver.goepson.com/ImConvServlet/imconv/96b1d56911da8fba284e21626fc2f28e3394f6cb/original"]
["Red computo","Segmento 6","Videoproyector 6.5","EPSON","PowerLite X29","wwww.epson.com.co"]
["Sistetronics","Segmento 6","Videoproyector 6.5","Epson ","PowerLite X29","https://epson.com.mx/"]
["SUMIMAS SAS","Segmento 6","Videoproyector 6.5","BENQ","MX 532 ","http://www.benq.com.co/product/projector/MX532/downloads/"]
["UT CCE","Segmento 6","Videoproyector 6.5","EPSON","PowerLite X29","https://mediaserver.goepson.com/ImConvServlet/imconv/96b1d56911da8fba284e21626fc2f28e3394f6cb/original"]
["COMPUTEL SYSTEM S.A.S.","Segmento 6","Videoproyector 6.6","EPSON",2055,"www.epson.com"]
["Crear de Colombia","Segmento 6","Videoproyector 6.6","BENQ","SX920","http://www.benq.com.co/product/projector/sx920"]
["CYSNUS","Segmento 6","Videoproyector 6.6","EPSON","POWERLITE 2055","https://epson.com.co/Soporte/Proyectores/Epson-PowerLite/Epson-PowerLite-2055/s/SPT_V11H821020#manuals"]
["i3NET SAS","Segmento 6","Videoproyector 6.6","OPTOMA","X515","http://www.optoma.es/projectorproduct/x515"]
["Nexcom","Segmento 6","Videoproyector 6.6","BENQ","SX920","http://www.benq.com.co/product/projector/sx920"]
["Oficomco","Segmento 6","Videoproyector 6.6","EPSON","PowerLite 2055","https://mediaserver.goepson.com/ImConvServlet/imconv/a626fa5b72867a300f43c18b54186ddfdffc11d2/original"]
["Red computo","Segmento 6","Videoproyector 6.6","EPSON","PowerLite 2055","wwww.epson.com.co"]
["Sistetronics","Segmento 6","Videoproyector 6.6","Epson ","PowerLite 2055","https://epson.com.mx/"]
["SUMIMAS SAS","Segmento 6","Videoproyector 6.6","EPSON ","POWERLITE 2055","https://files.support.epson.com/docid/cpd5/cpd52414.pdf"]
["UT CCE","Segmento 6","Videoproyector 6.6","EPSON","PowerLite 2055","https://mediaserver.goepson.com/ImConvServlet/imconv/a626fa5b72867a300f43c18b54186ddfdffc11d2/original"]
["COMPUTEL SYSTEM S.A.S.","Segmento 6","Videoproyector 6.7","EPSON","675WI","www.epson.com"]
["Crear de Colombia","Segmento 6","Videoproyector 6.7","BENQ","MW855UST","http://www.benq.com.co/product/projector/mw855ust"]
["CYSNUS","Segmento 6","Videoproyector 6.7","EPSON","POWERLITE 675WI+","https://www.epson.es/products/projectors/ultra-short-distance/epson-eb-675wi"]
["i3NET SAS","Segmento 6","Videoproyector 6.7","OPTOMA","W320USTi","http://www.optoma.es/projectorproduct/w320usti"]
["Nexcom","Segmento 6","Videoproyector 6.7","BENQ","MW855UST","http://www.benq.com.co/product/projector/mw855ust"]
["Oficomco","Segmento 6","Videoproyector 6.7","EPSON","BrightLink 675Wi+","https://mediaserver.goepson.com/ImConvServlet/imconv/56485b590f3cdf901f506c8bc00d6bd1228d6014/original"]
["Red computo","Segmento 6","Videoproyector 6.7","EPSON","BrightLink 675Wi","wwww.epson.com.co"]
["Sistetronics","Segmento 6","Videoproyector 6.7","Epson ","BrightLink 675Wi+","https://epson.com.mx/"]
["SUMIMAS SAS","Segmento 6","Videoproyector 6.7","BENQ ","MW855UST","http://www.benq.com.co/product/projector/mw855ust"]
["UT CCE","Segmento 6","Videoproyector 6.7","EPSON","BrightLink 675Wi+","https://mediaserver.goepson.com/ImConvServlet/imconv/56485b590f3cdf901f506c8bc00d6bd1228d6014/original"]

{"sheet":"Hoja1","index":4,"n_rows":21,"n_cols":6,"rows_kept":21,"cut":false,"hidden":false,"merged":[]}
[]
["Aconpiexpress","Segmento 1","All in One 1.13"]
["Colsof","Segmento 1","All in One 1.13","DELL","OptiPlex 7450","http://www.dell.com/ec/empresas/p/optiplex-7450-aio/pd"]
["COMPUTEL SYSTEM S.A.S.","Segmento 1","All in One 1.13","HEWLETT PACKARD","EliteOne 800 G3 23.8” AIO No Touch","http://www8.hp.com/h20195/V2/GetDocument.aspx?docname=c05999908"]
["Controles empresariales","Segmento 1","All in One 1.13"]
["i3NET SAS","Segmento 1","All in One 1.13","HEWLETT PACKARD","EliteOne 800 G3 23.8” AIO No Touch","http://www8.hp.com/h20195/V2/GetDocument.aspx?docname=c05999908"]
["KEY MARKET SAS","Segmento 1","All in One 1.13","HEWLETT PACKARD","EliteOne 800 G3 23.8” AIO No Touch","http://www8.hp.com/h20195/V2/GetDocument.aspx?docname=c05999908"]
["MICROHARD S.A.S","Segmento 1","All in One 1.13","DELL","OptiPlex 7451","http://www.dell.com/ec/empresas/p/optiplex-7450-aio/pd"]
["Micronet","Segmento 1","All in One 1.13"]
["Nexcom","Segmento 1","All in One 1.13","LENOVO","ThinkCentre M910z","http://psref.lenovo.com/syspool/Sys/PDF/datasheet/ThinkCentre_M910z_AIO_datasheet_EN.pdf"]
["Oficomco","Segmento 1","All in One 1.13","HEWLETT PACKARD","EliteOne 800 G3 23.8” AIO No Touch","http://www8.hp.com/h20195/V2/GetDocument.aspx?docname=c05999908"]
["Origin IT","Segmento 1","All in One 1.13","DELL","OptiPlex 7451","http://www.dell.com/ec/empresas/p/optiplex-7450-aio/pd"]
["Pear Solutions","Segmento 1","All in One 1.13","Pc Smart","AIOGOBAM2418-A","http://www.pcsmart.com.co/index/img/cms/GOBIERNO/AIOGOBAM2418-A.pdf"]
["PROINTECH COLOMBIA SAS","Segmento 1","All in One 1.13","DELL","OptiPlex 7452","http://www.dell.com/ec/empresas/p/optiplex-7450-aio/pd"]
["PyP Systems","Segmento 1","All in One 1.13","HEWLETT PACKARD","EliteOne 800 G3 23.8” AIO No Touch","http://www8.hp.com/h20195/V2/GetDocument.aspx?docname=c05999908"]
["Red computo","Segmento 1","All in One 1.13","DELL","OptiPlex 7453","http://www.dell.com/ec/empresas/p/optiplex-7450-aio/pd"]
["Selcomp Ingenieria S.A.S","Segmento 1","All in One 1.13","COMPUMAX","Unno Pro Series 3035-900-001","https://www.compumax.com.co/archivos/cce/AIO/etp112/fichaetp112.pdf"]
["Sistetronics","Segmento 1","All in One 1.13","COMPUMAX","Unno Pro Series 3035-900-001","https://www.compumax.com.co/archivos/cce/AIO/etp112/fichaetp112.pdf"]
["SUMIMAS SAS","Segmento 1","All in One 1.13","HEWLETT PACKARD","EliteOne 800 G3 23.8” AIO No Touch","http://www8.hp.com/h20195/V2/GetDocument.aspx?docname=c05999908"]
["Uniples","Segmento 1","All in One 1.13","HEWLETT PACKARD","EliteOne 800 G3 23.8” AIO No Touch","http://www8.hp.com/h20195/V2/GetDocument.aspx?docname=c05999908"]
["UT CCE","Segmento 1","All in One 1.13","HEWLETT PACKARD","EliteOne 800 G3 23.8” AIO No Touch","http://www8.hp.com/h20195/V2/GetDocument.aspx?docname=c05999908"]

{"sheet":"Consolidado","index":5,"n_rows":43,"n_cols":38,"rows_kept":43,"cut":false,"hidden":true,"merged":[]}
["Nombre del Proponente","ETP Liviana Computador de escritorio 1.1","ETP Estándar Computador de escritorio 1.2","ETP Estándar Computador de escritorio Linux 1.3","ETP Estándar Computador de escritorio 1.4","ETP Avanzada All in one 1.5","ETP Avanzada Computador de escritorio 1.6","ETP Liviana Computador de escritorio 1.1","ETP Estándar Computador de escritorio 1.2","ETP Estándar Computador de escritorio Linux 1.3","ETP Estándar Computador de escritorio 1.4","ETP Avanzada All in one 1.5","ETP Avanzada Computador de escritorio 1.6","ETP Liviana Computador de escritorio 1.1","ETP Estándar Computador de escritorio 1.2","ETP Estándar Computador de escritorio Linux 1.3","ETP Estándar Computador de escritorio 1.4","ETP Avanzada All in one 1.5","ETP Avanzada Computador de escritorio 1.6","ETP Liviana Computador de escritorio 1.1","ETP Estándar Computador de escritorio 1.2","ETP Estándar Computador de escritorio Linux 1.3","ETP Estándar Computador de escritorio 1.4","ETP Avanzada All in one 1.5","ETP Avanzada Computador de escritorio 1.6","ETP Liviana Computador de escritorio 1.1","ETP Estándar Computador de escritorio 1.2","ETP Estándar Computador de escritorio Linux 1.3","ETP Estándar Computador de escritorio 1.4","ETP Avanzada All in one 1.5","ETP Avanzada Computador de escritorio 1.6","ETP Liviana Computador de escritorio 1.1","ETP Estándar Computador de escritorio 1.2","ETP Estándar Computador de escritorio Linux 1.3","ETP Estándar Computador de escritorio 1.4","ETP Avanzada All in one 1.5","ETP Avanzada Computador de escritorio 1.6","PATH"]
["i3NET SAS","HEWLETT PACKARD","HEWLETT PACKARD","HEWLETT PACKARD","HEWLETT PACKARD","HEWLETT PACKARD","HEWLETT PACKARD","705 G3 SFF","705 DM G3","705 DM G3","ProOne 600 G2","800 AIO G3","400 G4","http://www.hp.com/latam/CCE/2017/HP%20EliteDesk%20705%20SFF%201-1.pdf","http://www.hp.com/latam/CCE/2017/HP%20EliteDesk%20705%20DM%201-2.pdf ","http://www.hp.com/latam/CCE/2017/HP%20EliteDesk%20705%20DM%201-3.pdf","http://www.hp.com/latam/CCE/2017/HP%20ProOne%20600%20AiO%20NT%201-4.pdf","http://www.hp.com/latam/CCE/2017/HP%20EliteOne%20800%20AIO%20NT%201-5.pdf","http://www.hp.com/latam/CCE/2017/HP%20ProDesk%20400%20SFF%201-6.pdf","México","México","México","México","México","México","8471.49.00.00\r\n","8471.49.00.00\r\n","8471.49.00.00\r\n","8471.41.00.00","8471.41.00.00","8471.49.00.00\r\n","No","No","No","No","No","No","\\\\192.168.10.101\\negocios\\Estructuración IAD\\AMP adquisición de Computadores y Periféricos\\03 Ofertas\\ConsolidadoOfertas\\Segmento1\\30-I3 Net Formato 5 incorpora Adenda 2.xlsm"]
["COMPUTEL SYSTEM S.A.S.","HP","HP","HP","HP","HP","HP","HP 705 SFF G3","HP 705 SM G3","HP 705 SM G3","HP PRO ONE 600 AIO G2","HP 800AIO G3","HP 400 G4","www.hp.com/latam/CCE/2017/HP%20EliteDesk%20705%20SFF%201-1.pdf ","www.hp.com/latam/CCE/2017/HP%20EliteDesk%20705%20DM%201-2.pdf ","www.hp.com/latam/CCE/2017/HP%20EliteDesk%20705%20DM%201-3.pdf","www.hp.com/latam/CCE/2017/HP%20ProOne%20600%20AiO%20NT%201-4.pdf","www.hp.com/latam/CCE/2017/HP%20EliteOne%20800%20AIO%20NT%201-5.pdf","http://www.hp.com/latam/CCE/2017/HP%20ProDesk%20400%20SFF%201-6.pdf","México","México","México","México","México","México","8471.49.00.00\r\n","8471.49.00.00\r\n","8471.49.00.00\r\n","8471.41.00.00","8471.41.00.00","8471.49.00.00\r\n","Si","Si","Si","Si","Si","Si","\\\\192.168.10.101\\negocios\\Estructuración IAD\\AMP adquisición de Computadores y Periféricos\\03 Ofertas\\ConsolidadoOfertas\\Segmento1\\16-Computel Formato 5 incorpora Adenda 2.xlsm"]
["KEY MARKET SAS","HP ","HP ","HP ","HP ","HP ","HP ","EliteDesk 705 SFF","EliteDesk 705 Desktop Mini","EliteDesk 705 Desktop Mini "," ProOne 600 AiO NT"," EliteOne 800 AIO NT","ProDesk 400 SFF ","http://www.hp.com/latam/CCE/2017/HP%20EliteDesk%20705%20SFF%201-1.pdf ","http://www.hp.com/latam/CCE/2017/HP%20EliteDesk%20705%20DM%201-2.pdf ","http://www.hp.com/latam/CCE/2017/HP%20EliteDesk%20705%20DM%201-3.pdf","http://www.hp.com/latam/CCE/2017/HP%20ProOne%20600%20AiO%20NT%201-4.pdf","http://www.hp.com/latam/CCE/2017/HP%20EliteOne%20800%20AIO%20NT%201-5.pdf","http://www.hp.com/latam/CCE/2017/HP%20ProDesk%20400%20SFF%201-6.pdf ","México","México","México","México","México","México","N/A","N/A","N/A","N/A","N/A","N/A","No","No","No","No","No","No","\\\\192.168.10.101\\negocios\\Estructuración IAD\\AMP adquisición de Computadores y Periféricos\\03 Ofertas\\ConsolidadoOfertas\\Segmento1\\28-Key markt Formato 5 incorpora Adenda 2.xlsm"]
["Aconpiexpress","Computador de escritorio 1.1","Computador de escritorio 1.2","Computador de escritorio Linux 1.3","Computador de escritorio 1.4","All in one 1.5","Computador de escritorio 1.6","M700 SFF","M700 TINY","M715 TINY","M800Z","M900Z","M710","http://psref.lenovo.com/","http://psref.lenovo.com/","http://psref.lenovo.com/","http://psref.lenovo.com/","http://psref.lenovo.com/","http://psref.lenovo.com/","México","México","México","México","México","México","8471.49.00.00\r\n","8471.49.00.00\r\n","8471.49.00.00\r\n","8471.49.00.00\r\n","8471.49.00.00\r\n","8471.49.00.00\r\n","No","No","No","No","No","No","\\\\192.168.10.101\\negocios\\Estructuración IAD\\AMP adquisición de Computadores y Periféricos\\03 Ofertas\\ConsolidadoOfertas\\Segmento1\\4-Formato 5 incorpora Adenda 2 Aconpiexpress.xlsm"]
["Pear Solutions","Pc Smart","Pc Smart","Pc Smart","Pc Smart","Pc Smart","Pc Smart","PCSGOB150-C","PCSGOB250-A","PCSGOB250-L","AIOGOB2217-A","AIOGOB2417-A","PCSGOB270-A"," http://www.pcsmart.com.co/index/index.php?id_product=115&controller=product","http://www.pcsmart.com.co/index/index.php?id_product=116&controller=product\n","http://www.pcsmart.com.co/index/index.php?id_product=117&controller=product","http://www.pcsmart.com.co/index/index.php?id_product=118&controller=product"," http://www.pcsmart.com.co/index/index.php?id_product=119&controller=product"," http://www.pcsmart.com.co/index/index.php?id_product=120&controller=product","Colombia","Colombia","Colombia","Colombia","Colombia","Colombia","8471.49.00.00 - 8471.41.00.00","8471.49.00.00 - 8471.41.00.00","8471.49.00.00 - 8471.41.00.00","8471.49.00.00 - 8471.41.00.00","8471.49.00.00 - 8471.41.00.00","8471.49.00.00 - 8471.41.00.00","Si","Si","Si","Si","Si","Si","\\\\192.168.10.101\\negocios\\Estructuración IAD\\AMP adquisición de Computadores y Periféricos\\03 Ofertas\\ConsolidadoOfertas\\Segmento1\\42-Pear Formato 5 incorpora Adenda 2  final.xlsm"]
["S.O.S.","HP","HP","HP","HP","HP","HP","HP 705 G3 SFF","HP 705 G3 DM ","HP 705 G3 DM ","HP ProOne 600 G2","HP 800 Aio G3","HP 400 G4 SFF","http://www.hp.com/latam/CCE/2017/HP%20EliteDesk%20705%20SFF%201-1.pdf ","http://www.hp.com/latam/CCE/2017/HP%20EliteDesk%20705%20DM%201-2.pdf ","http://www.hp.com/latam/CCE/2017/HP%20EliteDesk%20705%20DM%201-3.pdf","http://www.hp.com/latam/CCE/2017/HP%20ProOne%20600%20AiO%20NT%201-4.pdf","http://www.hp.com/latam/CCE/2017/HP%20EliteOne%20800%20AIO%20NT%201-5.pdf","http://www.hp.com/latam/CCE/2017/HP%20ProDesk%20400%20SFF%201-6.pdf ","México","México","México","México","México","México",null,null,null,null,null,null,"No","No","No","No","No","No","\\\\192.168.10.101\\negocios\\Estructuración IAD\\AMP adquisición de Computadores y Periféricos\\03 Ofertas\\ConsolidadoOfertas\\Segmento1\\39-SOS Formato 5 - Final.xlsm"]
["18- PyP Systems","HP","HP","HP","HP","HP","HP","HP 705 G3 SFF/ V203p","705 DM G3/ V203p","705 DM G3/ V203p","HP ProOne 600 G2","HP 800 Aio G3","HP 400 G4 /V223","http://www.hp.com/latam/CCE/2017/HP%20EliteDesk%20705%20SFF%201-1.pdf - http://h20195.www2.hp.com/v2/GetPDF.aspx/4aa6-5179spl.pdf","http://www.hp.com/latam/CCE/2017/HP%20EliteDesk%20705%20SFF%201-1.pdf - http://h20195.www2.hp.com/v2/GetPDF.aspx/4aa6-5179spl.pdf","http://www.hp.com/latam/CCE/2017/HP%20EliteDesk%20705%20SFF%201-1.pdf - http://h20195.www2.hp.com/v2/GetPDF.aspx/4aa6-5179spl.pdf","http://www.hp.com/latam/CCE/2017/HP%20ProOne%20600%20AiO%20NT%201-4.pdf","http://www.hp.com/latam/CCE/2017/HP%20EliteOne%20800%20AIO%20NT%201-5.pdf","http://www.hp.com/latam/CCE/2017/HP%20ProDesk%20400%20SFF%201-6.pdf - http://h20195.www2.hp.com/v2/GetPDF.aspx/4aa6-3901spl.pdf","Estados Unidos","Estados Unidos","Estados Unidos","Estados Unidos","Estados Unidos","Estados Unidos","8471.49.00.00","8471.49.00.00","8471.49.00.00","8471.49.00.00","8471.41.00.00","8471.49.00.00","Si","Si","Si","Si","Si","Si","\\\\192.168.10.101\\negocios\\Estructuración IAD\\AMP adquisición de Computadores y Periféricos\\03 Ofertas\\ConsolidadoOfertas\\Segmento1\\18-PROPUESTA ECONOMICA DEFINITIVA PYP SYSTEMS.xlsm"]
["Corsa","Hewlett Packard","Hewlett Packard","Hewlett Packard","Hewlett Packard","Hewlett Packard","Hewlett Packard","HP EliteDesk 705 G3 Base Model Small Form Factor PC (W4Q25AV)","HP EliteDesk 705 G3 Base Model Desktop Mini PC (W4V44AV)","HP EliteDesk 705 G3 Base Model Desktop Mini PC (W4V44AV)","PC HP ProOne 600 G2 All-in-One no táctil de 21,5 pulgadas","HP EliteOne 800 G3","HP ProDesk 400 G4 Small Form Factor ","www.hp.com.co","www.hp.com.co","www.hp.com.co","www.hp.com.co","www.hp.com.co","www.hp.com.co",null,null,null,null,null,null,"N/A","N/A","N/A","N/A","N/A","N/A","Si","Si","Si","Si","Si","Si","\\\\192.168.10.101\\negocios\\Estructuración IAD\\AMP adquisición de Computadores y Periféricos\\03 Ofertas\\ConsolidadoOfertas\\Segmento1\\32-Corsa Formato 5.xlsm"]
["UT CONIX - METALANDES","Hewlett Packard","Hewlett Packard","Hewlett Packard","Hewlett Packard","Hewlett Packard","Hewlett Packard","HP 705 G3 SFF","705 DM G3","705 DM G3","HP ProOne 600 G2","HP 800 Aio G3","HP 400 G4 ","http://www.hp.com/latam/CCE/2017/HP%20EliteDesk%20705%20SFF%201-1.pdf ","http://www.hp.com/latam/CCE/2017/HP%20EliteDesk%20705%20DM%201-2.pdf ","http://www.hp.com/latam/CCE/2017/HP%20EliteDesk%20705%20DM%201-3.pdf","http://www.hp.com/latam/CCE/2017/HP%20ProOne%20600%20AiO%20NT%201-4.pdf","http://www.hp.com/latam/CCE/2017/HP%20EliteOne%20800%20AIO%20NT%201-5.pdf","http://www.hp.com/latam/CCE/2017/HP%20ProDesk%20400%20SFF%201-6.pdf ","México","México","México","México","México","México","N/A","N/A","N/A","N/A","N/A","N/A","Si","Si","Si","Si","Si","Si","\\\\192.168.10.101\\negocios\\Estructuración IAD\\AMP adquisición de Computadores y Periféricos\\03 Ofertas\\ConsolidadoOfertas\\Segmento1\\24-Conix Metalandes Formato 5 incorpora Adenda 2.xlsm"]
["8-JPDP ","HP","HP","HP","HP","HP","HP","HP 705 G3 SFF\nMONITOR HP V203p 19,5\"","HP 705 DM G3\nMONITOR HP V203p 19,5\"","HP 705 DM G3\nMONITOR HP V203p 19,5\"","HP PRO ONE 600 AIO G2","HP 800 Aio G3","HP 400 G4 \nMONITOR HP V223 21,5\"","http://www.hp.com/latam/CCE/2017/HP%20EliteDesk%20705%20SFF%201-1.pdf ","http://www.hp.com/latam/CCE/2017/HP%20EliteDesk%20705%20DM%201-2.pdf ","http://www.hp.com/latam/CCE/2017/HP%20EliteDesk%20705%20DM%201-2.pdf ","http://www.hp.com/latam/CCE/2017/HP%20ProOne%20600%20AiO%20NT%201-4.pdf","http://www.hp.com/latam/CCE/2017/HP%20EliteOne%20800%20AIO%20NT%201-5.pdf","http://www.hp.com/latam/CCE/2017/HP%20ProDesk%20400%20SFF%201-6.pdf ","México","México","México","México","México","México","8471.49.00.00","8471.49.00.00","8471.49.00.00","8471.49.00.00","8471.49.00.00","8471.49.00.00","No","No","No","No","No","No","\\\\192.168.10.101\\negocios\\Estructuración IAD\\AMP adquisición de Computadores y Periféricos\\03 Ofertas\\ConsolidadoOfertas\\Segmento1\\8-JPDP Formato 5 incorpora Adenda 2.xlsm"]
["43-UT CCE","HEWLETT PACKARD","HEWLETT PACKARD","HEWLETT PACKARD","HEWLETT PACKARD","HEWLETT PACKARD","HEWLETT PACKARD","HP 705 G3 SFF","HP 705 DM G3","HP 705 DM G3","HP PRO ONE 600 G2","HP 800 AIO G3","HP 400 G4","http://www.hp.com/latam/CCE/2017/HP%20EliteDesk%20705%20SFF%201-1.pdf ","http://www.hp.com/latam/CCE/2017/HP%20EliteDesk%20705%20DM%201-2.pdf ","http://www.hp.com/latam/CCE/2017/HP%20EliteDesk%20705%20DM%201-3.pdf","http://www.hp.com/latam/CCE/2017/HP%20ProOne%20600%20AiO%20NT%201-4.pdf","http://www.hp.com/latam/CCE/2017/HP%20EliteOne%20800%20AIO%20NT%201-5.pdf","http://www.hp.com/latam/CCE/2017/HP%20ProDesk%20400%20SFF%201-6.pdf ","México","México","México","México","México","México","N/A","N/A","N/A","N/A","N/A","N/A","No","No","No","No","No","No","\\\\192.168.10.101\\negocios\\Estructuración IAD\\AMP adquisición de Computadores y Periféricos\\03 Ofertas\\ConsolidadoOfertas\\Segmento1\\43-UT CCE Formato 5 incorpora Adenda 2.xlsm"]
["Nexcom","LENOVO","LENOVO","LENOVO","LENOVO","LENOVO","LENOVO","THINKCENTRE M700","THINKCENTRE M700 TINY","THINKCENTRE M715 TINY","THINKCENTRE M800Z","THINKCENTRE M900Z","THINKCENTRE M710 SFF","http://psref.lenovo.com/Product/ThinkCentre_M700_SFF","http://psref.lenovo.com/Product/ThinkCentre_M700_SFF","http://psref.lenovo.com/Product/ThinkCentre_M715_Tiny","http://psref.lenovo.com/Product/ThinkCentre_M800z_AIO","http://psref.lenovo.com/Product/ThinkCentre_M900z_AIO","http://psref.lenovo.com/Product/ThinkCentre_M710_SFF","México","México","México","México","México","México","8471.49.00.00\r\n","8471.49.00.00\r\n","8471.49.00.00\r\n","8471.49.00.00\r\n","8471.49.00.00\r\n","8471.49.00.00\r\n","Si","Si","Si","Si","Si","Si","\\\\192.168.10.101\\negocios\\Estructuración IAD\\AMP adquisición de Computadores y Periféricos\\03 Ofertas\\ConsolidadoOfertas\\Segmento1\\25-oferta economica nexcom.xlsm"]
["Selcomp Ingenieria S.A.S","Compumax","Compumax","Compumax","Compumax","Compumax","Compumax","Nogal Series 1040-801-0000","Olmos Series 1033-800-0000","Olmos Series 1033-800-0000","Unno Max Series 3040-800-0000","Unno Max Series 3050-800-0000","Nogal Series 1040-802-0000","https://www.compumax.com.co/inicio/gobierno/colombiacompra","https://www.compumax.com.co/inicio/gobierno/colombiacompra","https://www.compumax.com.co/inicio/gobierno/colombiacompra","https://www.compumax.com.co/inicio/gobierno/colombiacompra","https://www.compumax.com.co/inicio/gobierno/colombiacompra","https://www.compumax.com.co/inicio/gobierno/colombiacompra","Estados Unidos","Estados Unidos","Estados Unidos","Estados Unidos","Estados Unidos","Estados Unidos","N/A","N/A","N/A","N/A","N/A","N/A","Si","Si","Si","Si","Si","Si","\\\\192.168.10.101\\negocios\\Estructuración IAD\\AMP adquisición de Computadores y Periféricos\\03 Ofertas\\ConsolidadoOfertas\\Segmento1\\10-Selcomp Formato 5 incorpora Adenda 2.xlsm"]
["Oficomco","HEWLETT PACKARD","HEWLETT PACKARD","HEWLETT PACKARD","HEWLETT PACKARD","HEWLETT PACKARD","HEWLETT PACKARD","HP 705 G3 Small Form Factor PC","HP EliteDesk 705 G3 Desktop Mini PC","HP EliteDesk 705 G3 Desktop Mini PC","HP ProOne 600 G2 21.5-in Non-Touch All-in-One PC","HP EliteOne 800 G3 23.8 inch Non-Touch All-in-One Business PC","HP ProDesk 400 G4 Small Form Factor PC","http://www8.hp.com/co/es/products/desktops/product-detail.html?oid=10669599","http://www8.hp.com/co/es/products/desktops/product-detail.html?oid=10669600","http://www8.hp.com/co/es/products/desktops/product-detail.html?oid=10669600","http://www8.hp.com/es/es/products/desktops/product-detail.html?oid=7633348","http://www8.hp.com/us/en/products/desktops/product-detail.html?oid=15292420","http://h20195.www2.hp.com/v2/GetDocument.aspx?docname=4AA6-9226ENUC&doctype=data%20sheet&doclang=EN_US&searchquery=&cc=us&lc=en","México","México","México","México","México","México",null,null,null,null,null,null,null,null,null,null,null,null,"\\\\192.168.10.101\\negocios\\Estructuración IAD\\AMP adquisición de Computadores y Periféricos\\03 Ofertas\\ConsolidadoOfertas\\Segmento1\\5-OFicomco economica Formato 5.xlsm"]
["SUMIMAS SAS","HP ","HP ","HP ","HP ","HP ","HP ","HP 705 G3 SFF","705 DM G3","705 DM G3","HP ProOne 600 G2","HP 800 Aio G3","HP 400 G4 ","http://www.hp.com/latam/CCE/2017/HP%20EliteDesk%20705%20SFF%201-1.pdf ","http://www.hp.com/latam/CCE/2017/HP%20EliteDesk%20705%20DM%201-2.pdf ","http://www.hp.com/latam/CCE/2017/HP%20EliteDesk%20705%20DM%201-3.pdf","http://www.hp.com/latam/CCE/2017/HP%20ProOne%20600%20AiO%20NT%201-4.pdf","http://www.hp.com/latam/CCE/2017/HP%20EliteOne%20800%20AIO%20NT%201-5.pdf","http://www.hp.com/latam/CCE/2017/HP%20ProDesk%20400%20SFF%201-6.pdf ","México","México","México","México","México","México","8471.49.00.00","8471.49.00.00","8471.49.00.00\r\n","8471.41.00.00\r\n","8471.41.00.00\r\n","8471.49.00.00\r\n","No","No","No","No","No","No","\\\\192.168.10.101\\negocios\\Estructuración IAD\\AMP adquisición de Computadores y Periféricos\\03 Ofertas\\ConsolidadoOfertas\\Segmento1\\26-Sumimas Formato 5 incorpora Adenda 2.xlsm"]
["TECNOPHONE COLOMBIA SAS","Hewlett-Packard","Hewlett-Packard","Hewlett-Packard","Hewlett-Packard","Hewlett-Packard","Hewlett-Packard","HP EliteDesk 705 SFF","HP EliteDesk 705 Desktop Mini","HP EliteDesk 705 Desktop Mini","HP ProOne 600 AiO NT","HP EliteOne 800 AIO NT","HP ProDesk 400 SFF","http://www.hp.com/latam/CCE/2017/HP%20EliteDesk%20705%20SFF%201-1.pdf","http://www.hp.com/latam/CCE/2017/HP%20EliteDesk%20705%20DM%201-2.pdf","http://www.hp.com/latam/CCE/2017/HP%20EliteDesk%20705%20DM%201-3.pdf","http://www.hp.com/latam/CCE/2017/HP%20ProOne%20600%20AiO%20NT%201-4.pdf","http://www.hp.com/latam/CCE/2017/HP%20EliteOne%20800%20AIO%20NT%201-5.pdf","http://www.hp.com/latam/CCE/2017/HP%20ProDesk%20400%20SFF%201-6.pdf","México","México","México","México","México","México","8471.49.00.00\r\n","8471.49.00.00","8471.49.00.00\r\n","8471.41.00.00\r\n","8471.49.00.00","8471.49.00.00\r\n","Si","Si","Si","Si","Si","Si","\\\\192.168.10.101\\negocios\\Estructuración IAD\\AMP adquisición de Computadores y Periféricos\\03 Ofertas\\ConsolidadoOfertas\\Segmento1\\33-Tecnophone Formato 5 incorpora Adenda 2.xlsm"]
["NUEVA ERA SOLUCIONES SAS","LENOVO","LENOVO","LENOVO","LENOVO","LENOVO","LENOVO","THINKCENTRE M700 SFF","THINKCENTRE M700 TINY ","THINKCENTRE M715 TINY","THINKCENTRE M800z AIO ","THINKCENTRE M900z AIO","THINKCENTRE M710 SFF","http://shop.lenovo.com/co/es/contacto/ http://psref.lenovo.com/Product/ThinkCentre_M700_SFF","http://shop.lenovo.com/co/es/contacto/ http://psref.lenovo.com/Product/ThinkCentre_M700_Tiny","http://shop.lenovo.com/co/es/contacto/ http://psref.lenovo.com/Product/ThinkCentre_M715_Tiny","http://shop.lenovo.com/co/es/contacto/ http://psref.lenovo.com/Product/ThinkCentre_M800z_AIO","http://shop.lenovo.com/co/es/contacto/ http://psref.lenovo.com/Product/ThinkCentre_M900z_AIO","http://shop.lenovo.com/co/es/contacto/ http://psref.lenovo.com/Product/ThinkCentre_M710_SFF","México","México","México","México","México","México","8471.49.00.00\r\n","8471.49.00.00\r\n","8471.49.00.00\r\n","8471.49.00.00\r\n","8471.49.00.00\r\n","8471.49.00.00\r\n","Si","Si","Si","Si","Si","Si","\\\\192.168.10.101\\negocios\\Estructuración IAD\\AMP adquisición de Computadores y Periféricos\\03 Ofertas\\ConsolidadoOfertas\\Segmento1\\6-NES Formato 5 incorpora Adenda 2 - Oferta económica referencias e industria nacional 06.xlsm"]
["Savera","DELL","DELL","DELL","DELL","DELL","DELL","Optiplex 3050 SFF","Optiplex 3050 MFF","Optiplex 3050 MFF","Optiplex 5250","Optiplex 7450","Optiplex 3050 SFF","http://www.dell.com/co/empresas/p/optiplex-3050-desktop/pd?ref=PD_Family","http://www.dell.com/co/empresas/p/optiplex-3050-micro/pd?ref=PD_Family","http://www.dell.com/co/empresas/p/optiplex-3050-micro/pd?ref=PD_Family","http://www.dell.com/co/empresas/p/optiplex-5250-aio/pd?ref=PD_OC","http://www.dell.com/co/empresas/p/optiplex-7450-aio/pd?ref=PD_Family","http://www.dell.com/co/empresas/p/optiplex-3050-desktop/pd?ref=PD_Family","México","México","México","México","México","México","8471.49.00.00\r\n","8471.49.00.00\r\n","8471.49.00.00\r\n","8471.49.00.00\r\n","8471.49.00.00\r\n","8471.49.00.00\r\n",null,null,null,null,null,null,"\\\\192.168.10.101\\negocios\\Estructuración IAD\\AMP adquisición de Computadores y Periféricos\\03 Ofertas\\ConsolidadoOfertas\\Segmento1\\14-SAVERA Formato 5 incorpora Adenda 2.xlsm"]
["Coinsi","Hewlett-Packard","Hewlett-Packard","Hewlett-Packard","Hewlett-Packard","Hewlett-Packard","Hewlett-Packard",null,"705 DM G3","705 DM G3","HP ProOne 600 G2","HP 800 Aio G3","HP 400 G4 ","http://www.hp.com/latam/CCE/2017/HP%20ProBook%20440%20Pentium%203-1.pdf","http://www.hp.com/latam/CCE/2017/HP%20EliteDesk%20705%20DM%201-2.pdf","http://www.hp.com/latam/CCE/2017/HP%20EliteDesk%20705%20DM%201-3.pdf","http://www.hp.com/latam/CCE/2017/HP%20ProOne%20600%20AiO%20NT%201-4.pdf","http://www.hp.com/latam/CCE/2017/HP%20EliteOne%20800%20AIO%20NT%201-5.pdf","http://www.hp.com/latam/CCE/2017/HP%20ProDesk%20400%20SFF%201-6.pdf ",null,null,null,null,null,null,null,null,null,null,null,null,null,null,null,null,null,null,"\\\\192.168.10.101\\negocios\\Estructuración IAD\\AMP adquisición de Computadores y Periféricos\\03 Ofertas\\ConsolidadoOfertas\\Segmento1\\2-Formato 5 incorpora Adenda 2 - coinci.xlsm"]
["COLOMBIANA DE SERVICIOS TECNOLOGICOS S.A.S. \"COLSISTEC\"","DELL","DELL","DELL","DELL","DELL","DELL","OPTIPLEX 3050 S.F.F.","OPTIPLEX 3050 M.F.F.","OPTIPLEX 3050 M.F.F.","OPTIPLEX 5250 AIO","OPTIPLEX 7450 AIO","OPTIPLEX 3050 S.F.F.","http://www.dell.com/co/empresas/p/optiplex-3050-desktop/pd?ref=PD_Family","http://www.dell.com/co/empresas/p/optiplex-3050-micro/pd?ref=PD_Family","http://www.dell.com/co/empresas/p/optiplex-3050-micro/pd?ref=PD_Family","http://www.dell.com/co/empresas/p/optiplex-5250-aio/pd?ref=PD_OC","http://www.dell.com/co/empresas/p/optiplex-7450-aio/pd?ref=PD_Family","http://www.dell.com/co/empresas/p/optiplex-3050-desktop/pd?ref=PD_Family","México","México","México","México","México","México","8471.49.00.00\r\n","8471.49.00.00\r\n","8471.49.00.00\r\n","8471.49.00.00\r\n","8471.49.00.00\r\n","8471.49.00.00\r\n","Si","Si","Si","Si","Si","Si","\\\\192.168.10.101\\negocios\\Estructuración IAD\\AMP adquisición de Computadores y Periféricos\\03 Ofertas\\ConsolidadoOfertas\\Segmento1\\38-Colsistec Formato 5 incorpora Adenda 2.xlsm"]
["Micronet","HP","HP","HP","HP","HP","HP","HP 705 SFF","HP 705 DM G3","HP 705 DM G3","HP PRO ONE 600 G2","HP 800 AIO G3","HP 400 G4 SFF","http://www.hp.com/latam/CCE/2017/HP%20EliteDesk%20705%20SFF%201-1.pdf ","http://www.hp.com/latam/CCE/2017/HP%20EliteDesk%20705%20DM%201-2.pdf ","http://www.hp.com/latam/CCE/2017/HP%20EliteDesk%20705%20DM%201-3.pdf","http://www.hp.com/latam/CCE/2017/HP%20ProOne%20600%20AiO%20NT%201-4.pdf","http://www.hp.com/latam/CCE/2017/HP%20EliteOne%20800%20AIO%20NT%201-5.pdf","http://www.hp.com/latam/CCE/2017/HP%20ProDesk%20400%20SFF%201-6.pdf ","México","México","México","México","México","México","8471.49.00.00\r\n","8471.49.00.00","8471.49.00.00\r\n","8471.41.00.00\r\n","8471.41.00.00\r\n","8471.49.00.00\r\n","Si","Si","Si","Si","Si","Si","\\\\192.168.10.101\\negocios\\Estructuración IAD\\AMP adquisición de Computadores y Periféricos\\03 Ofertas\\ConsolidadoOfertas\\Segmento1\\12-Micronet Formato 5 incorpora Adenda 2.xlsm"]
["PROINTECH COLOMBIA SAS","DELL","DELL","DELL","DELL","DELL","DELL","Optiplex 3050 SFF","Optiplex 3050 MFF","Optiplex 3050 MFF","Optiplex 5250","Optiplex 7450","Optiplex 3050 SFF","http://www.dell.com/co/empresas/p/optiplex-3050-desktop/pd?ref=PD_Family","http://www.dell.com/co/empresas/p/optiplex-3050-micro/pd?ref=PD_Family","http://www.dell.com/co/empresas/p/optiplex-3050-micro/pd?ref=PD_Family","http://www.dell.com/co/empresas/p/optiplex-5250-aio/pd?ref=PD_OC","http://www.dell.com/co/empresas/p/optiplex-7450-aio/pd?ref=PD_Family","http://www.dell.com/co/empresas/p/optiplex-3050-desktop/pd?ref=PD_Family","México","México","México","México","México","México","8471.49.00.00\r\n","8471.49.00.00\r\n","8471.49.00.00\r\n","8471.49.00.00\r\n","8471.49.00.00\r\n","8471.49.00.00\r\n","Si","Si","Si","Si","Si","Si","\\\\192.168.10.101\\negocios\\Estructuración IAD\\AMP adquisición de Computadores y Periféricos\\03 Ofertas\\ConsolidadoOfertas\\Segmento1\\45-Formato 5 Oferta Economica - PROINTECH COLOMBIA SAS.xlsm"]
["Compufacil","hewlett packard","hewlett packard","hewlett packard","hewlett packard","hewlett packard","hewlett packard","HP 705 G3 SFF","HP 705 DM G3","HP 705 DM G3","HP ProOne 600 G2","HP 800 Aio G3","HP 400 G4 ","http://www.hp.com/latam/CCE/2017/HP%20EliteDesk%20705%20SFF%201-1.pdf","http://www.hp.com/latam/CCE/2017/HP%20EliteDesk%20705%20SFF%201-1.pdf","http://www.hp.com/latam/CCE/2017/HP%20EliteDesk%20705%20DM%201-3.pdf","http://www.hp.com/latam/CCE/2017/HP%20ProOne%20600%20AiO%20NT%201-4.pdf","http://www.hp.com/latam/CCE/2017/HP%20EliteOne%20800%20AIO%20NT%201-5.pdf","http://www.hp.com/latam/CCE/2017/HP%20ProDesk%20400%20SFF%201-6.pdf","México","México","México","México","México","México","8471.49.00.00\r\n","8471.49.00.00\r\n","8471.49.00.00\r\n","8471.41.00.00\r\n","8471.41.00.00\r\n","8471.49.00.00\r\n","Si","Si","Si","Si","Si","Si","\\\\192.168.10.101\\negocios\\Estructuración IAD\\AMP adquisición de Computadores y Periféricos\\03 Ofertas\\ConsolidadoOfertas\\Segmento1\\20-Compufacil Formato 5 incorpora Adenda 2.xlsm"]
["46-Import","DELL","DELL","DELL","DELL","DELL","DELL","Optiplex 3050 SFF","Optiplex 3050 MFF","Optiplex 3050 MFF","Optiplex 5250","Optiplex 7450","Optiplex 3050 SFF","http://www.dell.com/co/empresas/p/optiplex-3050-desktop/pd?ref=PD_Family","http://www.dell.com/co/empresas/p/optiplex-3050-micro/pd?ref=PD_Family","http://www.dell.com/co/empresas/p/optiplex-3050-micro/pd?ref=PD_Family","http://www.dell.com/co/empresas/p/optiplex-5250-aio/pd?ref=PD_OC","http://www.dell.com/co/empresas/p/optiplex-7450-aio/pd?ref=PD_Family","http://www.dell.com/co/empresas/p/optiplex-3050-desktop/pd?ref=PD_Family","México","México","México","México","México","México",null,null,null,null,null,null,null,null,null,null,null,null,"\\\\192.168.10.101\\negocios\\Estructuración IAD\\AMP adquisición de Computadores y Periféricos\\03 Ofertas\\ConsolidadoOfertas\\Segmento1\\46-import OFERTA DEFINITIVA.xlsm"]
["Seven wireless","ACER","ACER","ACER","ACER","ACER","ACER","VERITON","VERITON","VERITON","VERITON","VERITON","VERITON","www.acer.com","www.acer.com","www.acer.com","www.acer.com","www.acer.com","www.acer.com","Estados Unidos","Estados Unidos","Estados Unidos","Estados Unidos","Estados Unidos","Estados Unidos","8471.49.00.00 - 8471.41.00.00","8471.49.00.00 - 8471.41.00.00","8471.49.00.00 - 8471.41.00.00","8471.49.00.00 - 8471.41.00.00","8471.49.00.00 - 8471.41.00.00","8471.49.00.00 - 8471.41.00.00","Si","Si","Si","Si","Si","Si","\\\\192.168.10.101\\negocios\\Estructuración IAD\\AMP adquisición de Computadores y Periféricos\\03 Ofertas\\ConsolidadoOfertas\\Segmento1\\15-Seven wireless Formato 5 incorpora Adenda 2.xlsm"]
["HAS","HP ","HP ","HP ","HP ","HP ","HP ","HP 705 G3 SFF","HP 705 DM G3"," HP 705 DM G3","HP ProOne 600 G2","HP 800 Aio G3","HP 400 G4 ","http://www.hp.com/latam/CCE/2017/HP%20EliteDesk%20705%20SFF%201-1.pdf ","http://www.hp.com/latam/CCE/2017/HP%20EliteDesk%20705%20DM%201-2.pdf ","http://www.hp.com/latam/CCE/2017/HP%20EliteDesk%20705%20DM%201-3.pdf","http://www.hp.com/latam/CCE/2017/HP%20ProOne%20600%20AiO%20NT%201-4.pdf","http://www.hp.com/latam/CCE/2017/HP%20EliteOne%20800%20AIO%20NT%201-5.pdf","http://www.hp.com/latam/CCE/2017/HP%20ProDesk%20400%20SFF%201-6.pdf ","México","México","México","México","México","México","8471.49.00.00","8471.49.00.00\r\n","8471.49.00.00\r\n","8471.49.00.00\r\n","8471.41.00.00","8471.49.00.00","Si","Si","Si","Si","Si","Si","\\\\192.168.10.101\\negocios\\Estructuración IAD\\AMP adquisición de Computadores y Periféricos\\03 Ofertas\\ConsolidadoOfertas\\Segmento1\\1-Formato 5 incorpora Adenda 2 -HAS.xlsm"]
["Soluciones Activas","PC SMART","PC SMART","PC SMART","PC SMART","PC SMART","PC SMART","PCSGOB150-C","PCSGOB250-A","PCSGOB250-","AIOGOB2217-A","AIOGOB2417-A","PCSGOB270-A","http://www.pcsmart.com.co/index/index.php?id_product=115&controller=product","http://www.pcsmart.com.co/index/index.php?id_product=116&controller=product","http://www.pcsmart.com.co/index/index.php?id_product=117&controller=product","http://www.pcsmart.com.co/index/index.php?id_product=118&controller=product","http://www.pcsmart.com.co/index/index.php?id_product=118&controller=product","http://www.pcsmart.com.co/index/index.php?id_product=120&controller=product","Colombia","Colombia","Colombia","Colombia","Colombia","Colombia","8471.49.00.00","8471.49.00.00\r\n8471.41.00.00\r\n","8471.49.00.00\r\n8471.41.00.00\r\n","8471.49.00.00\r\n8471.41.00.00\r\n","8471.49.00.00\r\n8471.41.00.00\r\n","8471.49.00.00\r\n8471.41.00.00\r\n","Si","Si","Si","Si","Si","Si","\\\\192.168.10.101\\negocios\\Estructuración IAD\\AMP adquisición de Computadores y Periféricos\\03 Ofertas\\ConsolidadoOfertas\\Segmento1\\22-Soluciones activas Formato 5 incorpora Adenda 2.xlsm"]
["41-Sistetronics","COMPUMAX","COMPUMAX","COMPUMAX","COMPUMAX","COMPUMAX","COMPUMAX","1040-801-0000","1033-800-0000","1033-800-0000","3040-800-0000","3050-800-0000","1040-802-0000","www.compumax.com.co/gobierno/colombiacompra","www.compumax.com.co/gobierno/colombiacompra","www.compumax.com.co/gobierno/colombiacompra","www.compumax.com.co/gobierno/colombiacompra","www.compumax.com.co/gobierno/colombiacompra","www.compumax.com.co/gobierno/colombiacompra",null,null,null,null,null,null,"N/A","N/A","N/A","N/A","N/A","N/A","Si","Si","Si","Si","Si","Si","\\\\192.168.10.101\\negocios\\Estructuración IAD\\AMP adquisición de Computadores y Periféricos\\03 Ofertas\\ConsolidadoOfertas\\Segmento1\\41-SistetronicsFormato 5 incorpora Adenda 2.xlsm"]
["3-CYSNUS","LENOVO","LENOVO","LENOVO","LENOVO","LENOVO","LENOVO","ThinkCentre M700 SFF\n","ThinkCentre M700 Tiny\n","ThinkCentre M715 Tiny\n","ThinkCentre M800Z AIO\n","ThinkCentre M900Z AIO\n","ThinkCentre M710 SFF\n","http://psref.lenovo.com/Product/ThinkCentre_M700_SFF ","http://psref.lenovo.com/Product/ThinkCentre_M700_Tiny","http://psref.lenovo.com/Product/ThinkCentre_M715_Tiny","http://psref.lenovo.com/Product/ThinkCentre_M800z_AIO","http://psref.lenovo.com/Product/ThinkCentre_M900z_AIO","http://psref.lenovo.com/Product/ThinkCentre_M710_SFF","México","México","México","México","México","México","8471.49.00.00","8471.49.00.00","8471.49.00.00","8471.49.00.00","8471.49.00.00","8471.49.00.00","No","No","No","No","No","No","\\\\192.168.10.101\\negocios\\Estructuración IAD\\AMP adquisición de Computadores y Periféricos\\03 Ofertas\\ConsolidadoOfertas\\Segmento1\\3-Formato 5 incorpora Adenda 2 - CYSNUS Oferta económica referencias e industria nacional.xlsm"]
["UT Data","ACER","ACER","ACER","ACER","ACER","ACER","VERITON","VERITON","VERITON","VERITON","VERITON","VERITON","www.acer.com","www.acer.com","www.acer.com","www.acer.com","www.acer.com","www.acer.com","Estados Unidos","Estados Unidos","Estados Unidos","Estados Unidos","Estados Unidos","Estados Unidos","8471.49.00.00 - 8471.41.00.00","8471.49.00.00 - 8471.41.00.00","8471.49.00.00 - 8471.41.00.00","8471.49.00.00 - 8471.41.00.00","8471.49.00.00 - 8471.41.00.00","8471.49.00.00 - 8471.41.00.00","Si","Si","Si","Si","Si","Si","\\\\192.168.10.101\\negocios\\Estructuración IAD\\AMP adquisición de Computadores y Periféricos\\03 Ofertas\\ConsolidadoOfertas\\Segmento1\\19-UT Data Formato 5 incorpora Adenda 2.xlsm"]
["Controles empresariales","HEWLETT PACKARD","HEWLETT PACKARD","HEWLETT PACKARD","HEWLETT PACKARD","HEWLETT PACKARD","HEWLETT PACKARD","PRODESK 705 G3 SFF BUSINESS PC","PRODESK 705 G3 DM BUSINESS PC","PRODESK 705 G3 DM BUSINESS PC","PROONE 600 G2 ALL-IN-ONE BUSINESS PC","ELITEONE 800 G3 ALL-IN-ONE BUSINESS PC","PRODESK 400 G4 SFF BUSINESS PC","http://www.hp.com/latam/CCE/2017/HP%20EliteDesk%20705%20SFF%201-1.pdf","http://www.hp.com/latam/CCE/2017/HP%20EliteDesk%20705%20DM%201-2.pdf","http://www.hp.com/latam/CCE/2017/HP%20EliteDesk%20705%20DM%201-3.pdf","http://www.hp.com/latam/CCE/2017/HP%20ProOne%20600%20AiO%20NT%201-4.pdf","http://www.hp.com/latam/CCE/2017/HP%20EliteOne%20800%20AIO%20NT%201-5.pdf","http://www.hp.com/latam/CCE/2017/HP%20ProDesk%20400%20SFF%201-6.pdf ","Estados Unidos","Estados Unidos","Estados Unidos","Estados Unidos","Estados Unidos","Estados Unidos","8471.49.00.00\r\n8471.41.00.00\r\n","8471.49.00.00\r\n8471.41.00.00\r\n","8471.49.00.00\r\n8471.41.00.00\r\n","8471.49.00.00\r\n8471.41.00.00\r\n","8471.49.00.00\r\n8471.41.00.00\r\n","8471.49.00.00\r\n8471.41.00.00\r\n","Si","Si","Si","Si","Si","Si","\\\\192.168.10.101\\negocios\\Estructuración IAD\\AMP adquisición de Computadores y Periféricos\\03 Ofertas\\ConsolidadoOfertas\\Segmento1\\29-CE Formato 5 incorpora Adenda 2  Oferta economica.xlsm"]
["Computer center","LENOVO","LENOVO","LENOVO","LENOVO","LENOVO","LENOVO","ThinkCentre M700 SFF ","Thinkcentre M700 Tiny","Thinkcentre M715 Tiny","Thinkcentre M800Z AIO","Thinkcentre M900Z AIO","Thinkcentre M710 SFF","http://psref.lenovo.com/Product/ThinkCentre_M700_SFF","http://psref.lenovo.com/Product/ThinkCentre_M700_Tiny","http://psref.lenovo.com/Product/ThinkCentre_M715_Tiny","http://psref.lenovo.com/Product/ThinkCentre_M800z_AIO","http://psref.lenovo.com/Product/ThinkCentre_M900z_AIO","http://psref.lenovo.com/Product/ThinkCentre_M710_SFF","México","México","México","México","México","México","8471.49.00.00","8471.49.00.00","8471.49.00.00","8471.49.00.00","8471.49.00.00","8471.49.00.00","Si","Si","Si","Si","Si","Si","\\\\192.168.10.101\\negocios\\Estructuración IAD\\AMP adquisición de Computadores y Periféricos\\03 Ofertas\\ConsolidadoOfertas\\Segmento1\\11-Computer center Formato 5 incorpora Adenda 2.xlsm"]
["Comware","Dell","Dell","Dell","Dell","Dell","Dell","Optiplex 3050 SFF","Optiplex 3050 MFF","Optiplex 3050 MFF","Optiplex 5250","Optiplex 7450","Optiplex 3050 SFF","http://www.dell.com/co/empresas/p/optiplex-3050-desktop/pd?ref=PD_Family","http://www.dell.com/co/empresas/p/optiplex-3050-micro/pd?ref=PD_Family","http://www.dell.com/co/empresas/p/optiplex-3050-micro/pd?ref=PD_Family","http://www.dell.com/co/empresas/p/optiplex-5250-aio/pd?ref=PD_OC","http://www.dell.com/co/empresas/p/optiplex-7450-aio/pd?ref=PD_Family","http://www.dell.com/co/empresas/p/optiplex-3050-desktop/pd?ref=PD_Family","México","México","México","México","México","México","8471.49.00.00\r\n","8471.49.00.00\r\n","8471.49.00.00\r\n","8471.49.00.00\r\n","8471.49.00.00\r\n","8471.49.00.00\r\n","Si","Si","Si","Si","Si","Si","\\\\192.168.10.101\\negocios\\Estructuración IAD\\AMP adquisición de Computadores y Periféricos\\03 Ofertas\\ConsolidadoOfertas\\Segmento1\\34-Comware Formato 5 incorpora Adenda 2.xlsm"]
["Red computo","DELL","DELL","DELL","DELL","DELL","DELL","OPTIPLEX 3050 SFF","OPTIPLEX 3050 MICRO","OPTIPLEX 3050 MICRO","OPTIPLEX AIO 5250","OPTIPLEX AIO7450","OPTIPLEX 3050 SFF","www.dell.com.co","www.dell.com.co","www.dell.com.co","www.dell.com.co","www.dell.com.co","www.dell.com.co","México","México","México","México","México","México","No hay elementos seleccionados","No hay elementos seleccionados","No hay elementos seleccionados","No hay elementos seleccionados","No hay elementos seleccionados","No hay elementos seleccionados","No","No","No","No","No","No","\\\\192.168.10.101\\negocios\\Estructuración IAD\\AMP adquisición de Computadores y Periféricos\\03 Ofertas\\ConsolidadoOfertas\\Segmento1\\27-Red computo Formato 5 incorpora Adenda 2.xlsm"]
["Carvajal Tecnología y Servicios SAS","HP","HP","HP","HP","HP","HP","HP 705 G3 SFF","HP 705 DM G3","HP 705 DM G3","HP ProOne 600 AiO G2","HP 800 AiO G3","HP 400 G4 ","http://www.hp.com/latam/CCE/2017/HP%20EliteDesk%20705%20SFF%201-1.pdf ","http://www.hp.com/latam/CCE/2017/HP%20EliteDesk%20705%20DM%201-2.pdf ","http://www.hp.com/latam/CCE/2017/HP%20EliteDesk%20705%20DM%201-3.pdf","http://www.hp.com/latam/CCE/2017/HP%20ProOne%20600%20AiO%20NT%201-4.pdf","http://www.hp.com/latam/CCE/2017/HP%20EliteOne%20800%20AIO%20NT%201-5.pdf","http://www.hp.com/latam/CCE/2017/HP%20ProDesk%20400%20SFF%201-6.pdf ","México","México","México","México","México","México","N/A","N/A","N/A","N/A","N/A","N/A","No","No","No","No","No","No","\\\\192.168.10.101\\negocios\\Estructuración IAD\\AMP adquisición de Computadores y Periféricos\\03 Ofertas\\ConsolidadoOfertas\\Segmento1\\31-Carvajal TyS - Formato 5 incorpora Adenda .xlsm"]
["OFIBOD LTDA ","DELL","DELL","DELL","DELL","DELL","DELL","OPTIPLEX 3050 SFF","OPTIPPLEX 3050 MFF","OPTIPLEX 3050 MFF","OPTIPLEX 5250","OPTIPLEX 7450","OPTIPLEX 3050 SFF","http://www.dell.com/co/empresas/p/optiplex-3050-desktop/pd?ref=PD_Family","http://www.dell.com/co/empresas/p/optiplex-3050-micro/pd?ref=PD_Family","http://www.dell.com/co/empresas/p/optiplex-3050-micro/pd?ref=PD_Family","http://www.dell.com/co/empresas/p/optiplex-5250-aio/pd?ref=PD_OC","http://www.dell.com/co/empresas/p/optiplex-7450-aio/pd?ref=PD_Family","http://www.dell.com/co/empresas/p/optiplex-3050-desktop/pd?ref=PD_Family","México","México","México","México","México","México","8471.49.00.00\r\n","8471.49.00.00","8471.49.00.00\r\n","8471.49.00.00","8471.49.00.00","8471.49.00.00\r\n","Si","Si","Si","Si","Si","Si","\\\\192.168.10.101\\negocios\\Estructuración IAD\\AMP adquisición de Computadores y Periféricos\\03 Ofertas\\ConsolidadoOfertas\\Segmento1\\36-Ofibod Formato 5 incorpora Adenda 2.xlsm"]
["MICROHARD S.A.S","DELL","DELL","DELL","DELL","DELL","DELL","Optiplex 3050 SFF","Optiplex 3050 MFF","Optiplex 3050 MFF","Optiplex 5250 AIO","Optiplex 7450 AIO","Optiplex 3050 SFF","http://www.dell.com/co/empresas/p/optiplex-3050-desktop/pd?ref=PD_Family","http://www.dell.com/co/empresas/p/optiplex-3050-micro/pd?ref=PD_Family","http://www.dell.com/co/empresas/p/optiplex-3050-micro/pd?ref=PD_Family","http://www.dell.com/co/empresas/p/optiplex-5250-aio/pd?ref=PD_OC","http://www.dell.com/co/empresas/p/optiplex-7450-aio/pd?ref=PD_Family","http://www.dell.com/co/empresas/p/optiplex-3050-desktop/pd?ref=PD_Family","México","México","México","México","México","México","N/A","N/A","N/A","N/A","N/A","N/A","No","No","No","No","No","No","\\\\192.168.10.101\\negocios\\Estructuración IAD\\AMP adquisición de Computadores y Periféricos\\03 Ofertas\\ConsolidadoOfertas\\Segmento1\\23-Microhard Formato 5 incorpora Adenda 2.xlsm"]
["Uniples","HP","HP","HP","HP","HP","HP","705 G3 SFF","705 DM G3","705 DM G3","ProOne 600 G2","EliteOne 800 AIO G3"," ProDesk 400 G4 SFF","http://www.hp.com/latam/CCE/2017/HP%20EliteDesk%20705%20SFF%201-1.pdf ","http://www.hp.com/latam/CCE/2017/HP%20EliteDesk%20705%20DM%201-2.pdf ","http://www.hp.com/latam/CCE/2017/HP%20EliteDesk%20705%20DM%201-3.pdf","http://www.hp.com/latam/CCE/2017/HP%20ProOne%20600%20AiO%20NT%201-4.pdf","http://www.hp.com/latam/CCE/2017/HP%20EliteOne%20800%20AIO%20NT%201-5.pdf","http://www.hp.com/latam/CCE/2017/HP%20ProDesk%20400%20SFF%201-6.pdf ","México","México","México","México","México","México","8471.49.00.00","8471.49.00.00\r\n","8471.49.00.00","8471.41.00.00\r\n","8471.41.00.00\r\n","8471.49.00.00\r\n","No","No","No","No","No","No","\\\\192.168.10.101\\negocios\\Estructuración IAD\\AMP adquisición de Computadores y Periféricos\\03 Ofertas\\ConsolidadoOfertas\\Segmento1\\44-Uniples Formato 5 incorpora Adenda 2.xlsm"]
["Colsof","DELL","DELL","DELL","DELL","DELL","DELL","OPTIPLEX 3050","OPTIPLEX 3050","OPTIPLEX 3050","OPTIPLEX 5250","OPTIPLEX 7450","OPTIPLEX 3050","http://www.dell.com/co/empresas/p/optiplex-3050-desktop/pd?ref=PD_Family","http://www.dell.com/co/empresas/p/optiplex-3050-micro/pd?ref=PD_Family","http://www.dell.com/co/empresas/p/optiplex-3050-micro/pd?ref=PD_Family","http://www.dell.com/co/empresas/p/optiplex-5250-aio/pd?ref=PD_OC","http://www.dell.com/co/empresas/p/optiplex-7450-aio/pd?ref=PD_Family","http://www.dell.com/co/empresas/p/optiplex-3050-desktop/pd?ref=PD_Family","México","México","México","México","México","México",null,null,null,null,null,null,null,null,null,null,null,null,"\\\\192.168.10.101\\negocios\\Estructuración IAD\\AMP adquisición de Computadores y Periféricos\\03 Ofertas\\ConsolidadoOfertas\\Segmento1\\17-Colsof Formato 5 incorpora Adenda 2.xlsm"]
["Origin IT","DELL","DELL","DELL","DELL","DELL","DELL","OPTIPLEX 3050SFF","OPTIPLEX 3050MFF","OPTIPLEX 3050MFF","OPTIPLEX 5250","OPTIPLEX 7450","OPTIPLEX 3050SFF","http://www.dell.com/co/empresas/p/optiplex-3050-desktop/pd","http://www.dell.com/co/empresas/p/optiplex-3050-micro/pd","http://www.dell.com/co/empresas/p/optiplex-3050-desktop/pd","http://www.dell.com/co/empresas/p/optiplex-5250-aio/pd","http://www.dell.com/co/empresas/p/optiplex-7450-aio/pd","http://www.dell.com/co/empresas/p/optiplex-3050-desktop/pd","México","México","México","México","México","México","8471.49.00.00","8471.49.00.00","8471.49.00.00","8471.49.00.00","8471.49.00.00","8471.49.00.00","Si","Si","Si","Si","Si","Si","\\\\192.168.10.101\\negocios\\Estructuración IAD\\AMP adquisición de Computadores y Periféricos\\03 Ofertas\\ConsolidadoOfertas\\Segmento1\\40-Origin IT Formato 5 incorpora Adenda 2.xlsm"]
["Andivision","Lenovo","Lenovo","Lenovo","Lenovo","Lenovo","Lenovo","ThinkCentre M700 SFF","ThinkCentre M715 Tiny","ThinkCentre M700 Tiny","ThinkCentre M800Z AIO","ThinkCentre M900Z AIO","ThinkCentre M710 SFF","http://www.lenovo.com/co/es/","http://www.lenovo.com/co/es/","http://www.lenovo.com/co/es/","http://www.lenovo.com/co/es/","http://www.lenovo.com/co/es/","http://www.lenovo.com/co/es/","México","México","México","México","México","México","8471.49.00.00\r\n","8471.49.00.00\r\n","8471.49.00.00\r\n","8471.49.00.00\r\n","8471.49.00.00\r\n","8471.49.00.00\r\n","Si","Si","Si","Si","Si","Si","\\\\192.168.10.101\\negocios\\Estructuración IAD\\AMP adquisición de Computadores y Periféricos\\03 Ofertas\\ConsolidadoOfertas\\Segmento1\\13-Andivision Formato 5 incorpora Adenda 2.xlsm"]
["DISTRICOM DE COLOMBIA SAS","hewlett packard","hewlett packard","hewlett packard","hewlett packard","hewlett packard","hewlett packard","HP 705 SFF","HP 705 DM","HP 705 DM","HP PRO ONE 600 G2","HP PRO ONE 800 G3","HP  400 G4 SFF","http://www8.hp.com/mx/es/home.html","http://www8.hp.com/mx/es/home.html","http://www8.hp.com/mx/es/home.html","http://www8.hp.com/mx/es/home.html","http://www8.hp.com/mx/es/home.html","http://www8.hp.com/mx/es/home.html","México","México","México","México","México","México","N/A","N/A","N/A","N/A","N/A","N/A","No","No","No","No","No","No","\\\\192.168.10.101\\negocios\\Estructuración IAD\\AMP adquisición de Computadores y Periféricos\\03 Ofertas\\ConsolidadoOfertas\\Segmento1\\7-Districom Formato 5.xlsm"]

{"sheet":"Titulos","index":6,"n_rows":1,"n_cols":50,"rows_kept":1,"cut":false,"hidden":true,"merged":[]}
["Proveedor 1","Proveedor 2","Proveedor 3","Proveedor 4","Proveedor 5","Proveedor 6","Proveedor 7","Proveedor 8","Proveedor 9","Proveedor 10","Proveedor 11","Proveedor 12","Proveedor 13","Proveedor 14","Proveedor 15","Proveedor 16","Proveedor 17","Proveedor 18","Proveedor 19","Proveedor 20","Proveedor 21","Proveedor 22","Proveedor 23","Proveedor 24","Proveedor 25","Proveedor 26","Proveedor 27","Proveedor 28","Proveedor 29","Proveedor 30","Proveedor 31","Proveedor 32","Proveedor 33","Proveedor 34","Proveedor 35","Proveedor 36","Proveedor 37","Proveedor 38","Proveedor 39","Proveedor 40","Proveedor 41","Proveedor 42","Proveedor 43","Proveedor 44","Proveedor 45","Proveedor 46","Proveedor 47","Proveedor 48","Proveedor 49","Proveedor 50"]